Workbook

Sheet Notes
A1: SwingTrade3Indic.xlsm
A2: Coded beginning 2013-Oct-07 by Ronald McAllister (rpmac_xltt@sprynet.com)
A4: This Workbook demonstrates an EXCEL version of the ideas presented
A5: by Donald Pendergast in an article titled "Swing Trading With Three Indicators"
A6: which appears in the December 2013 issue of
A7: "Technical Analysis of Stocks and Commodities" magazine.
A9: CalculationsAndCharts construction Notes for the December 2013 TTip:
B10: Some what pertinent system behavior note:
C11: Using the rules set forth by Mr. Pendergast, this system can only initiate LONG trades in an overall UP trend.
C12: Where Up is defined as Close Prices above the 50 day Moving average.
C13: Similarly, it may only initiate SHORT trades in an overall Down Trend.
C14: Where Down is defined as Close Prices below the 50 day Moving average.
C15: So,…
C16: The two types of trades will not be intermingled on this chart. The button provided to the right of the chart
C17: can be used to toggle between the display of Long and Short Trades.
C18: You will need to scroll the display left or right to find trades for the current trading pursuasion.
C20: Trade setups: A strict reading of the entry rules implies that only the first bar which breaks above the HiEMA can be considered as an entry candidate.
C21: If this bar meets all of the other entry rule conditions it is an entry.
C22: This means that if two bars in a row break above the HiEMA, the second bar of this pair can not be considered an entry candidate.
A24: Data for this EXCEL example:
A26: Price history for various STOCK symbols and some INDEX symbols may be available for downloaded
A27: as .csv formatted files from Yahoo Finance: http://finance.yahoo.com
A28: Enter a symbol and select "Historical Prices" from the left margin.
A29: Hint: You might want to copy the name and symbol text from the top of the history page to use as
A30: your downloaded file name (via Paste).
A31: Then go to the bottom of the page and click "Download to Spreadsheet".
A32: Use the "Save As" option to name and save the file to your drive for later input processing. (See
A33: Automated data import below)
A34: Note: The resulting .csv file is in date-descending sequence (most recent first) and may be used in
A35: this spread sheet with out sorting.
A37: Automated data import
A38: The InputPriceData tab now has a button that will automate importing Price History data which you
A39: have previously downloaded to your hard drive from Yahoo Finance (.csv format please!)
A40: The VBA macro code behind this button uses the standard EXCEL file open dialog to allow you to
A41: navigate to the directory where you have stored the downloaded history files. You may then select the
A42: file you are interested in.
A43: Subsequent processing will adjust the Open, High, Low, and Close prices as indicated by the
B44: Adjusted Close values provided in the downloaded file.
A45: Both the Raw and the Adjusted data will be copied to the InputPriceData tab for use in this workbook.
A46: However, YOU must enter the symbol and description in cell A1 of the InputPriceData tab after you
A47: use the button: YAHOO history files DO NOT contain the symbol or a description!
A48: If you used the name and symbol copied from the top of the history page as your file name you may not
A49: need to adjust A1.
A50: Note: After the data has been transferred to this workbook, the source history file will be closed
A51: with out saving it so that it remains unchanged for future uses.
A53: Development Notes:
A54: 1 | C54: This workbook contains and uses VBA macros.
A55: 2 | C55: Input Data
C56: The data in this workbook is sorted date descending (most recent date at the top). All formulas and
C57: VBA routines are built accordingly.
A58: Calculation and Chart Worksheet Usage Comments:
A59: 1 | C59: In General, Items in Bolded BLUE are items you may freely change to play what-if games.
C60: Be sure to have a backup copy of the spreadsheet before you alter anything else.
A61: 2 | C61: Several of the column formulas begin with "IF" logic that determines when there is sufficient data
C62: available for the subsequent calculations to be relevant. The cell will calculate to blank or the
C63: result of the calculation.
C64: In a couple of cases, this "IF" logic also sets starter values for subsequent smoothing calculations.
A65: 3 | C65: Data windowing can be performed by changing cell A11. Positive values logically "Pan" the
C66: data window represented by the Calculation sheet down the input sheet and back in time.
C67: This can have two side effects: First, data may fall outside of the fixed Y-axis scales and be clipped
C68: or fall well inside the Y-axis scales wasting a lot of chart vertical space. Second, you may move far
C69: enough back that you do not have sufficient data points to fill the left of the chart.
A70: 4 | C70: The VBA macros behind the SetChart button address these Data Windowing problems and also
C71: resizes and vertically aligns all charts on the work sheet to match the Price chart and then
C72: horizontally adjusts the X-axis positions of all charts on the work sheet so that the corresponding
C73: data points align vertically.
C74: The macros behind the SetChart button are sensitive to the user control values in cells A11 and
C75: A12, and also uses the computed values in cells A8, F11, and F12

Sheet InputPriceData
A1: Citigroup, Inc. C (C) -NYSE | L1: Notes: | M1: Online Yahoo Finance Query Interfaces used in the VBA code to obtain this data:
M2: A.) Price History Only: "http://ichart.finance.yahoo.com/table.csv"
A3: Request Online Yahoo History for: | M3: B.) Price History w/ imbedded divs n splits: "http://ichart.finance.yahoo.com/x"
A4: Symbol | B4: c | D4: Valid
A5: From | B5: 1960-01-01 | D5: Data | M5: C.) Fundamentals (in this case name and exchange):
A6: To | B6: =TODAY() -> 2013-10-10 | D6: Types | E6: =VLOOKUP(B7,D7:E10,2,FALSE) -> d | M6: "http://download.finance.yahoo.com/d/quotes.csv?"
A7: Data Type | B7: Daily | D7: Daily | E7: d | M7: For some how-to doc regarding this particular interface, including a list of the
D8: Weekly | E8: w | M8: specific fields you can include in a request to this interface see:
A9: Available Data | D9: Monthly | E9: m | M9: http://www.gummy-stuff.org/Yahoo-data.htm
A10: Bar Count: | B10: =COUNTA(B16:B64981) -> 9277 | D10: Div/Split | E10: v | M10: This web site includes a downloadable working EXCEL/VBA example
A11: From: | B11: =IF(B10<=0,"",OFFSET(B15,B10,IF(HistReqDataType="v",1,0),1,1)) -> 1977-01-03 | M11: of the capabilities of this interface.
A12: To: | B12: =IF(B10<=0,"",IF(HistReqDataType="v",OFFSET(B15,2,1,1,1),OFFSET(B15,1,0,1,1))) -> 2013-10-09
B14: Raw Data Values | H14: Adjusted | I14: Adjustment | J14: Adjusted Values
A15: RelRow | B15: Date | C15: Open | D15: High | E15: Low | F15: Close | G15: Volume | H15: Adj Close | I15: Factor | J15: Open | K15: High | L15: Low | M15: Close
A16: 1 | B16: 2013-10-09 | C16: 47.98 | D16: 48.38 | E16: 47.6 | F16: 47.95 | G16: 22597700 | H16: 47.95 | I16: =H16/F16 -> 1 | J16: =ROUND($I16*C16,2) -> 47.98 | K16: =ROUND($I16*D16,2) -> 48.38 | L16: 47.6 | M16: 47.95
A17: 2 | B17: 2013-10-08 | C17: 48.22 | D17: 48.45 | E17: 47.62 | F17: 47.67 | G17: 24632500 | H17: 47.67 | I17: =H17/F17 -> 1 | J17: =ROUND($I17*C17,2) -> 48.22 | K17: =ROUND($I17*D17,2) -> 48.45 | L17: =ROUND($I17*E17,2) -> 47.62 | M17: =ROUND($I17*F17,2) -> 47.67
A18: 3 | B18: 2013-10-07 | C18: 48.62 | D18: 48.67 | E18: 48.16 | F18: 48.18 | G18: 19103500 | H18: 48.18 | I18: 1 | J18: 48.62 | K18: 48.67 | L18: 48.16 | M18: 48.18
A19: 4 | B19: 2013-10-04 | C19: 48.45 | D19: 49.19 | E19: 48.38 | F19: 49.14 | G19: 18424800 | H19: 49.14 | I19: 1 | J19: 48.45 | K19: 49.19 | L19: 48.38 | M19: 49.14
A20: 5 | B20: 2013-10-03 | C20: 48.81 | D20: 48.98 | E20: 48.03 | F20: 48.4 | G20: 22013300 | H20: 48.4 | I20: 1 | J20: 48.81 | K20: 48.98 | L20: 48.03 | M20: 48.4
A21: 6 | B21: 2013-10-02 | C21: 48.42 | D21: 49.05 | E21: 48.16 | F21: 48.71 | G21: 23545800 | H21: 48.71 | I21: 1 | J21: 48.42 | K21: 49.05 | L21: 48.16 | M21: 48.71
A22: 7 | B22: 2013-10-01 | C22: 48.85 | D22: 49.1 | E22: 48.42 | F22: 48.6 | G22: 21018500 | H22: 48.6 | I22: 1 | J22: 48.85 | K22: 49.1 | L22: 48.42 | M22: 48.6
A23: 8 | B23: 2013-09-30 | C23: 48.27 | D23: 48.86 | E23: 47.83 | F23: 48.51 | G23: 23789300 | H23: 48.51 | I23: 1 | J23: 48.27 | K23: 48.86 | L23: 47.83 | M23: 48.51
A24: 9 | B24: 2013-09-27 | C24: 48.76 | D24: 49.2 | E24: 48.69 | F24: 48.89 | G24: 20243100 | H24: 48.89 | I24: 1 | J24: 48.76 | K24: 49.2 | L24: 48.69 | M24: 48.89
A25: 10 | B25: 2013-09-26 | C25: 49.27 | D25: 49.49 | E25: 48.5 | F25: 48.93 | G25: 23333200 | H25: 48.93 | I25: 1 | J25: 49.27 | K25: 49.49 | L25: 48.5 | M25: 48.93
A26: 11 | B26: 2013-09-25 | C26: 49.04 | D26: 49.54 | E26: 48.67 | F26: 49.26 | G26: 26930400 | H26: 49.26 | I26: 1 | J26: 49.04 | K26: 49.54 | L26: 48.67 | M26: 49.26
A27: 12 | B27: 2013-09-24 | C27: 49.43 | D27: 49.48 | E27: 48.93 | F27: 48.96 | G27: 26330900 | H27: 48.96 | I27: 1 | J27: 49.43 | K27: 49.48 | L27: 48.93 | M27: 48.96
A28: 13 | B28: 2013-09-23 | C28: 49.95 | D28: 50.17 | E28: 49.29 | F28: 49.57 | G28: 34560100 | H28: 49.57 | I28: 1 | J28: 49.95 | K28: 50.17 | L28: 49.29 | M28: 49.57
A29: 14 | B29: 2013-09-20 | C29: 52.03 | D29: 52.1 | E29: 51.12 | F29: 51.21 | G29: 28157600 | H29: 51.21 | I29: 1 | J29: 52.03 | K29: 52.1 | L29: 51.12 | M29: 51.21
A30: 15 | B30: 2013-09-19 | C30: 52.75 | D30: 52.88 | E30: 51.9 | F30: 51.95 | G30: 25368500 | H30: 51.95 | I30: 1 | J30: 52.75 | K30: 52.88 | L30: 51.9 | M30: 51.95
A31: 16 | B31: 2013-09-18 | C31: 51.02 | D31: 52.66 | E31: 50.98 | F31: 52.21 | G31: 31901700 | H31: 52.21 | I31: 1 | J31: 51.02 | K31: 52.66 | L31: 50.98 | M31: 52.21
A32: 17 | B32: 2013-09-17 | C32: 51.15 | D32: 51.28 | E32: 50.87 | F32: 51.2 | G32: 15424500 | H32: 51.2 | I32: 1 | J32: 51.15 | K32: 51.28 | L32: 50.87 | M32: 51.2
A33: 18 | B33: 2013-09-16 | C33: 51.19 | D33: 51.45 | E33: 50.74 | F33: 51 | G33: 19369100 | H33: 51 | I33: 1 | J33: 51.19 | K33: 51.45 | L33: 50.74 | M33: 51
A34: 19 | B34: 2013-09-13 | C34: 50.29 | D34: 50.62 | E34: 50.22 | F34: 50.49 | G34: 12571800 | H34: 50.49 | I34: 1 | J34: 50.29 | K34: 50.62 | L34: 50.22 | M34: 50.49
A35: 20 | B35: 2013-09-12 | C35: 50.66 | D35: 50.76 | E35: 49.97 | F35: 50.26 | G35: 21341600 | H35: 50.26 | I35: 1 | J35: 50.66 | K35: 50.76 | L35: 49.97 | M35: 50.26
A36: 21 | B36: 2013-09-11 | C36: 51.04 | D36: 51.12 | E36: 50.26 | F36: 50.73 | G36: 22251600 | H36: 50.73 | I36: 1 | J36: 51.04 | K36: 51.12 | L36: 50.26 | M36: 50.73
A37: 22 | B37: 2013-09-10 | C37: 50.74 | D37: 51.53 | E37: 50.54 | F37: 51.09 | G37: 24843900 | H37: 51.09 | I37: 1 | J37: 50.74 | K37: 51.53 | L37: 50.54 | M37: 51.09
A38: 23 | B38: 2013-09-09 | C38: 49.49 | D38: 50.12 | E38: 49.36 | F38: 50.09 | G38: 22388100 | H38: 50.09 | I38: 1 | J38: 49.49 | K38: 50.12 | L38: 49.36 | M38: 50.09
A39: 24 | B39: 2013-09-06 | C39: 50.18 | D39: 50.18 | E39: 48.89 | F39: 49.22 | G39: 24627200 | H39: 49.22 | I39: 1 | J39: 50.18 | K39: 50.18 | L39: 48.89 | M39: 49.22
A40: 25 | B40: 2013-09-05 | C40: 49.85 | D40: 50.2 | E40: 49.62 | F40: 49.86 | G40: 17765800 | H40: 49.86 | I40: 1 | J40: 49.85 | K40: 50.2 | L40: 49.62 | M40: 49.86
A41: 26 | B41: 2013-09-04 | C41: 49.31 | D41: 49.95 | E41: 49.12 | F41: 49.6 | G41: 18949600 | H41: 49.6 | I41: 1 | J41: 49.31 | K41: 49.95 | L41: 49.12 | M41: 49.6
A42: 27 | B42: 2013-09-03 | C42: 49.37 | D42: 49.84 | E42: 48.36 | F42: 49.37 | G42: 28906900 | H42: 49.37 | I42: 1 | J42: 49.37 | K42: 49.84 | L42: 48.36 | M42: 49.37
A43: 28 | B43: 2013-08-30 | C43: 48.71 | D43: 48.71 | E43: 47.8 | F43: 48.33 | G43: 24902000 | H43: 48.33 | I43: 1 | J43: 48.71 | K43: 48.71 | L43: 47.8 | M43: 48.33
A44: 29 | B44: 2013-08-29 | C44: 48.4 | D44: 48.9 | E44: 48.27 | F44: 48.47 | G44: 17293800 | H44: 48.47 | I44: 1 | J44: 48.4 | K44: 48.9 | L44: 48.27 | M44: 48.47
A45: 30 | B45: 2013-08-28 | C45: 48.05 | D45: 48.93 | E45: 47.64 | F45: 48.31 | G45: 29616600 | H45: 48.31 | I45: 1 | J45: 48.05 | K45: 48.93 | L45: 47.64 | M45: 48.31
A46: 31 | B46: 2013-08-27 | C46: 48.84 | D46: 49.34 | E46: 48.16 | F46: 48.24 | G46: 29854200 | H46: 48.24 | I46: 1 | J46: 48.84 | K46: 49.34 | L46: 48.16 | M46: 48.24
A47: 32 | B47: 2013-08-26 | C47: 49.8 | D47: 50.34 | E47: 49.6 | F47: 49.6 | G47: 16604100 | H47: 49.6 | I47: 1 | J47: 49.8 | K47: 50.34 | L47: 49.6 | M47: 49.6
A48: 33 | B48: 2013-08-23 | C48: 50.11 | D48: 50.33 | E48: 49.69 | F48: 49.83 | G48: 15302800 | H48: 49.83 | I48: 1 | J48: 50.11 | K48: 50.33 | L48: 49.69 | M48: 49.83
A49: 34 | B49: 2013-08-22 | C49: 49.66 | D49: 50.27 | E49: 49.28 | F49: 49.91 | G49: 22411800 | H49: 49.91 | I49: 1 | J49: 49.66 | K49: 50.27 | L49: 49.28 | M49: 49.91
A50: 35 | B50: 2013-08-21 | C50: 49.8 | D50: 49.94 | E50: 49.03 | F50: 49.16 | G50: 30669600 | H50: 49.16 | I50: 1 | J50: 49.8 | K50: 49.94 | L50: 49.03 | M50: 49.16
A51: 36 | B51: 2013-08-20 | C51: 49.27 | D51: 50.25 | E51: 48.77 | F51: 49.92 | G51: 29313400 | H51: 49.92 | I51: 1 | J51: 49.27 | K51: 50.25 | L51: 48.77 | M51: 49.92
A52: 37 | B52: 2013-08-19 | C52: 50.06 | D52: 50.13 | E52: 49.3 | F52: 49.33 | G52: 22958800 | H52: 49.33 | I52: 1 | J52: 50.06 | K52: 50.13 | L52: 49.3 | M52: 49.33
A53: 38 | B53: 2013-08-16 | C53: 50.69 | D53: 51.08 | E53: 50.22 | F53: 50.35 | G53: 23497000 | H53: 50.35 | I53: 1 | J53: 50.69 | K53: 51.08 | L53: 50.22 | M53: 50.35
A54: 39 | B54: 2013-08-15 | C54: 51.02 | D54: 51.1 | E54: 50.33 | F54: 50.86 | G54: 26231400 | H54: 50.86 | I54: 1 | J54: 51.02 | K54: 51.1 | L54: 50.33 | M54: 50.86
A55: 40 | B55: 2013-08-14 | C55: 51.95 | D55: 52.44 | E55: 51.58 | F55: 51.59 | G55: 17240200 | H55: 51.59 | I55: 1 | J55: 51.95 | K55: 52.44 | L55: 51.58 | M55: 51.59
A56: 41 | B56: 2013-08-13 | C56: 51.04 | D56: 52.15 | E56: 50.74 | F56: 51.77 | G56: 23814200 | H56: 51.77 | I56: 1 | J56: 51.04 | K56: 52.15 | L56: 50.74 | M56: 51.77
A57: 42 | B57: 2013-08-12 | C57: 51 | D57: 51.12 | E57: 50.65 | F57: 50.9 | G57: 17413200 | H57: 50.9 | I57: 1 | J57: 51 | K57: 51.12 | L57: 50.65 | M57: 50.9
A58: 43 | B58: 2013-08-09 | C58: 51.72 | D58: 52 | E58: 51.24 | F58: 51.32 | G58: 15613000 | H58: 51.32 | I58: 1 | J58: 51.72 | K58: 52 | L58: 51.24 | M58: 51.32
A59: 44 | B59: 2013-08-08 | C59: 52.09 | D59: 52.12 | E59: 51.07 | F59: 51.78 | G59: 18623800 | H59: 51.78 | I59: 1 | J59: 52.09 | K59: 52.12 | L59: 51.07 | M59: 51.78
A60: 45 | B60: 2013-08-07 | C60: 51.01 | D60: 51.64 | E60: 50.8 | F60: 51.5 | G60: 18613400 | H60: 51.5 | I60: 1 | J60: 51.01 | K60: 51.64 | L60: 50.8 | M60: 51.5
A61: 46 | B61: 2013-08-06 | C61: 52.59 | D61: 52.69 | E61: 51.4 | F61: 51.48 | G61: 23692600 | H61: 51.48 | I61: 1 | J61: 52.59 | K61: 52.69 | L61: 51.4 | M61: 51.48
A62: 47 | B62: 2013-08-05 | C62: 52.93 | D62: 53.11 | E62: 52.75 | F62: 52.87 | G62: 10699700 | H62: 52.87 | I62: 1 | J62: 52.93 | K62: 53.11 | L62: 52.75 | M62: 52.87
A63: 48 | B63: 2013-08-02 | C63: 52.84 | D63: 53.05 | E63: 52.5 | F63: 53 | G63: 15440000 | H63: 53 | I63: 1 | J63: 52.84 | K63: 53.05 | L63: 52.5 | M63: 53
A64: 49 | B64: 2013-08-01 | C64: 52.84 | D64: 53.2 | E64: 52.74 | F64: 52.86 | G64: 20583300 | H64: 52.86 | I64: 1 | J64: 52.84 | K64: 53.2 | L64: 52.74 | M64: 52.86
A65: 50 | B65: 2013-07-31 | C65: 51.71 | D65: 52.96 | E65: 51.71 | F65: 52.14 | G65: 27860500 | H65: 52.13 | I65: 0.9998082087 | J65: 51.7 | K65: 52.95 | L65: 51.7 | M65: 52.13
A66: 51 | B66: 2013-07-30 | C66: 51.82 | D66: 52 | E66: 51.49 | F66: 51.78 | G66: 16099700 | H66: 51.77 | I66: 0.9998068752 | J66: 51.81 | K66: 51.99 | L66: 51.48 | M66: 51.77
A67: 52 | B67: 2013-07-29 | C67: 51.9 | D67: 51.95 | E67: 51.3 | F67: 51.64 | G67: 16327800 | H67: 51.63 | I67: 0.9998063517 | J67: 51.89 | K67: 51.94 | L67: 51.29 | M67: 51.63
A68: 53 | B68: 2013-07-26 | C68: 52.42 | D68: 52.46 | E68: 51.82 | F68: 52.21 | G68: 16248100 | H68: 52.2 | I68: 0.9998084658 | J68: 52.41 | K68: 52.45 | L68: 51.81 | M68: 52.2
A69: 54 | B69: 2013-07-25 | C69: 51.98 | D69: 52.7 | E69: 51.4 | F69: 52.66 | G69: 23057000 | H69: 52.65 | I69: 0.9998101025 | J69: 51.97 | K69: 52.69 | L69: 51.39 | M69: 52.65
A70: 55 | B70: 2013-07-24 | C70: 52.98 | D70: 53.17 | E70: 52.11 | F70: 52.19 | G70: 22674500 | H70: 52.18 | I70: 0.9998083924 | J70: 52.97 | K70: 53.16 | L70: 52.1 | M70: 52.18
A71: 56 | B71: 2013-07-23 | C71: 53.17 | D71: 53.3 | E71: 52.66 | F71: 52.88 | G71: 19492100 | H71: 52.87 | I71: 0.9998108926 | J71: 53.16 | K71: 53.29 | L71: 52.65 | M71: 52.87
A72: 57 | B72: 2013-07-22 | C72: 52.38 | D72: 53 | E72: 52.16 | F72: 53 | G72: 20047200 | H72: 52.99 | I72: 0.9998113208 | J72: 52.37 | K72: 52.99 | L72: 52.15 | M72: 52.99
A73: 58 | B73: 2013-07-19 | C73: 52.63 | D73: 52.65 | E73: 52.15 | F73: 52.35 | G73: 21762600 | H73: 52.34 | I73: 0.999808978 | J73: 52.62 | K73: 52.64 | L73: 52.14 | M73: 52.34
A74: 59 | B74: 2013-07-18 | C74: 52.16 | D74: 52.7 | E74: 52.05 | F74: 52.69 | G74: 33211400 | H74: 52.68 | I74: 0.9998102107 | J74: 52.15 | K74: 52.69 | L74: 52.04 | M74: 52.68
A75: 60 | B75: 2013-07-17 | C75: 51.99 | D75: 52.39 | E75: 51.78 | F75: 51.79 | G75: 34814200 | H75: 51.78 | I75: 0.9998069125 | J75: 51.98 | K75: 52.38 | L75: 51.77 | M75: 51.78
A76: 61 | B76: 2013-07-16 | C76: 52 | D76: 52.43 | E76: 51.51 | F76: 51.83 | G76: 33099000 | H76: 51.82 | I76: 0.9998070615 | J76: 51.99 | K76: 52.42 | L76: 51.5 | M76: 51.82
A77: 62 | B77: 2013-07-15 | C77: 52.04 | D77: 52.16 | E77: 51.01 | F77: 51.81 | G77: 57329500 | H77: 51.8 | I77: 0.9998069871 | J77: 52.03 | K77: 52.15 | L77: 51 | M77: 51.8
A78: 63 | B78: 2013-07-12 | C78: 50.15 | D78: 50.84 | E78: 49.93 | F78: 50.81 | G78: 26672500 | H78: 50.8 | I78: 0.9998031883 | J78: 50.14 | K78: 50.83 | L78: 49.92 | M78: 50.8
A79: 64 | B79: 2013-07-11 | C79: 50.62 | D79: 50.64 | E79: 49.55 | F79: 50.04 | G79: 31097900 | H79: 50.03 | I79: 0.9998001599 | J79: 50.61 | K79: 50.63 | L79: 49.54 | M79: 50.03
A80: 65 | B80: 2013-07-10 | C80: 49.91 | D80: 50.24 | E80: 49.52 | F80: 49.63 | G80: 23768300 | H80: 49.62 | I80: 0.999798509 | J80: 49.9 | K80: 50.23 | L80: 49.51 | M80: 49.62
A81: 66 | B81: 2013-07-09 | C81: 50 | D81: 50.25 | E81: 49.4 | F81: 50.21 | G81: 29512900 | H81: 50.2 | I81: =H81/F81 -> 0.9998008365 | J81: =ROUND($I81*C81,2) -> 49.99 | K81: =ROUND($I81*D81,2) -> 50.24 | L81: =ROUND($I81*E81,2) -> 49.39 | M81: =ROUND($I81*F81,2) -> 50.2
A82: 67 | B82: 2013-07-08 | C82: 48.92 | D82: 49.77 | E82: 48.8 | F82: 49.52 | G82: 26617000 | H82: 49.51 | I82: 0.9997980614 | J82: 48.91 | K82: 49.76 | L82: 48.79 | M82: 49.51
A83: 68 | B83: 2013-07-05 | C83: 48.25 | D83: 48.58 | E83: 47.77 | F83: 48.53 | G83: 21649800 | H83: 48.52 | I83: 0.9997939419 | J83: 48.24 | K83: 48.57 | L83: 47.76 | M83: 48.52
A84: 69 | B84: 2013-07-03 | C84: 47.47 | D84: 47.77 | E84: 47.15 | F84: 47.67 | G84: 15269700 | H84: 47.66 | I84: 0.9997902245 | J84: 47.46 | K84: 47.76 | L84: 47.14 | M84: 47.66
A85: 70 | B85: 2013-07-02 | C85: 48.27 | D85: 49.16 | E85: 47.77 | F85: 48.15 | G85: 26615400 | H85: 48.14 | I85: 0.9997923157 | J85: 48.26 | K85: 49.15 | L85: 47.76 | M85: 48.14
A86: 71 | B86: 2013-07-01 | C86: 48.5 | D86: 49.2 | E86: 46.7 | F86: 48.25 | G86: 27234700 | H86: 48.24 | I86: 0.9997927461 | J86: 48.49 | K86: 49.19 | L86: 46.69 | M86: 48.24
A87: 72 | B87: 2013-06-28 | C87: 48.12 | D87: 48.39 | E87: 47.67 | F87: 47.97 | G87: 28063600 | H87: 47.96 | I87: 0.9997915364 | J87: 48.11 | K87: 48.38 | L87: 47.66 | M87: 47.96
A88: 73 | B88: 2013-06-27 | C88: 48.14 | D88: 48.69 | E88: 47.81 | F88: 48.28 | G88: 29309200 | H88: 48.27 | I88: 0.9997928749 | J88: 48.13 | K88: 48.68 | L88: 47.8 | M88: 48.27
A89: 74 | B89: 2013-06-26 | C89: 47.8 | D89: 47.82 | E89: 47.05 | F89: 47.61 | G89: 30623500 | H89: 47.6 | I89: 0.9997899601 | J89: 47.79 | K89: 47.81 | L89: 47.04 | M89: 47.6
A90: 75 | B90: 2013-06-25 | C90: 46.16 | D90: 47.34 | E90: 46.12 | F90: 47 | G90: 38838900 | H90: 46.99 | I90: 0.999787234 | J90: 46.15 | K90: 47.33 | L90: 46.11 | M90: 46.99
A91: 76 | B91: 2013-06-24 | C91: 45.77 | D91: 46.03 | E91: 45.06 | F91: 45.44 | G91: 50809800 | H91: 45.43 | I91: 0.9997799296 | J91: 45.76 | K91: 46.02 | L91: 45.05 | M91: 45.43
A92: 77 | B92: 2013-06-21 | C92: 48.23 | D92: 48.34 | E92: 45.51 | F92: 46.87 | G92: 76788800 | H92: 46.86 | I92: 0.9997866439 | J92: 48.22 | K92: 48.33 | L92: 45.5 | M92: 46.86
A93: 78 | B93: 2013-06-20 | C93: 48.9 | D93: 49.01 | E93: 47.54 | F93: 47.9 | G93: 48678600 | H93: 47.89 | I93: 0.9997912317 | J93: 48.89 | K93: 49 | L93: 47.53 | M93: 47.89
A94: 79 | B94: 2013-06-19 | C94: 49.99 | D94: 50.3 | E94: 49.41 | F94: 49.53 | G94: 32511000 | H94: 49.52 | I94: 0.9997981022 | J94: 49.98 | K94: 50.29 | L94: 49.4 | M94: 49.52
A95: 80 | B95: 2013-06-18 | C95: 49.52 | D95: 50.25 | E95: 49.49 | F95: 50.01 | G95: 19535800 | H95: 50 | I95: 0.99980004 | J95: 49.51 | K95: 50.24 | L95: 49.48 | M95: 50
A96: 81 | B96: 2013-06-17 | C96: 49.81 | D96: 50.39 | E96: 49.05 | F96: 49.36 | G96: 32128600 | H96: 49.35 | I96: 0.9997974068 | J96: 49.8 | K96: 50.38 | L96: 49.04 | M96: 49.35
A97: 82 | B97: 2013-06-14 | C97: 50.22 | D97: 50.35 | E97: 49.19 | F97: 49.22 | G97: 27362500 | H97: 49.21 | I97: 0.9997968306 | J97: 50.21 | K97: 50.34 | L97: 49.18 | M97: 49.21
A98: 83 | B98: 2013-06-13 | C98: 49.28 | D98: 50.29 | E98: 48.8 | F98: 50.29 | G98: 34191300 | H98: 50.28 | I98: 0.9998011533 | J98: 49.27 | K98: 50.28 | L98: 48.79 | M98: 50.28
A99: 84 | B99: 2013-06-12 | C99: 50.33 | D99: 50.45 | E99: 49.16 | F99: 49.44 | G99: 38569300 | H99: 49.43 | I99: 0.9997977346 | J99: 50.32 | K99: 50.44 | L99: 49.15 | M99: 49.43
A100: 85 | B100: 2013-06-11 | C100: 50.7 | D100: 50.85 | E100: 49.82 | F100: 49.95 | G100: 51536900 | H100: 49.94 | I100: 0.9997997998 | J100: 50.69 | K100: 50.84 | L100: 49.81 | M100: 49.94
A101: 86 | B101: 2013-06-10 | C101: 52 | D101: 52.12 | E101: 51.21 | F101: 51.93 | G101: 22354400 | H101: 51.92 | I101: 0.9998074331 | J101: 51.99 | K101: 52.11 | L101: 51.2 | M101: 51.92
A102: 87 | B102: 2013-06-07 | C102: 51.27 | D102: 51.81 | E102: 50.85 | F102: 51.6 | G102: 30885500 | H102: 51.59 | I102: 0.9998062016 | J102: 51.26 | K102: 51.8 | L102: 50.84 | M102: 51.59
A103: 88 | B103: 2013-06-06 | C103: 49.86 | D103: 50.86 | E103: 49.63 | F103: 50.83 | G103: 35143600 | H103: 50.82 | I103: 0.9998032658 | J103: 49.85 | K103: 50.85 | L103: 49.62 | M103: 50.82
A104: 89 | B104: 2013-06-05 | C104: 51.11 | D104: 51.48 | E104: 49.76 | F104: 50.03 | G104: 38307500 | H104: 50.02 | I104: 0.9998001199 | J104: 51.1 | K104: 51.47 | L104: 49.75 | M104: 50.02
A105: 90 | B105: 2013-06-04 | C105: 51.89 | D105: 52.62 | E105: 51 | F105: 51.23 | G105: 27899200 | H105: 51.22 | I105: 0.9998048019 | J105: 51.88 | K105: 52.61 | L105: 50.99 | M105: 51.22
A106: 91 | B106: 2013-06-03 | C106: 52.06 | D106: 52.23 | E106: 50.61 | F106: 51.96 | G106: 35191300 | H106: 51.95 | I106: 0.9998075443 | J106: 52.05 | K106: 52.22 | L106: 50.6 | M106: 51.95
A107: 92 | B107: 2013-05-31 | C107: 53.27 | D107: 53.44 | E107: 51.99 | F107: 51.99 | G107: 34618000 | H107: 51.98 | I107: 0.9998076553 | J107: 53.26 | K107: 53.43 | L107: 51.98 | M107: 51.98
A108: 93 | B108: 2013-05-30 | C108: 52.27 | D108: 53.56 | E108: 52.24 | F108: 53.27 | G108: 30310100 | H108: 53.26 | I108: 0.9998122771 | J108: 52.26 | K108: 53.55 | L108: 52.23 | M108: 53.26
A109: 94 | B109: 2013-05-29 | C109: 51.43 | D109: 52.59 | E109: 51.3 | F109: 52.28 | G109: 30015100 | H109: 52.27 | I109: 0.9998087223 | J109: 51.42 | K109: 52.58 | L109: 51.29 | M109: 52.27
A110: 95 | B110: 2013-05-28 | C110: 51.31 | D110: 51.8 | E110: 51.08 | F110: 51.79 | G110: 28201000 | H110: 51.78 | I110: 0.9998069125 | J110: 51.3 | K110: 51.79 | L110: 51.07 | M110: 51.78
A111: 96 | B111: 2013-05-24 | C111: 50.08 | D111: 50.54 | E111: 50 | F111: 50.52 | G111: 23094900 | H111: 50.51 | I111: 0.9998020586 | J111: 50.07 | K111: 50.53 | L111: 49.99 | M111: 50.51
A112: 97 | B112: 2013-05-23 | C112: 49.2 | D112: 50.91 | E112: 49.18 | F112: 50.53 | G112: 42219400 | H112: 50.52 | I112: 0.9998020978 | J112: 49.19 | K112: 50.9 | L112: 49.17 | M112: 50.52
A113: 98 | B113: 2013-05-22 | C113: 51.84 | D113: 52.89 | E113: 50.84 | F113: 51 | G113: 44035800 | H113: 50.99 | I113: 0.9998039216 | J113: 51.83 | K113: 52.88 | L113: 50.83 | M113: 50.99
A114: 99 | B114: 2013-05-21 | C114: 51.4 | D114: 52.18 | E114: 51.4 | F114: 51.66 | G114: 28171000 | H114: 51.65 | I114: 0.9998064266 | J114: 51.39 | K114: 52.17 | L114: 51.39 | M114: 51.65
A115: 100 | B115: 2013-05-20 | C115: 51.46 | D115: 52.1 | E115: 51.25 | F115: 51.6 | G115: 24697300 | H115: 51.59 | I115: 0.9998062016 | J115: 51.45 | K115: 52.09 | L115: 51.24 | M115: 51.59
A116: 101 | B116: 2013-05-17 | C116: 51.14 | D116: 51.5 | E116: 50.79 | F116: 51.45 | G116: 23610900 | H116: 51.44 | I116: 0.9998056365 | J116: 51.13 | K116: 51.49 | L116: 50.78 | M116: 51.44
A117: 102 | B117: 2013-05-16 | C117: 51 | D117: 51.36 | E117: 50.5 | F117: 50.61 | G117: 25290000 | H117: 50.6 | I117: 0.9998024106 | J117: 50.99 | K117: 51.35 | L117: 50.49 | M117: 50.6
A118: 103 | B118: 2013-05-15 | C118: 49.96 | D118: 51.45 | E118: 49.9 | F118: 51.34 | G118: 40824400 | H118: 51.33 | I118: 0.9998052201 | J118: 49.95 | K118: 51.44 | L118: 49.89 | M118: 51.33
A119: 104 | B119: 2013-05-14 | C119: 49.05 | D119: 50.2 | E119: 49.02 | F119: 50.09 | G119: 35998300 | H119: 50.08 | I119: 0.9998003594 | J119: 49.04 | K119: 50.19 | L119: 49.01 | M119: 50.08
A120: 105 | B120: 2013-05-13 | C120: 48.5 | D120: 48.97 | E120: 48.4 | F120: 48.92 | G120: 17096400 | H120: 48.91 | I120: 0.9997955846 | J120: 48.49 | K120: 48.96 | L120: 48.39 | M120: 48.91
A121: 106 | B121: 2013-05-10 | C121: 48.55 | D121: 48.88 | E121: 48.43 | F121: 48.75 | G121: 18476600 | H121: 48.74 | I121: 0.9997948718 | J121: 48.54 | K121: 48.87 | L121: 48.42 | M121: 48.74
A122: 107 | B122: 2013-05-09 | C122: 49.28 | D122: 49.34 | E122: 48.29 | F122: 48.6 | G122: 27058600 | H122: 48.59 | I122: 0.9997942387 | J122: 49.27 | K122: 49.33 | L122: 48.28 | M122: 48.59
A123: 108 | B123: 2013-05-08 | C123: 48.05 | D123: 49.46 | E123: 47.87 | F123: 49.29 | G123: 34220900 | H123: 49.28 | I123: 0.9997971191 | J123: 48.04 | K123: 49.45 | L123: 47.86 | M123: 49.28
A124: 109 | B124: 2013-05-07 | C124: 47.79 | D124: 48.3 | E124: 47.36 | F124: 48.11 | G124: 27492800 | H124: 48.1 | I124: 0.999792143 | J124: 47.78 | K124: 48.29 | L124: 47.35 | M124: 48.1
A125: 110 | B125: 2013-05-06 | C125: 46.92 | D125: 48.05 | E125: 46.89 | F125: 47.48 | G125: 29160400 | H125: 47.47 | I125: 0.999789385 | J125: 46.91 | K125: 48.04 | L125: 46.88 | M125: 47.47
A126: 111 | B126: 2013-05-03 | C126: 47.12 | D126: 47.5 | E126: 46.87 | F126: 46.97 | G126: 20347400 | H126: 46.96 | I126: 0.9997870981 | J126: 47.11 | K126: 47.49 | L126: 46.86 | M126: 46.96
A127: 112 | B127: 2013-05-02 | C127: 45.99 | D127: 46.69 | E127: 45.49 | F127: 46.54 | G127: 19996300 | H127: 46.53 | I127: 0.9997851311 | J127: 45.98 | K127: 46.68 | L127: 45.48 | M127: 46.53
A128: 113 | B128: 2013-05-01 | C128: 46.48 | D128: 46.58 | E128: 45.64 | F128: 45.87 | G128: 21943100 | H128: 45.85 | I128: 0.9995639852 | J128: 46.46 | K128: 46.56 | L128: 45.62 | M128: 45.85
A129: 114 | B129: 2013-04-30 | C129: 46.85 | D129: 47.2 | E129: 46.48 | F129: 46.66 | G129: 18085000 | H129: 46.64 | I129: 0.9995713673 | J129: 46.83 | K129: 47.18 | L129: 46.46 | M129: 46.64
A130: 115 | B130: 2013-04-29 | C130: 47.19 | D130: 47.29 | E130: 46.71 | F130: 46.82 | G130: 14224700 | H130: 46.8 | I130: 0.9995728321 | J130: 47.17 | K130: 47.27 | L130: 46.69 | M130: 46.8
A131: 116 | B131: 2013-04-26 | C131: 47 | D131: 47.22 | E131: 46.49 | F131: 46.92 | G131: 14989200 | H131: 46.9 | I131: 0.9995737425 | J131: 46.98 | K131: 47.2 | L131: 46.47 | M131: 46.9
A132: 117 | B132: 2013-04-25 | C132: 47.19 | D132: 47.68 | E132: 46.9 | F132: 47.11 | G132: 25633900 | H132: 47.09 | I132: 0.9995754617 | J132: 47.17 | K132: 47.66 | L132: 46.88 | M132: 47.09
A133: 118 | B133: 2013-04-24 | C133: 46.41 | D133: 47.43 | E133: 46.4 | F133: 47.12 | G133: 23560500 | H133: 47.1 | I133: 0.9995755518 | J133: 46.39 | K133: 47.41 | L133: 46.38 | M133: 47.1
A134: 119 | B134: 2013-04-23 | C134: 45.43 | D134: 46.62 | E134: 45.4 | F134: 46.46 | G134: 28837900 | H134: 46.44 | I134: 0.9995695222 | J134: 45.41 | K134: 46.6 | L134: 45.38 | M134: 46.44
A135: 120 | B135: 2013-04-22 | C135: 45.16 | D135: 45.26 | E135: 44.52 | F135: 45.15 | G135: 19919400 | H135: 45.13 | I135: 0.9995570321 | J135: 45.14 | K135: 45.24 | L135: 44.5 | M135: 45.13
A136: 121 | B136: 2013-04-19 | C136: 45.44 | D136: 45.5 | E136: 44.91 | F136: 45.03 | G136: 23630500 | H136: 45.01 | I136: 0.9995558517 | J136: 45.42 | K136: 45.48 | L136: 44.89 | M136: 45.01
A137: 122 | B137: 2013-04-18 | C137: 45.75 | D137: 45.75 | E137: 44.87 | F137: 45.09 | G137: 29877900 | H137: 45.07 | I137: 0.9995564427 | J137: 45.73 | K137: 45.73 | L137: 44.85 | M137: 45.07
A138: 123 | B138: 2013-04-17 | C138: 46.15 | D138: 46.21 | E138: 45.07 | F138: 45.74 | G138: 36241300 | H138: 45.72 | I138: 0.999562746 | J138: 46.13 | K138: 46.19 | L138: 45.05 | M138: 45.72
A139: 124 | B139: 2013-04-16 | C139: 45.88 | D139: 46.78 | E139: 45.83 | F139: 46.66 | G139: 40230100 | H139: 46.64 | I139: 0.9995713673 | J139: 45.86 | K139: 46.76 | L139: 45.81 | M139: 46.64
A140: 125 | B140: 2013-04-15 | C140: 46.1 | D140: 46.29 | E140: 44.83 | F140: 44.87 | G140: 56796300 | H140: 44.85 | I140: 0.9995542679 | J140: 46.08 | K140: 46.27 | L140: 44.81 | M140: 44.85
A141: 126 | B141: 2013-04-12 | C141: 44.46 | D141: 44.81 | E141: 44.06 | F141: 44.78 | G141: 24702000 | H141: 44.76 | I141: 0.999553372 | J141: 44.44 | K141: 44.79 | L141: 44.04 | M141: 44.76
A142: 127 | B142: 2013-04-11 | C142: 45.1 | D142: 45.55 | E142: 44.65 | F142: 44.87 | G142: 28399900 | H142: 44.85 | I142: 0.9995542679 | J142: 45.08 | K142: 45.53 | L142: 44.63 | M142: 44.85
A143: 128 | B143: 2013-04-10 | C143: 44.23 | D143: 45.25 | E143: 44.18 | F143: 45.06 | G143: 28334200 | H143: 45.04 | I143: 0.9995561474 | J143: 44.21 | K143: 45.23 | L143: 44.16 | M143: 45.04
A144: 129 | B144: 2013-04-09 | C144: 43.69 | D144: 44.28 | E144: 43.68 | F144: 43.89 | G144: 26793500 | H144: 43.87 | I144: 0.9995443153 | J144: 43.67 | K144: 44.26 | L144: 43.66 | M144: 43.87
A145: 130 | B145: 2013-04-08 | C145: 43.06 | D145: 43.62 | E145: 42.54 | F145: 43.56 | G145: 23502800 | H145: 43.54 | I145: =H145/F145 -> 0.9995408632 | J145: =ROUND($I145*C145,2) -> 43.04 | K145: =ROUND($I145*D145,2) -> 43.6 | L145: =ROUND($I145*E145,2) -> 42.52 | M145: =ROUND($I145*F145,2) -> 43.54
A146: 131 | B146: 2013-04-05 | C146: 41.75 | D146: 43.16 | E146: 41.6 | F146: 43.01 | G146: 32561500 | H146: 42.99 | I146: 0.9995349919 | J146: 41.73 | K146: 43.14 | L146: 41.58 | M146: 42.99
A147: 132 | B147: 2013-04-04 | C147: 42.53 | D147: 42.98 | E147: 42.15 | F147: 42.77 | G147: 38527900 | H147: 42.75 | I147: 0.9995323825 | J147: 42.51 | K147: 42.96 | L147: 42.13 | M147: 42.75
A148: 133 | B148: 2013-04-03 | C148: 43.97 | D148: 44.1 | E148: 42.2 | F148: 42.5 | G148: 47968100 | H148: 42.48 | I148: 0.9995294118 | J148: 43.95 | K148: 44.08 | L148: 42.18 | M148: 42.48
A149: 134 | B149: 2013-04-02 | C149: 43.98 | D149: 44.48 | E149: 43.88 | F149: 44.11 | G149: 25145000 | H149: 44.09 | I149: 0.9995465881 | J149: 43.96 | K149: 44.46 | L149: 43.86 | M149: 44.09
A150: 135 | B150: 2013-04-01 | C150: 44.32 | D150: 44.71 | E150: 43.66 | F150: 43.79 | G150: 19623400 | H150: 43.77 | I150: 0.9995432747 | J150: 44.3 | K150: 44.69 | L150: 43.64 | M150: 43.77
A151: 136 | B151: 2013-03-28 | C151: 44.45 | D151: 44.75 | E151: 44.05 | F151: 44.24 | G151: 25355400 | H151: 44.22 | I151: 0.9995479204 | J151: 44.43 | K151: 44.73 | L151: 44.03 | M151: 44.22
A152: 137 | B152: 2013-03-27 | C152: 44.43 | D152: 44.64 | E152: 44.16 | F152: 44.46 | G152: 26298000 | H152: 44.44 | I152: 0.9995501574 | J152: 44.41 | K152: 44.62 | L152: 44.14 | M152: 44.44
A153: 138 | B153: 2013-03-26 | C153: 44.69 | D153: 45.09 | E153: 44.36 | F153: 44.83 | G153: 24940500 | H153: 44.81 | I153: 0.9995538702 | J153: 44.67 | K153: 45.07 | L153: 44.34 | M153: 44.81
A154: 139 | B154: 2013-03-25 | C154: 45.76 | D154: 45.82 | E154: 44.33 | F154: 44.49 | G154: 32795800 | H154: 44.47 | I154: 0.9995504608 | J154: 45.74 | K154: 45.8 | L154: 44.31 | M154: 44.47
A155: 140 | B155: 2013-03-22 | C155: 45.53 | D155: 45.54 | E155: 44.95 | F155: 45.23 | G155: 26449100 | H155: 45.21 | I155: 0.9995578156 | J155: 45.51 | K155: 45.52 | L155: 44.93 | M155: 45.21
A156: 141 | B156: 2013-03-21 | C156: 45.91 | D156: 46.45 | E156: 45.22 | F156: 45.23 | G156: 33126900 | H156: 45.21 | I156: 0.9995578156 | J156: 45.89 | K156: 46.43 | L156: 45.2 | M156: 45.21
A157: 142 | B157: 2013-03-20 | C157: 46.14 | D157: 46.46 | E157: 45.97 | F157: 46.09 | G157: 24498700 | H157: 46.07 | I157: 0.9995660664 | J157: 46.12 | K157: 46.44 | L157: 45.95 | M157: 46.07
A158: 143 | B158: 2013-03-19 | C158: 46.5 | D158: 46.95 | E158: 45.4 | F158: 45.79 | G158: 44416000 | H158: 45.77 | I158: 0.9995632234 | J158: 46.48 | K158: 46.93 | L158: 45.38 | M158: 45.77
A159: 144 | B159: 2013-03-18 | C159: 46.04 | D159: 46.56 | E159: 45.91 | F159: 46.24 | G159: 38550200 | H159: 46.22 | I159: 0.999567474 | J159: 46.02 | K159: 46.54 | L159: 45.89 | M159: 46.22
A160: 145 | B160: 2013-03-15 | C160: 47.52 | D160: 47.57 | E160: 46.92 | F160: 47.26 | G160: 48856400 | H160: 47.24 | I160: 0.9995768091 | J160: 47.5 | K160: 47.55 | L160: 46.9 | M160: 47.24
A161: 146 | B161: 2013-03-14 | C161: 47.06 | D161: 47.66 | E161: 47.05 | F161: 47.46 | G161: 26017300 | H161: 47.44 | I161: 0.9995785925 | J161: 47.04 | K161: 47.64 | L161: 47.03 | M161: 47.44
A162: 147 | B162: 2013-03-13 | C162: 46.88 | D162: 47 | E162: 46.33 | F162: 46.97 | G162: 27654300 | H162: 46.95 | I162: 0.9995741963 | J162: 46.86 | K162: 46.98 | L162: 46.31 | M162: 46.95
A163: 148 | B163: 2013-03-12 | C163: 47.34 | D163: 47.45 | E163: 46.4 | F163: 46.95 | G163: 35089100 | H163: 46.93 | I163: 0.9995740149 | J163: 47.32 | K163: 47.43 | L163: 46.38 | M163: 46.93
A164: 149 | B164: 2013-03-11 | C164: 46.81 | D164: 47.92 | E164: 46.4 | F164: 47.6 | G164: 51807400 | H164: 47.58 | I164: 0.9995798319 | J164: 46.79 | K164: 47.9 | L164: 46.38 | M164: 47.58
A165: 150 | B165: 2013-03-08 | C165: 45.98 | D165: 46.7 | E165: 45.37 | F165: 46.68 | G165: 63728900 | H165: 46.66 | I165: 0.999571551 | J165: 45.96 | K165: 46.68 | L165: 45.35 | M165: 46.66
A166: 151 | B166: 2013-03-07 | C166: 44.56 | D166: 45.13 | E166: 44.45 | F166: 45 | G166: 40245900 | H166: 44.98 | I166: 0.9995555556 | J166: 44.54 | K166: 45.11 | L166: 44.43 | M166: 44.98
A167: 152 | B167: 2013-03-06 | C167: 43.97 | D167: 44.75 | E167: 43.9 | F167: 44.58 | G167: 35986300 | H167: 44.56 | I167: 0.9995513683 | J167: 43.95 | K167: 44.73 | L167: 43.88 | M167: 44.56
A168: 153 | B168: 2013-03-05 | C168: 43.41 | D168: 44.03 | E168: 43.1 | F168: 43.6 | G168: 43223400 | H168: 43.58 | I168: 0.9995412844 | J168: 43.39 | K168: 44.01 | L168: 43.08 | M168: 43.58
A169: 154 | B169: 2013-03-04 | C169: 41.99 | D169: 42.94 | E169: 41.97 | F169: 42.94 | G169: 27216000 | H169: 42.92 | I169: 0.9995342338 | J169: 41.97 | K169: 42.92 | L169: 41.95 | M169: 42.92
A170: 155 | B170: 2013-03-01 | C170: 41.56 | D170: 42.52 | E170: 41.02 | F170: 42.11 | G170: 29850300 | H170: 42.09 | I170: 0.9995250534 | J170: 41.54 | K170: 42.5 | L170: 41 | M170: 42.09
A171: 156 | B171: 2013-02-28 | C171: 42.08 | D171: 42.69 | E171: 41.75 | F171: 41.97 | G171: 28914100 | H171: 41.95 | I171: 0.9995234691 | J171: 42.06 | K171: 42.67 | L171: 41.73 | M171: 41.95
A172: 157 | B172: 2013-02-27 | C172: 41.3 | D172: 42.34 | E172: 41.02 | F172: 42.16 | G172: 29204600 | H172: 42.14 | I172: 0.9995256167 | J172: 41.28 | K172: 42.32 | L172: 41 | M172: 42.14
A173: 158 | B173: 2013-02-26 | C173: 41.41 | D173: 41.58 | E173: 40.28 | F173: 41.29 | G173: 46233000 | H173: 41.27 | I173: 0.9995156212 | J173: 41.39 | K173: 41.56 | L173: 40.26 | M173: 41.27
A174: 159 | B174: 2013-02-25 | C174: 43.12 | D174: 43.37 | E174: 41.04 | F174: 41.15 | G174: 34939800 | H174: 41.13 | I174: 0.9995139733 | J174: 43.1 | K174: 43.35 | L174: 41.02 | M174: 41.13
A175: 160 | B175: 2013-02-22 | C175: 42.8 | D175: 42.97 | E175: 42.41 | F175: 42.79 | G175: 23756400 | H175: 42.77 | I175: 0.9995326011 | J175: 42.78 | K175: 42.95 | L175: 42.39 | M175: 42.77
A176: 161 | B176: 2013-02-21 | C176: 42.79 | D176: 42.8 | E176: 41.89 | F176: 42.35 | G176: 37602900 | H176: 42.33 | I176: 0.999527745 | J176: 42.77 | K176: 42.78 | L176: 41.87 | M176: 42.33
A177: 162 | B177: 2013-02-20 | C177: 44.48 | D177: 44.48 | E177: 43.12 | F177: 43.22 | G177: 26464100 | H177: 43.2 | I177: 0.9995372513 | J177: 44.46 | K177: 44.46 | L177: 43.1 | M177: 43.2
A178: 163 | B178: 2013-02-19 | C178: 43.99 | D178: 44.71 | E178: 43.95 | F178: 44.5 | G178: 23709100 | H178: 44.48 | I178: 0.9995505618 | J178: 43.97 | K178: 44.69 | L178: 43.93 | M178: 44.48
A179: 164 | B179: 2013-02-15 | C179: 44.48 | D179: 44.51 | E179: 43.63 | F179: 43.84 | G179: 23244700 | H179: 43.82 | I179: 0.9995437956 | J179: 44.46 | K179: 44.49 | L179: 43.61 | M179: 43.82
A180: 165 | B180: 2013-02-14 | C180: 43.83 | D180: 44.42 | E180: 43.75 | F180: 44.32 | G180: 20048500 | H180: 44.3 | I180: 0.9995487365 | J180: 43.81 | K180: 44.4 | L180: 43.73 | M180: 44.3
A181: 166 | B181: 2013-02-13 | C181: 44.47 | D181: 44.68 | E181: 43.76 | F181: 44 | G181: 26663400 | H181: 43.98 | I181: 0.9995454545 | J181: 44.45 | K181: 44.66 | L181: 43.74 | M181: 43.98
A182: 167 | B182: 2013-02-12 | C182: 43.24 | D182: 44.5 | E182: 43 | F182: 44.35 | G182: 39087500 | H182: 44.33 | I182: 0.9995490417 | J182: 43.22 | K182: 44.48 | L182: 42.98 | M182: 44.33
A183: 168 | B183: 2013-02-11 | C183: 42.66 | D183: 43.4 | E183: 42.49 | F183: 43.15 | G183: 23462700 | H183: 43.13 | I183: 0.9995365006 | J183: 42.64 | K183: 43.38 | L183: 42.47 | M183: 43.13
A184: 169 | B184: 2013-02-08 | C184: 42.95 | D184: 43.09 | E184: 42.56 | F184: 42.68 | G184: 17441800 | H184: 42.66 | I184: 0.9995313964 | J184: 42.93 | K184: 43.07 | L184: 42.54 | M184: 42.66
A185: 170 | B185: 2013-02-07 | C185: 43.11 | D185: 43.49 | E185: 42.32 | F185: 42.87 | G185: 29381400 | H185: 42.85 | I185: 0.9995334733 | J185: 43.09 | K185: 43.47 | L185: 42.3 | M185: 42.85
A186: 171 | B186: 2013-02-06 | C186: 42.52 | D186: 43.05 | E186: 42.5 | F186: 43.05 | G186: 22059300 | H186: 43.03 | I186: 0.9995354239 | J186: 42.5 | K186: 43.03 | L186: 42.48 | M186: 43.03
A187: 172 | B187: 2013-02-05 | C187: 42.42 | D187: 43.2 | E187: 42.35 | F187: 42.92 | G187: 24224200 | H187: 42.9 | I187: 0.9995340168 | J187: 42.4 | K187: 43.18 | L187: 42.33 | M187: 42.9
A188: 173 | B188: 2013-02-04 | C188: 42.37 | D188: 42.9 | E188: 42.17 | F188: 42.21 | G188: 25691500 | H188: 42.19 | I188: 0.9995261786 | J188: 42.35 | K188: 42.88 | L188: 42.15 | M188: 42.19
A189: 174 | B189: 2013-02-01 | C189: 42.48 | D189: 43.2 | E189: 42.22 | F189: 43.02 | G189: 34997400 | H189: 43 | I189: 0.9995351 | J189: 42.46 | K189: 43.18 | L189: 42.2 | M189: 43
A190: 175 | B190: 2013-01-31 | C190: 41.88 | D190: 42.29 | E190: 41.62 | F190: 42.16 | G190: 21324700 | H190: 42.14 | I190: 0.9995256167 | J190: 41.86 | K190: 42.27 | L190: 41.6 | M190: 42.14
A191: 176 | B191: 2013-01-30 | C191: 41.99 | D191: 42.18 | E191: 41.76 | F191: 41.95 | G191: 21801200 | H191: 41.92 | I191: 0.9992848629 | J191: 41.96 | K191: 42.15 | L191: 41.73 | M191: 41.92
A192: 177 | B192: 2013-01-29 | C192: 42.07 | D192: 42.6 | E192: 41.95 | F192: 42.16 | G192: 26998900 | H192: 42.13 | I192: 0.999288425 | J192: 42.04 | K192: 42.57 | L192: 41.92 | M192: 42.13
A193: 178 | B193: 2013-01-28 | C193: 42.98 | D193: 42.98 | E193: 42.23 | F193: 42.34 | G193: 27213600 | H193: 42.31 | I193: 0.9992914502 | J193: 42.95 | K193: 42.95 | L193: 42.2 | M193: 42.31
A194: 179 | B194: 2013-01-25 | C194: 43.13 | D194: 43.34 | E194: 42.62 | F194: 42.91 | G194: 26707200 | H194: 42.88 | I194: 0.9993008623 | J194: 43.1 | K194: 43.31 | L194: 42.59 | M194: 42.88
A195: 180 | B195: 2013-01-24 | C195: 42.1 | D195: 43.2 | E195: 42.04 | F195: 42.8 | G195: 34462600 | H195: 42.77 | I195: 0.9992990654 | J195: 42.07 | K195: 43.17 | L195: 42.01 | M195: 42.77
A196: 181 | B196: 2013-01-23 | C196: 41.85 | D196: 42.22 | E196: 41.54 | F196: 42.02 | G196: 32339300 | H196: 41.99 | I196: 0.9992860543 | J196: 41.82 | K196: 42.19 | L196: 41.51 | M196: 41.99
A197: 182 | B197: 2013-01-22 | C197: 41.35 | D197: 41.82 | E197: 40.82 | F197: 41.78 | G197: 42035900 | H197: 41.75 | I197: 0.9992819531 | J197: 41.32 | K197: 41.79 | L197: 40.79 | M197: 41.75
A198: 183 | B198: 2013-01-18 | C198: 41.27 | D198: 41.74 | E198: 41.11 | F198: 41.66 | G198: 40807100 | H198: 41.63 | I198: 0.9992798848 | J198: 41.24 | K198: 41.71 | L198: 41.08 | M198: 41.63
A199: 184 | B199: 2013-01-17 | C199: 41.53 | D199: 41.62 | E199: 40.9 | F199: 41.24 | G199: 80185700 | H199: 41.21 | I199: 0.9992725509 | J199: 41.5 | K199: 41.59 | L199: 40.87 | M199: 41.21
A200: 185 | B200: 2013-01-16 | C200: 42.54 | D200: 42.85 | E200: 42.25 | F200: 42.48 | G200: 36165300 | H200: 42.45 | I200: 0.9992937853 | J200: 42.51 | K200: 42.82 | L200: 42.22 | M200: 42.45
A201: 186 | B201: 2013-01-15 | C201: 41.81 | D201: 42.74 | E201: 41.77 | F201: 42.57 | G201: 29118700 | H201: 42.54 | I201: 0.9992952784 | J201: 41.78 | K201: 42.71 | L201: 41.74 | M201: 42.54
... 4299 more rows

Sheet CalculationsAndCharts
A1: Swing Trading With Three Indicators
A2: =InputPriceData!A1&B3 -> Citigroup, Inc. C (C) -NYSE
A4: User Charting Controls | S4: TRUE
A5: Data Control | S5: TRUE
A6: =InputPriceData!$B$10 -> 9277 | B6: Available Input Data Rows | E6: Earliest: | F6: =OFFSET(InputPriceData!B15,CalculationsAndCharts!A6,0,1,1) -> 1977-01-03
B7: Use Close Adjusted: | C7: FALSE | E7: Latest: | F7: =OFFSET(InputPriceData!B15,1,0,1,1) -> 2013-10-09
A8: =MIN(A6-A11,COUNTA(B33:B9983)) -> 841 | B8: Logically Available for Calc / Plot
A10: Price Chart Windowing Controls | F10: Y-axis Range
A11: 163 | B11: Input Data Offset (Pan) | E11: Max High+ | F11: =CEILING(MAX(OFFSET($E$33,0,0,$A$12,1),K24)+2*F14,0.1) -> 46.4
A12: 127 | B12: Data Points to Plot (Zoom) | E12: Min Low- | F12: =FLOOR(MIN(OFFSET($F$33,0,0,$A$12,1),K25)-2*F14,0.1) -> 26
B13: First: | C13: =OFFSET(B32,A12,0,1,1) -> 2012-08-14 | E13: White space %: | F13: 0.05
B14: Last: | C14: =B33 -> 2013-02-15 | E14: Allowance: | F14: =FLOOR((CEILING(MAX(OFFSET($E$33,0,0,$A$12,1)),1)-FLOOR(MIN(OFFSET($F$33,0,0,$A$12,1)),1))*F13,0.01) -> 0.85
A15: Indicator Controls
A16: 5 | B16: High SMA Len
A17: 5 | B17: Low SMA Len | C17: Alpha | D17: 1-Alpha
A18: 50 | B18: Close EMA Len | C18: =2 / ( 1 + A18 ) -> 0.03921568627 | D18: =1-C18 -> 0.9607843137
A19: 0.05 | B19: Tick Limit
A23: Help! I would like to plot data | J23: Chart Vertical Range Help For Price
A24: From | B24: 2012-08-20 | C24: =OFFSET(InputPriceData!$A$15,MATCH(B24,OFFSET(InputPriceData!B15,1,0,InputPriceData!$B$10,1),0),0,1,1)-C25 -> 127 | E24: 5 | J24: Max | K24: =MAX(OFFSET($J$33,0,0,$A$12,4)) -> 44.302
A25: To | B25: 2013-02-22 | C25: =OFFSET(InputPriceData!$A$15,MATCH(B25,OFFSET(InputPriceData!$B$15,1,0,InputPriceData!$B$10,1),0),0,1,1)-1 -> 159 | E25: =$A$12-$E$24+1 -> 123 | J25: Min | K25: =MIN(OFFSET($J$33,0,0,$A$12,4)) -> 27.71628987
D27: Date at Cursor
H28: @ Scroll Bar => | I28: =OFFSET(A32,$E$25,0,1,1)&"(RR)" -> 123(RR) | J28: =TEXT(OFFSET(D32,$E$25,0,1,1),"#,##0.00")&"(o)" -> 28.96(o) | K28: =TEXT(OFFSET(E32,$E$25,0,1,1),"#,##0.00")&"(h)" -> 29.98(h) | L28: =TEXT(OFFSET(F32,$E$25,0,1,1),"#,##0.00")&"(l)" -> 28.86(l) | M28: =TEXT(OFFSET(G32,$E$25,0,1,1),"#,##0.00")&"(c)" -> 29.98(c) | N28: =TEXT(OFFSET(J32,$E$25,0,1,1),"#,##0.00")&"(Ah)" -> 29.23(Ah) | O28: =TEXT(OFFSET(L32,$E$25,0,1,1),"#,##0.00")&"(Al)" -> 28.64(Al)
D29: =OFFSET($B$32,E25,0,1,1) -> 2012-08-20 | E29: Scroll Cursor =>
V30: For Charting | AD30: For Charting
A31: Rel Row | D31: Bar Prices | H31: $Cursor | I31: ="HiSMA + "&CHAR(10) & A19 -> HiSMA + 0.05 | J31: ="High SMA("&$A$16&")" -> High SMA(5) | K31: ="LoSMA - "&CHAR(10) & A19 -> LoSMA - 0.05 | L31: ="Low SMA("&$A$17&")" -> Low SMA(5) | M31: ="Close EMA("&$A$18&")" -> Close EMA(50) | O31: Long Signal | P31: Long Entry | Q31: Long Active | R31: Long Exit Sig | S31: Exit Long | T31: Long Entry | U31: Long Exit | V31: Long Entry | W31: Long Exit | X31: Short Signal | Y31: Short Entry | Z31: Short Active | AA31: Short Exit Sig | AB31: Short Entry | AC31: Short Exit | AD31: Short Entry | AE31: Short Exit
B32: Date | C32: Volume | D32: Open | E32: High | F32: Low | G32: Close | H32: =$F$11 -> 46.4
A33: 1 | B33: =OFFSET(InputPriceData!B$15,CalculationsAndCharts!$A33+$A$11,0,1,1) -> 2013-02-15 | C33: =OFFSET(InputPriceData!G$15,CalculationsAndCharts!$A33+$A$11,0,1,1) -> 23244700 | D33: =OFFSET(InputPriceData!C$15,CalculationsAndCharts!$A33+$A$11,IF($C$7,7,0),1,1) -> 44.48 | E33: =OFFSET(InputPriceData!D$15,CalculationsAndCharts!$A33+$A$11,IF($C$7,7,0),1,1) -> 44.51 | F33: =OFFSET(InputPriceData!E$15,CalculationsAndCharts!$A33+$A$11,IF($C$7,7,0),1,1) -> 43.63 | G33: =OFFSET(InputPriceData!F$15,CalculationsAndCharts!$A33+$A$11,IF($C$7,7,0),1,1) -> 43.84 | H33: =IF($A33=$E$25,H$32,NA()) ->  | I33: =J33+$A$19 -> 44.352 | J33: =AVERAGE(OFFSET(E33,0,0,$A$16,1)) -> 44.302 | K33: =L33-$A$19 -> 43.276 | L33: =AVERAGE(OFFSET(F33,0,0,$A$16,1)) -> 43.326 | M33: =$C$18*G33+$D$18*M34 -> 41.12905211 | O33: =AND((E33>(J34+$A$19)), NOT(E34>(J35+$A$19)), (G34>M34)) -> FALSE | P33: =AND(O33,NOT(Q34)) -> FALSE | Q33: =IF(Q34,IF(S34,FALSE,Q34),IF(P33,TRUE,Q34)) -> TRUE | R33: =AND(Q33,F33<L34) -> FALSE | S33: =AND(R33,Q34) -> FALSE | T33: =IF(P33,MAX(I34,D33),NA()) ->  | U33: =IF(S33,MIN(L34,D33),NA()) ->  | V33: =IF($S$4,T33,NA()) ->  | W33: =IF($S$4,U33,NA()) ->  | X33: =AND((F33<(L34-$A$19)), NOT(F34<(L35-$A$19)), (G34<M34)) -> FALSE | Y33: =AND(X33,NOT(Z34)) -> FALSE | Z33: =IF(Z34,IF(AA34,FALSE,Z34),IF(Y33,TRUE,Z34)) -> FALSE | AA33: =AND(Z33,E33>J34) -> FALSE | AB33: =IF(Y33,MIN(K34,D33),NA()) ->  | AC33: =IF(AA33,MAX(J34,D33),NA()) ->  | AD33: =IF($S$5,AB33,NA()) ->  | AE33: =IF($S$5,AC33,NA()) -> 
A34: 2 | B34: =OFFSET(InputPriceData!B$15,CalculationsAndCharts!$A34+$A$11,0,1,1) -> 2013-02-14 | C34: =OFFSET(InputPriceData!G$15,CalculationsAndCharts!$A34+$A$11,0,1,1) -> 20048500 | D34: =OFFSET(InputPriceData!C$15,CalculationsAndCharts!$A34+$A$11,IF($C$7,7,0),1,1) -> 43.83 | E34: =OFFSET(InputPriceData!D$15,CalculationsAndCharts!$A34+$A$11,IF($C$7,7,0),1,1) -> 44.42 | F34: =OFFSET(InputPriceData!E$15,CalculationsAndCharts!$A34+$A$11,IF($C$7,7,0),1,1) -> 43.75 | G34: =OFFSET(InputPriceData!F$15,CalculationsAndCharts!$A34+$A$11,IF($C$7,7,0),1,1) -> 44.32 | I34: 44.068 | J34: =AVERAGE(OFFSET(E34,0,0,$A$16,1)) -> 44.018 | K34: =L34-$A$19 -> 43.062 | L34: 43.112 | M34: 41.01840118 | O34: =AND((E34>(J35+$A$19)), NOT(E35>(J36+$A$19)), (G35>M35)) -> FALSE | P34: =AND(O34,NOT(Q35)) -> FALSE | Q34: =IF(Q35,IF(S35,FALSE,Q35),IF(P34,TRUE,Q35)) -> TRUE | R34: =AND(Q34,F34<L35) -> FALSE | S34: =AND(R34,Q35) -> FALSE | T34: =IF(P34,MAX(I35,D34),NA()) ->  | U34: =IF(S34,MIN(L35,D34),NA()) ->  | V34: =IF($S$4,T34,NA()) ->  | W34: =IF($S$4,U34,NA()) ->  | X34: FALSE | Y34: =AND(X34,NOT(Z35)) -> FALSE | Z34: =IF(Z35,IF(AA35,FALSE,Z35),IF(Y34,TRUE,Z35)) -> FALSE | AA34: FALSE | AB34: =IF(Y34,MIN(K35,D34),NA()) ->  | AC34: =IF(AA34,MAX(J35,D34),NA()) ->  | AD34: =IF($S$5,AB34,NA()) ->  | AE34: =IF($S$5,AC34,NA()) -> 
A35: 3 | B35: =OFFSET(InputPriceData!B$15,CalculationsAndCharts!$A35+$A$11,0,1,1) -> 2013-02-13 | C35: =OFFSET(InputPriceData!G$15,CalculationsAndCharts!$A35+$A$11,0,1,1) -> 26663400 | D35: =OFFSET(InputPriceData!C$15,CalculationsAndCharts!$A35+$A$11,IF($C$7,7,0),1,1) -> 44.47 | E35: =OFFSET(InputPriceData!D$15,CalculationsAndCharts!$A35+$A$11,IF($C$7,7,0),1,1) -> 44.68 | F35: =OFFSET(InputPriceData!E$15,CalculationsAndCharts!$A35+$A$11,IF($C$7,7,0),1,1) -> 43.76 | G35: =OFFSET(InputPriceData!F$15,CalculationsAndCharts!$A35+$A$11,IF($C$7,7,0),1,1) -> 44 | I35: 43.882 | J35: 43.832 | K35: 42.776 | L35: 42.826 | M35: 40.88364204 | O35: FALSE | P35: FALSE | Q35: TRUE | R35: FALSE | S35: FALSE | X35: FALSE | Y35: FALSE | Z35: FALSE | AA35: FALSE
A36: 4 | B36: =OFFSET(InputPriceData!B$15,CalculationsAndCharts!$A36+$A$11,0,1,1) -> 2013-02-12 | C36: =OFFSET(InputPriceData!G$15,CalculationsAndCharts!$A36+$A$11,0,1,1) -> 39087500 | D36: =OFFSET(InputPriceData!C$15,CalculationsAndCharts!$A36+$A$11,IF($C$7,7,0),1,1) -> 43.24 | E36: =OFFSET(InputPriceData!D$15,CalculationsAndCharts!$A36+$A$11,IF($C$7,7,0),1,1) -> 44.5 | F36: =OFFSET(InputPriceData!E$15,CalculationsAndCharts!$A36+$A$11,IF($C$7,7,0),1,1) -> 43 | G36: =OFFSET(InputPriceData!F$15,CalculationsAndCharts!$A36+$A$11,IF($C$7,7,0),1,1) -> 44.35 | I36: 43.556 | J36: 43.506 | K36: 42.524 | L36: 42.574 | M36: 40.75644376 | O36: FALSE | P36: FALSE | Q36: TRUE | R36: FALSE | S36: FALSE | X36: FALSE | Y36: FALSE | Z36: FALSE | AA36: FALSE
A37: 5 | B37: =OFFSET(InputPriceData!B$15,CalculationsAndCharts!$A37+$A$11,0,1,1) -> 2013-02-11 | C37: =OFFSET(InputPriceData!G$15,CalculationsAndCharts!$A37+$A$11,0,1,1) -> 23462700 | D37: =OFFSET(InputPriceData!C$15,CalculationsAndCharts!$A37+$A$11,IF($C$7,7,0),1,1) -> 42.66 | E37: =OFFSET(InputPriceData!D$15,CalculationsAndCharts!$A37+$A$11,IF($C$7,7,0),1,1) -> 43.4 | F37: =OFFSET(InputPriceData!E$15,CalculationsAndCharts!$A37+$A$11,IF($C$7,7,0),1,1) -> 42.49 | G37: =OFFSET(InputPriceData!F$15,CalculationsAndCharts!$A37+$A$11,IF($C$7,7,0),1,1) -> 43.15 | I37: 43.296 | J37: 43.246 | K37: 42.394 | L37: 42.444 | M37: 40.60976799 | O37: TRUE | P37: FALSE | Q37: TRUE | R37: FALSE | S37: FALSE | X37: FALSE | Y37: FALSE | Z37: FALSE | AA37: FALSE
A38: 6 | B38: =OFFSET(InputPriceData!B$15,CalculationsAndCharts!$A38+$A$11,0,1,1) -> 2013-02-08 | C38: =OFFSET(InputPriceData!G$15,CalculationsAndCharts!$A38+$A$11,0,1,1) -> 17441800 | D38: =OFFSET(InputPriceData!C$15,CalculationsAndCharts!$A38+$A$11,IF($C$7,7,0),1,1) -> 42.95 | E38: =OFFSET(InputPriceData!D$15,CalculationsAndCharts!$A38+$A$11,IF($C$7,7,0),1,1) -> 43.09 | F38: =OFFSET(InputPriceData!E$15,CalculationsAndCharts!$A38+$A$11,IF($C$7,7,0),1,1) -> 42.56 | G38: =OFFSET(InputPriceData!F$15,CalculationsAndCharts!$A38+$A$11,IF($C$7,7,0),1,1) -> 42.68 | I38: 43.196 | J38: 43.146 | K38: 42.33 | L38: 42.38 | M38: 40.50608505 | O38: FALSE | P38: FALSE | Q38: TRUE | R38: FALSE | S38: FALSE | X38: FALSE | Y38: FALSE | Z38: FALSE | AA38: FALSE
A39: 7 | B39: =OFFSET(InputPriceData!B$15,CalculationsAndCharts!$A39+$A$11,0,1,1) -> 2013-02-07 | C39: =OFFSET(InputPriceData!G$15,CalculationsAndCharts!$A39+$A$11,0,1,1) -> 29381400 | D39: =OFFSET(InputPriceData!C$15,CalculationsAndCharts!$A39+$A$11,IF($C$7,7,0),1,1) -> 43.11 | E39: =OFFSET(InputPriceData!D$15,CalculationsAndCharts!$A39+$A$11,IF($C$7,7,0),1,1) -> 43.49 | F39: =OFFSET(InputPriceData!E$15,CalculationsAndCharts!$A39+$A$11,IF($C$7,7,0),1,1) -> 42.32 | G39: =OFFSET(InputPriceData!F$15,CalculationsAndCharts!$A39+$A$11,IF($C$7,7,0),1,1) -> 42.87 | I39: 43.218 | J39: 43.168 | K39: 42.262 | L39: 42.312 | M39: 40.41735383 | O39: FALSE | P39: FALSE | Q39: TRUE | R39: FALSE | S39: FALSE | X39: FALSE | Y39: FALSE | Z39: FALSE | AA39: FALSE
A40: 8 | B40: =OFFSET(InputPriceData!B$15,CalculationsAndCharts!$A40+$A$11,0,1,1) -> 2013-02-06 | C40: =OFFSET(InputPriceData!G$15,CalculationsAndCharts!$A40+$A$11,0,1,1) -> 22059300 | D40: =OFFSET(InputPriceData!C$15,CalculationsAndCharts!$A40+$A$11,IF($C$7,7,0),1,1) -> 42.52 | E40: =OFFSET(InputPriceData!D$15,CalculationsAndCharts!$A40+$A$11,IF($C$7,7,0),1,1) -> 43.05 | F40: =OFFSET(InputPriceData!E$15,CalculationsAndCharts!$A40+$A$11,IF($C$7,7,0),1,1) -> 42.5 | G40: =OFFSET(InputPriceData!F$15,CalculationsAndCharts!$A40+$A$11,IF($C$7,7,0),1,1) -> 43.05 | I40: 42.978 | J40: 42.928 | K40: 42.122 | L40: 42.172 | M40: 40.31724582 | O40: FALSE | P40: FALSE | Q40: TRUE | R40: FALSE | S40: FALSE | X40: FALSE | Y40: FALSE | Z40: FALSE | AA40: FALSE
A41: 9 | B41: =OFFSET(InputPriceData!B$15,CalculationsAndCharts!$A41+$A$11,0,1,1) -> 2013-02-05 | C41: =OFFSET(InputPriceData!G$15,CalculationsAndCharts!$A41+$A$11,0,1,1) -> 24224200 | D41: =OFFSET(InputPriceData!C$15,CalculationsAndCharts!$A41+$A$11,IF($C$7,7,0),1,1) -> 42.42 | E41: =OFFSET(InputPriceData!D$15,CalculationsAndCharts!$A41+$A$11,IF($C$7,7,0),1,1) -> 43.2 | F41: =OFFSET(InputPriceData!E$15,CalculationsAndCharts!$A41+$A$11,IF($C$7,7,0),1,1) -> 42.35 | G41: =OFFSET(InputPriceData!F$15,CalculationsAndCharts!$A41+$A$11,IF($C$7,7,0),1,1) -> 42.92 | I41: 42.804 | J41: 42.754 | K41: 41.974 | L41: 42.024 | M41: 40.20570484 | O41: FALSE | P41: FALSE | Q41: TRUE | R41: FALSE | S41: FALSE | X41: FALSE | Y41: FALSE | Z41: FALSE | AA41: FALSE
A42: 10 | B42: =OFFSET(InputPriceData!B$15,CalculationsAndCharts!$A42+$A$11,0,1,1) -> 2013-02-04 | C42: =OFFSET(InputPriceData!G$15,CalculationsAndCharts!$A42+$A$11,0,1,1) -> 25691500 | D42: =OFFSET(InputPriceData!C$15,CalculationsAndCharts!$A42+$A$11,IF($C$7,7,0),1,1) -> 42.37 | E42: =OFFSET(InputPriceData!D$15,CalculationsAndCharts!$A42+$A$11,IF($C$7,7,0),1,1) -> 42.9 | F42: =OFFSET(InputPriceData!E$15,CalculationsAndCharts!$A42+$A$11,IF($C$7,7,0),1,1) -> 42.17 | G42: =OFFSET(InputPriceData!F$15,CalculationsAndCharts!$A42+$A$11,IF($C$7,7,0),1,1) -> 42.21 | I42: 42.684 | J42: 42.634 | K42: 41.894 | L42: 41.944 | M42: 40.09491728 | O42: FALSE | P42: FALSE | Q42: TRUE | R42: FALSE | S42: FALSE | X42: FALSE | Y42: FALSE | Z42: FALSE | AA42: FALSE
A43: 11 | B43: =OFFSET(InputPriceData!B$15,CalculationsAndCharts!$A43+$A$11,0,1,1) -> 2013-02-01 | C43: =OFFSET(InputPriceData!G$15,CalculationsAndCharts!$A43+$A$11,0,1,1) -> 34997400 | D43: =OFFSET(InputPriceData!C$15,CalculationsAndCharts!$A43+$A$11,IF($C$7,7,0),1,1) -> 42.48 | E43: =OFFSET(InputPriceData!D$15,CalculationsAndCharts!$A43+$A$11,IF($C$7,7,0),1,1) -> 43.2 | F43: =OFFSET(InputPriceData!E$15,CalculationsAndCharts!$A43+$A$11,IF($C$7,7,0),1,1) -> 42.22 | G43: =OFFSET(InputPriceData!F$15,CalculationsAndCharts!$A43+$A$11,IF($C$7,7,0),1,1) -> 43.02 | I43: 42.7 | J43: 42.65 | K43: 41.906 | L43: 41.956 | M43: 40.00858737 | O43: TRUE | P43: TRUE | Q43: TRUE | R43: FALSE | S43: FALSE | T43: 42.728 | V43: 42.728 | X43: FALSE | Y43: FALSE | Z43: FALSE | AA43: FALSE
A44: 12 | B44: =OFFSET(InputPriceData!B$15,CalculationsAndCharts!$A44+$A$11,0,1,1) -> 2013-01-31 | C44: =OFFSET(InputPriceData!G$15,CalculationsAndCharts!$A44+$A$11,0,1,1) -> 21324700 | D44: =OFFSET(InputPriceData!C$15,CalculationsAndCharts!$A44+$A$11,IF($C$7,7,0),1,1) -> 41.88 | E44: =OFFSET(InputPriceData!D$15,CalculationsAndCharts!$A44+$A$11,IF($C$7,7,0),1,1) -> 42.29 | F44: =OFFSET(InputPriceData!E$15,CalculationsAndCharts!$A44+$A$11,IF($C$7,7,0),1,1) -> 41.62 | G44: =OFFSET(InputPriceData!F$15,CalculationsAndCharts!$A44+$A$11,IF($C$7,7,0),1,1) -> 42.16 | I44: 42.728 | J44: 42.678 | K44: 41.986 | L44: 42.036 | M44: 39.88567257 | O44: FALSE | P44: FALSE | Q44: FALSE | R44: FALSE | S44: FALSE | X44: FALSE | Y44: FALSE | Z44: FALSE | AA44: FALSE
A45: 13 | B45: =OFFSET(InputPriceData!B$15,CalculationsAndCharts!$A45+$A$11,0,1,1) -> 2013-01-30 | C45: =OFFSET(InputPriceData!G$15,CalculationsAndCharts!$A45+$A$11,0,1,1) -> 21801200 | D45: =OFFSET(InputPriceData!C$15,CalculationsAndCharts!$A45+$A$11,IF($C$7,7,0),1,1) -> 41.99 | E45: =OFFSET(InputPriceData!D$15,CalculationsAndCharts!$A45+$A$11,IF($C$7,7,0),1,1) -> 42.18 | F45: =OFFSET(InputPriceData!E$15,CalculationsAndCharts!$A45+$A$11,IF($C$7,7,0),1,1) -> 41.76 | G45: =OFFSET(InputPriceData!F$15,CalculationsAndCharts!$A45+$A$11,IF($C$7,7,0),1,1) -> 41.95 | I45: 42.91 | J45: 42.86 | K45: 42.07 | L45: 42.12 | M45: 39.79284288 | O45: FALSE | P45: FALSE | Q45: TRUE | R45: TRUE | S45: TRUE | U45: 41.99 | W45: 41.99 | X45: FALSE | Y45: FALSE | Z45: FALSE | AA45: FALSE
A46: 14 | B46: =OFFSET(InputPriceData!B$15,CalculationsAndCharts!$A46+$A$11,0,1,1) -> 2013-01-29 | C46: =OFFSET(InputPriceData!G$15,CalculationsAndCharts!$A46+$A$11,0,1,1) -> 26998900 | D46: =OFFSET(InputPriceData!C$15,CalculationsAndCharts!$A46+$A$11,IF($C$7,7,0),1,1) -> 42.07 | E46: =OFFSET(InputPriceData!D$15,CalculationsAndCharts!$A46+$A$11,IF($C$7,7,0),1,1) -> 42.6 | F46: =OFFSET(InputPriceData!E$15,CalculationsAndCharts!$A46+$A$11,IF($C$7,7,0),1,1) -> 41.95 | G46: =OFFSET(InputPriceData!F$15,CalculationsAndCharts!$A46+$A$11,IF($C$7,7,0),1,1) -> 42.16 | I46: 42.918 | J46: 42.868 | K46: 42.026 | L46: 42.076 | M46: 39.70479565 | O46: FALSE | P46: FALSE | Q46: TRUE | R46: FALSE | S46: FALSE | X46: FALSE | Y46: FALSE | Z46: FALSE | AA46: FALSE
A47: 15 | B47: =OFFSET(InputPriceData!B$15,CalculationsAndCharts!$A47+$A$11,0,1,1) -> 2013-01-28 | C47: =OFFSET(InputPriceData!G$15,CalculationsAndCharts!$A47+$A$11,0,1,1) -> 27213600 | D47: =OFFSET(InputPriceData!C$15,CalculationsAndCharts!$A47+$A$11,IF($C$7,7,0),1,1) -> 42.98 | E47: =OFFSET(InputPriceData!D$15,CalculationsAndCharts!$A47+$A$11,IF($C$7,7,0),1,1) -> 42.98 | F47: =OFFSET(InputPriceData!E$15,CalculationsAndCharts!$A47+$A$11,IF($C$7,7,0),1,1) -> 42.23 | G47: =OFFSET(InputPriceData!F$15,CalculationsAndCharts!$A47+$A$11,IF($C$7,7,0),1,1) -> 42.34 | I47: 42.762 | J47: 42.712 | K47: 41.8 | L47: 41.85 | M47: 39.60458323 | O47: FALSE | P47: FALSE | Q47: TRUE | R47: FALSE | S47: FALSE | X47: FALSE | Y47: FALSE | Z47: FALSE | AA47: FALSE
A48: 16 | B48: =OFFSET(InputPriceData!B$15,CalculationsAndCharts!$A48+$A$11,0,1,1) -> 2013-01-25 | C48: =OFFSET(InputPriceData!G$15,CalculationsAndCharts!$A48+$A$11,0,1,1) -> 26707200 | D48: =OFFSET(InputPriceData!C$15,CalculationsAndCharts!$A48+$A$11,IF($C$7,7,0),1,1) -> 43.13 | E48: =OFFSET(InputPriceData!D$15,CalculationsAndCharts!$A48+$A$11,IF($C$7,7,0),1,1) -> 43.34 | F48: =OFFSET(InputPriceData!E$15,CalculationsAndCharts!$A48+$A$11,IF($C$7,7,0),1,1) -> 42.62 | G48: =OFFSET(InputPriceData!F$15,CalculationsAndCharts!$A48+$A$11,IF($C$7,7,0),1,1) -> 42.91 | I48: 42.514 | J48: 42.464 | K48: 41.576 | L48: 41.626 | M48: 39.49293356 | O48: FALSE | P48: FALSE | Q48: TRUE | R48: FALSE | S48: FALSE | X48: FALSE | Y48: FALSE | Z48: FALSE | AA48: FALSE
A49: 17 | B49: =OFFSET(InputPriceData!B$15,CalculationsAndCharts!$A49+$A$11,0,1,1) -> 2013-01-24 | C49: =OFFSET(InputPriceData!G$15,CalculationsAndCharts!$A49+$A$11,0,1,1) -> 34462600 | D49: =OFFSET(InputPriceData!C$15,CalculationsAndCharts!$A49+$A$11,IF($C$7,7,0),1,1) -> 42.1 | E49: =OFFSET(InputPriceData!D$15,CalculationsAndCharts!$A49+$A$11,IF($C$7,7,0),1,1) -> 43.2 | F49: =OFFSET(InputPriceData!E$15,CalculationsAndCharts!$A49+$A$11,IF($C$7,7,0),1,1) -> 42.04 | G49: =OFFSET(InputPriceData!F$15,CalculationsAndCharts!$A49+$A$11,IF($C$7,7,0),1,1) -> 42.8 | I49: 42.17 | J49: 42.12 | K49: 41.232 | L49: 41.282 | M49: 39.35346146 | O49: FALSE | P49: FALSE | Q49: TRUE | R49: FALSE | S49: FALSE | X49: FALSE | Y49: FALSE | Z49: FALSE | AA49: FALSE
A50: 18 | B50: =OFFSET(InputPriceData!B$15,CalculationsAndCharts!$A50+$A$11,0,1,1) -> 2013-01-23 | C50: =OFFSET(InputPriceData!G$15,CalculationsAndCharts!$A50+$A$11,0,1,1) -> 32339300 | D50: =OFFSET(InputPriceData!C$15,CalculationsAndCharts!$A50+$A$11,IF($C$7,7,0),1,1) -> 41.85 | E50: =OFFSET(InputPriceData!D$15,CalculationsAndCharts!$A50+$A$11,IF($C$7,7,0),1,1) -> 42.22 | F50: =OFFSET(InputPriceData!E$15,CalculationsAndCharts!$A50+$A$11,IF($C$7,7,0),1,1) -> 41.54 | G50: =OFFSET(InputPriceData!F$15,CalculationsAndCharts!$A50+$A$11,IF($C$7,7,0),1,1) -> 42.02 | I50: 42.1 | J50: 42.05 | K50: 41.274 | L50: 41.324 | M50: 39.21278642 | O50: TRUE | P50: TRUE | Q50: TRUE | R50: FALSE | S50: FALSE | T50: 42.204 | V50: 42.204 | X50: FALSE | Y50: FALSE | Z50: FALSE | AA50: FALSE
A51: 19 | B51: =OFFSET(InputPriceData!B$15,CalculationsAndCharts!$A51+$A$11,0,1,1) -> 2013-01-22 | C51: =OFFSET(InputPriceData!G$15,CalculationsAndCharts!$A51+$A$11,0,1,1) -> 42035900 | D51: =OFFSET(InputPriceData!C$15,CalculationsAndCharts!$A51+$A$11,IF($C$7,7,0),1,1) -> 41.35 | E51: =OFFSET(InputPriceData!D$15,CalculationsAndCharts!$A51+$A$11,IF($C$7,7,0),1,1) -> 41.82 | F51: =OFFSET(InputPriceData!E$15,CalculationsAndCharts!$A51+$A$11,IF($C$7,7,0),1,1) -> 40.82 | G51: =OFFSET(InputPriceData!F$15,CalculationsAndCharts!$A51+$A$11,IF($C$7,7,0),1,1) -> 41.78 | I51: 42.204 | J51: 42.154 | K51: 41.32 | L51: 41.37 | M51: 39.09820627 | O51: FALSE | P51: FALSE | Q51: FALSE | R51: FALSE | S51: FALSE | X51: FALSE | Y51: FALSE | Z51: FALSE | AA51: FALSE
A52: 20 | B52: =OFFSET(InputPriceData!B$15,CalculationsAndCharts!$A52+$A$11,0,1,1) -> 2013-01-18 | C52: =OFFSET(InputPriceData!G$15,CalculationsAndCharts!$A52+$A$11,0,1,1) -> 40807100 | D52: =OFFSET(InputPriceData!C$15,CalculationsAndCharts!$A52+$A$11,IF($C$7,7,0),1,1) -> 41.27 | E52: =OFFSET(InputPriceData!D$15,CalculationsAndCharts!$A52+$A$11,IF($C$7,7,0),1,1) -> 41.74 | F52: =OFFSET(InputPriceData!E$15,CalculationsAndCharts!$A52+$A$11,IF($C$7,7,0),1,1) -> 41.11 | G52: =OFFSET(InputPriceData!F$15,CalculationsAndCharts!$A52+$A$11,IF($C$7,7,0),1,1) -> 41.66 | I52: 42.35 | J52: 42.3 | K52: 41.498 | L52: 41.548 | M52: 38.98874531 | O52: FALSE | P52: FALSE | Q52: FALSE | R52: FALSE | S52: FALSE | X52: FALSE | Y52: FALSE | Z52: FALSE | AA52: FALSE
A53: 21 | B53: =OFFSET(InputPriceData!B$15,CalculationsAndCharts!$A53+$A$11,0,1,1) -> 2013-01-17 | C53: =OFFSET(InputPriceData!G$15,CalculationsAndCharts!$A53+$A$11,0,1,1) -> 80185700 | D53: =OFFSET(InputPriceData!C$15,CalculationsAndCharts!$A53+$A$11,IF($C$7,7,0),1,1) -> 41.53 | E53: =OFFSET(InputPriceData!D$15,CalculationsAndCharts!$A53+$A$11,IF($C$7,7,0),1,1) -> 41.62 | F53: =OFFSET(InputPriceData!E$15,CalculationsAndCharts!$A53+$A$11,IF($C$7,7,0),1,1) -> 40.9 | G53: =OFFSET(InputPriceData!F$15,CalculationsAndCharts!$A53+$A$11,IF($C$7,7,0),1,1) -> 41.24 | H53: =IF($A53=$E$25,H$32,NA()) ->  | I53: 42.568 | J53: 42.518 | K53: 41.66 | L53: 41.71 | M53: 38.8797145 | O53: FALSE | P53: FALSE | Q53: FALSE | R53: FALSE | S53: FALSE | X53: FALSE | Y53: FALSE | Z53: FALSE | AA53: FALSE
A54: 22 | B54: =OFFSET(InputPriceData!B$15,CalculationsAndCharts!$A54+$A$11,0,1,1) -> 2013-01-16 | C54: =OFFSET(InputPriceData!G$15,CalculationsAndCharts!$A54+$A$11,0,1,1) -> 36165300 | D54: =OFFSET(InputPriceData!C$15,CalculationsAndCharts!$A54+$A$11,IF($C$7,7,0),1,1) -> 42.54 | E54: =OFFSET(InputPriceData!D$15,CalculationsAndCharts!$A54+$A$11,IF($C$7,7,0),1,1) -> 42.85 | F54: =OFFSET(InputPriceData!E$15,CalculationsAndCharts!$A54+$A$11,IF($C$7,7,0),1,1) -> 42.25 | G54: =OFFSET(InputPriceData!F$15,CalculationsAndCharts!$A54+$A$11,IF($C$7,7,0),1,1) -> 42.48 | I54: 42.856 | J54: 42.806 | K54: 41.876 | L54: 41.926 | M54: 38.78337632 | O54: FALSE | P54: FALSE | Q54: FALSE | R54: FALSE | S54: FALSE | X54: FALSE | Y54: FALSE | Z54: FALSE | AA54: FALSE
A55: 23 | B55: =OFFSET(InputPriceData!B$15,CalculationsAndCharts!$A55+$A$11,0,1,1) -> 2013-01-15 | C55: =OFFSET(InputPriceData!G$15,CalculationsAndCharts!$A55+$A$11,0,1,1) -> 29118700 | D55: =OFFSET(InputPriceData!C$15,CalculationsAndCharts!$A55+$A$11,IF($C$7,7,0),1,1) -> 41.81 | E55: =OFFSET(InputPriceData!D$15,CalculationsAndCharts!$A55+$A$11,IF($C$7,7,0),1,1) -> 42.74 | F55: =OFFSET(InputPriceData!E$15,CalculationsAndCharts!$A55+$A$11,IF($C$7,7,0),1,1) -> 41.77 | G55: =OFFSET(InputPriceData!F$15,CalculationsAndCharts!$A55+$A$11,IF($C$7,7,0),1,1) -> 42.57 | I55: 42.936 | J55: 42.886 | K55: 41.788 | L55: 41.838 | M55: 38.63249372 | O55: FALSE | P55: FALSE | Q55: FALSE | R55: FALSE | S55: FALSE | X55: FALSE | Y55: FALSE | Z55: FALSE | AA55: FALSE
A56: 24 | B56: =OFFSET(InputPriceData!B$15,CalculationsAndCharts!$A56+$A$11,0,1,1) -> 2013-01-14 | C56: =OFFSET(InputPriceData!G$15,CalculationsAndCharts!$A56+$A$11,0,1,1) -> 26795300 | D56: =OFFSET(InputPriceData!C$15,CalculationsAndCharts!$A56+$A$11,IF($C$7,7,0),1,1) -> 42.36 | E56: =OFFSET(InputPriceData!D$15,CalculationsAndCharts!$A56+$A$11,IF($C$7,7,0),1,1) -> 42.55 | F56: =OFFSET(InputPriceData!E$15,CalculationsAndCharts!$A56+$A$11,IF($C$7,7,0),1,1) -> 41.71 | G56: =OFFSET(InputPriceData!F$15,CalculationsAndCharts!$A56+$A$11,IF($C$7,7,0),1,1) -> 42.22 | I56: 42.882 | J56: 42.832 | K56: 41.84 | L56: 41.89 | M56: 38.47177918 | O56: FALSE | P56: FALSE | Q56: TRUE | R56: TRUE | S56: TRUE | U56: 41.942 | W56: 41.942 | X56: FALSE | Y56: FALSE | Z56: FALSE | AA56: FALSE
A57: 25 | B57: =OFFSET(InputPriceData!B$15,CalculationsAndCharts!$A57+$A$11,0,1,1) -> 2013-01-11 | C57: =OFFSET(InputPriceData!G$15,CalculationsAndCharts!$A57+$A$11,0,1,1) -> 42517300 | D57: =OFFSET(InputPriceData!C$15,CalculationsAndCharts!$A57+$A$11,IF($C$7,7,0),1,1) -> 42.82 | E57: =OFFSET(InputPriceData!D$15,CalculationsAndCharts!$A57+$A$11,IF($C$7,7,0),1,1) -> 42.83 | F57: =OFFSET(InputPriceData!E$15,CalculationsAndCharts!$A57+$A$11,IF($C$7,7,0),1,1) -> 41.92 | G57: =OFFSET(InputPriceData!F$15,CalculationsAndCharts!$A57+$A$11,IF($C$7,7,0),1,1) -> 42.34 | I57: 42.882 | J57: 42.832 | K57: 41.892 | L57: 41.942 | M57: 38.31879057 | O57: FALSE | P57: FALSE | Q57: TRUE | R57: FALSE | S57: FALSE | X57: FALSE | Y57: FALSE | Z57: FALSE | AA57: FALSE
A58: 26 | B58: =OFFSET(InputPriceData!B$15,CalculationsAndCharts!$A58+$A$11,0,1,1) -> 2013-01-10 | C58: =OFFSET(InputPriceData!G$15,CalculationsAndCharts!$A58+$A$11,0,1,1) -> 42154200 | D58: =OFFSET(InputPriceData!C$15,CalculationsAndCharts!$A58+$A$11,IF($C$7,7,0),1,1) -> 42.34 | E58: =OFFSET(InputPriceData!D$15,CalculationsAndCharts!$A58+$A$11,IF($C$7,7,0),1,1) -> 43.06 | F58: =OFFSET(InputPriceData!E$15,CalculationsAndCharts!$A58+$A$11,IF($C$7,7,0),1,1) -> 41.98 | G58: =OFFSET(InputPriceData!F$15,CalculationsAndCharts!$A58+$A$11,IF($C$7,7,0),1,1) -> 42.83 | I58: 42.824 | J58: 42.774 | K58: 41.834 | L58: 41.884 | M58: 38.15465957 | O58: FALSE | P58: FALSE | Q58: TRUE | R58: FALSE | S58: FALSE | X58: FALSE | Y58: FALSE | Z58: FALSE | AA58: FALSE
A59: 27 | B59: =OFFSET(InputPriceData!B$15,CalculationsAndCharts!$A59+$A$11,0,1,1) -> 2013-01-09 | C59: =OFFSET(InputPriceData!G$15,CalculationsAndCharts!$A59+$A$11,0,1,1) -> 44923500 | D59: =OFFSET(InputPriceData!C$15,CalculationsAndCharts!$A59+$A$11,IF($C$7,7,0),1,1) -> 42.5 | E59: =OFFSET(InputPriceData!D$15,CalculationsAndCharts!$A59+$A$11,IF($C$7,7,0),1,1) -> 43.25 | F59: =OFFSET(InputPriceData!E$15,CalculationsAndCharts!$A59+$A$11,IF($C$7,7,0),1,1) -> 41.81 | G59: =OFFSET(InputPriceData!F$15,CalculationsAndCharts!$A59+$A$11,IF($C$7,7,0),1,1) -> 42.04 | I59: 42.512 | J59: 42.462 | K59: 41.646 | L59: 41.696 | M59: 37.96382935 | O59: FALSE | P59: FALSE | Q59: TRUE | R59: FALSE | S59: FALSE | X59: FALSE | Y59: FALSE | Z59: FALSE | AA59: FALSE
A60: 28 | B60: =OFFSET(InputPriceData!B$15,CalculationsAndCharts!$A60+$A$11,0,1,1) -> 2013-01-08 | C60: =OFFSET(InputPriceData!G$15,CalculationsAndCharts!$A60+$A$11,0,1,1) -> 28185200 | D60: =OFFSET(InputPriceData!C$15,CalculationsAndCharts!$A60+$A$11,IF($C$7,7,0),1,1) -> 42.29 | E60: =OFFSET(InputPriceData!D$15,CalculationsAndCharts!$A60+$A$11,IF($C$7,7,0),1,1) -> 42.47 | F60: =OFFSET(InputPriceData!E$15,CalculationsAndCharts!$A60+$A$11,IF($C$7,7,0),1,1) -> 42.03 | G60: =OFFSET(InputPriceData!F$15,CalculationsAndCharts!$A60+$A$11,IF($C$7,7,0),1,1) -> 42.46 | I60: 42.142 | J60: 42.092 | K60: 41.424 | L60: 41.474 | M60: 37.79745504 | O60: FALSE | P60: FALSE | Q60: TRUE | R60: FALSE | S60: FALSE | X60: FALSE | Y60: FALSE | Z60: FALSE | AA60: FALSE
A61: 29 | B61: =OFFSET(InputPriceData!B$15,CalculationsAndCharts!$A61+$A$11,0,1,1) -> 2013-01-07 | C61: =OFFSET(InputPriceData!G$15,CalculationsAndCharts!$A61+$A$11,0,1,1) -> 36305100 | D61: =OFFSET(InputPriceData!C$15,CalculationsAndCharts!$A61+$A$11,IF($C$7,7,0),1,1) -> 42.54 | E61: =OFFSET(InputPriceData!D$15,CalculationsAndCharts!$A61+$A$11,IF($C$7,7,0),1,1) -> 42.55 | F61: =OFFSET(InputPriceData!E$15,CalculationsAndCharts!$A61+$A$11,IF($C$7,7,0),1,1) -> 41.97 | G61: =OFFSET(InputPriceData!F$15,CalculationsAndCharts!$A61+$A$11,IF($C$7,7,0),1,1) -> 42.47 | I61: 41.568 | J61: 41.518 | K61: 40.748 | L61: 40.798 | M61: 37.60714708 | O61: FALSE | P61: FALSE | Q61: TRUE | R61: FALSE | S61: FALSE | X61: FALSE | Y61: FALSE | Z61: FALSE | AA61: FALSE
A62: 30 | B62: =OFFSET(InputPriceData!B$15,CalculationsAndCharts!$A62+$A$11,0,1,1) -> 2013-01-04 | C62: =OFFSET(InputPriceData!G$15,CalculationsAndCharts!$A62+$A$11,0,1,1) -> 46310100 | D62: =OFFSET(InputPriceData!C$15,CalculationsAndCharts!$A62+$A$11,IF($C$7,7,0),1,1) -> 41.76 | E62: =OFFSET(InputPriceData!D$15,CalculationsAndCharts!$A62+$A$11,IF($C$7,7,0),1,1) -> 42.54 | F62: =OFFSET(InputPriceData!E$15,CalculationsAndCharts!$A62+$A$11,IF($C$7,7,0),1,1) -> 41.63 | G62: =OFFSET(InputPriceData!F$15,CalculationsAndCharts!$A62+$A$11,IF($C$7,7,0),1,1) -> 42.43 | I62: 40.908 | J62: 40.858 | K62: 40.108 | L62: 40.158 | M62: 37.40866329 | O62: FALSE | P62: FALSE | Q62: TRUE | R62: FALSE | S62: FALSE | X62: FALSE | Y62: FALSE | Z62: FALSE | AA62: FALSE
A63: 31 | B63: =OFFSET(InputPriceData!B$15,CalculationsAndCharts!$A63+$A$11,0,1,1) -> 2013-01-03 | C63: =OFFSET(InputPriceData!G$15,CalculationsAndCharts!$A63+$A$11,0,1,1) -> 38343300 | D63: =OFFSET(InputPriceData!C$15,CalculationsAndCharts!$A63+$A$11,IF($C$7,7,0),1,1) -> 41.17 | E63: =OFFSET(InputPriceData!D$15,CalculationsAndCharts!$A63+$A$11,IF($C$7,7,0),1,1) -> 41.5 | F63: =OFFSET(InputPriceData!E$15,CalculationsAndCharts!$A63+$A$11,IF($C$7,7,0),1,1) -> 41.04 | G63: =OFFSET(InputPriceData!F$15,CalculationsAndCharts!$A63+$A$11,IF($C$7,7,0),1,1) -> 41.39 | I63: 40.376 | J63: 40.326 | K63: 39.5 | L63: 39.55 | M63: 37.20371077 | O63: FALSE | P63: FALSE | Q63: TRUE | R63: FALSE | S63: FALSE | X63: FALSE | Y63: FALSE | Z63: FALSE | AA63: FALSE
A64: 32 | B64: =OFFSET(InputPriceData!B$15,CalculationsAndCharts!$A64+$A$11,0,1,1) -> 2013-01-02 | C64: =OFFSET(InputPriceData!G$15,CalculationsAndCharts!$A64+$A$11,0,1,1) -> 45648500 | D64: =OFFSET(InputPriceData!C$15,CalculationsAndCharts!$A64+$A$11,IF($C$7,7,0),1,1) -> 40.91 | E64: =OFFSET(InputPriceData!D$15,CalculationsAndCharts!$A64+$A$11,IF($C$7,7,0),1,1) -> 41.4 | F64: =OFFSET(InputPriceData!E$15,CalculationsAndCharts!$A64+$A$11,IF($C$7,7,0),1,1) -> 40.7 | G64: =OFFSET(InputPriceData!F$15,CalculationsAndCharts!$A64+$A$11,IF($C$7,7,0),1,1) -> 41.25 | I64: 40.026 | J64: 39.976 | K64: 39.128 | L64: 39.178 | M64: 37.03284182 | O64: TRUE | P64: TRUE | Q64: TRUE | R64: FALSE | S64: FALSE | T64: 40.91 | V64: 40.91 | X64: FALSE | Y64: FALSE | Z64: FALSE | AA64: FALSE
A65: 33 | B65: =OFFSET(InputPriceData!B$15,CalculationsAndCharts!$A65+$A$11,0,1,1) -> 2012-12-31 | C65: =OFFSET(InputPriceData!G$15,CalculationsAndCharts!$A65+$A$11,0,1,1) -> 37172800 | D65: =OFFSET(InputPriceData!C$15,CalculationsAndCharts!$A65+$A$11,IF($C$7,7,0),1,1) -> 38.94 | E65: =OFFSET(InputPriceData!D$15,CalculationsAndCharts!$A65+$A$11,IF($C$7,7,0),1,1) -> 39.6 | F65: =OFFSET(InputPriceData!E$15,CalculationsAndCharts!$A65+$A$11,IF($C$7,7,0),1,1) -> 38.65 | G65: =OFFSET(InputPriceData!F$15,CalculationsAndCharts!$A65+$A$11,IF($C$7,7,0),1,1) -> 39.56 | I65: 39.656 | J65: 39.606 | K65: 38.82 | L65: 38.87 | M65: 36.86071292 | O65: FALSE | P65: FALSE | Q65: FALSE | R65: FALSE | S65: FALSE | X65: FALSE | Y65: FALSE | Z65: FALSE | AA65: FALSE
A66: 34 | B66: =OFFSET(InputPriceData!B$15,CalculationsAndCharts!$A66+$A$11,0,1,1) -> 2012-12-28 | C66: =OFFSET(InputPriceData!G$15,CalculationsAndCharts!$A66+$A$11,0,1,1) -> 24563800 | D66: =OFFSET(InputPriceData!C$15,CalculationsAndCharts!$A66+$A$11,IF($C$7,7,0),1,1) -> 38.82 | E66: =OFFSET(InputPriceData!D$15,CalculationsAndCharts!$A66+$A$11,IF($C$7,7,0),1,1) -> 39.25 | F66: =OFFSET(InputPriceData!E$15,CalculationsAndCharts!$A66+$A$11,IF($C$7,7,0),1,1) -> 38.77 | G66: =OFFSET(InputPriceData!F$15,CalculationsAndCharts!$A66+$A$11,IF($C$7,7,0),1,1) -> 39.01 | I66: 39.666 | J66: 39.616 | K66: 38.79 | L66: 38.84 | M66: 36.75053794 | O66: FALSE | P66: FALSE | Q66: FALSE | R66: FALSE | S66: FALSE | X66: FALSE | Y66: FALSE | Z66: FALSE | AA66: FALSE
A67: 35 | B67: =OFFSET(InputPriceData!B$15,CalculationsAndCharts!$A67+$A$11,0,1,1) -> 2012-12-27 | C67: =OFFSET(InputPriceData!G$15,CalculationsAndCharts!$A67+$A$11,0,1,1) -> 30332300 | D67: =OFFSET(InputPriceData!C$15,CalculationsAndCharts!$A67+$A$11,IF($C$7,7,0),1,1) -> 39.68 | E67: =OFFSET(InputPriceData!D$15,CalculationsAndCharts!$A67+$A$11,IF($C$7,7,0),1,1) -> 39.88 | F67: =OFFSET(InputPriceData!E$15,CalculationsAndCharts!$A67+$A$11,IF($C$7,7,0),1,1) -> 38.59 | G67: =OFFSET(InputPriceData!F$15,CalculationsAndCharts!$A67+$A$11,IF($C$7,7,0),1,1) -> 39.25 | I67: 39.852 | J67: 39.802 | K67: 38.896 | L67: 38.946 | M67: 36.65831499 | O67: FALSE | P67: FALSE | Q67: TRUE | R67: TRUE | S67: TRUE | U67: 39.09 | W67: 39.09 | X67: FALSE | Y67: FALSE | Z67: FALSE | AA67: FALSE
A68: 36 | B68: =OFFSET(InputPriceData!B$15,CalculationsAndCharts!$A68+$A$11,0,1,1) -> 2012-12-26 | C68: =OFFSET(InputPriceData!G$15,CalculationsAndCharts!$A68+$A$11,0,1,1) -> 20297700 | D68: =OFFSET(InputPriceData!C$15,CalculationsAndCharts!$A68+$A$11,IF($C$7,7,0),1,1) -> 39.41 | E68: =OFFSET(InputPriceData!D$15,CalculationsAndCharts!$A68+$A$11,IF($C$7,7,0),1,1) -> 39.75 | F68: =OFFSET(InputPriceData!E$15,CalculationsAndCharts!$A68+$A$11,IF($C$7,7,0),1,1) -> 39.18 | G68: =OFFSET(InputPriceData!F$15,CalculationsAndCharts!$A68+$A$11,IF($C$7,7,0),1,1) -> 39.55 | I68: 39.898 | J68: 39.848 | K68: 39.04 | L68: 39.09 | M68: 36.55253193 | O68: FALSE | P68: FALSE | Q68: TRUE | R68: FALSE | S68: FALSE | X68: FALSE | Y68: FALSE | Z68: FALSE | AA68: FALSE
A69: 37 | B69: =OFFSET(InputPriceData!B$15,CalculationsAndCharts!$A69+$A$11,0,1,1) -> 2012-12-24 | C69: =OFFSET(InputPriceData!G$15,CalculationsAndCharts!$A69+$A$11,0,1,1) -> 8674800 | D69: =OFFSET(InputPriceData!C$15,CalculationsAndCharts!$A69+$A$11,IF($C$7,7,0),1,1) -> 39.34 | E69: =OFFSET(InputPriceData!D$15,CalculationsAndCharts!$A69+$A$11,IF($C$7,7,0),1,1) -> 39.55 | F69: =OFFSET(InputPriceData!E$15,CalculationsAndCharts!$A69+$A$11,IF($C$7,7,0),1,1) -> 39.16 | G69: =OFFSET(InputPriceData!F$15,CalculationsAndCharts!$A69+$A$11,IF($C$7,7,0),1,1) -> 39.38 | I69: 39.936 | J69: 39.886 | K69: 38.96 | L69: 39.01 | M69: 36.4301863 | O69: FALSE | P69: FALSE | Q69: TRUE | R69: FALSE | S69: FALSE | X69: FALSE | Y69: FALSE | Z69: FALSE | AA69: FALSE
A70: 38 | B70: =OFFSET(InputPriceData!B$15,CalculationsAndCharts!$A70+$A$11,0,1,1) -> 2012-12-21 | C70: =OFFSET(InputPriceData!G$15,CalculationsAndCharts!$A70+$A$11,0,1,1) -> 47568200 | D70: =OFFSET(InputPriceData!C$15,CalculationsAndCharts!$A70+$A$11,IF($C$7,7,0),1,1) -> 38.9 | E70: =OFFSET(InputPriceData!D$15,CalculationsAndCharts!$A70+$A$11,IF($C$7,7,0),1,1) -> 39.65 | F70: =OFFSET(InputPriceData!E$15,CalculationsAndCharts!$A70+$A$11,IF($C$7,7,0),1,1) -> 38.5 | G70: =OFFSET(InputPriceData!F$15,CalculationsAndCharts!$A70+$A$11,IF($C$7,7,0),1,1) -> 39.49 | I70: 39.866 | J70: 39.816 | K70: 38.68 | L70: 38.73 | M70: 36.30978574 | O70: FALSE | P70: FALSE | Q70: TRUE | R70: FALSE | S70: FALSE | X70: FALSE | Y70: FALSE | Z70: FALSE | AA70: FALSE
A71: 39 | B71: =OFFSET(InputPriceData!B$15,CalculationsAndCharts!$A71+$A$11,0,1,1) -> 2012-12-20 | C71: =OFFSET(InputPriceData!G$15,CalculationsAndCharts!$A71+$A$11,0,1,1) -> 37806600 | D71: =OFFSET(InputPriceData!C$15,CalculationsAndCharts!$A71+$A$11,IF($C$7,7,0),1,1) -> 39.32 | E71: =OFFSET(InputPriceData!D$15,CalculationsAndCharts!$A71+$A$11,IF($C$7,7,0),1,1) -> 40.18 | F71: =OFFSET(InputPriceData!E$15,CalculationsAndCharts!$A71+$A$11,IF($C$7,7,0),1,1) -> 39.3 | G71: =OFFSET(InputPriceData!F$15,CalculationsAndCharts!$A71+$A$11,IF($C$7,7,0),1,1) -> 40.17 | I71: 39.472 | J71: 39.422 | K71: 38.406 | L71: 38.456 | M71: 36.17998107 | O71: FALSE | P71: FALSE | Q71: TRUE | R71: FALSE | S71: FALSE | X71: FALSE | Y71: FALSE | Z71: FALSE | AA71: FALSE
A72: 40 | B72: =OFFSET(InputPriceData!B$15,CalculationsAndCharts!$A72+$A$11,0,1,1) -> 2012-12-19 | C72: =OFFSET(InputPriceData!G$15,CalculationsAndCharts!$A72+$A$11,0,1,1) -> 45812600 | D72: =OFFSET(InputPriceData!C$15,CalculationsAndCharts!$A72+$A$11,IF($C$7,7,0),1,1) -> 39.69 | E72: =OFFSET(InputPriceData!D$15,CalculationsAndCharts!$A72+$A$11,IF($C$7,7,0),1,1) -> 40.11 | F72: =OFFSET(InputPriceData!E$15,CalculationsAndCharts!$A72+$A$11,IF($C$7,7,0),1,1) -> 39.31 | G72: =OFFSET(InputPriceData!F$15,CalculationsAndCharts!$A72+$A$11,IF($C$7,7,0),1,1) -> 39.45 | I72: 38.986 | J72: 38.936 | K72: 37.99 | L72: 38.04 | M72: 36.01712316 | O72: FALSE | P72: FALSE | Q72: TRUE | R72: FALSE | S72: FALSE | X72: FALSE | Y72: FALSE | Z72: FALSE | AA72: FALSE
A73: 41 | B73: =OFFSET(InputPriceData!B$15,CalculationsAndCharts!$A73+$A$11,0,1,1) -> 2012-12-18 | C73: =OFFSET(InputPriceData!G$15,CalculationsAndCharts!$A73+$A$11,0,1,1) -> 62611800 | D73: =OFFSET(InputPriceData!C$15,CalculationsAndCharts!$A73+$A$11,IF($C$7,7,0),1,1) -> 39.21 | E73: =OFFSET(InputPriceData!D$15,CalculationsAndCharts!$A73+$A$11,IF($C$7,7,0),1,1) -> 39.94 | F73: =OFFSET(InputPriceData!E$15,CalculationsAndCharts!$A73+$A$11,IF($C$7,7,0),1,1) -> 38.78 | G73: =OFFSET(InputPriceData!F$15,CalculationsAndCharts!$A73+$A$11,IF($C$7,7,0),1,1) -> 39.46 | H73: =IF($A73=$E$25,H$32,NA()) ->  | I73: 38.528 | J73: 38.478 | K73: 37.55 | L73: 37.6 | M73: 35.87700574 | O73: FALSE | P73: FALSE | Q73: TRUE | R73: FALSE | S73: FALSE | X73: FALSE | Y73: FALSE | Z73: FALSE | AA73: FALSE
A74: 42 | B74: =OFFSET(InputPriceData!B$15,CalculationsAndCharts!$A74+$A$11,0,1,1) -> 2012-12-17 | C74: =OFFSET(InputPriceData!G$15,CalculationsAndCharts!$A74+$A$11,0,1,1) -> 52474700 | D74: =OFFSET(InputPriceData!C$15,CalculationsAndCharts!$A74+$A$11,IF($C$7,7,0),1,1) -> 37.77 | E74: =OFFSET(InputPriceData!D$15,CalculationsAndCharts!$A74+$A$11,IF($C$7,7,0),1,1) -> 39.2 | F74: =OFFSET(InputPriceData!E$15,CalculationsAndCharts!$A74+$A$11,IF($C$7,7,0),1,1) -> 37.76 | G74: =OFFSET(InputPriceData!F$15,CalculationsAndCharts!$A74+$A$11,IF($C$7,7,0),1,1) -> 39.15 | I74: 38.052 | J74: 38.002 | K74: 37.16 | L74: 37.21 | M74: 35.73076107 | O74: TRUE | P74: TRUE | Q74: TRUE | R74: FALSE | S74: FALSE | T74: 37.77 | V74: 37.77 | X74: FALSE | Y74: FALSE | Z74: FALSE | AA74: FALSE
A75: 43 | B75: =OFFSET(InputPriceData!B$15,CalculationsAndCharts!$A75+$A$11,0,1,1) -> 2012-12-14 | C75: =OFFSET(InputPriceData!G$15,CalculationsAndCharts!$A75+$A$11,0,1,1) -> 24596000 | D75: =OFFSET(InputPriceData!C$15,CalculationsAndCharts!$A75+$A$11,IF($C$7,7,0),1,1) -> 37.31 | E75: =OFFSET(InputPriceData!D$15,CalculationsAndCharts!$A75+$A$11,IF($C$7,7,0),1,1) -> 37.68 | F75: =OFFSET(InputPriceData!E$15,CalculationsAndCharts!$A75+$A$11,IF($C$7,7,0),1,1) -> 37.13 | G75: =OFFSET(InputPriceData!F$15,CalculationsAndCharts!$A75+$A$11,IF($C$7,7,0),1,1) -> 37.6 | I75: 37.712 | J75: 37.662 | K75: 37.014 | L75: 37.064 | M75: 35.5912003 | O75: FALSE | P75: FALSE | Q75: FALSE | R75: FALSE | S75: FALSE | X75: FALSE | Y75: FALSE | Z75: FALSE | AA75: FALSE
A76: 44 | B76: =OFFSET(InputPriceData!B$15,CalculationsAndCharts!$A76+$A$11,0,1,1) -> 2012-12-13 | C76: =OFFSET(InputPriceData!G$15,CalculationsAndCharts!$A76+$A$11,0,1,1) -> 30445400 | D76: =OFFSET(InputPriceData!C$15,CalculationsAndCharts!$A76+$A$11,IF($C$7,7,0),1,1) -> 37.5 | E76: =OFFSET(InputPriceData!D$15,CalculationsAndCharts!$A76+$A$11,IF($C$7,7,0),1,1) -> 37.75 | F76: =OFFSET(InputPriceData!E$15,CalculationsAndCharts!$A76+$A$11,IF($C$7,7,0),1,1) -> 37.22 | G76: =OFFSET(InputPriceData!F$15,CalculationsAndCharts!$A76+$A$11,IF($C$7,7,0),1,1) -> 37.29 | I76: 37.726 | J76: 37.676 | K76: 37.05 | L76: 37.1 | M76: 35.50920848 | O76: FALSE | P76: FALSE | Q76: FALSE | R76: FALSE | S76: FALSE | X76: FALSE | Y76: FALSE | Z76: FALSE | AA76: FALSE
A77: 45 | B77: =OFFSET(InputPriceData!B$15,CalculationsAndCharts!$A77+$A$11,0,1,1) -> 2012-12-12 | C77: =OFFSET(InputPriceData!G$15,CalculationsAndCharts!$A77+$A$11,0,1,1) -> 42252800 | D77: =OFFSET(InputPriceData!C$15,CalculationsAndCharts!$A77+$A$11,IF($C$7,7,0),1,1) -> 37.15 | E77: =OFFSET(InputPriceData!D$15,CalculationsAndCharts!$A77+$A$11,IF($C$7,7,0),1,1) -> 37.82 | F77: =OFFSET(InputPriceData!E$15,CalculationsAndCharts!$A77+$A$11,IF($C$7,7,0),1,1) -> 37.11 | G77: =OFFSET(InputPriceData!F$15,CalculationsAndCharts!$A77+$A$11,IF($C$7,7,0),1,1) -> 37.53 | I77: 37.582 | J77: 37.532 | K77: 36.856 | L77: 36.906 | M77: 35.43652311 | O77: FALSE | P77: FALSE | Q77: FALSE | R77: FALSE | S77: FALSE | X77: FALSE | Y77: FALSE | Z77: FALSE | AA77: FALSE
A78: 46 | B78: =OFFSET(InputPriceData!B$15,CalculationsAndCharts!$A78+$A$11,0,1,1) -> 2012-12-11 | C78: =OFFSET(InputPriceData!G$15,CalculationsAndCharts!$A78+$A$11,0,1,1) -> 29748900 | D78: =OFFSET(InputPriceData!C$15,CalculationsAndCharts!$A78+$A$11,IF($C$7,7,0),1,1) -> 37.43 | E78: =OFFSET(InputPriceData!D$15,CalculationsAndCharts!$A78+$A$11,IF($C$7,7,0),1,1) -> 37.56 | F78: =OFFSET(InputPriceData!E$15,CalculationsAndCharts!$A78+$A$11,IF($C$7,7,0),1,1) -> 36.83 | G78: =OFFSET(InputPriceData!F$15,CalculationsAndCharts!$A78+$A$11,IF($C$7,7,0),1,1) -> 37 | I78: 37.432 | J78: 37.382 | K78: 36.454 | L78: 36.504 | M78: 35.35107507 | O78: FALSE | P78: FALSE | Q78: FALSE | R78: FALSE | S78: FALSE | X78: FALSE | Y78: FALSE | Z78: FALSE | AA78: FALSE
A79: 47 | B79: =OFFSET(InputPriceData!B$15,CalculationsAndCharts!$A79+$A$11,0,1,1) -> 2012-12-10 | C79: =OFFSET(InputPriceData!G$15,CalculationsAndCharts!$A79+$A$11,0,1,1) -> 26715900 | D79: =OFFSET(InputPriceData!C$15,CalculationsAndCharts!$A79+$A$11,IF($C$7,7,0),1,1) -> 37.35 | E79: =OFFSET(InputPriceData!D$15,CalculationsAndCharts!$A79+$A$11,IF($C$7,7,0),1,1) -> 37.5 | F79: =OFFSET(InputPriceData!E$15,CalculationsAndCharts!$A79+$A$11,IF($C$7,7,0),1,1) -> 37.03 | G79: =OFFSET(InputPriceData!F$15,CalculationsAndCharts!$A79+$A$11,IF($C$7,7,0),1,1) -> 37.19 | I79: 36.822 | J79: 36.772 | K79: 35.902 | L79: 35.952 | M79: 35.28377201 | O79: FALSE | P79: FALSE | Q79: FALSE | R79: FALSE | S79: FALSE | X79: FALSE | Y79: FALSE | Z79: FALSE | AA79: FALSE
A80: 48 | B80: =OFFSET(InputPriceData!B$15,CalculationsAndCharts!$A80+$A$11,0,1,1) -> 2012-12-07 | C80: =OFFSET(InputPriceData!G$15,CalculationsAndCharts!$A80+$A$11,0,1,1) -> 43946600 | D80: =OFFSET(InputPriceData!C$15,CalculationsAndCharts!$A80+$A$11,IF($C$7,7,0),1,1) -> 37.42 | E80: =OFFSET(InputPriceData!D$15,CalculationsAndCharts!$A80+$A$11,IF($C$7,7,0),1,1) -> 37.75 | F80: =OFFSET(InputPriceData!E$15,CalculationsAndCharts!$A80+$A$11,IF($C$7,7,0),1,1) -> 37.31 | G80: =OFFSET(InputPriceData!F$15,CalculationsAndCharts!$A80+$A$11,IF($C$7,7,0),1,1) -> 37.64 | I80: 36.32 | J80: 36.27 | K80: 35.322 | L80: 35.372 | M80: 35.20596679 | O80: FALSE | P80: FALSE | Q80: FALSE | R80: FALSE | S80: FALSE | X80: FALSE | Y80: FALSE | Z80: FALSE | AA80: FALSE
A81: 49 | B81: =OFFSET(InputPriceData!B$15,CalculationsAndCharts!$A81+$A$11,0,1,1) -> 2012-12-06 | C81: =OFFSET(InputPriceData!G$15,CalculationsAndCharts!$A81+$A$11,0,1,1) -> 44260900 | D81: =OFFSET(InputPriceData!C$15,CalculationsAndCharts!$A81+$A$11,IF($C$7,7,0),1,1) -> 36.59 | E81: =OFFSET(InputPriceData!D$15,CalculationsAndCharts!$A81+$A$11,IF($C$7,7,0),1,1) -> 37.03 | F81: =OFFSET(InputPriceData!E$15,CalculationsAndCharts!$A81+$A$11,IF($C$7,7,0),1,1) -> 36.25 | G81: =OFFSET(InputPriceData!F$15,CalculationsAndCharts!$A81+$A$11,IF($C$7,7,0),1,1) -> 37.02 | I81: 35.818 | J81: 35.768 | K81: 34.704 | L81: 34.754 | M81: 35.1066185 | O81: FALSE | P81: FALSE | Q81: FALSE | R81: FALSE | S81: FALSE | X81: FALSE | Y81: FALSE | Z81: FALSE | AA81: FALSE
A82: 50 | B82: =OFFSET(InputPriceData!B$15,CalculationsAndCharts!$A82+$A$11,0,1,1) -> 2012-12-05 | C82: =OFFSET(InputPriceData!G$15,CalculationsAndCharts!$A82+$A$11,0,1,1) -> 84672900 | D82: =OFFSET(InputPriceData!C$15,CalculationsAndCharts!$A82+$A$11,IF($C$7,7,0),1,1) -> 35.27 | E82: =OFFSET(InputPriceData!D$15,CalculationsAndCharts!$A82+$A$11,IF($C$7,7,0),1,1) -> 37.07 | F82: =OFFSET(InputPriceData!E$15,CalculationsAndCharts!$A82+$A$11,IF($C$7,7,0),1,1) -> 35.1 | G82: =OFFSET(InputPriceData!F$15,CalculationsAndCharts!$A82+$A$11,IF($C$7,7,0),1,1) -> 36.46 | I82: 35.54 | J82: 35.49 | K82: 34.458 | L82: 34.508 | M82: 35.02852129 | O82: FALSE | P82: FALSE | Q82: FALSE | R82: FALSE | S82: FALSE | X82: FALSE | Y82: FALSE | Z82: FALSE | AA82: FALSE
A83: 51 | B83: =OFFSET(InputPriceData!B$15,CalculationsAndCharts!$A83+$A$11,0,1,1) -> 2012-12-04 | C83: =OFFSET(InputPriceData!G$15,CalculationsAndCharts!$A83+$A$11,0,1,1) -> 31781900 | D83: =OFFSET(InputPriceData!C$15,CalculationsAndCharts!$A83+$A$11,IF($C$7,7,0),1,1) -> 34.13 | E83: =OFFSET(InputPriceData!D$15,CalculationsAndCharts!$A83+$A$11,IF($C$7,7,0),1,1) -> 34.51 | F83: =OFFSET(InputPriceData!E$15,CalculationsAndCharts!$A83+$A$11,IF($C$7,7,0),1,1) -> 34.07 | G83: =OFFSET(InputPriceData!F$15,CalculationsAndCharts!$A83+$A$11,IF($C$7,7,0),1,1) -> 34.29 | I83: 35.142 | J83: 35.092 | K83: 34.246 | L83: 34.296 | M83: 34.97009359 | O83: FALSE | P83: FALSE | Q83: FALSE | R83: FALSE | S83: FALSE | X83: FALSE | Y83: FALSE | Z83: FALSE | AA83: FALSE
A84: 52 | B84: =OFFSET(InputPriceData!B$15,CalculationsAndCharts!$A84+$A$11,0,1,1) -> 2012-12-03 | C84: =OFFSET(InputPriceData!G$15,CalculationsAndCharts!$A84+$A$11,0,1,1) -> 38383600 | D84: =OFFSET(InputPriceData!C$15,CalculationsAndCharts!$A84+$A$11,IF($C$7,7,0),1,1) -> 34.96 | E84: =OFFSET(InputPriceData!D$15,CalculationsAndCharts!$A84+$A$11,IF($C$7,7,0),1,1) -> 34.99 | F84: =OFFSET(InputPriceData!E$15,CalculationsAndCharts!$A84+$A$11,IF($C$7,7,0),1,1) -> 34.13 | G84: =OFFSET(InputPriceData!F$15,CalculationsAndCharts!$A84+$A$11,IF($C$7,7,0),1,1) -> 34.22 | I84: 35.404 | J84: 35.354 | K84: 34.436 | L84: 34.486 | M84: 34.99785251 | O84: FALSE | P84: FALSE | Q84: FALSE | R84: FALSE | S84: FALSE | X84: FALSE | Y84: FALSE | Z84: FALSE | AA84: FALSE
A85: 53 | B85: =OFFSET(InputPriceData!B$15,CalculationsAndCharts!$A85+$A$11,0,1,1) -> 2012-11-30 | C85: =OFFSET(InputPriceData!G$15,CalculationsAndCharts!$A85+$A$11,0,1,1) -> 41674500 | D85: =OFFSET(InputPriceData!C$15,CalculationsAndCharts!$A85+$A$11,IF($C$7,7,0),1,1) -> 34.95 | E85: =OFFSET(InputPriceData!D$15,CalculationsAndCharts!$A85+$A$11,IF($C$7,7,0),1,1) -> 35.24 | F85: =OFFSET(InputPriceData!E$15,CalculationsAndCharts!$A85+$A$11,IF($C$7,7,0),1,1) -> 34.22 | G85: =OFFSET(InputPriceData!F$15,CalculationsAndCharts!$A85+$A$11,IF($C$7,7,0),1,1) -> 34.57 | I85: 35.574 | J85: 35.524 | K85: 34.682 | L85: 34.732 | M85: 35.02960159 | O85: FALSE | P85: FALSE | Q85: FALSE | R85: FALSE | S85: FALSE | X85: FALSE | Y85: FALSE | Z85: FALSE | AA85: FALSE
A86: 54 | B86: =OFFSET(InputPriceData!B$15,CalculationsAndCharts!$A86+$A$11,0,1,1) -> 2012-11-29 | C86: =OFFSET(InputPriceData!G$15,CalculationsAndCharts!$A86+$A$11,0,1,1) -> 31678000 | D86: =OFFSET(InputPriceData!C$15,CalculationsAndCharts!$A86+$A$11,IF($C$7,7,0),1,1) -> 35.38 | E86: =OFFSET(InputPriceData!D$15,CalculationsAndCharts!$A86+$A$11,IF($C$7,7,0),1,1) -> 35.64 | F86: =OFFSET(InputPriceData!E$15,CalculationsAndCharts!$A86+$A$11,IF($C$7,7,0),1,1) -> 35.02 | G86: =OFFSET(InputPriceData!F$15,CalculationsAndCharts!$A86+$A$11,IF($C$7,7,0),1,1) -> 35.21 | I86: 35.746 | J86: 35.696 | K86: 35.002 | L86: 35.052 | M86: 35.04836084 | O86: FALSE | P86: FALSE | Q86: FALSE | R86: FALSE | S86: FALSE | X86: FALSE | Y86: FALSE | Z86: FALSE | AA86: FALSE
A87: 55 | B87: =OFFSET(InputPriceData!B$15,CalculationsAndCharts!$A87+$A$11,0,1,1) -> 2012-11-28 | C87: =OFFSET(InputPriceData!G$15,CalculationsAndCharts!$A87+$A$11,0,1,1) -> 48663700 | D87: =OFFSET(InputPriceData!C$15,CalculationsAndCharts!$A87+$A$11,IF($C$7,7,0),1,1) -> 34.77 | E87: =OFFSET(InputPriceData!D$15,CalculationsAndCharts!$A87+$A$11,IF($C$7,7,0),1,1) -> 35.08 | F87: =OFFSET(InputPriceData!E$15,CalculationsAndCharts!$A87+$A$11,IF($C$7,7,0),1,1) -> 34.04 | G87: =OFFSET(InputPriceData!F$15,CalculationsAndCharts!$A87+$A$11,IF($C$7,7,0),1,1) -> 35.07 | I87: 35.836 | J87: 35.786 | K87: 35.114 | L87: 35.164 | M87: 35.04176332 | O87: FALSE | P87: FALSE | Q87: FALSE | R87: FALSE | S87: FALSE | X87: FALSE | Y87: FALSE | Z87: FALSE | AA87: FALSE
A88: 56 | B88: =OFFSET(InputPriceData!B$15,CalculationsAndCharts!$A88+$A$11,0,1,1) -> 2012-11-27 | C88: =OFFSET(InputPriceData!G$15,CalculationsAndCharts!$A88+$A$11,0,1,1) -> 31273300 | D88: =OFFSET(InputPriceData!C$15,CalculationsAndCharts!$A88+$A$11,IF($C$7,7,0),1,1) -> 35.53 | E88: =OFFSET(InputPriceData!D$15,CalculationsAndCharts!$A88+$A$11,IF($C$7,7,0),1,1) -> 35.82 | F88: =OFFSET(InputPriceData!E$15,CalculationsAndCharts!$A88+$A$11,IF($C$7,7,0),1,1) -> 35.02 | G88: =OFFSET(InputPriceData!F$15,CalculationsAndCharts!$A88+$A$11,IF($C$7,7,0),1,1) -> 35.04 | I88: 36.098 | J88: 36.048 | K88: 35.446 | L88: 35.496 | M88: 35.04061081 | O88: FALSE | P88: FALSE | Q88: FALSE | R88: FALSE | S88: FALSE | X88: FALSE | Y88: FALSE | Z88: FALSE | AA88: FALSE
A89: 57 | B89: =OFFSET(InputPriceData!B$15,CalculationsAndCharts!$A89+$A$11,0,1,1) -> 2012-11-26 | C89: =OFFSET(InputPriceData!G$15,CalculationsAndCharts!$A89+$A$11,0,1,1) -> 25519300 | D89: =OFFSET(InputPriceData!C$15,CalculationsAndCharts!$A89+$A$11,IF($C$7,7,0),1,1) -> 35.83 | E89: =OFFSET(InputPriceData!D$15,CalculationsAndCharts!$A89+$A$11,IF($C$7,7,0),1,1) -> 35.84 | F89: =OFFSET(InputPriceData!E$15,CalculationsAndCharts!$A89+$A$11,IF($C$7,7,0),1,1) -> 35.36 | G89: =OFFSET(InputPriceData!F$15,CalculationsAndCharts!$A89+$A$11,IF($C$7,7,0),1,1) -> 35.57 | I89: 36.218 | J89: 36.168 | K89: 35.582 | L89: 35.632 | M89: 35.04063574 | O89: FALSE | P89: FALSE | Q89: TRUE | R89: TRUE | S89: TRUE | U89: 35.394 | W89: 35.394 | X89: FALSE | Y89: FALSE | Z89: FALSE | AA89: FALSE
A90: 58 | B90: =OFFSET(InputPriceData!B$15,CalculationsAndCharts!$A90+$A$11,0,1,1) -> 2012-11-23 | C90: =OFFSET(InputPriceData!G$15,CalculationsAndCharts!$A90+$A$11,0,1,1) -> 13501300 | D90: =OFFSET(InputPriceData!C$15,CalculationsAndCharts!$A90+$A$11,IF($C$7,7,0),1,1) -> 35.96 | E90: =OFFSET(InputPriceData!D$15,CalculationsAndCharts!$A90+$A$11,IF($C$7,7,0),1,1) -> 36.1 | F90: =OFFSET(InputPriceData!E$15,CalculationsAndCharts!$A90+$A$11,IF($C$7,7,0),1,1) -> 35.82 | G90: =OFFSET(InputPriceData!F$15,CalculationsAndCharts!$A90+$A$11,IF($C$7,7,0),1,1) -> 36.03 | I90: 36.112 | J90: 36.062 | K90: 35.344 | L90: 35.394 | M90: 35.01902903 | O90: TRUE | P90: FALSE | Q90: TRUE | R90: FALSE | S90: FALSE | X90: FALSE | Y90: FALSE | Z90: FALSE | AA90: FALSE
A91: 59 | B91: =OFFSET(InputPriceData!B$15,CalculationsAndCharts!$A91+$A$11,0,1,1) -> 2012-11-21 | C91: =OFFSET(InputPriceData!G$15,CalculationsAndCharts!$A91+$A$11,0,1,1) -> 19638900 | D91: =OFFSET(InputPriceData!C$15,CalculationsAndCharts!$A91+$A$11,IF($C$7,7,0),1,1) -> 36.09 | E91: =OFFSET(InputPriceData!D$15,CalculationsAndCharts!$A91+$A$11,IF($C$7,7,0),1,1) -> 36.09 | F91: =OFFSET(InputPriceData!E$15,CalculationsAndCharts!$A91+$A$11,IF($C$7,7,0),1,1) -> 35.58 | G91: =OFFSET(InputPriceData!F$15,CalculationsAndCharts!$A91+$A$11,IF($C$7,7,0),1,1) -> 35.77 | I91: 36.052 | J91: 36.002 | K91: 35.182 | L91: 35.232 | M91: 34.97776491 | O91: FALSE | P91: FALSE | Q91: TRUE | R91: FALSE | S91: FALSE | X91: FALSE | Y91: FALSE | Z91: FALSE | AA91: FALSE
A92: 60 | B92: =OFFSET(InputPriceData!B$15,CalculationsAndCharts!$A92+$A$11,0,1,1) -> 2012-11-20 | C92: =OFFSET(InputPriceData!G$15,CalculationsAndCharts!$A92+$A$11,0,1,1) -> 37247900 | D92: =OFFSET(InputPriceData!C$15,CalculationsAndCharts!$A92+$A$11,IF($C$7,7,0),1,1) -> 35.85 | E92: =OFFSET(InputPriceData!D$15,CalculationsAndCharts!$A92+$A$11,IF($C$7,7,0),1,1) -> 36.39 | F92: =OFFSET(InputPriceData!E$15,CalculationsAndCharts!$A92+$A$11,IF($C$7,7,0),1,1) -> 35.7 | G92: =OFFSET(InputPriceData!F$15,CalculationsAndCharts!$A92+$A$11,IF($C$7,7,0),1,1) -> 36 | I92: 36.126 | J92: 36.076 | K92: 35.044 | L92: 35.094 | M92: 34.94542879 | O92: FALSE | P92: FALSE | Q92: TRUE | R92: FALSE | S92: FALSE | X92: FALSE | Y92: FALSE | Z92: FALSE | AA92: FALSE
A93: 61 | B93: =OFFSET(InputPriceData!B$15,CalculationsAndCharts!$A93+$A$11,0,1,1) -> 2012-11-19 | C93: =OFFSET(InputPriceData!G$15,CalculationsAndCharts!$A93+$A$11,0,1,1) -> 34352000 | D93: =OFFSET(InputPriceData!C$15,CalculationsAndCharts!$A93+$A$11,IF($C$7,7,0),1,1) -> 35.73 | E93: =OFFSET(InputPriceData!D$15,CalculationsAndCharts!$A93+$A$11,IF($C$7,7,0),1,1) -> 36.42 | F93: =OFFSET(InputPriceData!E$15,CalculationsAndCharts!$A93+$A$11,IF($C$7,7,0),1,1) -> 35.7 | G93: =OFFSET(InputPriceData!F$15,CalculationsAndCharts!$A93+$A$11,IF($C$7,7,0),1,1) -> 36.1 | H93: =IF($A93=$E$25,H$32,NA()) ->  | I93: 36.202 | J93: 36.152 | K93: 35.09 | L93: 35.14 | M93: 34.90238506 | O93: TRUE | P93: TRUE | Q93: TRUE | R93: FALSE | S93: FALSE | T93: 36.266 | V93: 36.266 | X93: FALSE | Y93: FALSE | Z93: FALSE | AA93: FALSE
A94: 62 | B94: =OFFSET(InputPriceData!B$15,CalculationsAndCharts!$A94+$A$11,0,1,1) -> 2012-11-16 | C94: =OFFSET(InputPriceData!G$15,CalculationsAndCharts!$A94+$A$11,0,1,1) -> 52828200 | D94: =OFFSET(InputPriceData!C$15,CalculationsAndCharts!$A94+$A$11,IF($C$7,7,0),1,1) -> 35.15 | E94: =OFFSET(InputPriceData!D$15,CalculationsAndCharts!$A94+$A$11,IF($C$7,7,0),1,1) -> 35.31 | F94: =OFFSET(InputPriceData!E$15,CalculationsAndCharts!$A94+$A$11,IF($C$7,7,0),1,1) -> 34.17 | G94: =OFFSET(InputPriceData!F$15,CalculationsAndCharts!$A94+$A$11,IF($C$7,7,0),1,1) -> 34.98 | I94: 36.266 | J94: 36.216 | K94: 35.142 | L94: 35.192 | M94: 34.85350282 | O94: FALSE | P94: FALSE | Q94: FALSE | R94: FALSE | S94: FALSE | X94: FALSE | Y94: FALSE | Z94: FALSE | AA94: FALSE
A95: 63 | B95: =OFFSET(InputPriceData!B$15,CalculationsAndCharts!$A95+$A$11,0,1,1) -> 2012-11-15 | C95: =OFFSET(InputPriceData!G$15,CalculationsAndCharts!$A95+$A$11,0,1,1) -> 39677700 | D95: =OFFSET(InputPriceData!C$15,CalculationsAndCharts!$A95+$A$11,IF($C$7,7,0),1,1) -> 35.19 | E95: =OFFSET(InputPriceData!D$15,CalculationsAndCharts!$A95+$A$11,IF($C$7,7,0),1,1) -> 35.8 | F95: =OFFSET(InputPriceData!E$15,CalculationsAndCharts!$A95+$A$11,IF($C$7,7,0),1,1) -> 35.01 | G95: =OFFSET(InputPriceData!F$15,CalculationsAndCharts!$A95+$A$11,IF($C$7,7,0),1,1) -> 35.21 | I95: 36.508 | J95: 36.458 | K95: 35.388 | L95: 35.438 | M95: 34.84833967 | O95: FALSE | P95: FALSE | Q95: FALSE | R95: FALSE | S95: FALSE | X95: FALSE | Y95: FALSE | Z95: FALSE | AA95: FALSE
A96: 64 | B96: =OFFSET(InputPriceData!B$15,CalculationsAndCharts!$A96+$A$11,0,1,1) -> 2012-11-14 | C96: =OFFSET(InputPriceData!G$15,CalculationsAndCharts!$A96+$A$11,0,1,1) -> 49909500 | D96: =OFFSET(InputPriceData!C$15,CalculationsAndCharts!$A96+$A$11,IF($C$7,7,0),1,1) -> 36.29 | E96: =OFFSET(InputPriceData!D$15,CalculationsAndCharts!$A96+$A$11,IF($C$7,7,0),1,1) -> 36.46 | F96: =OFFSET(InputPriceData!E$15,CalculationsAndCharts!$A96+$A$11,IF($C$7,7,0),1,1) -> 34.89 | G96: =OFFSET(InputPriceData!F$15,CalculationsAndCharts!$A96+$A$11,IF($C$7,7,0),1,1) -> 35.02 | I96: 36.678 | J96: 36.628 | K96: 35.576 | L96: 35.626 | M96: 34.83357802 | O96: FALSE | P96: FALSE | Q96: FALSE | R96: FALSE | S96: FALSE | X96: FALSE | Y96: FALSE | Z96: FALSE | AA96: FALSE
A97: 65 | B97: =OFFSET(InputPriceData!B$15,CalculationsAndCharts!$A97+$A$11,0,1,1) -> 2012-11-13 | C97: =OFFSET(InputPriceData!G$15,CalculationsAndCharts!$A97+$A$11,0,1,1) -> 25977400 | D97: =OFFSET(InputPriceData!C$15,CalculationsAndCharts!$A97+$A$11,IF($C$7,7,0),1,1) -> 36.01 | E97: =OFFSET(InputPriceData!D$15,CalculationsAndCharts!$A97+$A$11,IF($C$7,7,0),1,1) -> 36.77 | F97: =OFFSET(InputPriceData!E$15,CalculationsAndCharts!$A97+$A$11,IF($C$7,7,0),1,1) -> 35.93 | G97: =OFFSET(InputPriceData!F$15,CalculationsAndCharts!$A97+$A$11,IF($C$7,7,0),1,1) -> 36.16 | I97: =J97+$A$19 -> 36.944 | J97: 36.894 | K97: 35.798 | L97: =AVERAGE(OFFSET(F97,0,0,$A$16,1)) -> 35.848 | M97: =$C$18*G97+$D$18*M98 -> 34.82596896 | O97: FALSE | P97: FALSE | Q97: FALSE | R97: FALSE | S97: FALSE | X97: =AND((F97<(L98-$A$19)), NOT(F98<(L99-$A$19)), (G98<M98)) -> FALSE | Y97: FALSE | Z97: FALSE | AA97: =AND(Z97,E97>J98) -> FALSE
A98: 66 | B98: =OFFSET(InputPriceData!B$15,CalculationsAndCharts!$A98+$A$11,0,1,1) -> 2012-11-12 | C98: =OFFSET(InputPriceData!G$15,CalculationsAndCharts!$A98+$A$11,0,1,1) -> 24364200 | D98: =OFFSET(InputPriceData!C$15,CalculationsAndCharts!$A98+$A$11,IF($C$7,7,0),1,1) -> 36.12 | E98: =OFFSET(InputPriceData!D$15,CalculationsAndCharts!$A98+$A$11,IF($C$7,7,0),1,1) -> 36.74 | F98: =OFFSET(InputPriceData!E$15,CalculationsAndCharts!$A98+$A$11,IF($C$7,7,0),1,1) -> 35.96 | G98: =OFFSET(InputPriceData!F$15,CalculationsAndCharts!$A98+$A$11,IF($C$7,7,0),1,1) -> 36.42 | I98: 37.29 | J98: =AVERAGE(OFFSET(E98,0,0,$A$16,1)) -> 37.24 | K98: =L98-$A$19 -> 36.098 | L98: 36.148 | M98: 34.77151872 | O98: =AND((E98>(J99+$A$19)), NOT(E99>(J100+$A$19)), (G99>M99)) -> FALSE | P98: =AND(O98,NOT(Q99)) -> FALSE | Q98: =IF(Q99,IF(S99,FALSE,Q99),IF(P98,TRUE,Q99)) -> FALSE | R98: =AND(Q98,F98<L99) -> FALSE | S98: =AND(R98,Q99) -> FALSE | T98: =IF(P98,MAX(I99,D98),NA()) ->  | U98: =IF(S98,MIN(L99,D98),NA()) ->  | V98: =IF($S$4,T98,NA()) ->  | W98: =IF($S$4,U98,NA()) ->  | X98: FALSE | Y98: =AND(X98,NOT(Z99)) -> FALSE | Z98: =IF(Z99,IF(AA99,FALSE,Z99),IF(Y98,TRUE,Z99)) -> FALSE | AA98: FALSE | AB98: =IF(Y98,MIN(K99,D98),NA()) ->  | AC98: =IF(AA98,MAX(J99,D98),NA()) ->  | AD98: =IF($S$5,AB98,NA()) ->  | AE98: =IF($S$5,AC98,NA()) -> 
A99: 67 | B99: =OFFSET(InputPriceData!B$15,CalculationsAndCharts!$A99+$A$11,0,1,1) -> 2012-11-09 | C99: =OFFSET(InputPriceData!G$15,CalculationsAndCharts!$A99+$A$11,0,1,1) -> 37701300 | D99: =OFFSET(InputPriceData!C$15,CalculationsAndCharts!$A99+$A$11,IF($C$7,7,0),1,1) -> 35.58 | E99: =OFFSET(InputPriceData!D$15,CalculationsAndCharts!$A99+$A$11,IF($C$7,7,0),1,1) -> 36.52 | F99: =OFFSET(InputPriceData!E$15,CalculationsAndCharts!$A99+$A$11,IF($C$7,7,0),1,1) -> 35.4 | G99: =OFFSET(InputPriceData!F$15,CalculationsAndCharts!$A99+$A$11,IF($C$7,7,0),1,1) -> 35.93 | I99: 37.46 | J99: 37.41 | K99: 36.296 | L99: 36.346 | M99: 34.70423377 | O99: FALSE | P99: FALSE | Q99: FALSE | R99: FALSE | S99: FALSE | X99: FALSE | Y99: FALSE | Z99: FALSE | AA99: FALSE
A100: 68 | B100: =OFFSET(InputPriceData!B$15,CalculationsAndCharts!$A100+$A$11,0,1,1) -> 2012-11-08 | C100: =OFFSET(InputPriceData!G$15,CalculationsAndCharts!$A100+$A$11,0,1,1) -> 40321600 | D100: =OFFSET(InputPriceData!C$15,CalculationsAndCharts!$A100+$A$11,IF($C$7,7,0),1,1) -> 36.46 | E100: =OFFSET(InputPriceData!D$15,CalculationsAndCharts!$A100+$A$11,IF($C$7,7,0),1,1) -> 36.65 | F100: =OFFSET(InputPriceData!E$15,CalculationsAndCharts!$A100+$A$11,IF($C$7,7,0),1,1) -> 35.95 | G100: =OFFSET(InputPriceData!F$15,CalculationsAndCharts!$A100+$A$11,IF($C$7,7,0),1,1) -> 36 | I100: 37.788 | J100: 37.738 | K100: 36.718 | L100: 36.768 | M100: 34.65420249 | O100: FALSE | P100: FALSE | Q100: FALSE | R100: FALSE | S100: FALSE | X100: FALSE | Y100: FALSE | Z100: FALSE | AA100: FALSE
A101: 69 | B101: =OFFSET(InputPriceData!B$15,CalculationsAndCharts!$A101+$A$11,0,1,1) -> 2012-11-07 | C101: =OFFSET(InputPriceData!G$15,CalculationsAndCharts!$A101+$A$11,0,1,1) -> 68287600 | D101: =OFFSET(InputPriceData!C$15,CalculationsAndCharts!$A101+$A$11,IF($C$7,7,0),1,1) -> 37.62 | E101: =OFFSET(InputPriceData!D$15,CalculationsAndCharts!$A101+$A$11,IF($C$7,7,0),1,1) -> 37.79 | F101: =OFFSET(InputPriceData!E$15,CalculationsAndCharts!$A101+$A$11,IF($C$7,7,0),1,1) -> 36 | G101: =OFFSET(InputPriceData!F$15,CalculationsAndCharts!$A101+$A$11,IF($C$7,7,0),1,1) -> 36.05 | I101: 38.058 | J101: 38.008 | K101: 36.998 | L101: 37.048 | M101: 34.59927198 | O101: FALSE | P101: FALSE | Q101: FALSE | R101: FALSE | S101: FALSE | X101: FALSE | Y101: FALSE | Z101: FALSE | AA101: FALSE
A102: 70 | B102: =OFFSET(InputPriceData!B$15,CalculationsAndCharts!$A102+$A$11,0,1,1) -> 2012-11-06 | C102: =OFFSET(InputPriceData!G$15,CalculationsAndCharts!$A102+$A$11,0,1,1) -> 39803700 | D102: =OFFSET(InputPriceData!C$15,CalculationsAndCharts!$A102+$A$11,IF($C$7,7,0),1,1) -> 37.45 | E102: =OFFSET(InputPriceData!D$15,CalculationsAndCharts!$A102+$A$11,IF($C$7,7,0),1,1) -> 38.5 | F102: =OFFSET(InputPriceData!E$15,CalculationsAndCharts!$A102+$A$11,IF($C$7,7,0),1,1) -> 37.43 | G102: =OFFSET(InputPriceData!F$15,CalculationsAndCharts!$A102+$A$11,IF($C$7,7,0),1,1) -> 38.47 | I102: 37.996 | J102: 37.946 | K102: 37.146 | L102: 37.196 | M102: 34.54005859 | O102: TRUE | P102: FALSE | Q102: FALSE | R102: FALSE | S102: FALSE | X102: FALSE | Y102: FALSE | Z102: FALSE | AA102: FALSE
A103: 71 | B103: =OFFSET(InputPriceData!B$15,CalculationsAndCharts!$A103+$A$11,0,1,1) -> 2012-11-05 | C103: =OFFSET(InputPriceData!G$15,CalculationsAndCharts!$A103+$A$11,0,1,1) -> 25782400 | D103: =OFFSET(InputPriceData!C$15,CalculationsAndCharts!$A103+$A$11,IF($C$7,7,0),1,1) -> 37.3 | E103: =OFFSET(InputPriceData!D$15,CalculationsAndCharts!$A103+$A$11,IF($C$7,7,0),1,1) -> 37.59 | F103: =OFFSET(InputPriceData!E$15,CalculationsAndCharts!$A103+$A$11,IF($C$7,7,0),1,1) -> 36.95 | G103: =OFFSET(InputPriceData!F$15,CalculationsAndCharts!$A103+$A$11,IF($C$7,7,0),1,1) -> 37.32 | I103: 37.758 | J103: 37.708 | K103: 36.956 | L103: 37.006 | M103: 34.37965282 | O103: FALSE | P103: FALSE | Q103: TRUE | R103: TRUE | S103: TRUE | U103: 36.996 | W103: 36.996 | X103: FALSE | Y103: FALSE | Z103: FALSE | AA103: FALSE
A104: 72 | B104: =OFFSET(InputPriceData!B$15,CalculationsAndCharts!$A104+$A$11,0,1,1) -> 2012-11-02 | C104: =OFFSET(InputPriceData!G$15,CalculationsAndCharts!$A104+$A$11,0,1,1) -> 24526300 | D104: =OFFSET(InputPriceData!C$15,CalculationsAndCharts!$A104+$A$11,IF($C$7,7,0),1,1) -> 38.1 | E104: =OFFSET(InputPriceData!D$15,CalculationsAndCharts!$A104+$A$11,IF($C$7,7,0),1,1) -> 38.16 | F104: =OFFSET(InputPriceData!E$15,CalculationsAndCharts!$A104+$A$11,IF($C$7,7,0),1,1) -> 37.51 | G104: =OFFSET(InputPriceData!F$15,CalculationsAndCharts!$A104+$A$11,IF($C$7,7,0),1,1) -> 37.6 | I104: 37.808 | J104: 37.758 | K104: 36.946 | L104: 36.996 | M104: 34.25963865 | O104: FALSE | P104: FALSE | Q104: TRUE | R104: FALSE | S104: FALSE | X104: FALSE | Y104: FALSE | Z104: FALSE | AA104: FALSE
A105: 73 | B105: =OFFSET(InputPriceData!B$15,CalculationsAndCharts!$A105+$A$11,0,1,1) -> 2012-11-01 | C105: =OFFSET(InputPriceData!G$15,CalculationsAndCharts!$A105+$A$11,0,1,1) -> 36174700 | D105: =OFFSET(InputPriceData!C$15,CalculationsAndCharts!$A105+$A$11,IF($C$7,7,0),1,1) -> 37.57 | E105: =OFFSET(InputPriceData!D$15,CalculationsAndCharts!$A105+$A$11,IF($C$7,7,0),1,1) -> 38 | F105: =OFFSET(InputPriceData!E$15,CalculationsAndCharts!$A105+$A$11,IF($C$7,7,0),1,1) -> 37.35 | G105: =OFFSET(InputPriceData!F$15,CalculationsAndCharts!$A105+$A$11,IF($C$7,7,0),1,1) -> 37.95 | I105: 37.716 | J105: 37.666 | K105: 36.848 | L105: 36.898 | M105: 34.12329737 | O105: TRUE | P105: TRUE | Q105: TRUE | R105: FALSE | S105: FALSE | T105: 37.576 | V105: 37.576 | X105: FALSE | Y105: FALSE | Z105: FALSE | AA105: FALSE
A106: 74 | B106: =OFFSET(InputPriceData!B$15,CalculationsAndCharts!$A106+$A$11,0,1,1) -> 2012-10-31 | C106: =OFFSET(InputPriceData!G$15,CalculationsAndCharts!$A106+$A$11,0,1,1) -> 34193700 | D106: =OFFSET(InputPriceData!C$15,CalculationsAndCharts!$A106+$A$11,IF($C$7,7,0),1,1) -> 36.98 | E106: =OFFSET(InputPriceData!D$15,CalculationsAndCharts!$A106+$A$11,IF($C$7,7,0),1,1) -> 37.48 | F106: =OFFSET(InputPriceData!E$15,CalculationsAndCharts!$A106+$A$11,IF($C$7,7,0),1,1) -> 36.74 | G106: =OFFSET(InputPriceData!F$15,CalculationsAndCharts!$A106+$A$11,IF($C$7,7,0),1,1) -> 37.39 | I106: 37.576 | J106: 37.526 | K106: 36.738 | L106: 36.788 | M106: 33.96710543 | O106: FALSE | P106: FALSE | Q106: FALSE | R106: FALSE | S106: FALSE | X106: FALSE | Y106: FALSE | Z106: FALSE | AA106: FALSE
A107: 75 | B107: =OFFSET(InputPriceData!B$15,CalculationsAndCharts!$A107+$A$11,0,1,1) -> 2012-10-26 | C107: =OFFSET(InputPriceData!G$15,CalculationsAndCharts!$A107+$A$11,0,1,1) -> 40482500 | D107: =OFFSET(InputPriceData!C$15,CalculationsAndCharts!$A107+$A$11,IF($C$7,7,0),1,1) -> 37.14 | E107: =OFFSET(InputPriceData!D$15,CalculationsAndCharts!$A107+$A$11,IF($C$7,7,0),1,1) -> 37.31 | F107: =OFFSET(InputPriceData!E$15,CalculationsAndCharts!$A107+$A$11,IF($C$7,7,0),1,1) -> 36.48 | G107: =OFFSET(InputPriceData!F$15,CalculationsAndCharts!$A107+$A$11,IF($C$7,7,0),1,1) -> 36.6 | I107: 37.63 | J107: 37.58 | K107: 36.808 | L107: 36.858 | M107: 33.82739545 | O107: FALSE | P107: FALSE | Q107: FALSE | R107: FALSE | S107: FALSE | X107: FALSE | Y107: FALSE | Z107: FALSE | AA107: FALSE
A108: 76 | B108: =OFFSET(InputPriceData!B$15,CalculationsAndCharts!$A108+$A$11,0,1,1) -> 2012-10-25 | C108: =OFFSET(InputPriceData!G$15,CalculationsAndCharts!$A108+$A$11,0,1,1) -> 32797300 | D108: =OFFSET(InputPriceData!C$15,CalculationsAndCharts!$A108+$A$11,IF($C$7,7,0),1,1) -> 37.72 | E108: =OFFSET(InputPriceData!D$15,CalculationsAndCharts!$A108+$A$11,IF($C$7,7,0),1,1) -> 37.84 | F108: =OFFSET(InputPriceData!E$15,CalculationsAndCharts!$A108+$A$11,IF($C$7,7,0),1,1) -> 36.9 | G108: =OFFSET(InputPriceData!F$15,CalculationsAndCharts!$A108+$A$11,IF($C$7,7,0),1,1) -> 37.41 | I108: 37.78 | J108: 37.73 | K108: 36.914 | L108: 36.964 | M108: 33.71422791 | O108: FALSE | P108: FALSE | Q108: FALSE | R108: FALSE | S108: FALSE | X108: FALSE | Y108: FALSE | Z108: FALSE | AA108: FALSE
A109: 77 | B109: =OFFSET(InputPriceData!B$15,CalculationsAndCharts!$A109+$A$11,0,1,1) -> 2012-10-24 | C109: =OFFSET(InputPriceData!G$15,CalculationsAndCharts!$A109+$A$11,0,1,1) -> 41788700 | D109: =OFFSET(InputPriceData!C$15,CalculationsAndCharts!$A109+$A$11,IF($C$7,7,0),1,1) -> 37.25 | E109: =OFFSET(InputPriceData!D$15,CalculationsAndCharts!$A109+$A$11,IF($C$7,7,0),1,1) -> 37.7 | F109: =OFFSET(InputPriceData!E$15,CalculationsAndCharts!$A109+$A$11,IF($C$7,7,0),1,1) -> 37.02 | G109: =OFFSET(InputPriceData!F$15,CalculationsAndCharts!$A109+$A$11,IF($C$7,7,0),1,1) -> 37.3 | I109: 37.956 | J109: 37.906 | K109: 37.136 | L109: 37.186 | M109: 33.56338007 | O109: FALSE | P109: FALSE | Q109: FALSE | R109: FALSE | S109: FALSE | X109: FALSE | Y109: FALSE | Z109: FALSE | AA109: FALSE
A110: 78 | B110: =OFFSET(InputPriceData!B$15,CalculationsAndCharts!$A110+$A$11,0,1,1) -> 2012-10-23 | C110: =OFFSET(InputPriceData!G$15,CalculationsAndCharts!$A110+$A$11,0,1,1) -> 36533100 | D110: =OFFSET(InputPriceData!C$15,CalculationsAndCharts!$A110+$A$11,IF($C$7,7,0),1,1) -> 36.99 | E110: =OFFSET(InputPriceData!D$15,CalculationsAndCharts!$A110+$A$11,IF($C$7,7,0),1,1) -> 37.3 | F110: =OFFSET(InputPriceData!E$15,CalculationsAndCharts!$A110+$A$11,IF($C$7,7,0),1,1) -> 36.8 | G110: =OFFSET(InputPriceData!F$15,CalculationsAndCharts!$A110+$A$11,IF($C$7,7,0),1,1) -> 36.89 | I110: 38.112 | J110: 38.062 | K110: 37.244 | L110: 37.294 | M110: 33.41086497 | O110: FALSE | P110: FALSE | Q110: TRUE | R110: TRUE | S110: TRUE | U110: 36.99 | W110: 36.99 | X110: FALSE | Y110: FALSE | Z110: FALSE | AA110: FALSE
A111: 79 | B111: =OFFSET(InputPriceData!B$15,CalculationsAndCharts!$A111+$A$11,0,1,1) -> 2012-10-22 | C111: =OFFSET(InputPriceData!G$15,CalculationsAndCharts!$A111+$A$11,0,1,1) -> 35734500 | D111: =OFFSET(InputPriceData!C$15,CalculationsAndCharts!$A111+$A$11,IF($C$7,7,0),1,1) -> 37.21 | E111: =OFFSET(InputPriceData!D$15,CalculationsAndCharts!$A111+$A$11,IF($C$7,7,0),1,1) -> 37.75 | F111: =OFFSET(InputPriceData!E$15,CalculationsAndCharts!$A111+$A$11,IF($C$7,7,0),1,1) -> 37.09 | G111: =OFFSET(InputPriceData!F$15,CalculationsAndCharts!$A111+$A$11,IF($C$7,7,0),1,1) -> 37.72 | I111: 38.132 | J111: 38.082 | K111: 37.134 | L111: 37.184 | M111: 33.26885946 | O111: FALSE | P111: FALSE | Q111: TRUE | R111: FALSE | S111: FALSE | X111: FALSE | Y111: FALSE | Z111: FALSE | AA111: FALSE
A112: 80 | B112: =OFFSET(InputPriceData!B$15,CalculationsAndCharts!$A112+$A$11,0,1,1) -> 2012-10-19 | C112: =OFFSET(InputPriceData!G$15,CalculationsAndCharts!$A112+$A$11,0,1,1) -> 59598800 | D112: =OFFSET(InputPriceData!C$15,CalculationsAndCharts!$A112+$A$11,IF($C$7,7,0),1,1) -> 38.03 | E112: =OFFSET(InputPriceData!D$15,CalculationsAndCharts!$A112+$A$11,IF($C$7,7,0),1,1) -> 38.06 | F112: =OFFSET(InputPriceData!E$15,CalculationsAndCharts!$A112+$A$11,IF($C$7,7,0),1,1) -> 37.01 | G112: =OFFSET(InputPriceData!F$15,CalculationsAndCharts!$A112+$A$11,IF($C$7,7,0),1,1) -> 37.16 | I112: 37.922 | J112: 37.872 | K112: 36.756 | L112: 36.806 | M112: 33.08718026 | O112: FALSE | P112: FALSE | Q112: TRUE | R112: FALSE | S112: FALSE | X112: FALSE | Y112: FALSE | Z112: FALSE | AA112: FALSE
A113: 81 | B113: =OFFSET(InputPriceData!B$15,CalculationsAndCharts!$A113+$A$11,0,1,1) -> 2012-10-18 | C113: =OFFSET(InputPriceData!G$15,CalculationsAndCharts!$A113+$A$11,0,1,1) -> 43728600 | D113: =OFFSET(InputPriceData!C$15,CalculationsAndCharts!$A113+$A$11,IF($C$7,7,0),1,1) -> 38.24 | E113: =OFFSET(InputPriceData!D$15,CalculationsAndCharts!$A113+$A$11,IF($C$7,7,0),1,1) -> 38.72 | F113: =OFFSET(InputPriceData!E$15,CalculationsAndCharts!$A113+$A$11,IF($C$7,7,0),1,1) -> 38.01 | G113: =OFFSET(InputPriceData!F$15,CalculationsAndCharts!$A113+$A$11,IF($C$7,7,0),1,1) -> 38.42 | H113: =IF($A113=$E$25,H$32,NA()) ->  | I113: 37.44 | J113: 37.39 | K113: 36.286 | L113: 36.336 | M113: 32.92094272 | O113: FALSE | P113: FALSE | Q113: TRUE | R113: FALSE | S113: FALSE | X113: FALSE | Y113: FALSE | Z113: FALSE | AA113: FALSE
A114: 82 | B114: =OFFSET(InputPriceData!B$15,CalculationsAndCharts!$A114+$A$11,0,1,1) -> 2012-10-17 | C114: =OFFSET(InputPriceData!G$15,CalculationsAndCharts!$A114+$A$11,0,1,1) -> 69122700 | D114: =OFFSET(InputPriceData!C$15,CalculationsAndCharts!$A114+$A$11,IF($C$7,7,0),1,1) -> 37.67 | E114: =OFFSET(InputPriceData!D$15,CalculationsAndCharts!$A114+$A$11,IF($C$7,7,0),1,1) -> 38.48 | F114: =OFFSET(InputPriceData!E$15,CalculationsAndCharts!$A114+$A$11,IF($C$7,7,0),1,1) -> 37.56 | G114: =OFFSET(InputPriceData!F$15,CalculationsAndCharts!$A114+$A$11,IF($C$7,7,0),1,1) -> 38.43 | I114: 36.928 | J114: 36.878 | K114: 35.756 | L114: 35.806 | M114: 32.6964914 | O114: FALSE | P114: FALSE | Q114: TRUE | R114: FALSE | S114: FALSE | X114: FALSE | Y114: FALSE | Z114: FALSE | AA114: FALSE
A115: 83 | B115: =OFFSET(InputPriceData!B$15,CalculationsAndCharts!$A115+$A$11,0,1,1) -> 2012-10-16 | C115: =OFFSET(InputPriceData!G$15,CalculationsAndCharts!$A115+$A$11,0,1,1) -> 128150100 | D115: =OFFSET(InputPriceData!C$15,CalculationsAndCharts!$A115+$A$11,IF($C$7,7,0),1,1) -> 36.41 | E115: =OFFSET(InputPriceData!D$15,CalculationsAndCharts!$A115+$A$11,IF($C$7,7,0),1,1) -> 37.4 | F115: =OFFSET(InputPriceData!E$15,CalculationsAndCharts!$A115+$A$11,IF($C$7,7,0),1,1) -> 36.25 | G115: =OFFSET(InputPriceData!F$15,CalculationsAndCharts!$A115+$A$11,IF($C$7,7,0),1,1) -> 37.25 | I115: 36.268 | J115: 36.218 | K115: 35.162 | L115: 35.212 | M115: 32.46247064 | O115: FALSE | P115: FALSE | Q115: TRUE | R115: FALSE | S115: FALSE | X115: FALSE | Y115: FALSE | Z115: FALSE | AA115: FALSE
A116: 84 | B116: =OFFSET(InputPriceData!B$15,CalculationsAndCharts!$A116+$A$11,0,1,1) -> 2012-10-15 | C116: =OFFSET(InputPriceData!G$15,CalculationsAndCharts!$A116+$A$11,0,1,1) -> 76080200 | D116: =OFFSET(InputPriceData!C$15,CalculationsAndCharts!$A116+$A$11,IF($C$7,7,0),1,1) -> 35.4 | E116: =OFFSET(InputPriceData!D$15,CalculationsAndCharts!$A116+$A$11,IF($C$7,7,0),1,1) -> 36.7 | F116: =OFFSET(InputPriceData!E$15,CalculationsAndCharts!$A116+$A$11,IF($C$7,7,0),1,1) -> 35.2 | G116: =OFFSET(InputPriceData!F$15,CalculationsAndCharts!$A116+$A$11,IF($C$7,7,0),1,1) -> 36.66 | I116: 35.804 | J116: 35.754 | K116: 34.816 | L116: 34.866 | M116: 32.26706128 | O116: FALSE | P116: FALSE | Q116: TRUE | R116: FALSE | S116: FALSE | X116: FALSE | Y116: FALSE | Z116: FALSE | AA116: FALSE
A117: 85 | B117: =OFFSET(InputPriceData!B$15,CalculationsAndCharts!$A117+$A$11,0,1,1) -> 2012-10-12 | C117: =OFFSET(InputPriceData!G$15,CalculationsAndCharts!$A117+$A$11,0,1,1) -> 42554900 | D117: =OFFSET(InputPriceData!C$15,CalculationsAndCharts!$A117+$A$11,IF($C$7,7,0),1,1) -> 34.81 | E117: =OFFSET(InputPriceData!D$15,CalculationsAndCharts!$A117+$A$11,IF($C$7,7,0),1,1) -> 35.65 | F117: =OFFSET(InputPriceData!E$15,CalculationsAndCharts!$A117+$A$11,IF($C$7,7,0),1,1) -> 34.66 | G117: =OFFSET(InputPriceData!F$15,CalculationsAndCharts!$A117+$A$11,IF($C$7,7,0),1,1) -> 34.75 | I117: 35.442 | J117: 35.392 | K117: 34.622 | L117: 34.672 | M117: 32.08775766 | O117: FALSE | P117: FALSE | Q117: TRUE | R117: FALSE | S117: FALSE | X117: FALSE | Y117: FALSE | Z117: FALSE | AA117: FALSE
A118: 86 | B118: =OFFSET(InputPriceData!B$15,CalculationsAndCharts!$A118+$A$11,0,1,1) -> 2012-10-11 | C118: =OFFSET(InputPriceData!G$15,CalculationsAndCharts!$A118+$A$11,0,1,1) -> 44125600 | D118: =OFFSET(InputPriceData!C$15,CalculationsAndCharts!$A118+$A$11,IF($C$7,7,0),1,1) -> 35.67 | E118: =OFFSET(InputPriceData!D$15,CalculationsAndCharts!$A118+$A$11,IF($C$7,7,0),1,1) -> 36.16 | F118: =OFFSET(InputPriceData!E$15,CalculationsAndCharts!$A118+$A$11,IF($C$7,7,0),1,1) -> 35.36 | G118: =OFFSET(InputPriceData!F$15,CalculationsAndCharts!$A118+$A$11,IF($C$7,7,0),1,1) -> 35.52 | I118: 35.46 | J118: 35.41 | K118: 34.61 | L118: 34.66 | M118: 31.9790947 | O118: FALSE | P118: FALSE | Q118: TRUE | R118: FALSE | S118: FALSE | X118: FALSE | Y118: FALSE | Z118: FALSE | AA118: FALSE
A119: 87 | B119: =OFFSET(InputPriceData!B$15,CalculationsAndCharts!$A119+$A$11,0,1,1) -> 2012-10-10 | C119: =OFFSET(InputPriceData!G$15,CalculationsAndCharts!$A119+$A$11,0,1,1) -> 29302200 | D119: =OFFSET(InputPriceData!C$15,CalculationsAndCharts!$A119+$A$11,IF($C$7,7,0),1,1) -> 34.71 | E119: =OFFSET(InputPriceData!D$15,CalculationsAndCharts!$A119+$A$11,IF($C$7,7,0),1,1) -> 35.18 | F119: =OFFSET(InputPriceData!E$15,CalculationsAndCharts!$A119+$A$11,IF($C$7,7,0),1,1) -> 34.59 | G119: =OFFSET(InputPriceData!F$15,CalculationsAndCharts!$A119+$A$11,IF($C$7,7,0),1,1) -> 35.14 | I119: 35.246 | J119: 35.196 | K119: 34.392 | L119: 34.442 | M119: 31.83456796 | O119: FALSE | P119: FALSE | Q119: TRUE | R119: FALSE | S119: FALSE | X119: FALSE | Y119: FALSE | Z119: FALSE | AA119: FALSE
A120: 88 | B120: =OFFSET(InputPriceData!B$15,CalculationsAndCharts!$A120+$A$11,0,1,1) -> 2012-10-09 | C120: =OFFSET(InputPriceData!G$15,CalculationsAndCharts!$A120+$A$11,0,1,1) -> 29208800 | D120: =OFFSET(InputPriceData!C$15,CalculationsAndCharts!$A120+$A$11,IF($C$7,7,0),1,1) -> 34.82 | E120: =OFFSET(InputPriceData!D$15,CalculationsAndCharts!$A120+$A$11,IF($C$7,7,0),1,1) -> 35.08 | F120: =OFFSET(InputPriceData!E$15,CalculationsAndCharts!$A120+$A$11,IF($C$7,7,0),1,1) -> 34.52 | G120: =OFFSET(InputPriceData!F$15,CalculationsAndCharts!$A120+$A$11,IF($C$7,7,0),1,1) -> 34.6 | I120: 35.022 | J120: 34.972 | K120: 34.084 | L120: 34.134 | M120: 31.69965236 | O120: FALSE | P120: FALSE | Q120: TRUE | R120: FALSE | S120: FALSE | X120: FALSE | Y120: FALSE | Z120: FALSE | AA120: FALSE
A121: 89 | B121: =OFFSET(InputPriceData!B$15,CalculationsAndCharts!$A121+$A$11,0,1,1) -> 2012-10-08 | C121: =OFFSET(InputPriceData!G$15,CalculationsAndCharts!$A121+$A$11,0,1,1) -> 20622700 | D121: =OFFSET(InputPriceData!C$15,CalculationsAndCharts!$A121+$A$11,IF($C$7,7,0),1,1) -> 34.23 | E121: =OFFSET(InputPriceData!D$15,CalculationsAndCharts!$A121+$A$11,IF($C$7,7,0),1,1) -> 34.89 | F121: =OFFSET(InputPriceData!E$15,CalculationsAndCharts!$A121+$A$11,IF($C$7,7,0),1,1) -> 34.23 | G121: =OFFSET(InputPriceData!F$15,CalculationsAndCharts!$A121+$A$11,IF($C$7,7,0),1,1) -> 34.78 | I121: 34.682 | J121: 34.632 | K121: 33.754 | L121: 33.804 | M121: 31.58127083 | O121: FALSE | P121: FALSE | Q121: TRUE | R121: FALSE | S121: FALSE | X121: FALSE | Y121: FALSE | Z121: FALSE | AA121: FALSE
A122: 90 | B122: =OFFSET(InputPriceData!B$15,CalculationsAndCharts!$A122+$A$11,0,1,1) -> 2012-10-05 | C122: =OFFSET(InputPriceData!G$15,CalculationsAndCharts!$A122+$A$11,0,1,1) -> 42369700 | D122: =OFFSET(InputPriceData!C$15,CalculationsAndCharts!$A122+$A$11,IF($C$7,7,0),1,1) -> 35.39 | E122: =OFFSET(InputPriceData!D$15,CalculationsAndCharts!$A122+$A$11,IF($C$7,7,0),1,1) -> 35.74 | F122: =OFFSET(InputPriceData!E$15,CalculationsAndCharts!$A122+$A$11,IF($C$7,7,0),1,1) -> 34.6 | G122: =OFFSET(InputPriceData!F$15,CalculationsAndCharts!$A122+$A$11,IF($C$7,7,0),1,1) -> 34.77 | I122: 34.422 | J122: 34.372 | K122: 33.448 | L122: 33.498 | M122: 31.45071045 | O122: FALSE | P122: FALSE | Q122: TRUE | R122: FALSE | S122: FALSE | X122: FALSE | Y122: FALSE | Z122: FALSE | AA122: FALSE
A123: 91 | B123: =OFFSET(InputPriceData!B$15,CalculationsAndCharts!$A123+$A$11,0,1,1) -> 2012-10-04 | C123: =OFFSET(InputPriceData!G$15,CalculationsAndCharts!$A123+$A$11,0,1,1) -> 39524000 | D123: =OFFSET(InputPriceData!C$15,CalculationsAndCharts!$A123+$A$11,IF($C$7,7,0),1,1) -> 34.41 | E123: =OFFSET(InputPriceData!D$15,CalculationsAndCharts!$A123+$A$11,IF($C$7,7,0),1,1) -> 35.09 | F123: =OFFSET(InputPriceData!E$15,CalculationsAndCharts!$A123+$A$11,IF($C$7,7,0),1,1) -> 34.27 | G123: =OFFSET(InputPriceData!F$15,CalculationsAndCharts!$A123+$A$11,IF($C$7,7,0),1,1) -> 34.96 | I123: 33.898 | J123: 33.848 | K123: 33.034 | L123: 33.084 | M123: 31.31522925 | O123: FALSE | P123: FALSE | Q123: TRUE | R123: FALSE | S123: FALSE | X123: FALSE | Y123: FALSE | Z123: FALSE | AA123: FALSE
A124: 92 | B124: =OFFSET(InputPriceData!B$15,CalculationsAndCharts!$A124+$A$11,0,1,1) -> 2012-10-03 | C124: =OFFSET(InputPriceData!G$15,CalculationsAndCharts!$A124+$A$11,0,1,1) -> 34206500 | D124: =OFFSET(InputPriceData!C$15,CalculationsAndCharts!$A124+$A$11,IF($C$7,7,0),1,1) -> 33.44 | E124: =OFFSET(InputPriceData!D$15,CalculationsAndCharts!$A124+$A$11,IF($C$7,7,0),1,1) -> 34.06 | F124: =OFFSET(InputPriceData!E$15,CalculationsAndCharts!$A124+$A$11,IF($C$7,7,0),1,1) -> 33.05 | G124: =OFFSET(InputPriceData!F$15,CalculationsAndCharts!$A124+$A$11,IF($C$7,7,0),1,1) -> 34.06 | I124: 33.546 | J124: 33.496 | K124: 32.692 | L124: 32.742 | M124: 31.16646309 | O124: TRUE | P124: FALSE | Q124: TRUE | R124: FALSE | S124: FALSE | X124: FALSE | Y124: FALSE | Z124: FALSE | AA124: FALSE
A125: 93 | B125: =OFFSET(InputPriceData!B$15,CalculationsAndCharts!$A125+$A$11,0,1,1) -> 2012-10-02 | C125: =OFFSET(InputPriceData!G$15,CalculationsAndCharts!$A125+$A$11,0,1,1) -> 25460500 | D125: =OFFSET(InputPriceData!C$15,CalculationsAndCharts!$A125+$A$11,IF($C$7,7,0),1,1) -> 33.27 | E125: =OFFSET(InputPriceData!D$15,CalculationsAndCharts!$A125+$A$11,IF($C$7,7,0),1,1) -> 33.38 | F125: =OFFSET(InputPriceData!E$15,CalculationsAndCharts!$A125+$A$11,IF($C$7,7,0),1,1) -> 32.87 | G125: =OFFSET(InputPriceData!F$15,CalculationsAndCharts!$A125+$A$11,IF($C$7,7,0),1,1) -> 33.26 | I125: 33.294 | J125: 33.244 | K125: 32.458 | L125: 32.508 | M125: 31.04835955 | O125: FALSE | P125: FALSE | Q125: TRUE | R125: FALSE | S125: FALSE | X125: FALSE | Y125: FALSE | Z125: FALSE | AA125: FALSE
A126: 94 | B126: =OFFSET(InputPriceData!B$15,CalculationsAndCharts!$A126+$A$11,0,1,1) -> 2012-10-01 | C126: =OFFSET(InputPriceData!G$15,CalculationsAndCharts!$A126+$A$11,0,1,1) -> 33550700 | D126: =OFFSET(InputPriceData!C$15,CalculationsAndCharts!$A126+$A$11,IF($C$7,7,0),1,1) -> 33 | E126: =OFFSET(InputPriceData!D$15,CalculationsAndCharts!$A126+$A$11,IF($C$7,7,0),1,1) -> 33.59 | F126: =OFFSET(InputPriceData!E$15,CalculationsAndCharts!$A126+$A$11,IF($C$7,7,0),1,1) -> 32.7 | G126: =OFFSET(InputPriceData!F$15,CalculationsAndCharts!$A126+$A$11,IF($C$7,7,0),1,1) -> 32.75 | I126: 33.398 | J126: 33.348 | K126: 32.454 | L126: 32.504 | M126: 30.95808851 | O126: TRUE | P126: TRUE | Q126: TRUE | R126: FALSE | S126: FALSE | T126: 33.436 | V126: 33.436 | X126: FALSE | Y126: FALSE | Z126: FALSE | AA126: FALSE
A127: 95 | B127: =OFFSET(InputPriceData!B$15,CalculationsAndCharts!$A127+$A$11,0,1,1) -> 2012-09-28 | C127: =OFFSET(InputPriceData!G$15,CalculationsAndCharts!$A127+$A$11,0,1,1) -> 28952300 | D127: =OFFSET(InputPriceData!C$15,CalculationsAndCharts!$A127+$A$11,IF($C$7,7,0),1,1) -> 32.73 | E127: =OFFSET(InputPriceData!D$15,CalculationsAndCharts!$A127+$A$11,IF($C$7,7,0),1,1) -> 33.12 | F127: =OFFSET(InputPriceData!E$15,CalculationsAndCharts!$A127+$A$11,IF($C$7,7,0),1,1) -> 32.53 | G127: =OFFSET(InputPriceData!F$15,CalculationsAndCharts!$A127+$A$11,IF($C$7,7,0),1,1) -> 32.72 | I127: 33.436 | J127: 33.386 | K127: 32.554 | L127: 32.604 | M127: 30.88494926 | O127: FALSE | P127: FALSE | Q127: FALSE | R127: FALSE | S127: FALSE | X127: FALSE | Y127: FALSE | Z127: FALSE | AA127: FALSE
A128: 96 | B128: =OFFSET(InputPriceData!B$15,CalculationsAndCharts!$A128+$A$11,0,1,1) -> 2012-09-27 | C128: =OFFSET(InputPriceData!G$15,CalculationsAndCharts!$A128+$A$11,0,1,1) -> 32072500 | D128: =OFFSET(InputPriceData!C$15,CalculationsAndCharts!$A128+$A$11,IF($C$7,7,0),1,1) -> 32.84 | E128: =OFFSET(InputPriceData!D$15,CalculationsAndCharts!$A128+$A$11,IF($C$7,7,0),1,1) -> 33.33 | F128: =OFFSET(InputPriceData!E$15,CalculationsAndCharts!$A128+$A$11,IF($C$7,7,0),1,1) -> 32.56 | G128: =OFFSET(InputPriceData!F$15,CalculationsAndCharts!$A128+$A$11,IF($C$7,7,0),1,1) -> 32.97 | I128: 33.692 | J128: 33.642 | K128: 32.75 | L128: 32.8 | M128: 30.81004923 | O128: FALSE | P128: FALSE | Q128: FALSE | R128: FALSE | S128: FALSE | X128: FALSE | Y128: FALSE | Z128: FALSE | AA128: FALSE
A129: 97 | B129: =OFFSET(InputPriceData!B$15,CalculationsAndCharts!$A129+$A$11,0,1,1) -> 2012-09-26 | C129: =OFFSET(InputPriceData!G$15,CalculationsAndCharts!$A129+$A$11,0,1,1) -> 46571400 | D129: =OFFSET(InputPriceData!C$15,CalculationsAndCharts!$A129+$A$11,IF($C$7,7,0),1,1) -> 32.54 | E129: =OFFSET(InputPriceData!D$15,CalculationsAndCharts!$A129+$A$11,IF($C$7,7,0),1,1) -> 32.8 | F129: =OFFSET(InputPriceData!E$15,CalculationsAndCharts!$A129+$A$11,IF($C$7,7,0),1,1) -> 31.88 | G129: =OFFSET(InputPriceData!F$15,CalculationsAndCharts!$A129+$A$11,IF($C$7,7,0),1,1) -> 32.51 | I129: 33.824 | J129: 33.774 | K129: 32.89 | L129: 32.94 | M129: 30.72188798 | O129: FALSE | P129: FALSE | Q129: FALSE | R129: FALSE | S129: FALSE | X129: FALSE | Y129: FALSE | Z129: FALSE | AA129: FALSE
A130: 98 | B130: =OFFSET(InputPriceData!B$15,CalculationsAndCharts!$A130+$A$11,0,1,1) -> 2012-09-25 | C130: =OFFSET(InputPriceData!G$15,CalculationsAndCharts!$A130+$A$11,0,1,1) -> 37088900 | D130: =OFFSET(InputPriceData!C$15,CalculationsAndCharts!$A130+$A$11,IF($C$7,7,0),1,1) -> 33.68 | E130: =OFFSET(InputPriceData!D$15,CalculationsAndCharts!$A130+$A$11,IF($C$7,7,0),1,1) -> 33.9 | F130: =OFFSET(InputPriceData!E$15,CalculationsAndCharts!$A130+$A$11,IF($C$7,7,0),1,1) -> 32.85 | G130: =OFFSET(InputPriceData!F$15,CalculationsAndCharts!$A130+$A$11,IF($C$7,7,0),1,1) -> 32.86 | I130: 34.172 | J130: 34.122 | K130: 33.29 | L130: 33.34 | M130: 30.64890381 | O130: FALSE | P130: FALSE | Q130: FALSE | R130: FALSE | S130: FALSE | X130: FALSE | Y130: FALSE | Z130: FALSE | AA130: FALSE
A131: 99 | B131: =OFFSET(InputPriceData!B$15,CalculationsAndCharts!$A131+$A$11,0,1,1) -> 2012-09-24 | C131: =OFFSET(InputPriceData!G$15,CalculationsAndCharts!$A131+$A$11,0,1,1) -> 28090000 | D131: =OFFSET(InputPriceData!C$15,CalculationsAndCharts!$A131+$A$11,IF($C$7,7,0),1,1) -> 33.27 | E131: =OFFSET(InputPriceData!D$15,CalculationsAndCharts!$A131+$A$11,IF($C$7,7,0),1,1) -> 33.78 | F131: =OFFSET(InputPriceData!E$15,CalculationsAndCharts!$A131+$A$11,IF($C$7,7,0),1,1) -> 33.2 | G131: =OFFSET(InputPriceData!F$15,CalculationsAndCharts!$A131+$A$11,IF($C$7,7,0),1,1) -> 33.49 | I131: 34.192 | J131: 34.142 | K131: 33.384 | L131: 33.434 | M131: 30.55865499 | O131: FALSE | P131: FALSE | Q131: FALSE | R131: FALSE | S131: FALSE | X131: FALSE | Y131: FALSE | Z131: FALSE | AA131: FALSE
A132: 100 | B132: =OFFSET(InputPriceData!B$15,CalculationsAndCharts!$A132+$A$11,0,1,1) -> 2012-09-21 | C132: =OFFSET(InputPriceData!G$15,CalculationsAndCharts!$A132+$A$11,0,1,1) -> 30342600 | D132: =OFFSET(InputPriceData!C$15,CalculationsAndCharts!$A132+$A$11,IF($C$7,7,0),1,1) -> 34.34 | E132: =OFFSET(InputPriceData!D$15,CalculationsAndCharts!$A132+$A$11,IF($C$7,7,0),1,1) -> 34.4 | F132: =OFFSET(InputPriceData!E$15,CalculationsAndCharts!$A132+$A$11,IF($C$7,7,0),1,1) -> 33.51 | G132: =OFFSET(InputPriceData!F$15,CalculationsAndCharts!$A132+$A$11,IF($C$7,7,0),1,1) -> 33.67 | I132: 34.38 | J132: 34.33 | K132: 33.514 | L132: 33.564 | M132: 30.43900825 | O132: FALSE | P132: FALSE | Q132: FALSE | R132: FALSE | S132: FALSE | X132: FALSE | Y132: FALSE | Z132: FALSE | AA132: FALSE
A133: 101 | B133: =OFFSET(InputPriceData!B$15,CalculationsAndCharts!$A133+$A$11,0,1,1) -> 2012-09-20 | C133: =OFFSET(InputPriceData!G$15,CalculationsAndCharts!$A133+$A$11,0,1,1) -> 31832500 | D133: =OFFSET(InputPriceData!C$15,CalculationsAndCharts!$A133+$A$11,IF($C$7,7,0),1,1) -> 33.56 | E133: =OFFSET(InputPriceData!D$15,CalculationsAndCharts!$A133+$A$11,IF($C$7,7,0),1,1) -> 33.99 | F133: =OFFSET(InputPriceData!E$15,CalculationsAndCharts!$A133+$A$11,IF($C$7,7,0),1,1) -> 33.26 | G133: =OFFSET(InputPriceData!F$15,CalculationsAndCharts!$A133+$A$11,IF($C$7,7,0),1,1) -> 33.81 | H133: =IF($A133=$E$25,H$32,NA()) ->  | I133: 34.55 | J133: 34.5 | K133: 33.708 | L133: 33.758 | M133: 30.30713104 | O133: FALSE | P133: FALSE | Q133: TRUE | R133: TRUE | S133: TRUE | U133: 33.56 | W133: 33.56 | X133: FALSE | Y133: FALSE | Z133: FALSE | AA133: FALSE
A134: 102 | B134: =OFFSET(InputPriceData!B$15,CalculationsAndCharts!$A134+$A$11,0,1,1) -> 2012-09-19 | C134: =OFFSET(InputPriceData!G$15,CalculationsAndCharts!$A134+$A$11,0,1,1) -> 44888800 | D134: =OFFSET(InputPriceData!C$15,CalculationsAndCharts!$A134+$A$11,IF($C$7,7,0),1,1) -> 34.03 | E134: =OFFSET(InputPriceData!D$15,CalculationsAndCharts!$A134+$A$11,IF($C$7,7,0),1,1) -> 34.54 | F134: =OFFSET(InputPriceData!E$15,CalculationsAndCharts!$A134+$A$11,IF($C$7,7,0),1,1) -> 33.88 | G134: =OFFSET(InputPriceData!F$15,CalculationsAndCharts!$A134+$A$11,IF($C$7,7,0),1,1) -> 34.18 | I134: 34.652 | J134: 34.602 | K134: 33.584 | L134: 33.634 | M134: 30.1641568 | O134: TRUE | P134: FALSE | Q134: TRUE | R134: FALSE | S134: FALSE | X134: FALSE | Y134: FALSE | Z134: FALSE | AA134: FALSE
A135: 103 | B135: =OFFSET(InputPriceData!B$15,CalculationsAndCharts!$A135+$A$11,0,1,1) -> 2012-09-18 | C135: =OFFSET(InputPriceData!G$15,CalculationsAndCharts!$A135+$A$11,0,1,1) -> 37055100 | D135: =OFFSET(InputPriceData!C$15,CalculationsAndCharts!$A135+$A$11,IF($C$7,7,0),1,1) -> 33.74 | E135: =OFFSET(InputPriceData!D$15,CalculationsAndCharts!$A135+$A$11,IF($C$7,7,0),1,1) -> 34 | F135: =OFFSET(InputPriceData!E$15,CalculationsAndCharts!$A135+$A$11,IF($C$7,7,0),1,1) -> 33.32 | G135: =OFFSET(InputPriceData!F$15,CalculationsAndCharts!$A135+$A$11,IF($C$7,7,0),1,1) -> 33.94 | I135: 34.46 | J135: 34.41 | K135: 33.372 | L135: 33.422 | M135: 30.00024483 | O135: FALSE | P135: FALSE | Q135: TRUE | R135: FALSE | S135: FALSE | X135: FALSE | Y135: FALSE | Z135: FALSE | AA135: FALSE
A136: 104 | B136: =OFFSET(InputPriceData!B$15,CalculationsAndCharts!$A136+$A$11,0,1,1) -> 2012-09-17 | C136: =OFFSET(InputPriceData!G$15,CalculationsAndCharts!$A136+$A$11,0,1,1) -> 31628600 | D136: =OFFSET(InputPriceData!C$15,CalculationsAndCharts!$A136+$A$11,IF($C$7,7,0),1,1) -> 34.47 | E136: =OFFSET(InputPriceData!D$15,CalculationsAndCharts!$A136+$A$11,IF($C$7,7,0),1,1) -> 34.72 | F136: =OFFSET(InputPriceData!E$15,CalculationsAndCharts!$A136+$A$11,IF($C$7,7,0),1,1) -> 33.85 | G136: =OFFSET(InputPriceData!F$15,CalculationsAndCharts!$A136+$A$11,IF($C$7,7,0),1,1) -> 34.06 | I136: 34.558 | J136: 34.508 | K136: 32.972 | L136: 33.022 | M136: 29.83943849 | O136: FALSE | P136: FALSE | Q136: TRUE | R136: FALSE | S136: FALSE | X136: FALSE | Y136: FALSE | Z136: FALSE | AA136: FALSE
A137: 105 | B137: =OFFSET(InputPriceData!B$15,CalculationsAndCharts!$A137+$A$11,0,1,1) -> 2012-09-14 | C137: =OFFSET(InputPriceData!G$15,CalculationsAndCharts!$A137+$A$11,0,1,1) -> 59510200 | D137: =OFFSET(InputPriceData!C$15,CalculationsAndCharts!$A137+$A$11,IF($C$7,7,0),1,1) -> 35.04 | E137: =OFFSET(InputPriceData!D$15,CalculationsAndCharts!$A137+$A$11,IF($C$7,7,0),1,1) -> 35.25 | F137: =OFFSET(InputPriceData!E$15,CalculationsAndCharts!$A137+$A$11,IF($C$7,7,0),1,1) -> 34.48 | G137: =OFFSET(InputPriceData!F$15,CalculationsAndCharts!$A137+$A$11,IF($C$7,7,0),1,1) -> 34.79 | I137: 34.134 | J137: 34.084 | K137: 32.556 | L137: 32.606 | M137: 29.66717068 | O137: FALSE | P137: FALSE | Q137: TRUE | R137: FALSE | S137: FALSE | X137: FALSE | Y137: FALSE | Z137: FALSE | AA137: FALSE
A138: 106 | B138: =OFFSET(InputPriceData!B$15,CalculationsAndCharts!$A138+$A$11,0,1,1) -> 2012-09-13 | C138: =OFFSET(InputPriceData!G$15,CalculationsAndCharts!$A138+$A$11,0,1,1) -> 62548500 | D138: =OFFSET(InputPriceData!C$15,CalculationsAndCharts!$A138+$A$11,IF($C$7,7,0),1,1) -> 32.97 | E138: =OFFSET(InputPriceData!D$15,CalculationsAndCharts!$A138+$A$11,IF($C$7,7,0),1,1) -> 34.5 | F138: =OFFSET(InputPriceData!E$15,CalculationsAndCharts!$A138+$A$11,IF($C$7,7,0),1,1) -> 32.64 | G138: =OFFSET(InputPriceData!F$15,CalculationsAndCharts!$A138+$A$11,IF($C$7,7,0),1,1) -> 34.45 | I138: 33.574 | J138: 33.524 | K138: 31.94 | L138: 31.99 | M138: 29.4580756 | O138: FALSE | P138: FALSE | Q138: TRUE | R138: FALSE | S138: FALSE | X138: FALSE | Y138: FALSE | Z138: FALSE | AA138: FALSE
A139: 107 | B139: =OFFSET(InputPriceData!B$15,CalculationsAndCharts!$A139+$A$11,0,1,1) -> 2012-09-12 | C139: =OFFSET(InputPriceData!G$15,CalculationsAndCharts!$A139+$A$11,0,1,1) -> 41363700 | D139: =OFFSET(InputPriceData!C$15,CalculationsAndCharts!$A139+$A$11,IF($C$7,7,0),1,1) -> 33.01 | E139: =OFFSET(InputPriceData!D$15,CalculationsAndCharts!$A139+$A$11,IF($C$7,7,0),1,1) -> 33.58 | F139: =OFFSET(InputPriceData!E$15,CalculationsAndCharts!$A139+$A$11,IF($C$7,7,0),1,1) -> 32.82 | G139: =OFFSET(InputPriceData!F$15,CalculationsAndCharts!$A139+$A$11,IF($C$7,7,0),1,1) -> 33.05 | I139: 32.904 | J139: 32.854 | K139: 31.388 | L139: 31.438 | M139: 29.25432359 | O139: FALSE | P139: FALSE | Q139: TRUE | R139: FALSE | S139: FALSE | X139: FALSE | Y139: FALSE | Z139: FALSE | AA139: FALSE
A140: 108 | B140: =OFFSET(InputPriceData!B$15,CalculationsAndCharts!$A140+$A$11,0,1,1) -> 2012-09-11 | C140: =OFFSET(InputPriceData!G$15,CalculationsAndCharts!$A140+$A$11,0,1,1) -> 37575500 | D140: =OFFSET(InputPriceData!C$15,CalculationsAndCharts!$A140+$A$11,IF($C$7,7,0),1,1) -> 31.89 | E140: =OFFSET(InputPriceData!D$15,CalculationsAndCharts!$A140+$A$11,IF($C$7,7,0),1,1) -> 34.49 | F140: =OFFSET(InputPriceData!E$15,CalculationsAndCharts!$A140+$A$11,IF($C$7,7,0),1,1) -> 31.32 | G140: =OFFSET(InputPriceData!F$15,CalculationsAndCharts!$A140+$A$11,IF($C$7,7,0),1,1) -> 32.66 | I140: 32.172 | J140: 32.122 | K140: 30.744 | L140: 30.794 | M140: 29.09939802 | O140: FALSE | P140: FALSE | Q140: TRUE | R140: FALSE | S140: FALSE | X140: FALSE | Y140: FALSE | Z140: FALSE | AA140: FALSE
A141: 109 | B141: =OFFSET(InputPriceData!B$15,CalculationsAndCharts!$A141+$A$11,0,1,1) -> 2012-09-10 | C141: =OFFSET(InputPriceData!G$15,CalculationsAndCharts!$A141+$A$11,0,1,1) -> 32084700 | D141: =OFFSET(InputPriceData!C$15,CalculationsAndCharts!$A141+$A$11,IF($C$7,7,0),1,1) -> 32.13 | E141: =OFFSET(InputPriceData!D$15,CalculationsAndCharts!$A141+$A$11,IF($C$7,7,0),1,1) -> 32.6 | F141: =OFFSET(InputPriceData!E$15,CalculationsAndCharts!$A141+$A$11,IF($C$7,7,0),1,1) -> 31.77 | G141: =OFFSET(InputPriceData!F$15,CalculationsAndCharts!$A141+$A$11,IF($C$7,7,0),1,1) -> 31.83 | I141: 31.288 | J141: 31.238 | K141: 30.386 | L141: 30.436 | M141: 28.95406733 | O141: FALSE | P141: FALSE | Q141: TRUE | R141: FALSE | S141: FALSE | X141: FALSE | Y141: FALSE | Z141: FALSE | AA141: FALSE
A142: 110 | B142: =OFFSET(InputPriceData!B$15,CalculationsAndCharts!$A142+$A$11,0,1,1) -> 2012-09-07 | C142: =OFFSET(InputPriceData!G$15,CalculationsAndCharts!$A142+$A$11,0,1,1) -> 52132900 | D142: =OFFSET(InputPriceData!C$15,CalculationsAndCharts!$A142+$A$11,IF($C$7,7,0),1,1) -> 31.4 | E142: =OFFSET(InputPriceData!D$15,CalculationsAndCharts!$A142+$A$11,IF($C$7,7,0),1,1) -> 32.45 | F142: =OFFSET(InputPriceData!E$15,CalculationsAndCharts!$A142+$A$11,IF($C$7,7,0),1,1) -> 31.4 | G142: =OFFSET(InputPriceData!F$15,CalculationsAndCharts!$A142+$A$11,IF($C$7,7,0),1,1) -> 32.07 | I142: 30.806 | J142: 30.756 | K142: 29.94 | L142: 29.99 | M142: 28.83668232 | O142: FALSE | P142: FALSE | Q142: TRUE | R142: FALSE | S142: FALSE | X142: FALSE | Y142: FALSE | Z142: FALSE | AA142: FALSE
A143: 111 | B143: =OFFSET(InputPriceData!B$15,CalculationsAndCharts!$A143+$A$11,0,1,1) -> 2012-09-06 | C143: =OFFSET(InputPriceData!G$15,CalculationsAndCharts!$A143+$A$11,0,1,1) -> 59369400 | D143: =OFFSET(InputPriceData!C$15,CalculationsAndCharts!$A143+$A$11,IF($C$7,7,0),1,1) -> 29.9 | E143: =OFFSET(InputPriceData!D$15,CalculationsAndCharts!$A143+$A$11,IF($C$7,7,0),1,1) -> 31.15 | F143: =OFFSET(InputPriceData!E$15,CalculationsAndCharts!$A143+$A$11,IF($C$7,7,0),1,1) -> 29.88 | G143: =OFFSET(InputPriceData!F$15,CalculationsAndCharts!$A143+$A$11,IF($C$7,7,0),1,1) -> 31.12 | I143: 30.274 | J143: 30.224 | K143: 29.532 | L143: 29.582 | M143: 28.70471017 | O143: TRUE | P143: FALSE | Q143: TRUE | R143: FALSE | S143: FALSE | X143: FALSE | Y143: FALSE | Z143: FALSE | AA143: FALSE
A144: 112 | B144: =OFFSET(InputPriceData!B$15,CalculationsAndCharts!$A144+$A$11,0,1,1) -> 2012-09-05 | C144: =OFFSET(InputPriceData!G$15,CalculationsAndCharts!$A144+$A$11,0,1,1) -> 18163900 | D144: =OFFSET(InputPriceData!C$15,CalculationsAndCharts!$A144+$A$11,IF($C$7,7,0),1,1) -> 29.72 | E144: =OFFSET(InputPriceData!D$15,CalculationsAndCharts!$A144+$A$11,IF($C$7,7,0),1,1) -> 29.92 | F144: =OFFSET(InputPriceData!E$15,CalculationsAndCharts!$A144+$A$11,IF($C$7,7,0),1,1) -> 29.6 | G144: =OFFSET(InputPriceData!F$15,CalculationsAndCharts!$A144+$A$11,IF($C$7,7,0),1,1) -> 29.77 | I144: 30.052 | J144: 30.002 | K144: 29.396 | L144: 29.446 | M144: 28.60612691 | O144: FALSE | P144: FALSE | Q144: TRUE | R144: FALSE | S144: FALSE | X144: FALSE | Y144: FALSE | Z144: FALSE | AA144: FALSE
A145: 113 | B145: =OFFSET(InputPriceData!B$15,CalculationsAndCharts!$A145+$A$11,0,1,1) -> 2012-09-04 | C145: =OFFSET(InputPriceData!G$15,CalculationsAndCharts!$A145+$A$11,0,1,1) -> 23189700 | D145: =OFFSET(InputPriceData!C$15,CalculationsAndCharts!$A145+$A$11,IF($C$7,7,0),1,1) -> 29.53 | E145: =OFFSET(InputPriceData!D$15,CalculationsAndCharts!$A145+$A$11,IF($C$7,7,0),1,1) -> 30.07 | F145: =OFFSET(InputPriceData!E$15,CalculationsAndCharts!$A145+$A$11,IF($C$7,7,0),1,1) -> 29.53 | G145: =OFFSET(InputPriceData!F$15,CalculationsAndCharts!$A145+$A$11,IF($C$7,7,0),1,1) -> 29.7 | I145: 30.046 | J145: 29.996 | K145: 29.338 | L145: 29.388 | M145: 28.55862189 | O145: FALSE | P145: FALSE | Q145: TRUE | R145: FALSE | S145: FALSE | X145: FALSE | Y145: FALSE | Z145: FALSE | AA145: FALSE
A146: 114 | B146: =OFFSET(InputPriceData!B$15,CalculationsAndCharts!$A146+$A$11,0,1,1) -> 2012-08-31 | C146: =OFFSET(InputPriceData!G$15,CalculationsAndCharts!$A146+$A$11,0,1,1) -> 25333200 | D146: =OFFSET(InputPriceData!C$15,CalculationsAndCharts!$A146+$A$11,IF($C$7,7,0),1,1) -> 29.9 | E146: =OFFSET(InputPriceData!D$15,CalculationsAndCharts!$A146+$A$11,IF($C$7,7,0),1,1) -> 30.19 | F146: =OFFSET(InputPriceData!E$15,CalculationsAndCharts!$A146+$A$11,IF($C$7,7,0),1,1) -> 29.54 | G146: =OFFSET(InputPriceData!F$15,CalculationsAndCharts!$A146+$A$11,IF($C$7,7,0),1,1) -> 29.71 | I146: 30.048 | J146: 29.998 | K146: 29.316 | L146: 29.366 | M146: 28.51203502 | O146: TRUE | P146: TRUE | Q146: TRUE | R146: FALSE | S146: FALSE | T146: 29.998 | V146: 29.998 | X146: FALSE | Y146: FALSE | Z146: FALSE | AA146: FALSE
A147: 115 | B147: =OFFSET(InputPriceData!B$15,CalculationsAndCharts!$A147+$A$11,0,1,1) -> 2012-08-30 | C147: =OFFSET(InputPriceData!G$15,CalculationsAndCharts!$A147+$A$11,0,1,1) -> 21811500 | D147: =OFFSET(InputPriceData!C$15,CalculationsAndCharts!$A147+$A$11,IF($C$7,7,0),1,1) -> 29.73 | E147: =OFFSET(InputPriceData!D$15,CalculationsAndCharts!$A147+$A$11,IF($C$7,7,0),1,1) -> 29.79 | F147: =OFFSET(InputPriceData!E$15,CalculationsAndCharts!$A147+$A$11,IF($C$7,7,0),1,1) -> 29.36 | G147: =OFFSET(InputPriceData!F$15,CalculationsAndCharts!$A147+$A$11,IF($C$7,7,0),1,1) -> 29.65 | I147: 29.998 | J147: 29.948 | K147: 29.212 | L147: 29.262 | M147: 28.4631385 | O147: FALSE | P147: FALSE | Q147: FALSE | R147: FALSE | S147: FALSE | X147: FALSE | Y147: FALSE | Z147: FALSE | AA147: FALSE
A148: 116 | B148: =OFFSET(InputPriceData!B$15,CalculationsAndCharts!$A148+$A$11,0,1,1) -> 2012-08-29 | C148: =OFFSET(InputPriceData!G$15,CalculationsAndCharts!$A148+$A$11,0,1,1) -> 26634600 | D148: =OFFSET(InputPriceData!C$15,CalculationsAndCharts!$A148+$A$11,IF($C$7,7,0),1,1) -> 29.27 | E148: =OFFSET(InputPriceData!D$15,CalculationsAndCharts!$A148+$A$11,IF($C$7,7,0),1,1) -> 30.04 | F148: =OFFSET(InputPriceData!E$15,CalculationsAndCharts!$A148+$A$11,IF($C$7,7,0),1,1) -> 29.2 | G148: =OFFSET(InputPriceData!F$15,CalculationsAndCharts!$A148+$A$11,IF($C$7,7,0),1,1) -> 29.91 | I148: 30.16 | J148: 30.11 | K148: 29.23 | L148: 29.28 | M148: 28.41469517 | O148: FALSE | P148: FALSE | Q148: FALSE | R148: FALSE | S148: FALSE | X148: FALSE | Y148: FALSE | Z148: FALSE | AA148: FALSE
A149: 117 | B149: =OFFSET(InputPriceData!B$15,CalculationsAndCharts!$A149+$A$11,0,1,1) -> 2012-08-28 | C149: =OFFSET(InputPriceData!G$15,CalculationsAndCharts!$A149+$A$11,0,1,1) -> 20453900 | D149: =OFFSET(InputPriceData!C$15,CalculationsAndCharts!$A149+$A$11,IF($C$7,7,0),1,1) -> 29.53 | E149: =OFFSET(InputPriceData!D$15,CalculationsAndCharts!$A149+$A$11,IF($C$7,7,0),1,1) -> 29.89 | F149: =OFFSET(InputPriceData!E$15,CalculationsAndCharts!$A149+$A$11,IF($C$7,7,0),1,1) -> 29.31 | G149: =OFFSET(InputPriceData!F$15,CalculationsAndCharts!$A149+$A$11,IF($C$7,7,0),1,1) -> 29.34 | I149: 30.336 | J149: 30.286 | K149: 29.442 | L149: 29.492 | M149: 28.35366232 | O149: FALSE | P149: FALSE | Q149: FALSE | R149: FALSE | S149: FALSE | X149: FALSE | Y149: FALSE | Z149: FALSE | AA149: FALSE
A150: 118 | B150: =OFFSET(InputPriceData!B$15,CalculationsAndCharts!$A150+$A$11,0,1,1) -> 2012-08-27 | C150: =OFFSET(InputPriceData!G$15,CalculationsAndCharts!$A150+$A$11,0,1,1) -> 24897100 | D150: =OFFSET(InputPriceData!C$15,CalculationsAndCharts!$A150+$A$11,IF($C$7,7,0),1,1) -> 29.9 | E150: =OFFSET(InputPriceData!D$15,CalculationsAndCharts!$A150+$A$11,IF($C$7,7,0),1,1) -> 30.08 | F150: =OFFSET(InputPriceData!E$15,CalculationsAndCharts!$A150+$A$11,IF($C$7,7,0),1,1) -> 29.42 | G150: =OFFSET(InputPriceData!F$15,CalculationsAndCharts!$A150+$A$11,IF($C$7,7,0),1,1) -> 29.69 | I150: 30.582 | J150: 30.532 | K150: 29.608 | L150: 29.658 | M150: 28.31340364 | O150: FALSE | P150: FALSE | Q150: FALSE | R150: FALSE | S150: FALSE | X150: FALSE | Y150: FALSE | Z150: FALSE | AA150: FALSE
A151: 119 | B151: =OFFSET(InputPriceData!B$15,CalculationsAndCharts!$A151+$A$11,0,1,1) -> 2012-08-24 | C151: =OFFSET(InputPriceData!G$15,CalculationsAndCharts!$A151+$A$11,0,1,1) -> 29697600 | D151: =OFFSET(InputPriceData!C$15,CalculationsAndCharts!$A151+$A$11,IF($C$7,7,0),1,1) -> 29.33 | E151: =OFFSET(InputPriceData!D$15,CalculationsAndCharts!$A151+$A$11,IF($C$7,7,0),1,1) -> 29.94 | F151: =OFFSET(InputPriceData!E$15,CalculationsAndCharts!$A151+$A$11,IF($C$7,7,0),1,1) -> 29.02 | G151: =OFFSET(InputPriceData!F$15,CalculationsAndCharts!$A151+$A$11,IF($C$7,7,0),1,1) -> 29.83 | I151: 30.562 | J151: 30.512 | K151: 29.496 | L151: 29.546 | M151: 28.25721603 | O151: FALSE | P151: FALSE | Q151: TRUE | R151: TRUE | S151: TRUE | U151: 29.33 | W151: 29.33 | X151: FALSE | Y151: FALSE | Z151: FALSE | AA151: FALSE
A152: 120 | B152: =OFFSET(InputPriceData!B$15,CalculationsAndCharts!$A152+$A$11,0,1,1) -> 2012-08-23 | C152: =OFFSET(InputPriceData!G$15,CalculationsAndCharts!$A152+$A$11,0,1,1) -> 31208400 | D152: =OFFSET(InputPriceData!C$15,CalculationsAndCharts!$A152+$A$11,IF($C$7,7,0),1,1) -> 30.46 | E152: =OFFSET(InputPriceData!D$15,CalculationsAndCharts!$A152+$A$11,IF($C$7,7,0),1,1) -> 30.6 | F152: =OFFSET(InputPriceData!E$15,CalculationsAndCharts!$A152+$A$11,IF($C$7,7,0),1,1) -> 29.45 | G152: =OFFSET(InputPriceData!F$15,CalculationsAndCharts!$A152+$A$11,IF($C$7,7,0),1,1) -> 29.59 | I152: 30.394 | J152: 30.344 | K152: 29.45 | L152: 29.5 | M152: 28.19302077 | O152: FALSE | P152: FALSE | Q152: TRUE | R152: FALSE | S152: FALSE | X152: FALSE | Y152: FALSE | Z152: FALSE | AA152: FALSE
A153: 121 | B153: =OFFSET(InputPriceData!B$15,CalculationsAndCharts!$A153+$A$11,0,1,1) -> 2012-08-22 | C153: =OFFSET(InputPriceData!G$15,CalculationsAndCharts!$A153+$A$11,0,1,1) -> 31092000 | D153: =OFFSET(InputPriceData!C$15,CalculationsAndCharts!$A153+$A$11,IF($C$7,7,0),1,1) -> 30.57 | E153: =OFFSET(InputPriceData!D$15,CalculationsAndCharts!$A153+$A$11,IF($C$7,7,0),1,1) -> 30.92 | F153: =OFFSET(InputPriceData!E$15,CalculationsAndCharts!$A153+$A$11,IF($C$7,7,0),1,1) -> 30.26 | G153: =OFFSET(InputPriceData!F$15,CalculationsAndCharts!$A153+$A$11,IF($C$7,7,0),1,1) -> 30.49 | H153: =IF($A153=$E$25,H$32,NA()) ->  | I153: 30.062 | J153: 30.012 | K153: 29.222 | L153: 29.272 | M153: 28.13600121 | O153: FALSE | P153: FALSE | Q153: TRUE | R153: FALSE | S153: FALSE | X153: FALSE | Y153: FALSE | Z153: FALSE | AA153: FALSE
A154: 122 | B154: =OFFSET(InputPriceData!B$15,CalculationsAndCharts!$A154+$A$11,0,1,1) -> 2012-08-21 | C154: =OFFSET(InputPriceData!G$15,CalculationsAndCharts!$A154+$A$11,0,1,1) -> 64434500 | D154: =OFFSET(InputPriceData!C$15,CalculationsAndCharts!$A154+$A$11,IF($C$7,7,0),1,1) -> 30.23 | E154: =OFFSET(InputPriceData!D$15,CalculationsAndCharts!$A154+$A$11,IF($C$7,7,0),1,1) -> 31.12 | F154: =OFFSET(InputPriceData!E$15,CalculationsAndCharts!$A154+$A$11,IF($C$7,7,0),1,1) -> 30.14 | G154: =OFFSET(InputPriceData!F$15,CalculationsAndCharts!$A154+$A$11,IF($C$7,7,0),1,1) -> 30.73 | I154: 29.67 | J154: 29.62 | K154: 28.882 | L154: 28.932 | M154: 28.03991962 | O154: FALSE | P154: FALSE | Q154: TRUE | R154: FALSE | S154: FALSE | X154: FALSE | Y154: FALSE | Z154: FALSE | AA154: FALSE
A155: 123 | B155: =OFFSET(InputPriceData!B$15,CalculationsAndCharts!$A155+$A$11,0,1,1) -> 2012-08-20 | C155: =OFFSET(InputPriceData!G$15,CalculationsAndCharts!$A155+$A$11,0,1,1) -> 31880800 | D155: =OFFSET(InputPriceData!C$15,CalculationsAndCharts!$A155+$A$11,IF($C$7,7,0),1,1) -> 28.96 | E155: =OFFSET(InputPriceData!D$15,CalculationsAndCharts!$A155+$A$11,IF($C$7,7,0),1,1) -> 29.98 | F155: =OFFSET(InputPriceData!E$15,CalculationsAndCharts!$A155+$A$11,IF($C$7,7,0),1,1) -> 28.86 | G155: =OFFSET(InputPriceData!F$15,CalculationsAndCharts!$A155+$A$11,IF($C$7,7,0),1,1) -> 29.98 | H155: 46.4 | I155: 29.284 | J155: 29.234 | K155: 28.59 | L155: 28.64 | M155: 27.93012042 | O155: FALSE | P155: FALSE | Q155: TRUE | R155: FALSE | S155: FALSE | X155: FALSE | Y155: FALSE | Z155: FALSE | AA155: FALSE
A156: 124 | B156: =OFFSET(InputPriceData!B$15,CalculationsAndCharts!$A156+$A$11,0,1,1) -> 2012-08-17 | C156: =OFFSET(InputPriceData!G$15,CalculationsAndCharts!$A156+$A$11,0,1,1) -> 27365000 | D156: =OFFSET(InputPriceData!C$15,CalculationsAndCharts!$A156+$A$11,IF($C$7,7,0),1,1) -> 28.91 | E156: =OFFSET(InputPriceData!D$15,CalculationsAndCharts!$A156+$A$11,IF($C$7,7,0),1,1) -> 29.1 | F156: =OFFSET(InputPriceData!E$15,CalculationsAndCharts!$A156+$A$11,IF($C$7,7,0),1,1) -> 28.79 | G156: =OFFSET(InputPriceData!F$15,CalculationsAndCharts!$A156+$A$11,IF($C$7,7,0),1,1) -> 29.03 | I156: 29.118 | J156: 29.068 | K156: 28.526 | L156: 28.576 | M156: 27.84645187 | O156: TRUE | P156: TRUE | Q156: TRUE | R156: FALSE | S156: FALSE | T156: 29.096 | V156: 29.096 | X156: FALSE | Y156: FALSE | Z156: FALSE | AA156: FALSE
A157: 125 | B157: =OFFSET(InputPriceData!B$15,CalculationsAndCharts!$A157+$A$11,0,1,1) -> 2012-08-16 | C157: =OFFSET(InputPriceData!G$15,CalculationsAndCharts!$A157+$A$11,0,1,1) -> 21641400 | D157: =OFFSET(InputPriceData!C$15,CalculationsAndCharts!$A157+$A$11,IF($C$7,7,0),1,1) -> 28.76 | E157: =OFFSET(InputPriceData!D$15,CalculationsAndCharts!$A157+$A$11,IF($C$7,7,0),1,1) -> 28.94 | F157: =OFFSET(InputPriceData!E$15,CalculationsAndCharts!$A157+$A$11,IF($C$7,7,0),1,1) -> 28.31 | G157: =OFFSET(InputPriceData!F$15,CalculationsAndCharts!$A157+$A$11,IF($C$7,7,0),1,1) -> 28.82 | I157: 29.096 | J157: 29.046 | K157: 28.438 | L157: 28.488 | M157: 27.79814378 | O157: FALSE | P157: FALSE | Q157: FALSE | R157: FALSE | S157: FALSE | X157: FALSE | Y157: FALSE | Z157: FALSE | AA157: FALSE
A158: 126 | B158: =OFFSET(InputPriceData!B$15,CalculationsAndCharts!$A158+$A$11,0,1,1) -> 2012-08-15 | C158: =OFFSET(InputPriceData!G$15,CalculationsAndCharts!$A158+$A$11,0,1,1) -> 19283200 | D158: =OFFSET(InputPriceData!C$15,CalculationsAndCharts!$A158+$A$11,IF($C$7,7,0),1,1) -> 28.66 | E158: =OFFSET(InputPriceData!D$15,CalculationsAndCharts!$A158+$A$11,IF($C$7,7,0),1,1) -> 28.96 | F158: =OFFSET(InputPriceData!E$15,CalculationsAndCharts!$A158+$A$11,IF($C$7,7,0),1,1) -> 28.56 | G158: =OFFSET(InputPriceData!F$15,CalculationsAndCharts!$A158+$A$11,IF($C$7,7,0),1,1) -> 28.74 | I158: 29.106 | J158: 29.056 | K158: 28.5 | L158: 28.55 | M158: 27.75643537 | O158: FALSE | P158: FALSE | Q158: FALSE | R158: FALSE | S158: FALSE | X158: FALSE | Y158: FALSE | Z158: FALSE | AA158: FALSE
A159: 127 | B159: =OFFSET(InputPriceData!B$15,CalculationsAndCharts!$A159+$A$11,0,1,1) -> 2012-08-14 | C159: =OFFSET(InputPriceData!G$15,CalculationsAndCharts!$A159+$A$11,0,1,1) -> 26002900 | D159: =OFFSET(InputPriceData!C$15,CalculationsAndCharts!$A159+$A$11,IF($C$7,7,0),1,1) -> 28.91 | E159: =OFFSET(InputPriceData!D$15,CalculationsAndCharts!$A159+$A$11,IF($C$7,7,0),1,1) -> 29.19 | F159: =OFFSET(InputPriceData!E$15,CalculationsAndCharts!$A159+$A$11,IF($C$7,7,0),1,1) -> 28.68 | G159: =OFFSET(InputPriceData!F$15,CalculationsAndCharts!$A159+$A$11,IF($C$7,7,0),1,1) -> 28.77 | I159: 29.142 | J159: 29.092 | K159: 28.476 | L159: 28.526 | M159: 27.71628987 | O159: FALSE | P159: FALSE | Q159: FALSE | R159: FALSE | S159: FALSE | X159: FALSE | Y159: FALSE | Z159: FALSE | AA159: FALSE
A160: 128 | B160: =OFFSET(InputPriceData!B$15,CalculationsAndCharts!$A160+$A$11,0,1,1) -> 2012-08-13 | C160: =OFFSET(InputPriceData!G$15,CalculationsAndCharts!$A160+$A$11,0,1,1) -> 22901800 | D160: =OFFSET(InputPriceData!C$15,CalculationsAndCharts!$A160+$A$11,IF($C$7,7,0),1,1) -> 28.84 | E160: =OFFSET(InputPriceData!D$15,CalculationsAndCharts!$A160+$A$11,IF($C$7,7,0),1,1) -> 29.15 | F160: =OFFSET(InputPriceData!E$15,CalculationsAndCharts!$A160+$A$11,IF($C$7,7,0),1,1) -> 28.54 | G160: =OFFSET(InputPriceData!F$15,CalculationsAndCharts!$A160+$A$11,IF($C$7,7,0),1,1) -> 28.78 | I160: 29.182 | J160: 29.132 | K160: 28.454 | L160: 28.504 | M160: 27.67328129 | O160: FALSE | P160: FALSE | Q160: FALSE | R160: FALSE | S160: FALSE | X160: FALSE | Y160: FALSE | Z160: FALSE | AA160: FALSE
A161: 129 | B161: =OFFSET(InputPriceData!B$15,CalculationsAndCharts!$A161+$A$11,0,1,1) -> 2012-08-10 | C161: =OFFSET(InputPriceData!G$15,CalculationsAndCharts!$A161+$A$11,0,1,1) -> 25277600 | D161: =OFFSET(InputPriceData!C$15,CalculationsAndCharts!$A161+$A$11,IF($C$7,7,0),1,1) -> 28.64 | E161: =OFFSET(InputPriceData!D$15,CalculationsAndCharts!$A161+$A$11,IF($C$7,7,0),1,1) -> 28.99 | F161: =OFFSET(InputPriceData!E$15,CalculationsAndCharts!$A161+$A$11,IF($C$7,7,0),1,1) -> 28.35 | G161: =OFFSET(InputPriceData!F$15,CalculationsAndCharts!$A161+$A$11,IF($C$7,7,0),1,1) -> 28.9 | I161: =J161+$A$19 -> 29.098 | J161: 29.048 | K161: 28.228 | L161: =AVERAGE(OFFSET(F161,0,0,$A$16,1)) -> 28.278 | M161: =$C$18*G161+$D$18*M162 -> 27.6281091 | O161: FALSE | P161: FALSE | Q161: FALSE | R161: FALSE | S161: FALSE | X161: =AND((F161<(L162-$A$19)), NOT(F162<(L163-$A$19)), (G162<M162)) -> FALSE | Y161: FALSE | Z161: FALSE | AA161: =AND(Z161,E161>J162) -> FALSE
A162: 130 | B162: =OFFSET(InputPriceData!B$15,CalculationsAndCharts!$A162+$A$11,0,1,1) -> 2012-08-09 | C162: =OFFSET(InputPriceData!G$15,CalculationsAndCharts!$A162+$A$11,0,1,1) -> 17522000 | D162: =OFFSET(InputPriceData!C$15,CalculationsAndCharts!$A162+$A$11,IF($C$7,7,0),1,1) -> 28.8 | E162: =OFFSET(InputPriceData!D$15,CalculationsAndCharts!$A162+$A$11,IF($C$7,7,0),1,1) -> 28.99 | F162: =OFFSET(InputPriceData!E$15,CalculationsAndCharts!$A162+$A$11,IF($C$7,7,0),1,1) -> 28.62 | G162: =OFFSET(InputPriceData!F$15,CalculationsAndCharts!$A162+$A$11,IF($C$7,7,0),1,1) -> 28.86 | I162: 28.836 | J162: =AVERAGE(OFFSET(E162,0,0,$A$16,1)) -> 28.786 | K162: =L162-$A$19 -> 27.878 | L162: 27.928 | M162: 27.57619519 | O162: =AND((E162>(J163+$A$19)), NOT(E163>(J164+$A$19)), (G163>M163)) -> FALSE | P162: =AND(O162,NOT(Q163)) -> FALSE | Q162: =IF(Q163,IF(S163,FALSE,Q163),IF(P162,TRUE,Q163)) -> FALSE | R162: =AND(Q162,F162<L163) -> FALSE | S162: =AND(R162,Q163) -> FALSE | T162: =IF(P162,MAX(I163,D162),NA()) ->  | U162: =IF(S162,MIN(L163,D162),NA()) ->  | V162: =IF($S$4,T162,NA()) ->  | W162: =IF($S$4,U162,NA()) ->  | X162: FALSE | Y162: =AND(X162,NOT(Z163)) -> FALSE | Z162: =IF(Z163,IF(AA163,FALSE,Z163),IF(Y162,TRUE,Z163)) -> FALSE | AA162: FALSE | AB162: =IF(Y162,MIN(K163,D162),NA()) ->  | AC162: =IF(AA162,MAX(J163,D162),NA()) ->  | AD162: =IF($S$5,AB162,NA()) ->  | AE162: =IF($S$5,AC162,NA()) -> 
A163: 131 | B163: =OFFSET(InputPriceData!B$15,CalculationsAndCharts!$A163+$A$11,0,1,1) -> 2012-08-08 | C163: =OFFSET(InputPriceData!G$15,CalculationsAndCharts!$A163+$A$11,0,1,1) -> 21628800 | D163: =OFFSET(InputPriceData!C$15,CalculationsAndCharts!$A163+$A$11,IF($C$7,7,0),1,1) -> 28.63 | E163: =OFFSET(InputPriceData!D$15,CalculationsAndCharts!$A163+$A$11,IF($C$7,7,0),1,1) -> 29.14 | F163: =OFFSET(InputPriceData!E$15,CalculationsAndCharts!$A163+$A$11,IF($C$7,7,0),1,1) -> 28.44 | G163: =OFFSET(InputPriceData!F$15,CalculationsAndCharts!$A163+$A$11,IF($C$7,7,0),1,1) -> 28.86 | I163: 28.366 | J163: 28.316 | K163: 27.354 | L163: 27.404 | M163: 27.52379499 | O163: FALSE | P163: FALSE | Q163: FALSE | R163: FALSE | S163: FALSE | X163: FALSE | Y163: FALSE | Z163: FALSE | AA163: FALSE
A164: 132 | B164: =OFFSET(InputPriceData!B$15,CalculationsAndCharts!$A164+$A$11,0,1,1) -> 2012-08-07 | C164: =OFFSET(InputPriceData!G$15,CalculationsAndCharts!$A164+$A$11,0,1,1) -> 39406800 | D164: =OFFSET(InputPriceData!C$15,CalculationsAndCharts!$A164+$A$11,IF($C$7,7,0),1,1) -> 28.62 | E164: =OFFSET(InputPriceData!D$15,CalculationsAndCharts!$A164+$A$11,IF($C$7,7,0),1,1) -> 29.39 | F164: =OFFSET(InputPriceData!E$15,CalculationsAndCharts!$A164+$A$11,IF($C$7,7,0),1,1) -> 28.57 | G164: =OFFSET(InputPriceData!F$15,CalculationsAndCharts!$A164+$A$11,IF($C$7,7,0),1,1) -> 28.89 | I164: 28.006 | J164: 27.956 | K164: 26.966 | L164: 27.016 | M164: 27.46925601 | O164: FALSE | P164: FALSE | Q164: FALSE | R164: FALSE | S164: FALSE | X164: FALSE | Y164: FALSE | Z164: FALSE | AA164: FALSE
A165: 133 | B165: =OFFSET(InputPriceData!B$15,CalculationsAndCharts!$A165+$A$11,0,1,1) -> 2012-08-06 | C165: =OFFSET(InputPriceData!G$15,CalculationsAndCharts!$A165+$A$11,0,1,1) -> 40063000 | D165: =OFFSET(InputPriceData!C$15,CalculationsAndCharts!$A165+$A$11,IF($C$7,7,0),1,1) -> 27.58 | E165: =OFFSET(InputPriceData!D$15,CalculationsAndCharts!$A165+$A$11,IF($C$7,7,0),1,1) -> 28.73 | F165: =OFFSET(InputPriceData!E$15,CalculationsAndCharts!$A165+$A$11,IF($C$7,7,0),1,1) -> 27.41 | G165: =OFFSET(InputPriceData!F$15,CalculationsAndCharts!$A165+$A$11,IF($C$7,7,0),1,1) -> 28.56 | I165: 27.582 | J165: 27.532 | K165: 26.604 | L165: 26.654 | M165: 27.41126646 | O165: FALSE | P165: FALSE | Q165: FALSE | R165: FALSE | S165: FALSE | X165: FALSE | Y165: FALSE | Z165: FALSE | AA165: FALSE
A166: 134 | B166: =OFFSET(InputPriceData!B$15,CalculationsAndCharts!$A166+$A$11,0,1,1) -> 2012-08-03 | C166: =OFFSET(InputPriceData!G$15,CalculationsAndCharts!$A166+$A$11,0,1,1) -> 39855200 | D166: =OFFSET(InputPriceData!C$15,CalculationsAndCharts!$A166+$A$11,IF($C$7,7,0),1,1) -> 26.84 | E166: =OFFSET(InputPriceData!D$15,CalculationsAndCharts!$A166+$A$11,IF($C$7,7,0),1,1) -> 27.68 | F166: =OFFSET(InputPriceData!E$15,CalculationsAndCharts!$A166+$A$11,IF($C$7,7,0),1,1) -> 26.6 | G166: =OFFSET(InputPriceData!F$15,CalculationsAndCharts!$A166+$A$11,IF($C$7,7,0),1,1) -> 27.4 | I166: 27.312 | J166: 27.262 | K166: 26.518 | L166: 26.568 | M166: 27.36437938 | O166: FALSE | P166: FALSE | Q166: FALSE | R166: FALSE | S166: FALSE | X166: FALSE | Y166: FALSE | Z166: TRUE | AA166: TRUE | AC166: 27.246 | AE166: 27.246
A167: 135 | B167: =OFFSET(InputPriceData!B$15,CalculationsAndCharts!$A167+$A$11,0,1,1) -> 2012-08-02 | C167: =OFFSET(InputPriceData!G$15,CalculationsAndCharts!$A167+$A$11,0,1,1) -> 31938700 | D167: =OFFSET(InputPriceData!C$15,CalculationsAndCharts!$A167+$A$11,IF($C$7,7,0),1,1) -> 26.24 | E167: =OFFSET(InputPriceData!D$15,CalculationsAndCharts!$A167+$A$11,IF($C$7,7,0),1,1) -> 26.64 | F167: =OFFSET(InputPriceData!E$15,CalculationsAndCharts!$A167+$A$11,IF($C$7,7,0),1,1) -> 26 | G167: =OFFSET(InputPriceData!F$15,CalculationsAndCharts!$A167+$A$11,IF($C$7,7,0),1,1) -> 26.18 | I167: 27.296 | J167: 27.246 | K167: 26.468 | L167: 26.518 | M167: 27.36292547 | O167: FALSE | P167: FALSE | Q167: FALSE | R167: FALSE | S167: FALSE | X167: TRUE | Y167: TRUE | Z167: TRUE | AA167: FALSE | AB167: 26.24 | AD167: 26.24
A168: 136 | B168: =OFFSET(InputPriceData!B$15,CalculationsAndCharts!$A168+$A$11,0,1,1) -> 2012-08-01 | C168: =OFFSET(InputPriceData!G$15,CalculationsAndCharts!$A168+$A$11,0,1,1) -> 38396000 | D168: =OFFSET(InputPriceData!C$15,CalculationsAndCharts!$A168+$A$11,IF($C$7,7,0),1,1) -> 27.3 | E168: =OFFSET(InputPriceData!D$15,CalculationsAndCharts!$A168+$A$11,IF($C$7,7,0),1,1) -> 27.34 | F168: =OFFSET(InputPriceData!E$15,CalculationsAndCharts!$A168+$A$11,IF($C$7,7,0),1,1) -> 26.5 | G168: =OFFSET(InputPriceData!F$15,CalculationsAndCharts!$A168+$A$11,IF($C$7,7,0),1,1) -> 26.78 | I168: 27.272 | J168: 27.222 | K168: 26.468 | L168: 26.518 | M168: 27.41120815 | O168: FALSE | P168: FALSE | Q168: FALSE | R168: FALSE | S168: FALSE | X168: FALSE | Y168: FALSE | Z168: FALSE | AA168: FALSE
A169: 137 | B169: =OFFSET(InputPriceData!B$15,CalculationsAndCharts!$A169+$A$11,0,1,1) -> 2012-07-31 | C169: =OFFSET(InputPriceData!G$15,CalculationsAndCharts!$A169+$A$11,0,1,1) -> 24735600 | D169: =OFFSET(InputPriceData!C$15,CalculationsAndCharts!$A169+$A$11,IF($C$7,7,0),1,1) -> 26.98 | E169: =OFFSET(InputPriceData!D$15,CalculationsAndCharts!$A169+$A$11,IF($C$7,7,0),1,1) -> 27.27 | F169: =OFFSET(InputPriceData!E$15,CalculationsAndCharts!$A169+$A$11,IF($C$7,7,0),1,1) -> 26.76 | G169: =OFFSET(InputPriceData!F$15,CalculationsAndCharts!$A169+$A$11,IF($C$7,7,0),1,1) -> 27.13 | I169: 27.024 | J169: 26.974 | K169: 26.26 | L169: 26.31 | M169: 27.43697174 | O169: FALSE | P169: FALSE | Q169: FALSE | R169: FALSE | S169: FALSE | X169: FALSE | Y169: FALSE | Z169: FALSE | AA169: FALSE
A170: 138 | B170: =OFFSET(InputPriceData!B$15,CalculationsAndCharts!$A170+$A$11,0,1,1) -> 2012-07-30 | C170: =OFFSET(InputPriceData!G$15,CalculationsAndCharts!$A170+$A$11,0,1,1) -> 26263900 | D170: =OFFSET(InputPriceData!C$15,CalculationsAndCharts!$A170+$A$11,IF($C$7,7,0),1,1) -> 27.25 | E170: =OFFSET(InputPriceData!D$15,CalculationsAndCharts!$A170+$A$11,IF($C$7,7,0),1,1) -> 27.38 | F170: =OFFSET(InputPriceData!E$15,CalculationsAndCharts!$A170+$A$11,IF($C$7,7,0),1,1) -> 26.98 | G170: =OFFSET(InputPriceData!F$15,CalculationsAndCharts!$A170+$A$11,IF($C$7,7,0),1,1) -> 27.14 | I170: 26.668 | J170: 26.618 | K170: 25.89 | L170: 25.94 | M170: 27.4495012 | O170: FALSE | P170: FALSE | Q170: FALSE | R170: FALSE | S170: FALSE | X170: FALSE | Y170: FALSE | Z170: FALSE | AA170: FALSE
A171: 139 | B171: =OFFSET(InputPriceData!B$15,CalculationsAndCharts!$A171+$A$11,0,1,1) -> 2012-07-27 | C171: =OFFSET(InputPriceData!G$15,CalculationsAndCharts!$A171+$A$11,0,1,1) -> 52233900 | D171: =OFFSET(InputPriceData!C$15,CalculationsAndCharts!$A171+$A$11,IF($C$7,7,0),1,1) -> 26.6 | E171: =OFFSET(InputPriceData!D$15,CalculationsAndCharts!$A171+$A$11,IF($C$7,7,0),1,1) -> 27.6 | F171: =OFFSET(InputPriceData!E$15,CalculationsAndCharts!$A171+$A$11,IF($C$7,7,0),1,1) -> 26.35 | G171: =OFFSET(InputPriceData!F$15,CalculationsAndCharts!$A171+$A$11,IF($C$7,7,0),1,1) -> 27.3 | I171: 26.276 | J171: 26.226 | K171: 25.496 | L171: 25.546 | M171: 27.46213391 | O171: FALSE | P171: FALSE | Q171: FALSE | R171: FALSE | S171: FALSE | X171: FALSE | Y171: FALSE | Z171: FALSE | AA171: FALSE
A172: 140 | B172: =OFFSET(InputPriceData!B$15,CalculationsAndCharts!$A172+$A$11,0,1,1) -> 2012-07-26 | C172: =OFFSET(InputPriceData!G$15,CalculationsAndCharts!$A172+$A$11,0,1,1) -> 29947900 | D172: =OFFSET(InputPriceData!C$15,CalculationsAndCharts!$A172+$A$11,IF($C$7,7,0),1,1) -> 26.47 | E172: =OFFSET(InputPriceData!D$15,CalculationsAndCharts!$A172+$A$11,IF($C$7,7,0),1,1) -> 26.52 | F172: =OFFSET(InputPriceData!E$15,CalculationsAndCharts!$A172+$A$11,IF($C$7,7,0),1,1) -> 26 | G172: =OFFSET(InputPriceData!F$15,CalculationsAndCharts!$A172+$A$11,IF($C$7,7,0),1,1) -> 26.28 | I172: 26.008 | J172: 25.958 | K172: 25.396 | L172: 25.446 | M172: 27.46875162 | O172: FALSE | P172: FALSE | Q172: FALSE | R172: FALSE | S172: FALSE | X172: FALSE | Y172: FALSE | Z172: TRUE | AA172: TRUE | AC172: 26.47 | AE172: 26.47
A173: 141 | B173: =OFFSET(InputPriceData!B$15,CalculationsAndCharts!$A173+$A$11,0,1,1) -> 2012-07-25 | C173: =OFFSET(InputPriceData!G$15,CalculationsAndCharts!$A173+$A$11,0,1,1) -> 37005900 | D173: =OFFSET(InputPriceData!C$15,CalculationsAndCharts!$A173+$A$11,IF($C$7,7,0),1,1) -> 25.47 | E173: =OFFSET(InputPriceData!D$15,CalculationsAndCharts!$A173+$A$11,IF($C$7,7,0),1,1) -> 26.1 | F173: =OFFSET(InputPriceData!E$15,CalculationsAndCharts!$A173+$A$11,IF($C$7,7,0),1,1) -> 25.46 | G173: =OFFSET(InputPriceData!F$15,CalculationsAndCharts!$A173+$A$11,IF($C$7,7,0),1,1) -> 25.79 | H173: =IF($A173=$E$25,H$32,NA()) ->  | I173: 26.174 | J173: 26.124 | K173: 25.486 | L173: 25.536 | M173: 27.51727209 | O173: FALSE | P173: FALSE | Q173: FALSE | R173: FALSE | S173: FALSE | X173: FALSE | Y173: FALSE | Z173: TRUE | AA173: FALSE
A174: 142 | B174: =OFFSET(InputPriceData!B$15,CalculationsAndCharts!$A174+$A$11,0,1,1) -> 2012-07-24 | C174: =OFFSET(InputPriceData!G$15,CalculationsAndCharts!$A174+$A$11,0,1,1) -> 35737900 | D174: =OFFSET(InputPriceData!C$15,CalculationsAndCharts!$A174+$A$11,IF($C$7,7,0),1,1) -> 25.44 | E174: =OFFSET(InputPriceData!D$15,CalculationsAndCharts!$A174+$A$11,IF($C$7,7,0),1,1) -> 25.49 | F174: =OFFSET(InputPriceData!E$15,CalculationsAndCharts!$A174+$A$11,IF($C$7,7,0),1,1) -> 24.91 | G174: =OFFSET(InputPriceData!F$15,CalculationsAndCharts!$A174+$A$11,IF($C$7,7,0),1,1) -> 25.24 | I174: 26.454 | J174: 26.404 | K174: 25.776 | L174: 25.826 | M174: 27.58777299 | O174: FALSE | P174: FALSE | Q174: FALSE | R174: FALSE | S174: FALSE | X174: FALSE | Y174: FALSE | Z174: TRUE | AA174: FALSE
A175: 143 | B175: =OFFSET(InputPriceData!B$15,CalculationsAndCharts!$A175+$A$11,0,1,1) -> 2012-07-23 | C175: =OFFSET(InputPriceData!G$15,CalculationsAndCharts!$A175+$A$11,0,1,1) -> 39012600 | D175: =OFFSET(InputPriceData!C$15,CalculationsAndCharts!$A175+$A$11,IF($C$7,7,0),1,1) -> 25.1 | E175: =OFFSET(InputPriceData!D$15,CalculationsAndCharts!$A175+$A$11,IF($C$7,7,0),1,1) -> 25.42 | F175: =OFFSET(InputPriceData!E$15,CalculationsAndCharts!$A175+$A$11,IF($C$7,7,0),1,1) -> 25.01 | G175: =OFFSET(InputPriceData!F$15,CalculationsAndCharts!$A175+$A$11,IF($C$7,7,0),1,1) -> 25.34 | I175: 26.838 | J175: 26.788 | K175: 26.116 | L175: 26.166 | M175: 27.68360046 | O175: FALSE | P175: FALSE | Q175: FALSE | R175: FALSE | S175: FALSE | X175: FALSE | Y175: FALSE | Z175: TRUE | AA175: FALSE
A176: 144 | B176: =OFFSET(InputPriceData!B$15,CalculationsAndCharts!$A176+$A$11,0,1,1) -> 2012-07-20 | C176: =OFFSET(InputPriceData!G$15,CalculationsAndCharts!$A176+$A$11,0,1,1) -> 31663300 | D176: =OFFSET(InputPriceData!C$15,CalculationsAndCharts!$A176+$A$11,IF($C$7,7,0),1,1) -> 26.26 | E176: =OFFSET(InputPriceData!D$15,CalculationsAndCharts!$A176+$A$11,IF($C$7,7,0),1,1) -> 26.26 | F176: =OFFSET(InputPriceData!E$15,CalculationsAndCharts!$A176+$A$11,IF($C$7,7,0),1,1) -> 25.85 | G176: =OFFSET(InputPriceData!F$15,CalculationsAndCharts!$A176+$A$11,IF($C$7,7,0),1,1) -> 25.87 | I176: 27.26 | J176: 27.21 | K176: 26.438 | L176: 26.488 | M176: 27.77925762 | O176: FALSE | P176: FALSE | Q176: FALSE | R176: FALSE | S176: FALSE | X176: TRUE | Y176: TRUE | Z176: TRUE | AA176: FALSE | AB176: 26.26 | AD176: 26.26
A177: 145 | B177: =OFFSET(InputPriceData!B$15,CalculationsAndCharts!$A177+$A$11,0,1,1) -> 2012-07-19 | C177: =OFFSET(InputPriceData!G$15,CalculationsAndCharts!$A177+$A$11,0,1,1) -> 33200800 | D177: =OFFSET(InputPriceData!C$15,CalculationsAndCharts!$A177+$A$11,IF($C$7,7,0),1,1) -> 27.16 | E177: =OFFSET(InputPriceData!D$15,CalculationsAndCharts!$A177+$A$11,IF($C$7,7,0),1,1) -> 27.35 | F177: =OFFSET(InputPriceData!E$15,CalculationsAndCharts!$A177+$A$11,IF($C$7,7,0),1,1) -> 26.45 | G177: =OFFSET(InputPriceData!F$15,CalculationsAndCharts!$A177+$A$11,IF($C$7,7,0),1,1) -> 26.59 | I177: 27.402 | J177: 27.352 | K177: 26.376 | L177: 26.426 | M177: 27.8571865 | O177: FALSE | P177: FALSE | Q177: FALSE | R177: FALSE | S177: FALSE | X177: FALSE | Y177: FALSE | Z177: FALSE | AA177: FALSE
A178: 146 | B178: =OFFSET(InputPriceData!B$15,CalculationsAndCharts!$A178+$A$11,0,1,1) -> 2012-07-18 | C178: =OFFSET(InputPriceData!G$15,CalculationsAndCharts!$A178+$A$11,0,1,1) -> 32283900 | D178: =OFFSET(InputPriceData!C$15,CalculationsAndCharts!$A178+$A$11,IF($C$7,7,0),1,1) -> 27.19 | E178: =OFFSET(InputPriceData!D$15,CalculationsAndCharts!$A178+$A$11,IF($C$7,7,0),1,1) -> 27.5 | F178: =OFFSET(InputPriceData!E$15,CalculationsAndCharts!$A178+$A$11,IF($C$7,7,0),1,1) -> 26.91 | G178: =OFFSET(InputPriceData!F$15,CalculationsAndCharts!$A178+$A$11,IF($C$7,7,0),1,1) -> 27.1 | I178: 27.062 | J178: 27.012 | K178: 26.116 | L178: 26.166 | M178: 27.9089084 | O178: FALSE | P178: FALSE | Q178: FALSE | R178: FALSE | S178: FALSE | X178: FALSE | Y178: FALSE | Z178: FALSE | AA178: FALSE
A179: 147 | B179: =OFFSET(InputPriceData!B$15,CalculationsAndCharts!$A179+$A$11,0,1,1) -> 2012-07-17 | C179: =OFFSET(InputPriceData!G$15,CalculationsAndCharts!$A179+$A$11,0,1,1) -> 39561100 | D179: =OFFSET(InputPriceData!C$15,CalculationsAndCharts!$A179+$A$11,IF($C$7,7,0),1,1) -> 27.13 | E179: =OFFSET(InputPriceData!D$15,CalculationsAndCharts!$A179+$A$11,IF($C$7,7,0),1,1) -> 27.41 | F179: =OFFSET(InputPriceData!E$15,CalculationsAndCharts!$A179+$A$11,IF($C$7,7,0),1,1) -> 26.61 | G179: =OFFSET(InputPriceData!F$15,CalculationsAndCharts!$A179+$A$11,IF($C$7,7,0),1,1) -> 27.38 | I179: 26.854 | J179: 26.804 | K179: 25.878 | L179: 25.928 | M179: 27.94192507 | O179: FALSE | P179: FALSE | Q179: FALSE | R179: FALSE | S179: FALSE | X179: FALSE | Y179: FALSE | Z179: FALSE | AA179: FALSE
A180: 148 | B180: =OFFSET(InputPriceData!B$15,CalculationsAndCharts!$A180+$A$11,0,1,1) -> 2012-07-16 | C180: =OFFSET(InputPriceData!G$15,CalculationsAndCharts!$A180+$A$11,0,1,1) -> 59427600 | D180: =OFFSET(InputPriceData!C$15,CalculationsAndCharts!$A180+$A$11,IF($C$7,7,0),1,1) -> 27.45 | E180: =OFFSET(InputPriceData!D$15,CalculationsAndCharts!$A180+$A$11,IF($C$7,7,0),1,1) -> 27.53 | F180: =OFFSET(InputPriceData!E$15,CalculationsAndCharts!$A180+$A$11,IF($C$7,7,0),1,1) -> 26.62 | G180: =OFFSET(InputPriceData!F$15,CalculationsAndCharts!$A180+$A$11,IF($C$7,7,0),1,1) -> 26.81 | I180: 26.694 | J180: 26.644 | K180: 25.696 | L180: 25.746 | M180: 27.96486079 | O180: FALSE | P180: FALSE | Q180: FALSE | R180: FALSE | S180: FALSE | X180: FALSE | Y180: FALSE | Z180: FALSE | AA180: FALSE
A181: 149 | B181: =OFFSET(InputPriceData!B$15,CalculationsAndCharts!$A181+$A$11,0,1,1) -> 2012-07-13 | C181: =OFFSET(InputPriceData!G$15,CalculationsAndCharts!$A181+$A$11,0,1,1) -> 48422100 | D181: =OFFSET(InputPriceData!C$15,CalculationsAndCharts!$A181+$A$11,IF($C$7,7,0),1,1) -> 25.58 | E181: =OFFSET(InputPriceData!D$15,CalculationsAndCharts!$A181+$A$11,IF($C$7,7,0),1,1) -> 26.97 | F181: =OFFSET(InputPriceData!E$15,CalculationsAndCharts!$A181+$A$11,IF($C$7,7,0),1,1) -> 25.54 | G181: =OFFSET(InputPriceData!F$15,CalculationsAndCharts!$A181+$A$11,IF($C$7,7,0),1,1) -> 26.65 | I181: 26.464 | J181: 26.414 | K181: 25.532 | L181: 25.582 | M181: 28.01199796 | O181: FALSE | P181: FALSE | Q181: FALSE | R181: FALSE | S181: FALSE | X181: FALSE | Y181: FALSE | Z181: TRUE | AA181: TRUE | AC181: 26.374 | AE181: 26.374
A182: 150 | B182: =OFFSET(InputPriceData!B$15,CalculationsAndCharts!$A182+$A$11,0,1,1) -> 2012-07-12 | C182: =OFFSET(InputPriceData!G$15,CalculationsAndCharts!$A182+$A$11,0,1,1) -> 36919200 | D182: =OFFSET(InputPriceData!C$15,CalculationsAndCharts!$A182+$A$11,IF($C$7,7,0),1,1) -> 25.61 | E182: =OFFSET(InputPriceData!D$15,CalculationsAndCharts!$A182+$A$11,IF($C$7,7,0),1,1) -> 25.65 | F182: =OFFSET(InputPriceData!E$15,CalculationsAndCharts!$A182+$A$11,IF($C$7,7,0),1,1) -> 25.15 | G182: =OFFSET(InputPriceData!F$15,CalculationsAndCharts!$A182+$A$11,IF($C$7,7,0),1,1) -> 25.28 | I182: 26.424 | J182: 26.374 | K182: 25.644 | L182: 25.694 | M182: 28.06758972 | O182: FALSE | P182: FALSE | Q182: FALSE | R182: FALSE | S182: FALSE | X182: FALSE | Y182: FALSE | Z182: TRUE | AA182: FALSE
A183: 151 | B183: =OFFSET(InputPriceData!B$15,CalculationsAndCharts!$A183+$A$11,0,1,1) -> 2012-07-11 | C183: =OFFSET(InputPriceData!G$15,CalculationsAndCharts!$A183+$A$11,0,1,1) -> 37863200 | D183: =OFFSET(InputPriceData!C$15,CalculationsAndCharts!$A183+$A$11,IF($C$7,7,0),1,1) -> 25.96 | E183: =OFFSET(InputPriceData!D$15,CalculationsAndCharts!$A183+$A$11,IF($C$7,7,0),1,1) -> 26.46 | F183: =OFFSET(InputPriceData!E$15,CalculationsAndCharts!$A183+$A$11,IF($C$7,7,0),1,1) -> 25.72 | G183: =OFFSET(InputPriceData!F$15,CalculationsAndCharts!$A183+$A$11,IF($C$7,7,0),1,1) -> 25.87 | I183: 26.818 | J183: 26.768 | K183: 25.954 | L183: 26.004 | M183: 28.18136889 | O183: FALSE | P183: FALSE | Q183: FALSE | R183: FALSE | S183: FALSE | X183: FALSE | Y183: FALSE | Z183: TRUE | AA183: FALSE
A184: 152 | B184: =OFFSET(InputPriceData!B$15,CalculationsAndCharts!$A184+$A$11,0,1,1) -> 2012-07-10 | C184: =OFFSET(InputPriceData!G$15,CalculationsAndCharts!$A184+$A$11,0,1,1) -> 27895100 | D184: =OFFSET(InputPriceData!C$15,CalculationsAndCharts!$A184+$A$11,IF($C$7,7,0),1,1) -> 26.44 | E184: =OFFSET(InputPriceData!D$15,CalculationsAndCharts!$A184+$A$11,IF($C$7,7,0),1,1) -> 26.61 | F184: =OFFSET(InputPriceData!E$15,CalculationsAndCharts!$A184+$A$11,IF($C$7,7,0),1,1) -> 25.7 | G184: =OFFSET(InputPriceData!F$15,CalculationsAndCharts!$A184+$A$11,IF($C$7,7,0),1,1) -> 25.88 | I184: 27.08 | J184: 27.03 | K184: 26.248 | L184: 26.298 | M184: 28.27571048 | O184: FALSE | P184: FALSE | Q184: FALSE | R184: FALSE | S184: FALSE | X184: FALSE | Y184: FALSE | Z184: TRUE | AA184: FALSE
A185: 153 | B185: =OFFSET(InputPriceData!B$15,CalculationsAndCharts!$A185+$A$11,0,1,1) -> 2012-07-09 | C185: =OFFSET(InputPriceData!G$15,CalculationsAndCharts!$A185+$A$11,0,1,1) -> 27902500 | D185: =OFFSET(InputPriceData!C$15,CalculationsAndCharts!$A185+$A$11,IF($C$7,7,0),1,1) -> 26.21 | E185: =OFFSET(InputPriceData!D$15,CalculationsAndCharts!$A185+$A$11,IF($C$7,7,0),1,1) -> 26.38 | F185: =OFFSET(InputPriceData!E$15,CalculationsAndCharts!$A185+$A$11,IF($C$7,7,0),1,1) -> 25.8 | G185: =OFFSET(InputPriceData!F$15,CalculationsAndCharts!$A185+$A$11,IF($C$7,7,0),1,1) -> 26.11 | I185: 27.344 | J185: 27.294 | K185: 26.502 | L185: 26.552 | M185: 28.37349458 | O185: FALSE | P185: FALSE | Q185: FALSE | R185: FALSE | S185: FALSE | X185: FALSE | Y185: FALSE | Z185: TRUE | AA185: FALSE
A186: 154 | B186: =OFFSET(InputPriceData!B$15,CalculationsAndCharts!$A186+$A$11,0,1,1) -> 2012-07-06 | C186: =OFFSET(InputPriceData!G$15,CalculationsAndCharts!$A186+$A$11,0,1,1) -> 27552100 | D186: =OFFSET(InputPriceData!C$15,CalculationsAndCharts!$A186+$A$11,IF($C$7,7,0),1,1) -> 26.44 | E186: =OFFSET(InputPriceData!D$15,CalculationsAndCharts!$A186+$A$11,IF($C$7,7,0),1,1) -> 26.77 | F186: =OFFSET(InputPriceData!E$15,CalculationsAndCharts!$A186+$A$11,IF($C$7,7,0),1,1) -> 26.1 | G186: =OFFSET(InputPriceData!F$15,CalculationsAndCharts!$A186+$A$11,IF($C$7,7,0),1,1) -> 26.36 | I186: 27.586 | J186: 27.536 | K186: 26.744 | L186: 26.794 | M186: 28.46588211 | O186: FALSE | P186: FALSE | Q186: FALSE | R186: FALSE | S186: FALSE | X186: TRUE | Y186: TRUE | Z186: TRUE | AA186: FALSE | AB186: 26.44 | AD186: 26.44
A187: 155 | B187: =OFFSET(InputPriceData!B$15,CalculationsAndCharts!$A187+$A$11,0,1,1) -> 2012-07-05 | C187: =OFFSET(InputPriceData!G$15,CalculationsAndCharts!$A187+$A$11,0,1,1) -> 31836300 | D187: =OFFSET(InputPriceData!C$15,CalculationsAndCharts!$A187+$A$11,IF($C$7,7,0),1,1) -> 27.52 | E187: =OFFSET(InputPriceData!D$15,CalculationsAndCharts!$A187+$A$11,IF($C$7,7,0),1,1) -> 27.62 | F187: =OFFSET(InputPriceData!E$15,CalculationsAndCharts!$A187+$A$11,IF($C$7,7,0),1,1) -> 26.7 | G187: =OFFSET(InputPriceData!F$15,CalculationsAndCharts!$A187+$A$11,IF($C$7,7,0),1,1) -> 26.84 | I187: 27.58 | J187: 27.53 | K187: 26.65 | L187: 26.7 | M187: 28.55183648 | O187: FALSE | P187: FALSE | Q187: FALSE | R187: FALSE | S187: FALSE | X187: FALSE | Y187: FALSE | Z187: FALSE | AA187: FALSE
A188: 156 | B188: =OFFSET(InputPriceData!B$15,CalculationsAndCharts!$A188+$A$11,0,1,1) -> 2012-07-03 | C188: =OFFSET(InputPriceData!G$15,CalculationsAndCharts!$A188+$A$11,0,1,1) -> 14966500 | D188: =OFFSET(InputPriceData!C$15,CalculationsAndCharts!$A188+$A$11,IF($C$7,7,0),1,1) -> 27.4 | E188: =OFFSET(InputPriceData!D$15,CalculationsAndCharts!$A188+$A$11,IF($C$7,7,0),1,1) -> 27.77 | F188: =OFFSET(InputPriceData!E$15,CalculationsAndCharts!$A188+$A$11,IF($C$7,7,0),1,1) -> 27.19 | G188: =OFFSET(InputPriceData!F$15,CalculationsAndCharts!$A188+$A$11,IF($C$7,7,0),1,1) -> 27.65 | I188: 27.5 | J188: 27.45 | K188: 26.61 | L188: 26.66 | M188: 28.62170736 | O188: FALSE | P188: FALSE | Q188: FALSE | R188: FALSE | S188: FALSE | X188: FALSE | Y188: FALSE | Z188: FALSE | AA188: FALSE
A189: 157 | B189: =OFFSET(InputPriceData!B$15,CalculationsAndCharts!$A189+$A$11,0,1,1) -> 2012-07-02 | C189: =OFFSET(InputPriceData!G$15,CalculationsAndCharts!$A189+$A$11,0,1,1) -> 29971400 | D189: =OFFSET(InputPriceData!C$15,CalculationsAndCharts!$A189+$A$11,IF($C$7,7,0),1,1) -> 27.47 | E189: =OFFSET(InputPriceData!D$15,CalculationsAndCharts!$A189+$A$11,IF($C$7,7,0),1,1) -> 27.93 | F189: =OFFSET(InputPriceData!E$15,CalculationsAndCharts!$A189+$A$11,IF($C$7,7,0),1,1) -> 26.97 | G189: =OFFSET(InputPriceData!F$15,CalculationsAndCharts!$A189+$A$11,IF($C$7,7,0),1,1) -> 27.46 | I189: 27.366 | J189: 27.316 | K189: 26.486 | L189: 26.536 | M189: 28.66136889 | O189: FALSE | P189: FALSE | Q189: FALSE | R189: FALSE | S189: FALSE | X189: FALSE | Y189: FALSE | Z189: FALSE | AA189: FALSE
A190: 158 | B190: =OFFSET(InputPriceData!B$15,CalculationsAndCharts!$A190+$A$11,0,1,1) -> 2012-06-29 | C190: =OFFSET(InputPriceData!G$15,CalculationsAndCharts!$A190+$A$11,0,1,1) -> 54296400 | D190: =OFFSET(InputPriceData!C$15,CalculationsAndCharts!$A190+$A$11,IF($C$7,7,0),1,1) -> 27.45 | E190: =OFFSET(InputPriceData!D$15,CalculationsAndCharts!$A190+$A$11,IF($C$7,7,0),1,1) -> 27.59 | F190: =OFFSET(InputPriceData!E$15,CalculationsAndCharts!$A190+$A$11,IF($C$7,7,0),1,1) -> 27.01 | G190: =OFFSET(InputPriceData!F$15,CalculationsAndCharts!$A190+$A$11,IF($C$7,7,0),1,1) -> 27.41 | I190: 27.246 | J190: 27.196 | K190: 26.392 | L190: 26.442 | M190: 28.71040435 | O190: FALSE | P190: FALSE | Q190: FALSE | R190: FALSE | S190: FALSE | X190: FALSE | Y190: FALSE | Z190: TRUE | AA190: TRUE | AC190: 27.45 | AE190: 27.45
A191: 159 | B191: =OFFSET(InputPriceData!B$15,CalculationsAndCharts!$A191+$A$11,0,1,1) -> 2012-06-28 | C191: =OFFSET(InputPriceData!G$15,CalculationsAndCharts!$A191+$A$11,0,1,1) -> 68262300 | D191: =OFFSET(InputPriceData!C$15,CalculationsAndCharts!$A191+$A$11,IF($C$7,7,0),1,1) -> 26.46 | E191: =OFFSET(InputPriceData!D$15,CalculationsAndCharts!$A191+$A$11,IF($C$7,7,0),1,1) -> 26.74 | F191: =OFFSET(InputPriceData!E$15,CalculationsAndCharts!$A191+$A$11,IF($C$7,7,0),1,1) -> 25.63 | G191: =OFFSET(InputPriceData!F$15,CalculationsAndCharts!$A191+$A$11,IF($C$7,7,0),1,1) -> 26.39 | I191: 27.404 | J191: 27.354 | K191: 26.55 | L191: 26.6 | M191: 28.76348208 | O191: FALSE | P191: FALSE | Q191: FALSE | R191: FALSE | S191: FALSE | X191: FALSE | Y191: FALSE | Z191: TRUE | AA191: FALSE
A192: 160 | B192: =OFFSET(InputPriceData!B$15,CalculationsAndCharts!$A192+$A$11,0,1,1) -> 2012-06-27 | C192: =OFFSET(InputPriceData!G$15,CalculationsAndCharts!$A192+$A$11,0,1,1) -> 29528900 | D192: =OFFSET(InputPriceData!C$15,CalculationsAndCharts!$A192+$A$11,IF($C$7,7,0),1,1) -> 26.81 | E192: =OFFSET(InputPriceData!D$15,CalculationsAndCharts!$A192+$A$11,IF($C$7,7,0),1,1) -> 27.22 | F192: =OFFSET(InputPriceData!E$15,CalculationsAndCharts!$A192+$A$11,IF($C$7,7,0),1,1) -> 26.5 | G192: =OFFSET(InputPriceData!F$15,CalculationsAndCharts!$A192+$A$11,IF($C$7,7,0),1,1) -> 27.1 | I192: 27.896 | J192: 27.846 | K192: 26.976 | L192: 27.026 | M192: 28.8603589 | O192: FALSE | P192: FALSE | Q192: FALSE | R192: FALSE | S192: FALSE | X192: FALSE | Y192: FALSE | Z192: TRUE | AA192: FALSE
A193: 161 | B193: =OFFSET(InputPriceData!B$15,CalculationsAndCharts!$A193+$A$11,0,1,1) -> 2012-06-26 | C193: =OFFSET(InputPriceData!G$15,CalculationsAndCharts!$A193+$A$11,0,1,1) -> 34250300 | D193: =OFFSET(InputPriceData!C$15,CalculationsAndCharts!$A193+$A$11,IF($C$7,7,0),1,1) -> 26.84 | E193: =OFFSET(InputPriceData!D$15,CalculationsAndCharts!$A193+$A$11,IF($C$7,7,0),1,1) -> 27.1 | F193: =OFFSET(InputPriceData!E$15,CalculationsAndCharts!$A193+$A$11,IF($C$7,7,0),1,1) -> 26.57 | G193: =OFFSET(InputPriceData!F$15,CalculationsAndCharts!$A193+$A$11,IF($C$7,7,0),1,1) -> 26.73 | H193: =IF($A193=$E$25,H$32,NA()) ->  | I193: 28.314 | J193: 28.264 | K193: 27.352 | L193: 27.402 | M193: 28.93221028 | O193: FALSE | P193: FALSE | Q193: FALSE | R193: FALSE | S193: FALSE | X193: FALSE | Y193: FALSE | Z193: TRUE | AA193: FALSE
A194: 162 | B194: =OFFSET(InputPriceData!B$15,CalculationsAndCharts!$A194+$A$11,0,1,1) -> 2012-06-25 | C194: =OFFSET(InputPriceData!G$15,CalculationsAndCharts!$A194+$A$11,0,1,1) -> 43716100 | D194: =OFFSET(InputPriceData!C$15,CalculationsAndCharts!$A194+$A$11,IF($C$7,7,0),1,1) -> 27.26 | E194: =OFFSET(InputPriceData!D$15,CalculationsAndCharts!$A194+$A$11,IF($C$7,7,0),1,1) -> 27.33 | F194: =OFFSET(InputPriceData!E$15,CalculationsAndCharts!$A194+$A$11,IF($C$7,7,0),1,1) -> 26.5 | G194: =OFFSET(InputPriceData!F$15,CalculationsAndCharts!$A194+$A$11,IF($C$7,7,0),1,1) -> 26.75 | I194: 28.632 | J194: 28.582 | K194: 27.614 | L194: 27.664 | M194: 29.02209642 | O194: FALSE | P194: FALSE | Q194: FALSE | R194: FALSE | S194: FALSE | X194: TRUE | Y194: TRUE | Z194: TRUE | AA194: FALSE | AB194: 27.26 | AD194: 27.26
A195: 163 | B195: =OFFSET(InputPriceData!B$15,CalculationsAndCharts!$A195+$A$11,0,1,1) -> 2012-06-22 | C195: =OFFSET(InputPriceData!G$15,CalculationsAndCharts!$A195+$A$11,0,1,1) -> 29956200 | D195: =OFFSET(InputPriceData!C$15,CalculationsAndCharts!$A195+$A$11,IF($C$7,7,0),1,1) -> 28.16 | E195: =OFFSET(InputPriceData!D$15,CalculationsAndCharts!$A195+$A$11,IF($C$7,7,0),1,1) -> 28.38 | F195: =OFFSET(InputPriceData!E$15,CalculationsAndCharts!$A195+$A$11,IF($C$7,7,0),1,1) -> 27.8 | G195: =OFFSET(InputPriceData!F$15,CalculationsAndCharts!$A195+$A$11,IF($C$7,7,0),1,1) -> 27.99 | I195: 28.79 | J195: 28.74 | K195: 27.814 | L195: 27.864 | M195: 29.11483505 | O195: FALSE | P195: FALSE | Q195: FALSE | R195: FALSE | S195: FALSE | X195: FALSE | Y195: FALSE | Z195: FALSE | AA195: FALSE
A196: 164 | B196: =OFFSET(InputPriceData!B$15,CalculationsAndCharts!$A196+$A$11,0,1,1) -> 2012-06-21 | C196: =OFFSET(InputPriceData!G$15,CalculationsAndCharts!$A196+$A$11,0,1,1) -> 39787200 | D196: =OFFSET(InputPriceData!C$15,CalculationsAndCharts!$A196+$A$11,IF($C$7,7,0),1,1) -> 28.88 | E196: =OFFSET(InputPriceData!D$15,CalculationsAndCharts!$A196+$A$11,IF($C$7,7,0),1,1) -> 29.2 | F196: =OFFSET(InputPriceData!E$15,CalculationsAndCharts!$A196+$A$11,IF($C$7,7,0),1,1) -> 27.76 | G196: =OFFSET(InputPriceData!F$15,CalculationsAndCharts!$A196+$A$11,IF($C$7,7,0),1,1) -> 27.83 | I196: 28.776 | J196: 28.726 | K196: 27.674 | L196: 27.724 | M196: 29.16074668 | O196: FALSE | P196: FALSE | Q196: FALSE | R196: FALSE | S196: FALSE | X196: FALSE | Y196: FALSE | Z196: FALSE | AA196: FALSE
A197: 165 | B197: =OFFSET(InputPriceData!B$15,CalculationsAndCharts!$A197+$A$11,0,1,1) -> 2012-06-20 | C197: =OFFSET(InputPriceData!G$15,CalculationsAndCharts!$A197+$A$11,0,1,1) -> 47693300 | D197: =OFFSET(InputPriceData!C$15,CalculationsAndCharts!$A197+$A$11,IF($C$7,7,0),1,1) -> 28.7 | E197: =OFFSET(InputPriceData!D$15,CalculationsAndCharts!$A197+$A$11,IF($C$7,7,0),1,1) -> 29.31 | F197: =OFFSET(InputPriceData!E$15,CalculationsAndCharts!$A197+$A$11,IF($C$7,7,0),1,1) -> 28.38 | G197: =OFFSET(InputPriceData!F$15,CalculationsAndCharts!$A197+$A$11,IF($C$7,7,0),1,1) -> 28.86 | I197: 28.568 | J197: 28.518 | K197: 27.636 | L197: 27.686 | M197: 29.21506287 | O197: FALSE | P197: FALSE | Q197: FALSE | R197: FALSE | S197: FALSE | X197: FALSE | Y197: FALSE | Z197: FALSE | AA197: FALSE
A198: 166 | B198: =OFFSET(InputPriceData!B$15,CalculationsAndCharts!$A198+$A$11,0,1,1) -> 2012-06-19 | C198: =OFFSET(InputPriceData!G$15,CalculationsAndCharts!$A198+$A$11,0,1,1) -> 42654400 | D198: =OFFSET(InputPriceData!C$15,CalculationsAndCharts!$A198+$A$11,IF($C$7,7,0),1,1) -> 27.93 | E198: =OFFSET(InputPriceData!D$15,CalculationsAndCharts!$A198+$A$11,IF($C$7,7,0),1,1) -> 28.69 | F198: =OFFSET(InputPriceData!E$15,CalculationsAndCharts!$A198+$A$11,IF($C$7,7,0),1,1) -> 27.88 | G198: =OFFSET(InputPriceData!F$15,CalculationsAndCharts!$A198+$A$11,IF($C$7,7,0),1,1) -> 28.5 | I198: 28.326 | J198: 28.276 | K198: 27.374 | L198: 27.424 | M198: 29.22955523 | O198: FALSE | P198: FALSE | Q198: FALSE | R198: FALSE | S198: FALSE | X198: FALSE | Y198: FALSE | Z198: FALSE | AA198: FALSE
A199: 167 | B199: =OFFSET(InputPriceData!B$15,CalculationsAndCharts!$A199+$A$11,0,1,1) -> 2012-06-18 | C199: =OFFSET(InputPriceData!G$15,CalculationsAndCharts!$A199+$A$11,0,1,1) -> 32822200 | D199: =OFFSET(InputPriceData!C$15,CalculationsAndCharts!$A199+$A$11,IF($C$7,7,0),1,1) -> 27.98 | E199: =OFFSET(InputPriceData!D$15,CalculationsAndCharts!$A199+$A$11,IF($C$7,7,0),1,1) -> 28.12 | F199: =OFFSET(InputPriceData!E$15,CalculationsAndCharts!$A199+$A$11,IF($C$7,7,0),1,1) -> 27.5 | G199: =OFFSET(InputPriceData!F$15,CalculationsAndCharts!$A199+$A$11,IF($C$7,7,0),1,1) -> 27.55 | I199: 28.118 | J199: 28.068 | K199: 27.082 | L199: 27.132 | M199: 29.259333 | O199: FALSE | P199: FALSE | Q199: FALSE | R199: FALSE | S199: FALSE | X199: FALSE | Y199: FALSE | Z199: FALSE | AA199: FALSE
A200: 168 | B200: =OFFSET(InputPriceData!B$15,CalculationsAndCharts!$A200+$A$11,0,1,1) -> 2012-06-15 | C200: =OFFSET(InputPriceData!G$15,CalculationsAndCharts!$A200+$A$11,0,1,1) -> 60019800 | D200: =OFFSET(InputPriceData!C$15,CalculationsAndCharts!$A200+$A$11,IF($C$7,7,0),1,1) -> 28.1 | E200: =OFFSET(InputPriceData!D$15,CalculationsAndCharts!$A200+$A$11,IF($C$7,7,0),1,1) -> 28.31 | F200: =OFFSET(InputPriceData!E$15,CalculationsAndCharts!$A200+$A$11,IF($C$7,7,0),1,1) -> 27.1 | G200: =OFFSET(InputPriceData!F$15,CalculationsAndCharts!$A200+$A$11,IF($C$7,7,0),1,1) -> 28.31 | I200: 28.194 | J200: 28.144 | K200: 26.868 | L200: 26.918 | M200: 29.32910169 | O200: FALSE | P200: FALSE | Q200: FALSE | R200: FALSE | S200: FALSE | X200: FALSE | Y200: FALSE | Z200: FALSE | AA200: FALSE
A201: 169 | B201: =OFFSET(InputPriceData!B$15,CalculationsAndCharts!$A201+$A$11,0,1,1) -> 2012-06-14 | C201: =OFFSET(InputPriceData!G$15,CalculationsAndCharts!$A201+$A$11,0,1,1) -> 45508800 | D201: =OFFSET(InputPriceData!C$15,CalculationsAndCharts!$A201+$A$11,IF($C$7,7,0),1,1) -> 27.76 | E201: =OFFSET(InputPriceData!D$15,CalculationsAndCharts!$A201+$A$11,IF($C$7,7,0),1,1) -> 28.16 | F201: =OFFSET(InputPriceData!E$15,CalculationsAndCharts!$A201+$A$11,IF($C$7,7,0),1,1) -> 27.57 | G201: =OFFSET(InputPriceData!F$15,CalculationsAndCharts!$A201+$A$11,IF($C$7,7,0),1,1) -> 27.91 | I201: 28.09 | J201: 28.04 | K201: 26.72 | L201: 26.77 | M201: 29.37069768 | O201: FALSE | P201: FALSE | Q201: FALSE | R201: FALSE | S201: FALSE | X201: FALSE | Y201: FALSE | Z201: FALSE | AA201: FALSE
A202: 170 | B202: =OFFSET(InputPriceData!B$15,CalculationsAndCharts!$A202+$A$11,0,1,1) -> 2012-06-13 | C202: =OFFSET(InputPriceData!G$15,CalculationsAndCharts!$A202+$A$11,0,1,1) -> 64159200 | D202: =OFFSET(InputPriceData!C$15,CalculationsAndCharts!$A202+$A$11,IF($C$7,7,0),1,1) -> 27.34 | E202: =OFFSET(InputPriceData!D$15,CalculationsAndCharts!$A202+$A$11,IF($C$7,7,0),1,1) -> 28.1 | F202: =OFFSET(InputPriceData!E$15,CalculationsAndCharts!$A202+$A$11,IF($C$7,7,0),1,1) -> 27.07 | G202: =OFFSET(InputPriceData!F$15,CalculationsAndCharts!$A202+$A$11,IF($C$7,7,0),1,1) -> 27.67 | I202: 28.048 | J202: 27.998 | K202: 26.542 | L202: 26.592 | M202: 29.43031799 | O202: FALSE | P202: FALSE | Q202: FALSE | R202: FALSE | S202: FALSE | X202: FALSE | Y202: FALSE | Z202: FALSE | AA202: FALSE
A203: 171 | B203: =OFFSET(InputPriceData!B$15,CalculationsAndCharts!$A203+$A$11,0,1,1) -> 2012-06-12 | C203: =OFFSET(InputPriceData!G$15,CalculationsAndCharts!$A203+$A$11,0,1,1) -> 43147200 | D203: =OFFSET(InputPriceData!C$15,CalculationsAndCharts!$A203+$A$11,IF($C$7,7,0),1,1) -> 26.66 | E203: =OFFSET(InputPriceData!D$15,CalculationsAndCharts!$A203+$A$11,IF($C$7,7,0),1,1) -> 27.65 | F203: =OFFSET(InputPriceData!E$15,CalculationsAndCharts!$A203+$A$11,IF($C$7,7,0),1,1) -> 26.42 | G203: =OFFSET(InputPriceData!F$15,CalculationsAndCharts!$A203+$A$11,IF($C$7,7,0),1,1) -> 27.62 | I203: 27.858 | J203: 27.808 | K203: 26.33 | L203: 26.38 | M203: 29.50216771 | O203: FALSE | P203: FALSE | Q203: FALSE | R203: FALSE | S203: FALSE | X203: FALSE | Y203: FALSE | Z203: FALSE | AA203: FALSE
A204: 172 | B204: =OFFSET(InputPriceData!B$15,CalculationsAndCharts!$A204+$A$11,0,1,1) -> 2012-06-11 | C204: =OFFSET(InputPriceData!G$15,CalculationsAndCharts!$A204+$A$11,0,1,1) -> 58250900 | D204: =OFFSET(InputPriceData!C$15,CalculationsAndCharts!$A204+$A$11,IF($C$7,7,0),1,1) -> 28.43 | E204: =OFFSET(InputPriceData!D$15,CalculationsAndCharts!$A204+$A$11,IF($C$7,7,0),1,1) -> 28.5 | F204: =OFFSET(InputPriceData!E$15,CalculationsAndCharts!$A204+$A$11,IF($C$7,7,0),1,1) -> 26.43 | G204: =OFFSET(InputPriceData!F$15,CalculationsAndCharts!$A204+$A$11,IF($C$7,7,0),1,1) -> 26.48 | I204: 27.504 | J204: 27.454 | K204: 25.994 | L204: 26.044 | M204: 29.57899088 | O204: FALSE | P204: FALSE | Q204: FALSE | R204: FALSE | S204: FALSE | X204: FALSE | Y204: FALSE | Z204: FALSE | AA204: FALSE
A205: 173 | B205: =OFFSET(InputPriceData!B$15,CalculationsAndCharts!$A205+$A$11,0,1,1) -> 2012-06-08 | C205: =OFFSET(InputPriceData!G$15,CalculationsAndCharts!$A205+$A$11,0,1,1) -> 36994900 | D205: =OFFSET(InputPriceData!C$15,CalculationsAndCharts!$A205+$A$11,IF($C$7,7,0),1,1) -> 26.64 | E205: =OFFSET(InputPriceData!D$15,CalculationsAndCharts!$A205+$A$11,IF($C$7,7,0),1,1) -> 27.79 | F205: =OFFSET(InputPriceData!E$15,CalculationsAndCharts!$A205+$A$11,IF($C$7,7,0),1,1) -> 26.36 | G205: =OFFSET(InputPriceData!F$15,CalculationsAndCharts!$A205+$A$11,IF($C$7,7,0),1,1) -> 27.77 | I205: 26.91 | J205: 26.86 | K205: 25.63 | L205: 25.68 | M205: 29.7054803 | O205: FALSE | P205: FALSE | Q205: FALSE | R205: FALSE | S205: FALSE | X205: FALSE | Y205: FALSE | Z205: FALSE | AA205: FALSE
A206: 174 | B206: =OFFSET(InputPriceData!B$15,CalculationsAndCharts!$A206+$A$11,0,1,1) -> 2012-06-07 | C206: =OFFSET(InputPriceData!G$15,CalculationsAndCharts!$A206+$A$11,0,1,1) -> 44148600 | D206: =OFFSET(InputPriceData!C$15,CalculationsAndCharts!$A206+$A$11,IF($C$7,7,0),1,1) -> 27.77 | E206: =OFFSET(InputPriceData!D$15,CalculationsAndCharts!$A206+$A$11,IF($C$7,7,0),1,1) -> 27.95 | F206: =OFFSET(InputPriceData!E$15,CalculationsAndCharts!$A206+$A$11,IF($C$7,7,0),1,1) -> 26.68 | G206: =OFFSET(InputPriceData!F$15,CalculationsAndCharts!$A206+$A$11,IF($C$7,7,0),1,1) -> 26.91 | I206: 26.568 | J206: 26.518 | K206: 25.408 | L206: 25.458 | M206: 29.7844795 | O206: FALSE | P206: FALSE | Q206: FALSE | R206: FALSE | S206: FALSE | X206: FALSE | Y206: FALSE | Z206: FALSE | AA206: FALSE
... 667 more rows

Sheet Transaction Summary
B1: Transaction Summary (using trade size of 1 share)
C2: =CalculationsAndCharts!$A$8 -> 841 | D2: Logically Available Bars on the "CalculationsAndCharts" tab constitute a
D3: ="Transaction reporting period extending from " & TEXT(OFFSET(CalculationsAndCharts!$B$32,CalculationsAndCharts!$A$8,0,1,1),"mm/dd/yyyy") & " to "& TEXT(CalculationsAndCharts!$B$33,"mm/dd/yyyy") -> Transaction reporting period extending from 10/14/2009 to 02/15/2013
B4: Summary for LONG trades | K4: Summary for SHORT trades
B5: =COUNT(OFFSET(B15,0,0,C2,1)) -> 35 | C5: LONG trades opened in this time period | K5: =COUNT(OFFSET(K15,0,0,$C$2,1)) -> 21 | L5: Short trades opened in this time period
B6: =COUNTIF(OFFSET(H15,0,0,B5,1),">0") -> 14 | C6: Winners | D6: Biggest Win | E6: =MAX(OFFSET(H15,0,0,B5,1)) -> 3.562 | H6: Sum of Gains | I6: =SUMIF(OFFSET(H15,0,0,B5,1),">0") -> 20.066 | K6: =COUNTIF(OFFSET(Q15,0,0,K5,1),">0") -> 8 | L6: Winners | M6: Biggest Win | N6: =MAX(OFFSET(Q15,0,0,K5,1)) -> 5.486 | Q6: Sum of Gains | R6: =SUMIF(OFFSET(Q15,0,0,K5,1),">0") -> 6.824
B7: =COUNTIF(OFFSET(H15,0,0,B5,1),"<0") -> 21 | C7: Losers | D7: Biggest Loss | E7: =MIN(OFFSET(H15,0,0,B5,1)) -> -1.228 | H7: Sum of Losses | I7: =SUMIF(OFFSET(H15,0,0,B5,1),"<0") -> -7.254 | K7: =COUNTIF(OFFSET(Q15,0,0,K5,1),"<0") -> 13 | L7: Losers | M7: Biggest Loss | N7: =MIN(OFFSET(Q15,0,0,K5,1)) -> -2.11 | Q7: Sum of Losses | R7: =SUMIF(OFFSET(Q15,0,0,K5,1),"<0") -> -5.784
H8: NET change for Period | I8: =SUM(OFFSET(H15,0,0,B5,1)) -> 12.812 | Q8: NET change for Period | R8: =SUM(OFFSET(Q15,0,0,K5,1)) -> 1.04
H10: Largest Negative Account Balance | I10: =MIN(OFFSET(I15,0,0,B5,1)) -> -1.896 | Q10: Largest Negative Account Balance | R10: =MIN(OFFSET(R15,0,0,K5,1)) -> -3.132
H11: Implies minimum opening balance of | I11: =I10*-2 -> 3.792 | Q11: Implies minimum opening balance of | R11: =R10*-2 -> 6.264
E12: =MATCH(TRUE,OFFSET(CalculationsAndCharts!$S$33,0,0,'Transaction Summary'!C2,1),0) -> 13 | F12: =IF($E$12>$B$15,"1 st Trade Marked to Close","") -> 1 st Trade Marked to Close | N12: =MATCH(TRUE,OFFSET(CalculationsAndCharts!$AA$33,0,0,'Transaction Summary'!$C$2,1),0) -> 134 | O12: =IF($N$12>$K$15,"1 st Trade Marked to Close","") -> 
C13: Enter Long | F13: Exit Long | H13: Trade Result | I13: Running Balance | L13: Enter Short | O13: Exit Short | Q13: Trade Result | R13: Running Balance
B14: Rel Row | C14: Date | D14: $ | E14: Rel Row | F14: Date | G14: $ | K14: Rel Row | L14: Date | M14: $ | N14: Rel Row | O14: Date | P14: $
B15: =MATCH(TRUE,OFFSET(CalculationsAndCharts!$P$33,0,0,'Transaction Summary'!$C$2,1),0) -> 11 | C15: =OFFSET(CalculationsAndCharts!$B$32,'Transaction Summary'!B15,0,1,1) -> 2013-02-01 | D15: =OFFSET(CalculationsAndCharts!$T$32,'Transaction Summary'!B15,0,1,1) -> 42.728 | E15: =IF($E$12>$B$15,"OPEN",$E$12) -> OPEN | F15: =IF($E$12>$B$15,CalculationsAndCharts!B33,OFFSET(CalculationsAndCharts!$B$32,'Transaction Summary'!E15,0,1,1)) -> 2013-02-15 | G15: =IF($E$12>$B$15,CalculationsAndCharts!G33,OFFSET(CalculationsAndCharts!$U$32,'Transaction Summary'!E15,0,1,1)) -> 43.84 | H15: =G15-D15 -> 1.112 | I15: =H15+IF(ISNA(I16),0,I16) -> 12.812 | K15: =MATCH(TRUE,OFFSET(CalculationsAndCharts!$Y$33,0,0,'Transaction Summary'!$C$2,1),0) -> 135 | L15: =OFFSET(CalculationsAndCharts!$B$32,'Transaction Summary'!K15,0,1,1) -> 2012-08-02 | M15: =OFFSET(CalculationsAndCharts!$AB$32,'Transaction Summary'!K15,0,1,1) -> 26.24 | N15: =IF($N$12>$K$15,"OPEN",$N$12) -> 134 | O15: =IF($N$12>$K$15,CalculationsAndCharts!K33,OFFSET(CalculationsAndCharts!$B$32,'Transaction Summary'!N15,0,1,1)) -> 2012-08-03 | P15: =IF($N$12>$K$15,CalculationsAndCharts!G33,OFFSET(CalculationsAndCharts!$AC$32,'Transaction Summary'!N15,0,1,1)) -> 27.246 | Q15: =M15-P15 -> -1.006 | R15: =Q15+IF(ISNA(R16),0,R16) -> 1.04
B16: =MATCH(TRUE,OFFSET(CalculationsAndCharts!$P$33,B15,0,'Transaction Summary'!$C$2-B15,1),0)+B15 -> 18 | C16: =OFFSET(CalculationsAndCharts!$B$32,'Transaction Summary'!B16,0,1,1) -> 2013-01-23 | D16: =OFFSET(CalculationsAndCharts!$T$32,'Transaction Summary'!B16,0,1,1) -> 42.204 | E16: =IF($E$12>$B$15,$E$12,MATCH(TRUE,OFFSET(CalculationsAndCharts!$S$33,E15,0,'Transaction Summary'!$C$2-E15,1),0)+E15) -> 13 | F16: =OFFSET(CalculationsAndCharts!$B$32,'Transaction Summary'!E16,0,1,1) -> 2013-01-30 | G16: =OFFSET(CalculationsAndCharts!$U$32,'Transaction Summary'!E16,0,1,1) -> 41.99 | H16: =G16-D16 -> -0.214 | I16: 11.7 | K16: =MATCH(TRUE,OFFSET(CalculationsAndCharts!$Y$33,K15,0,'Transaction Summary'!$C$2-K15,1),0)+K15 -> 144 | L16: =OFFSET(CalculationsAndCharts!$B$32,'Transaction Summary'!K16,0,1,1) -> 2012-07-20 | M16: =OFFSET(CalculationsAndCharts!$AB$32,'Transaction Summary'!K16,0,1,1) -> 26.26 | N16: =IF($N$12>$K$15,$N$12,MATCH(TRUE,OFFSET(CalculationsAndCharts!$AA$33,N15,0,'Transaction Summary'!$C$2-N15,1),0)+N15) -> 140 | O16: =OFFSET(CalculationsAndCharts!$B$32,'Transaction Summary'!N16,0,1,1) -> 2012-07-26 | P16: =OFFSET(CalculationsAndCharts!$AC$32,'Transaction Summary'!N16,0,1,1) -> 26.47 | Q16: =M16-P16 -> -0.21 | R16: 2.046
B17: =MATCH(TRUE,OFFSET(CalculationsAndCharts!$P$33,B16,0,'Transaction Summary'!$C$2-B16,1),0)+B16 -> 32 | C17: =OFFSET(CalculationsAndCharts!$B$32,'Transaction Summary'!B17,0,1,1) -> 2013-01-02 | D17: =OFFSET(CalculationsAndCharts!$T$32,'Transaction Summary'!B17,0,1,1) -> 40.91 | E17: =MATCH(TRUE,OFFSET(CalculationsAndCharts!$S$33,E16,0,'Transaction Summary'!$C$2-E16,1),0)+E16 -> 24 | F17: =OFFSET(CalculationsAndCharts!$B$32,'Transaction Summary'!E17,0,1,1) -> 2013-01-14 | G17: =OFFSET(CalculationsAndCharts!$U$32,'Transaction Summary'!E17,0,1,1) -> 41.942 | H17: 1.032 | I17: 11.914 | K17: =MATCH(TRUE,OFFSET(CalculationsAndCharts!$Y$33,K16,0,'Transaction Summary'!$C$2-K16,1),0)+K16 -> 154 | L17: =OFFSET(CalculationsAndCharts!$B$32,'Transaction Summary'!K17,0,1,1) -> 2012-07-06 | M17: =OFFSET(CalculationsAndCharts!$AB$32,'Transaction Summary'!K17,0,1,1) -> 26.44 | N17: =IF($N$12>$K$15,$N$12,MATCH(TRUE,OFFSET(CalculationsAndCharts!$AA$33,N16,0,'Transaction Summary'!$C$2-N16,1),0)+N16) -> 149 | O17: =OFFSET(CalculationsAndCharts!$B$32,'Transaction Summary'!N17,0,1,1) -> 2012-07-13 | P17: =OFFSET(CalculationsAndCharts!$AC$32,'Transaction Summary'!N17,0,1,1) -> 26.374 | Q17: =M17-P17 -> 0.066 | R17: =Q17+IF(ISNA(R18),0,R18) -> 2.256
B18: =MATCH(TRUE,OFFSET(CalculationsAndCharts!$P$33,B17,0,'Transaction Summary'!$C$2-B17,1),0)+B17 -> 42 | C18: =OFFSET(CalculationsAndCharts!$B$32,'Transaction Summary'!B18,0,1,1) -> 2012-12-17 | D18: =OFFSET(CalculationsAndCharts!$T$32,'Transaction Summary'!B18,0,1,1) -> 37.77 | E18: =MATCH(TRUE,OFFSET(CalculationsAndCharts!$S$33,E17,0,'Transaction Summary'!$C$2-E17,1),0)+E17 -> 35 | F18: =OFFSET(CalculationsAndCharts!$B$32,'Transaction Summary'!E18,0,1,1) -> 2012-12-27 | G18: =OFFSET(CalculationsAndCharts!$U$32,'Transaction Summary'!E18,0,1,1) -> 39.09 | H18: =G18-D18 -> 1.32 | I18: 10.882 | K18: =MATCH(TRUE,OFFSET(CalculationsAndCharts!$Y$33,K17,0,'Transaction Summary'!$C$2-K17,1),0)+K17 -> 162 | L18: =OFFSET(CalculationsAndCharts!$B$32,'Transaction Summary'!K18,0,1,1) -> 2012-06-25 | M18: =OFFSET(CalculationsAndCharts!$AB$32,'Transaction Summary'!K18,0,1,1) -> 27.26 | N18: =IF($N$12>$K$15,$N$12,MATCH(TRUE,OFFSET(CalculationsAndCharts!$AA$33,N17,0,'Transaction Summary'!$C$2-N17,1),0)+N17) -> 158 | O18: =OFFSET(CalculationsAndCharts!$B$32,'Transaction Summary'!N18,0,1,1) -> 2012-06-29 | P18: =OFFSET(CalculationsAndCharts!$AC$32,'Transaction Summary'!N18,0,1,1) -> 27.45 | Q18: -0.19 | R18: 2.19
B19: =MATCH(TRUE,OFFSET(CalculationsAndCharts!$P$33,B18,0,'Transaction Summary'!$C$2-B18,1),0)+B18 -> 61 | C19: =OFFSET(CalculationsAndCharts!$B$32,'Transaction Summary'!B19,0,1,1) -> 2012-11-19 | D19: =OFFSET(CalculationsAndCharts!$T$32,'Transaction Summary'!B19,0,1,1) -> 36.266 | E19: =MATCH(TRUE,OFFSET(CalculationsAndCharts!$S$33,E18,0,'Transaction Summary'!$C$2-E18,1),0)+E18 -> 57 | F19: =OFFSET(CalculationsAndCharts!$B$32,'Transaction Summary'!E19,0,1,1) -> 2012-11-26 | G19: =OFFSET(CalculationsAndCharts!$U$32,'Transaction Summary'!E19,0,1,1) -> 35.394 | H19: -0.872 | I19: 9.562 | K19: =MATCH(TRUE,OFFSET(CalculationsAndCharts!$Y$33,K18,0,'Transaction Summary'!$C$2-K18,1),0)+K18 -> 180 | L19: =OFFSET(CalculationsAndCharts!$B$32,'Transaction Summary'!K19,0,1,1) -> 2012-05-30 | M19: =OFFSET(CalculationsAndCharts!$AB$32,'Transaction Summary'!K19,0,1,1) -> 26.336 | N19: =IF($N$12>$K$15,$N$12,MATCH(TRUE,OFFSET(CalculationsAndCharts!$AA$33,N18,0,'Transaction Summary'!$C$2-N18,1),0)+N18) -> 175 | O19: =OFFSET(CalculationsAndCharts!$B$32,'Transaction Summary'!N19,0,1,1) -> 2012-06-06 | P19: =OFFSET(CalculationsAndCharts!$AC$32,'Transaction Summary'!N19,0,1,1) -> 26.31 | Q19: 0.026 | R19: 2.38
B20: =MATCH(TRUE,OFFSET(CalculationsAndCharts!$P$33,B19,0,'Transaction Summary'!$C$2-B19,1),0)+B19 -> 73 | C20: =OFFSET(CalculationsAndCharts!$B$32,'Transaction Summary'!B20,0,1,1) -> 2012-11-01 | D20: =OFFSET(CalculationsAndCharts!$T$32,'Transaction Summary'!B20,0,1,1) -> 37.576 | E20: =MATCH(TRUE,OFFSET(CalculationsAndCharts!$S$33,E19,0,'Transaction Summary'!$C$2-E19,1),0)+E19 -> 71 | F20: =OFFSET(CalculationsAndCharts!$B$32,'Transaction Summary'!E20,0,1,1) -> 2012-11-05 | G20: =OFFSET(CalculationsAndCharts!$U$32,'Transaction Summary'!E20,0,1,1) -> 36.996 | H20: -0.58 | I20: 10.434 | K20: =MATCH(TRUE,OFFSET(CalculationsAndCharts!$Y$33,K19,0,'Transaction Summary'!$C$2-K19,1),0)+K19 -> 201 | L20: =OFFSET(CalculationsAndCharts!$B$32,'Transaction Summary'!K20,0,1,1) -> 2012-04-30 | M20: =OFFSET(CalculationsAndCharts!$AB$32,'Transaction Summary'!K20,0,1,1) -> 33.032 | N20: =IF($N$12>$K$15,$N$12,MATCH(TRUE,OFFSET(CalculationsAndCharts!$AA$33,N19,0,'Transaction Summary'!$C$2-N19,1),0)+N19) -> 185 | O20: =OFFSET(CalculationsAndCharts!$B$32,'Transaction Summary'!N20,0,1,1) -> 2012-05-22 | P20: =OFFSET(CalculationsAndCharts!$AC$32,'Transaction Summary'!N20,0,1,1) -> 27.546 | Q20: 5.486 | R20: 2.354
B21: =MATCH(TRUE,OFFSET(CalculationsAndCharts!$P$33,B20,0,'Transaction Summary'!$C$2-B20,1),0)+B20 -> 94 | C21: =OFFSET(CalculationsAndCharts!$B$32,'Transaction Summary'!B21,0,1,1) -> 2012-10-01 | D21: =OFFSET(CalculationsAndCharts!$T$32,'Transaction Summary'!B21,0,1,1) -> 33.436 | E21: =MATCH(TRUE,OFFSET(CalculationsAndCharts!$S$33,E20,0,'Transaction Summary'!$C$2-E20,1),0)+E20 -> 78 | F21: =OFFSET(CalculationsAndCharts!$B$32,'Transaction Summary'!E21,0,1,1) -> 2012-10-23 | G21: =OFFSET(CalculationsAndCharts!$U$32,'Transaction Summary'!E21,0,1,1) -> 36.99 | H21: 3.554 | I21: 11.014 | K21: =MATCH(TRUE,OFFSET(CalculationsAndCharts!$Y$33,K20,0,'Transaction Summary'!$C$2-K20,1),0)+K20 -> 285 | L21: =OFFSET(CalculationsAndCharts!$B$32,'Transaction Summary'!K21,0,1,1) -> 2011-12-28 | M21: =OFFSET(CalculationsAndCharts!$AB$32,'Transaction Summary'!K21,0,1,1) -> 26.176 | N21: =IF($N$12>$K$15,$N$12,MATCH(TRUE,OFFSET(CalculationsAndCharts!$AA$33,N20,0,'Transaction Summary'!$C$2-N20,1),0)+N20) -> 282 | O21: =OFFSET(CalculationsAndCharts!$B$32,'Transaction Summary'!N21,0,1,1) -> 2012-01-03 | P21: =OFFSET(CalculationsAndCharts!$AC$32,'Transaction Summary'!N21,0,1,1) -> 27.262 | Q21: -1.086 | R21: -3.132
B22: =MATCH(TRUE,OFFSET(CalculationsAndCharts!$P$33,B21,0,'Transaction Summary'!$C$2-B21,1),0)+B21 -> 114 | C22: =OFFSET(CalculationsAndCharts!$B$32,'Transaction Summary'!B22,0,1,1) -> 2012-08-31 | D22: =OFFSET(CalculationsAndCharts!$T$32,'Transaction Summary'!B22,0,1,1) -> 29.998 | E22: =MATCH(TRUE,OFFSET(CalculationsAndCharts!$S$33,E21,0,'Transaction Summary'!$C$2-E21,1),0)+E21 -> 101 | F22: =OFFSET(CalculationsAndCharts!$B$32,'Transaction Summary'!E22,0,1,1) -> 2012-09-20 | G22: =OFFSET(CalculationsAndCharts!$U$32,'Transaction Summary'!E22,0,1,1) -> 33.56 | H22: 3.562 | I22: 7.46 | K22: =MATCH(TRUE,OFFSET(CalculationsAndCharts!$Y$33,K21,0,'Transaction Summary'!$C$2-K21,1),0)+K21 -> 345 | L22: =OFFSET(CalculationsAndCharts!$B$32,'Transaction Summary'!K22,0,1,1) -> 2011-10-03 | M22: =OFFSET(CalculationsAndCharts!$AB$32,'Transaction Summary'!K22,0,1,1) -> 25.16 | N22: =IF($N$12>$K$15,$N$12,MATCH(TRUE,OFFSET(CalculationsAndCharts!$AA$33,N21,0,'Transaction Summary'!$C$2-N21,1),0)+N21) -> 342 | O22: =OFFSET(CalculationsAndCharts!$B$32,'Transaction Summary'!N22,0,1,1) -> 2011-10-06 | P22: =OFFSET(CalculationsAndCharts!$AC$32,'Transaction Summary'!N22,0,1,1) -> 25.808 | Q22: -0.648 | R22: -2.046
B23: =MATCH(TRUE,OFFSET(CalculationsAndCharts!$P$33,B22,0,'Transaction Summary'!$C$2-B22,1),0)+B22 -> 124 | C23: =OFFSET(CalculationsAndCharts!$B$32,'Transaction Summary'!B23,0,1,1) -> 2012-08-17 | D23: =OFFSET(CalculationsAndCharts!$T$32,'Transaction Summary'!B23,0,1,1) -> 29.096 | E23: =MATCH(TRUE,OFFSET(CalculationsAndCharts!$S$33,E22,0,'Transaction Summary'!$C$2-E22,1),0)+E22 -> 119 | F23: =OFFSET(CalculationsAndCharts!$B$32,'Transaction Summary'!E23,0,1,1) -> 2012-08-24 | G23: =OFFSET(CalculationsAndCharts!$U$32,'Transaction Summary'!E23,0,1,1) -> 29.33 | H23: 0.234 | I23: 3.898 | K23: =MATCH(TRUE,OFFSET(CalculationsAndCharts!$Y$33,K22,0,'Transaction Summary'!$C$2-K22,1),0)+K22 -> 354 | L23: =OFFSET(CalculationsAndCharts!$B$32,'Transaction Summary'!K23,0,1,1) -> 2011-09-20 | M23: =OFFSET(CalculationsAndCharts!$AB$32,'Transaction Summary'!K23,0,1,1) -> 27.262 | N23: =IF($N$12>$K$15,$N$12,MATCH(TRUE,OFFSET(CalculationsAndCharts!$AA$33,N22,0,'Transaction Summary'!$C$2-N22,1),0)+N22) -> 350 | O23: =OFFSET(CalculationsAndCharts!$B$32,'Transaction Summary'!N23,0,1,1) -> 2011-09-26 | P23: =OFFSET(CalculationsAndCharts!$AC$32,'Transaction Summary'!N23,0,1,1) -> 26.736 | Q23: 0.526 | R23: -1.398
B24: =MATCH(TRUE,OFFSET(CalculationsAndCharts!$P$33,B23,0,'Transaction Summary'!$C$2-B23,1),0)+B23 -> 237 | C24: =OFFSET(CalculationsAndCharts!$B$32,'Transaction Summary'!B24,0,1,1) -> 2012-03-08 | D24: =OFFSET(CalculationsAndCharts!$T$32,'Transaction Summary'!B24,0,1,1) -> 33.898 | E24: =MATCH(TRUE,OFFSET(CalculationsAndCharts!$S$33,E23,0,'Transaction Summary'!$C$2-E23,1),0)+E23 -> 226 | F24: =OFFSET(CalculationsAndCharts!$B$32,'Transaction Summary'!E24,0,1,1) -> 2012-03-23 | G24: =OFFSET(CalculationsAndCharts!$U$32,'Transaction Summary'!E24,0,1,1) -> 36.68 | H24: 2.782 | I24: 3.664 | K24: =MATCH(TRUE,OFFSET(CalculationsAndCharts!$Y$33,K23,0,'Transaction Summary'!$C$2-K23,1),0)+K23 -> 365 | L24: =OFFSET(CalculationsAndCharts!$B$32,'Transaction Summary'!K24,0,1,1) -> 2011-09-02 | M24: =OFFSET(CalculationsAndCharts!$AB$32,'Transaction Summary'!K24,0,1,1) -> 28.42 | N24: =IF($N$12>$K$15,$N$12,MATCH(TRUE,OFFSET(CalculationsAndCharts!$AA$33,N23,0,'Transaction Summary'!$C$2-N23,1),0)+N23) -> 357 | O24: =OFFSET(CalculationsAndCharts!$B$32,'Transaction Summary'!N24,0,1,1) -> 2011-09-15 | P24: =OFFSET(CalculationsAndCharts!$AC$32,'Transaction Summary'!N24,0,1,1) -> 27.92 | Q24: 0.5 | R24: -1.924
B25: =MATCH(TRUE,OFFSET(CalculationsAndCharts!$P$33,B24,0,'Transaction Summary'!$C$2-B24,1),0)+B24 -> 244 | C25: =OFFSET(CalculationsAndCharts!$B$32,'Transaction Summary'!B25,0,1,1) -> 2012-02-28 | D25: =OFFSET(CalculationsAndCharts!$T$32,'Transaction Summary'!B25,0,1,1) -> 33.16 | E25: =MATCH(TRUE,OFFSET(CalculationsAndCharts!$S$33,E24,0,'Transaction Summary'!$C$2-E24,1),0)+E24 -> 239 | F25: =OFFSET(CalculationsAndCharts!$B$32,'Transaction Summary'!E25,0,1,1) -> 2012-03-06 | G25: =OFFSET(CalculationsAndCharts!$U$32,'Transaction Summary'!E25,0,1,1) -> 32.76 | H25: -0.4 | I25: 0.882 | K25: =MATCH(TRUE,OFFSET(CalculationsAndCharts!$Y$33,K24,0,'Transaction Summary'!$C$2-K24,1),0)+K24 -> 376 | L25: =OFFSET(CalculationsAndCharts!$B$32,'Transaction Summary'!K25,0,1,1) -> 2011-08-18 | M25: =OFFSET(CalculationsAndCharts!$AB$32,'Transaction Summary'!K25,0,1,1) -> 28.7 | N25: =IF($N$12>$K$15,$N$12,MATCH(TRUE,OFFSET(CalculationsAndCharts!$AA$33,N24,0,'Transaction Summary'!$C$2-N24,1),0)+N24) -> 371 | O25: =OFFSET(CalculationsAndCharts!$B$32,'Transaction Summary'!N25,0,1,1) -> 2011-08-25 | P25: =OFFSET(CalculationsAndCharts!$AC$32,'Transaction Summary'!N25,0,1,1) -> 30.81 | Q25: -2.11 | R25: -2.424
B26: =MATCH(TRUE,OFFSET(CalculationsAndCharts!$P$33,B25,0,'Transaction Summary'!$C$2-B25,1),0)+B25 -> 250 | C26: =OFFSET(CalculationsAndCharts!$B$32,'Transaction Summary'!B26,0,1,1) -> 2012-02-17 | D26: =OFFSET(CalculationsAndCharts!$T$32,'Transaction Summary'!B26,0,1,1) -> 33.032 | E26: =MATCH(TRUE,OFFSET(CalculationsAndCharts!$S$33,E25,0,'Transaction Summary'!$C$2-E25,1),0)+E25 -> 247 | F26: =OFFSET(CalculationsAndCharts!$B$32,'Transaction Summary'!E26,0,1,1) -> 2012-02-23 | G26: =OFFSET(CalculationsAndCharts!$U$32,'Transaction Summary'!E26,0,1,1) -> 32.082 | H26: -0.95 | I26: 1.282 | K26: =MATCH(TRUE,OFFSET(CalculationsAndCharts!$Y$33,K25,0,'Transaction Summary'!$C$2-K25,1),0)+K25 -> 463 | L26: =OFFSET(CalculationsAndCharts!$B$32,'Transaction Summary'!K26,0,1,1) -> 2011-04-14 | M26: =OFFSET(CalculationsAndCharts!$AB$32,'Transaction Summary'!K26,0,1,1) -> 4.464 | N26: =IF($N$12>$K$15,$N$12,MATCH(TRUE,OFFSET(CalculationsAndCharts!$AA$33,N25,0,'Transaction Summary'!$C$2-N25,1),0)+N25) -> 460 | O26: =OFFSET(CalculationsAndCharts!$B$32,'Transaction Summary'!N26,0,1,1) -> 2011-04-19 | P26: =OFFSET(CalculationsAndCharts!$AC$32,'Transaction Summary'!N26,0,1,1) -> 4.536 | Q26: -0.072 | R26: -0.314
B27: =MATCH(TRUE,OFFSET(CalculationsAndCharts!$P$33,B26,0,'Transaction Summary'!$C$2-B26,1),0)+B26 -> 269 | C27: =OFFSET(CalculationsAndCharts!$B$32,'Transaction Summary'!B27,0,1,1) -> 2012-01-23 | D27: =OFFSET(CalculationsAndCharts!$T$32,'Transaction Summary'!B27,0,1,1) -> 29.998 | E27: =MATCH(TRUE,OFFSET(CalculationsAndCharts!$S$33,E26,0,'Transaction Summary'!$C$2-E26,1),0)+E26 -> 255 | F27: =OFFSET(CalculationsAndCharts!$B$32,'Transaction Summary'!E27,0,1,1) -> 2012-02-10 | G27: =OFFSET(CalculationsAndCharts!$U$32,'Transaction Summary'!E27,0,1,1) -> 32.97 | H27: 2.972 | I27: 2.232 | K27: =MATCH(TRUE,OFFSET(CalculationsAndCharts!$Y$33,K26,0,'Transaction Summary'!$C$2-K26,1),0)+K26 -> 479 | L27: =OFFSET(CalculationsAndCharts!$B$32,'Transaction Summary'!K27,0,1,1) -> 2011-03-23 | M27: =OFFSET(CalculationsAndCharts!$AB$32,'Transaction Summary'!K27,0,1,1) -> 4.35 | N27: =IF($N$12>$K$15,$N$12,MATCH(TRUE,OFFSET(CalculationsAndCharts!$AA$33,N26,0,'Transaction Summary'!$C$2-N26,1),0)+N26) -> 474 | O27: =OFFSET(CalculationsAndCharts!$B$32,'Transaction Summary'!N27,0,1,1) -> 2011-03-30 | P27: =OFFSET(CalculationsAndCharts!$AC$32,'Transaction Summary'!N27,0,1,1) -> 4.46 | Q27: -0.11 | R27: -0.242
B28: =MATCH(TRUE,OFFSET(CalculationsAndCharts!$P$33,B27,0,'Transaction Summary'!$C$2-B27,1),0)+B27 -> 319 | C28: =OFFSET(CalculationsAndCharts!$B$32,'Transaction Summary'!B28,0,1,1) -> 2011-11-08 | D28: =OFFSET(CalculationsAndCharts!$T$32,'Transaction Summary'!B28,0,1,1) -> 31.06 | E28: =MATCH(TRUE,OFFSET(CalculationsAndCharts!$S$33,E27,0,'Transaction Summary'!$C$2-E27,1),0)+E27 -> 318 | F28: =OFFSET(CalculationsAndCharts!$B$32,'Transaction Summary'!E28,0,1,1) -> 2011-11-09 | G28: =OFFSET(CalculationsAndCharts!$U$32,'Transaction Summary'!E28,0,1,1) -> 29.832 | H28: -1.228 | I28: -0.74 | K28: =MATCH(TRUE,OFFSET(CalculationsAndCharts!$Y$33,K27,0,'Transaction Summary'!$C$2-K27,1),0)+K27 -> 486 | L28: =OFFSET(CalculationsAndCharts!$B$32,'Transaction Summary'!K28,0,1,1) -> 2011-03-14 | M28: =OFFSET(CalculationsAndCharts!$AB$32,'Transaction Summary'!K28,0,1,1) -> 4.486 | N28: =IF($N$12>$K$15,$N$12,MATCH(TRUE,OFFSET(CalculationsAndCharts!$AA$33,N27,0,'Transaction Summary'!$C$2-N27,1),0)+N27) -> 482 | O28: =OFFSET(CalculationsAndCharts!$B$32,'Transaction Summary'!N28,0,1,1) -> 2011-03-18 | P28: =OFFSET(CalculationsAndCharts!$AC$32,'Transaction Summary'!N28,0,1,1) -> 4.51 | Q28: -0.024 | R28: -0.132
B29: =MATCH(TRUE,OFFSET(CalculationsAndCharts!$P$33,B28,0,'Transaction Summary'!$C$2-B28,1),0)+B28 -> 396 | C29: =OFFSET(CalculationsAndCharts!$B$32,'Transaction Summary'!B29,0,1,1) -> 2011-07-21 | D29: =OFFSET(CalculationsAndCharts!$T$32,'Transaction Summary'!B29,0,1,1) -> 39.212 | E29: =MATCH(TRUE,OFFSET(CalculationsAndCharts!$S$33,E28,0,'Transaction Summary'!$C$2-E28,1),0)+E28 -> 392 | F29: =OFFSET(CalculationsAndCharts!$B$32,'Transaction Summary'!E29,0,1,1) -> 2011-07-27 | G29: =OFFSET(CalculationsAndCharts!$U$32,'Transaction Summary'!E29,0,1,1) -> 39.148 | H29: -0.064 | I29: 0.488 | K29: =MATCH(TRUE,OFFSET(CalculationsAndCharts!$Y$33,K28,0,'Transaction Summary'!$C$2-K28,1),0)+K28 -> 495 | L29: =OFFSET(CalculationsAndCharts!$B$32,'Transaction Summary'!K29,0,1,1) -> 2011-03-01 | M29: =OFFSET(CalculationsAndCharts!$AB$32,'Transaction Summary'!K29,0,1,1) -> 4.58 | N29: =IF($N$12>$K$15,$N$12,MATCH(TRUE,OFFSET(CalculationsAndCharts!$AA$33,N28,0,'Transaction Summary'!$C$2-N28,1),0)+N28) -> 490 | O29: =OFFSET(CalculationsAndCharts!$B$32,'Transaction Summary'!N29,0,1,1) -> 2011-03-08 | P29: =OFFSET(CalculationsAndCharts!$AC$32,'Transaction Summary'!N29,0,1,1) -> 4.642 | Q29: -0.062 | R29: -0.108
B30: =MATCH(TRUE,OFFSET(CalculationsAndCharts!$P$33,B29,0,'Transaction Summary'!$C$2-B29,1),0)+B29 -> 417 | C30: =OFFSET(CalculationsAndCharts!$B$32,'Transaction Summary'!B30,0,1,1) -> 2011-06-21 | D30: =OFFSET(CalculationsAndCharts!$T$32,'Transaction Summary'!B30,0,1,1) -> 38.832 | E30: =MATCH(TRUE,OFFSET(CalculationsAndCharts!$S$33,E29,0,'Transaction Summary'!$C$2-E29,1),0)+E29 -> 404 | F30: =OFFSET(CalculationsAndCharts!$B$32,'Transaction Summary'!E30,0,1,1) -> 2011-07-11 | G30: =OFFSET(CalculationsAndCharts!$U$32,'Transaction Summary'!E30,0,1,1) -> 41.28 | H30: 2.448 | I30: 0.552 | K30: =MATCH(TRUE,OFFSET(CalculationsAndCharts!$Y$33,K29,0,'Transaction Summary'!$C$2-K29,1),0)+K29 -> 604 | L30: =OFFSET(CalculationsAndCharts!$B$32,'Transaction Summary'!K30,0,1,1) -> 2010-09-23 | M30: =OFFSET(CalculationsAndCharts!$AB$32,'Transaction Summary'!K30,0,1,1) -> 3.84 | N30: =IF($N$12>$K$15,$N$12,MATCH(TRUE,OFFSET(CalculationsAndCharts!$AA$33,N29,0,'Transaction Summary'!$C$2-N29,1),0)+N29) -> 600 | O30: =OFFSET(CalculationsAndCharts!$B$32,'Transaction Summary'!N30,0,1,1) -> 2010-09-29 | P30: =OFFSET(CalculationsAndCharts!$AC$32,'Transaction Summary'!N30,0,1,1) -> 3.922 | Q30: -0.082 | R30: -0.046
B31: =MATCH(TRUE,OFFSET(CalculationsAndCharts!$P$33,B30,0,'Transaction Summary'!$C$2-B30,1),0)+B30 -> 423 | C31: =OFFSET(CalculationsAndCharts!$B$32,'Transaction Summary'!B31,0,1,1) -> 2011-06-13 | D31: =OFFSET(CalculationsAndCharts!$T$32,'Transaction Summary'!B31,0,1,1) -> 38.55 | E31: =MATCH(TRUE,OFFSET(CalculationsAndCharts!$S$33,E30,0,'Transaction Summary'!$C$2-E30,1),0)+E30 -> 421 | F31: =OFFSET(CalculationsAndCharts!$B$32,'Transaction Summary'!E31,0,1,1) -> 2011-06-15 | G31: =OFFSET(CalculationsAndCharts!$U$32,'Transaction Summary'!E31,0,1,1) -> 37.386 | H31: -1.164 | I31: -1.896 | K31: =MATCH(TRUE,OFFSET(CalculationsAndCharts!$Y$33,K30,0,'Transaction Summary'!$C$2-K30,1),0)+K30 -> 628 | L31: =OFFSET(CalculationsAndCharts!$B$32,'Transaction Summary'!K31,0,1,1) -> 2010-08-19 | M31: =OFFSET(CalculationsAndCharts!$AB$32,'Transaction Summary'!K31,0,1,1) -> 3.796 | N31: =IF($N$12>$K$15,$N$12,MATCH(TRUE,OFFSET(CalculationsAndCharts!$AA$33,N30,0,'Transaction Summary'!$C$2-N30,1),0)+N30) -> 619 | O31: =OFFSET(CalculationsAndCharts!$B$32,'Transaction Summary'!N31,0,1,1) -> 2010-09-01 | P31: =OFFSET(CalculationsAndCharts!$AC$32,'Transaction Summary'!N31,0,1,1) -> 3.75 | Q31: 0.046 | R31: 0.036
B32: =MATCH(TRUE,OFFSET(CalculationsAndCharts!$P$33,B31,0,'Transaction Summary'!$C$2-B31,1),0)+B31 -> 433 | C32: =OFFSET(CalculationsAndCharts!$B$32,'Transaction Summary'!B32,0,1,1) -> 2011-05-27 | D32: =OFFSET(CalculationsAndCharts!$T$32,'Transaction Summary'!B32,0,1,1) -> 40.92 | E32: =MATCH(TRUE,OFFSET(CalculationsAndCharts!$S$33,E31,0,'Transaction Summary'!$C$2-E31,1),0)+E31 -> 431 | F32: =OFFSET(CalculationsAndCharts!$B$32,'Transaction Summary'!E32,0,1,1) -> 2011-06-01 | G32: =OFFSET(CalculationsAndCharts!$U$32,'Transaction Summary'!E32,0,1,1) -> 40.14 | H32: -0.78 | I32: -0.732 | K32: =MATCH(TRUE,OFFSET(CalculationsAndCharts!$Y$33,K31,0,'Transaction Summary'!$C$2-K31,1),0)+K31 -> 668 | L32: =OFFSET(CalculationsAndCharts!$B$32,'Transaction Summary'!K32,0,1,1) -> 2010-06-23 | M32: =OFFSET(CalculationsAndCharts!$AB$32,'Transaction Summary'!K32,0,1,1) -> 3.894 | N32: =IF($N$12>$K$15,$N$12,MATCH(TRUE,OFFSET(CalculationsAndCharts!$AA$33,N31,0,'Transaction Summary'!$C$2-N31,1),0)+N31) -> 665 | O32: =OFFSET(CalculationsAndCharts!$B$32,'Transaction Summary'!N32,0,1,1) -> 2010-06-28 | P32: =OFFSET(CalculationsAndCharts!$AC$32,'Transaction Summary'!N32,0,1,1) -> 3.978 | Q32: -0.084 | R32: -0.01
B33: =MATCH(TRUE,OFFSET(CalculationsAndCharts!$P$33,B32,0,'Transaction Summary'!$C$2-B32,1),0)+B32 -> 504 | C33: =OFFSET(CalculationsAndCharts!$B$32,'Transaction Summary'!B33,0,1,1) -> 2011-02-15 | D33: =OFFSET(CalculationsAndCharts!$T$32,'Transaction Summary'!B33,0,1,1) -> 4.936 | E33: =MATCH(TRUE,OFFSET(CalculationsAndCharts!$S$33,E32,0,'Transaction Summary'!$C$2-E32,1),0)+E32 -> 500 | F33: =OFFSET(CalculationsAndCharts!$B$32,'Transaction Summary'!E33,0,1,1) -> 2011-02-22 | G33: =OFFSET(CalculationsAndCharts!$U$32,'Transaction Summary'!E33,0,1,1) -> 4.84 | H33: -0.096 | I33: 0.048 | K33: =MATCH(TRUE,OFFSET(CalculationsAndCharts!$Y$33,K32,0,'Transaction Summary'!$C$2-K32,1),0)+K32 -> 681 | L33: =OFFSET(CalculationsAndCharts!$B$32,'Transaction Summary'!K33,0,1,1) -> 2010-06-04 | M33: =OFFSET(CalculationsAndCharts!$AB$32,'Transaction Summary'!K33,0,1,1) -> 3.85 | N33: =IF($N$12>$K$15,$N$12,MATCH(TRUE,OFFSET(CalculationsAndCharts!$AA$33,N32,0,'Transaction Summary'!$C$2-N32,1),0)+N32) -> 677 | O33: =OFFSET(CalculationsAndCharts!$B$32,'Transaction Summary'!N33,0,1,1) -> 2010-06-10 | P33: =OFFSET(CalculationsAndCharts!$AC$32,'Transaction Summary'!N33,0,1,1) -> 3.95 | Q33: -0.1 | R33: 0.074
B34: =MATCH(TRUE,OFFSET(CalculationsAndCharts!$P$33,B33,0,'Transaction Summary'!$C$2-B33,1),0)+B33 -> 514 | C34: =OFFSET(CalculationsAndCharts!$B$32,'Transaction Summary'!B34,0,1,1) -> 2011-02-01 | D34: =OFFSET(CalculationsAndCharts!$T$32,'Transaction Summary'!B34,0,1,1) -> 4.908 | E34: =MATCH(TRUE,OFFSET(CalculationsAndCharts!$S$33,E33,0,'Transaction Summary'!$C$2-E33,1),0)+E33 -> 512 | F34: =OFFSET(CalculationsAndCharts!$B$32,'Transaction Summary'!E34,0,1,1) -> 2011-02-03 | G34: =OFFSET(CalculationsAndCharts!$U$32,'Transaction Summary'!E34,0,1,1) -> 4.788 | H34: -0.12 | I34: 0.144 | K34: =MATCH(TRUE,OFFSET(CalculationsAndCharts!$Y$33,K33,0,'Transaction Summary'!$C$2-K33,1),0)+K33 -> 695 | L34: =OFFSET(CalculationsAndCharts!$B$32,'Transaction Summary'!K34,0,1,1) -> 2010-05-14 | M34: =OFFSET(CalculationsAndCharts!$AB$32,'Transaction Summary'!K34,0,1,1) -> 4.03 | N34: =IF($N$12>$K$15,$N$12,MATCH(TRUE,OFFSET(CalculationsAndCharts!$AA$33,N33,0,'Transaction Summary'!$C$2-N33,1),0)+N33) -> 689 | O34: =OFFSET(CalculationsAndCharts!$B$32,'Transaction Summary'!N34,0,1,1) -> 2010-05-24 | P34: =OFFSET(CalculationsAndCharts!$AC$32,'Transaction Summary'!N34,0,1,1) -> 3.88 | Q34: 0.15 | R34: 0.174
B35: =MATCH(TRUE,OFFSET(CalculationsAndCharts!$P$33,B34,0,'Transaction Summary'!$C$2-B34,1),0)+B34 -> 534 | C35: =OFFSET(CalculationsAndCharts!$B$32,'Transaction Summary'!B35,0,1,1) -> 2011-01-03 | D35: =OFFSET(CalculationsAndCharts!$T$32,'Transaction Summary'!B35,0,1,1) -> 4.836 | E35: =MATCH(TRUE,OFFSET(CalculationsAndCharts!$S$33,E34,0,'Transaction Summary'!$C$2-E34,1),0)+E34 -> 524 | F35: =OFFSET(CalculationsAndCharts!$B$32,'Transaction Summary'!E35,0,1,1) -> 2011-01-18 | G35: =OFFSET(CalculationsAndCharts!$U$32,'Transaction Summary'!E35,0,1,1) -> 4.93 | H35: 0.094 | I35: 0.264 | K35: =MATCH(TRUE,OFFSET(CalculationsAndCharts!$Y$33,K34,0,'Transaction Summary'!$C$2-K34,1),0)+K34 -> 764 | L35: =OFFSET(CalculationsAndCharts!$B$32,'Transaction Summary'!K35,0,1,1) -> 2010-02-04 | M35: =OFFSET(CalculationsAndCharts!$AB$32,'Transaction Summary'!K35,0,1,1) -> 3.244 | N35: =IF($N$12>$K$15,$N$12,MATCH(TRUE,OFFSET(CalculationsAndCharts!$AA$33,N34,0,'Transaction Summary'!$C$2-N34,1),0)+N34) -> 757 | O35: =OFFSET(CalculationsAndCharts!$B$32,'Transaction Summary'!N35,0,1,1) -> 2010-02-16 | P35: =OFFSET(CalculationsAndCharts!$AC$32,'Transaction Summary'!N35,0,1,1) -> 3.22 | Q35: 0.024 | R35: 0.024
B36: =MATCH(TRUE,OFFSET(CalculationsAndCharts!$P$33,B35,0,'Transaction Summary'!$C$2-B35,1),0)+B35 -> 542 | C36: =OFFSET(CalculationsAndCharts!$B$32,'Transaction Summary'!B36,0,1,1) -> 2010-12-21 | D36: =OFFSET(CalculationsAndCharts!$T$32,'Transaction Summary'!B36,0,1,1) -> 4.766 | E36: =MATCH(TRUE,OFFSET(CalculationsAndCharts!$S$33,E35,0,'Transaction Summary'!$C$2-E35,1),0)+E35 -> 539 | F36: =OFFSET(CalculationsAndCharts!$B$32,'Transaction Summary'!E36,0,1,1) -> 2010-12-27 | G36: =OFFSET(CalculationsAndCharts!$U$32,'Transaction Summary'!E36,0,1,1) -> 4.66 | H36: -0.106 | I36: 0.17 | K36: =MATCH(TRUE,OFFSET(CalculationsAndCharts!$Y$33,K35,0,'Transaction Summary'!$C$2-K35,1),0)+K35 ->  | L36: =OFFSET(CalculationsAndCharts!$B$32,'Transaction Summary'!K36,0,1,1) ->  | M36: =OFFSET(CalculationsAndCharts!$AB$32,'Transaction Summary'!K36,0,1,1) ->  | N36: =IF($N$12>$K$15,$N$12,MATCH(TRUE,OFFSET(CalculationsAndCharts!$AA$33,N35,0,'Transaction Summary'!$C$2-N35,1),0)+N35) ->  | O36: =OFFSET(CalculationsAndCharts!$B$32,'Transaction Summary'!N36,0,1,1) ->  | P36: =OFFSET(CalculationsAndCharts!$AC$32,'Transaction Summary'!N36,0,1,1) -> 
B37: =MATCH(TRUE,OFFSET(CalculationsAndCharts!$P$33,B36,0,'Transaction Summary'!$C$2-B36,1),0)+B36 -> 574 | C37: =OFFSET(CalculationsAndCharts!$B$32,'Transaction Summary'!B37,0,1,1) -> 2010-11-04 | D37: =OFFSET(CalculationsAndCharts!$T$32,'Transaction Summary'!B37,0,1,1) -> 4.244 | E37: =MATCH(TRUE,OFFSET(CalculationsAndCharts!$S$33,E36,0,'Transaction Summary'!$C$2-E36,1),0)+E36 -> 568 | F37: =OFFSET(CalculationsAndCharts!$B$32,'Transaction Summary'!E37,0,1,1) -> 2010-11-12 | G37: =OFFSET(CalculationsAndCharts!$U$32,'Transaction Summary'!E37,0,1,1) -> 4.33 | H37: 0.086 | I37: 0.276 | K37: =MATCH(TRUE,OFFSET(CalculationsAndCharts!$Y$33,K36,0,'Transaction Summary'!$C$2-K36,1),0)+K36 ->  | L37: =OFFSET(CalculationsAndCharts!$B$32,'Transaction Summary'!K37,0,1,1) ->  | M37: =OFFSET(CalculationsAndCharts!$AB$32,'Transaction Summary'!K37,0,1,1) ->  | N37: =IF($N$12>$K$15,$N$12,MATCH(TRUE,OFFSET(CalculationsAndCharts!$AA$33,N36,0,'Transaction Summary'!$C$2-N36,1),0)+N36) ->  | O37: =OFFSET(CalculationsAndCharts!$B$32,'Transaction Summary'!N37,0,1,1) ->  | P37: =OFFSET(CalculationsAndCharts!$AC$32,'Transaction Summary'!N37,0,1,1) -> 
B38: =MATCH(TRUE,OFFSET(CalculationsAndCharts!$P$33,B37,0,'Transaction Summary'!$C$2-B37,1),0)+B37 -> 582 | C38: =OFFSET(CalculationsAndCharts!$B$32,'Transaction Summary'!B38,0,1,1) -> 2010-10-25 | D38: =OFFSET(CalculationsAndCharts!$T$32,'Transaction Summary'!B38,0,1,1) -> 4.22 | E38: =MATCH(TRUE,OFFSET(CalculationsAndCharts!$S$33,E37,0,'Transaction Summary'!$C$2-E37,1),0)+E37 -> 577 | F38: =OFFSET(CalculationsAndCharts!$B$32,'Transaction Summary'!E38,0,1,1) -> 2010-11-01 | G38: =OFFSET(CalculationsAndCharts!$U$32,'Transaction Summary'!E38,0,1,1) -> 4.146 | H38: -0.074 | I38: 0.19 | K38: =MATCH(TRUE,OFFSET(CalculationsAndCharts!$Y$33,K37,0,'Transaction Summary'!$C$2-K37,1),0)+K37 ->  | L38: =OFFSET(CalculationsAndCharts!$B$32,'Transaction Summary'!K38,0,1,1) ->  | M38: =OFFSET(CalculationsAndCharts!$AB$32,'Transaction Summary'!K38,0,1,1) ->  | N38: =IF($N$12>$K$15,$N$12,MATCH(TRUE,OFFSET(CalculationsAndCharts!$AA$33,N37,0,'Transaction Summary'!$C$2-N37,1),0)+N37) ->  | O38: =OFFSET(CalculationsAndCharts!$B$32,'Transaction Summary'!N38,0,1,1) ->  | P38: =OFFSET(CalculationsAndCharts!$AC$32,'Transaction Summary'!N38,0,1,1) -> 
B39: =MATCH(TRUE,OFFSET(CalculationsAndCharts!$P$33,B38,0,'Transaction Summary'!$C$2-B38,1),0)+B38 -> 591 | C39: =OFFSET(CalculationsAndCharts!$B$32,'Transaction Summary'!B39,0,1,1) -> 2010-10-12 | D39: =OFFSET(CalculationsAndCharts!$T$32,'Transaction Summary'!B39,0,1,1) -> 4.232 | E39: =MATCH(TRUE,OFFSET(CalculationsAndCharts!$S$33,E38,0,'Transaction Summary'!$C$2-E38,1),0)+E38 -> 589 | F39: =OFFSET(CalculationsAndCharts!$B$32,'Transaction Summary'!E39,0,1,1) -> 2010-10-14 | G39: =OFFSET(CalculationsAndCharts!$U$32,'Transaction Summary'!E39,0,1,1) -> 4.14 | H39: -0.092 | I39: 0.264 | K39: =MATCH(TRUE,OFFSET(CalculationsAndCharts!$Y$33,K38,0,'Transaction Summary'!$C$2-K38,1),0)+K38 ->  | L39: =OFFSET(CalculationsAndCharts!$B$32,'Transaction Summary'!K39,0,1,1) ->  | M39: =OFFSET(CalculationsAndCharts!$AB$32,'Transaction Summary'!K39,0,1,1) ->  | N39: =IF($N$12>$K$15,$N$12,MATCH(TRUE,OFFSET(CalculationsAndCharts!$AA$33,N38,0,'Transaction Summary'!$C$2-N38,1),0)+N38) ->  | O39: =OFFSET(CalculationsAndCharts!$B$32,'Transaction Summary'!N39,0,1,1) ->  | P39: =OFFSET(CalculationsAndCharts!$AC$32,'Transaction Summary'!N39,0,1,1) -> 
B40: =MATCH(TRUE,OFFSET(CalculationsAndCharts!$P$33,B39,0,'Transaction Summary'!$C$2-B39,1),0)+B39 -> 612 | C40: =OFFSET(CalculationsAndCharts!$B$32,'Transaction Summary'!B40,0,1,1) -> 2010-09-13 | D40: =OFFSET(CalculationsAndCharts!$T$32,'Transaction Summary'!B40,0,1,1) -> 3.972 | E40: =MATCH(TRUE,OFFSET(CalculationsAndCharts!$S$33,E39,0,'Transaction Summary'!$C$2-E39,1),0)+E39 -> 609 | F40: =OFFSET(CalculationsAndCharts!$B$32,'Transaction Summary'!E40,0,1,1) -> 2010-09-16 | G40: =OFFSET(CalculationsAndCharts!$U$32,'Transaction Summary'!E40,0,1,1) -> 3.89 | H40: -0.082 | I40: 0.356 | K40: =MATCH(TRUE,OFFSET(CalculationsAndCharts!$Y$33,K39,0,'Transaction Summary'!$C$2-K39,1),0)+K39 ->  | L40: =OFFSET(CalculationsAndCharts!$B$32,'Transaction Summary'!K40,0,1,1) ->  | M40: =OFFSET(CalculationsAndCharts!$AB$32,'Transaction Summary'!K40,0,1,1) ->  | N40: =IF($N$12>$K$15,$N$12,MATCH(TRUE,OFFSET(CalculationsAndCharts!$AA$33,N39,0,'Transaction Summary'!$C$2-N39,1),0)+N39) ->  | O40: =OFFSET(CalculationsAndCharts!$B$32,'Transaction Summary'!N40,0,1,1) ->  | P40: =OFFSET(CalculationsAndCharts!$AC$32,'Transaction Summary'!N40,0,1,1) -> 
B41: =MATCH(TRUE,OFFSET(CalculationsAndCharts!$P$33,B40,0,'Transaction Summary'!$C$2-B40,1),0)+B40 -> 646 | C41: =OFFSET(CalculationsAndCharts!$B$32,'Transaction Summary'!B41,0,1,1) -> 2010-07-26 | D41: =OFFSET(CalculationsAndCharts!$T$32,'Transaction Summary'!B41,0,1,1) -> 4.112 | E41: =MATCH(TRUE,OFFSET(CalculationsAndCharts!$S$33,E40,0,'Transaction Summary'!$C$2-E40,1),0)+E40 -> 638 | F41: =OFFSET(CalculationsAndCharts!$B$32,'Transaction Summary'!E41,0,1,1) -> 2010-08-05 | G41: =OFFSET(CalculationsAndCharts!$U$32,'Transaction Summary'!E41,0,1,1) -> 4.1 | H41: -0.012 | I41: 0.438 | K41: =MATCH(TRUE,OFFSET(CalculationsAndCharts!$Y$33,K40,0,'Transaction Summary'!$C$2-K40,1),0)+K40 ->  | L41: =OFFSET(CalculationsAndCharts!$B$32,'Transaction Summary'!K41,0,1,1) ->  | M41: =OFFSET(CalculationsAndCharts!$AB$32,'Transaction Summary'!K41,0,1,1) ->  | N41: =IF($N$12>$K$15,$N$12,MATCH(TRUE,OFFSET(CalculationsAndCharts!$AA$33,N40,0,'Transaction Summary'!$C$2-N40,1),0)+N40) ->  | O41: =OFFSET(CalculationsAndCharts!$B$32,'Transaction Summary'!N41,0,1,1) ->  | P41: =OFFSET(CalculationsAndCharts!$AC$32,'Transaction Summary'!N41,0,1,1) -> 
B42: =MATCH(TRUE,OFFSET(CalculationsAndCharts!$P$33,B41,0,'Transaction Summary'!$C$2-B41,1),0)+B41 -> 670 | C42: =OFFSET(CalculationsAndCharts!$B$32,'Transaction Summary'!B42,0,1,1) -> 2010-06-21 | D42: =OFFSET(CalculationsAndCharts!$T$32,'Transaction Summary'!B42,0,1,1) -> 4.05 | E42: =MATCH(TRUE,OFFSET(CalculationsAndCharts!$S$33,E41,0,'Transaction Summary'!$C$2-E41,1),0)+E41 -> 668 | F42: =OFFSET(CalculationsAndCharts!$B$32,'Transaction Summary'!E42,0,1,1) -> 2010-06-23 | G42: =OFFSET(CalculationsAndCharts!$U$32,'Transaction Summary'!E42,0,1,1) -> 3.944 | H42: -0.106 | I42: 0.45 | K42: =MATCH(TRUE,OFFSET(CalculationsAndCharts!$Y$33,K41,0,'Transaction Summary'!$C$2-K41,1),0)+K41 ->  | L42: =OFFSET(CalculationsAndCharts!$B$32,'Transaction Summary'!K42,0,1,1) ->  | M42: =OFFSET(CalculationsAndCharts!$AB$32,'Transaction Summary'!K42,0,1,1) ->  | N42: =IF($N$12>$K$15,$N$12,MATCH(TRUE,OFFSET(CalculationsAndCharts!$AA$33,N41,0,'Transaction Summary'!$C$2-N41,1),0)+N41) ->  | O42: =OFFSET(CalculationsAndCharts!$B$32,'Transaction Summary'!N42,0,1,1) ->  | P42: =OFFSET(CalculationsAndCharts!$AC$32,'Transaction Summary'!N42,0,1,1) -> 
B43: =MATCH(TRUE,OFFSET(CalculationsAndCharts!$P$33,B42,0,'Transaction Summary'!$C$2-B42,1),0)+B42 -> 723 | C43: =OFFSET(CalculationsAndCharts!$B$32,'Transaction Summary'!B43,0,1,1) -> 2010-04-06 | D43: =OFFSET(CalculationsAndCharts!$T$32,'Transaction Summary'!B43,0,1,1) -> 4.282 | E43: =MATCH(TRUE,OFFSET(CalculationsAndCharts!$S$33,E42,0,'Transaction Summary'!$C$2-E42,1),0)+E42 -> 715 | F43: =OFFSET(CalculationsAndCharts!$B$32,'Transaction Summary'!E43,0,1,1) -> 2010-04-16 | G43: =OFFSET(CalculationsAndCharts!$U$32,'Transaction Summary'!E43,0,1,1) -> 4.626 | H43: 0.344 | I43: =H43+IF(ISNA(I44),0,I44) -> 0.556 | K43: =MATCH(TRUE,OFFSET(CalculationsAndCharts!$Y$33,K42,0,'Transaction Summary'!$C$2-K42,1),0)+K42 ->  | L43: =OFFSET(CalculationsAndCharts!$B$32,'Transaction Summary'!K43,0,1,1) ->  | M43: =OFFSET(CalculationsAndCharts!$AB$32,'Transaction Summary'!K43,0,1,1) ->  | N43: =IF($N$12>$K$15,$N$12,MATCH(TRUE,OFFSET(CalculationsAndCharts!$AA$33,N42,0,'Transaction Summary'!$C$2-N42,1),0)+N42) ->  | O43: =OFFSET(CalculationsAndCharts!$B$32,'Transaction Summary'!N43,0,1,1) ->  | P43: =OFFSET(CalculationsAndCharts!$AC$32,'Transaction Summary'!N43,0,1,1) -> 
B44: =MATCH(TRUE,OFFSET(CalculationsAndCharts!$P$33,B43,0,'Transaction Summary'!$C$2-B43,1),0)+B43 -> 732 | C44: =OFFSET(CalculationsAndCharts!$B$32,'Transaction Summary'!B44,0,1,1) -> 2010-03-23 | D44: =OFFSET(CalculationsAndCharts!$T$32,'Transaction Summary'!B44,0,1,1) -> 4.146 | E44: =MATCH(TRUE,OFFSET(CalculationsAndCharts!$S$33,E43,0,'Transaction Summary'!$C$2-E43,1),0)+E43 -> 727 | F44: =OFFSET(CalculationsAndCharts!$B$32,'Transaction Summary'!E44,0,1,1) -> 2010-03-30 | G44: =OFFSET(CalculationsAndCharts!$U$32,'Transaction Summary'!E44,0,1,1) -> 4.13 | H44: -0.016 | I44: 0.212 | K44: =MATCH(TRUE,OFFSET(CalculationsAndCharts!$Y$33,K43,0,'Transaction Summary'!$C$2-K43,1),0)+K43 ->  | L44: =OFFSET(CalculationsAndCharts!$B$32,'Transaction Summary'!K44,0,1,1) ->  | M44: =OFFSET(CalculationsAndCharts!$AB$32,'Transaction Summary'!K44,0,1,1) ->  | N44: =IF($N$12>$K$15,$N$12,MATCH(TRUE,OFFSET(CalculationsAndCharts!$AA$33,N43,0,'Transaction Summary'!$C$2-N43,1),0)+N43) ->  | O44: =OFFSET(CalculationsAndCharts!$B$32,'Transaction Summary'!N44,0,1,1) ->  | P44: =OFFSET(CalculationsAndCharts!$AC$32,'Transaction Summary'!N44,0,1,1) -> 
B45: =MATCH(TRUE,OFFSET(CalculationsAndCharts!$P$33,B44,0,'Transaction Summary'!$C$2-B44,1),0)+B44 -> 744 | C45: =OFFSET(CalculationsAndCharts!$B$32,'Transaction Summary'!B45,0,1,1) -> 2010-03-05 | D45: =OFFSET(CalculationsAndCharts!$T$32,'Transaction Summary'!B45,0,1,1) -> 3.498 | E45: =MATCH(TRUE,OFFSET(CalculationsAndCharts!$S$33,E44,0,'Transaction Summary'!$C$2-E44,1),0)+E44 -> 734 | F45: =OFFSET(CalculationsAndCharts!$B$32,'Transaction Summary'!E45,0,1,1) -> 2010-03-19 | G45: =OFFSET(CalculationsAndCharts!$U$32,'Transaction Summary'!E45,0,1,1) -> 3.936 | H45: 0.438 | I45: 0.228 | K45: =MATCH(TRUE,OFFSET(CalculationsAndCharts!$Y$33,K44,0,'Transaction Summary'!$C$2-K44,1),0)+K44 ->  | L45: =OFFSET(CalculationsAndCharts!$B$32,'Transaction Summary'!K45,0,1,1) ->  | M45: =OFFSET(CalculationsAndCharts!$AB$32,'Transaction Summary'!K45,0,1,1) ->  | N45: =IF($N$12>$K$15,$N$12,MATCH(TRUE,OFFSET(CalculationsAndCharts!$AA$33,N44,0,'Transaction Summary'!$C$2-N44,1),0)+N44) ->  | O45: =OFFSET(CalculationsAndCharts!$B$32,'Transaction Summary'!N45,0,1,1) ->  | P45: =OFFSET(CalculationsAndCharts!$AC$32,'Transaction Summary'!N45,0,1,1) -> 
B46: =MATCH(TRUE,OFFSET(CalculationsAndCharts!$P$33,B45,0,'Transaction Summary'!$C$2-B45,1),0)+B45 -> 785 | C46: =OFFSET(CalculationsAndCharts!$B$32,'Transaction Summary'!B46,0,1,1) -> 2010-01-05 | D46: =OFFSET(CalculationsAndCharts!$T$32,'Transaction Summary'!B46,0,1,1) -> 3.44 | E46: =MATCH(TRUE,OFFSET(CalculationsAndCharts!$S$33,E45,0,'Transaction Summary'!$C$2-E45,1),0)+E45 -> 780 | F46: =OFFSET(CalculationsAndCharts!$B$32,'Transaction Summary'!E46,0,1,1) -> 2010-01-12 | G46: =OFFSET(CalculationsAndCharts!$U$32,'Transaction Summary'!E46,0,1,1) -> 3.528 | H46: 0.088 | I46: -0.21 | K46: =MATCH(TRUE,OFFSET(CalculationsAndCharts!$Y$33,K45,0,'Transaction Summary'!$C$2-K45,1),0)+K45 ->  | L46: =OFFSET(CalculationsAndCharts!$B$32,'Transaction Summary'!K46,0,1,1) ->  | M46: =OFFSET(CalculationsAndCharts!$AB$32,'Transaction Summary'!K46,0,1,1) ->  | N46: =IF($N$12>$K$15,$N$12,MATCH(TRUE,OFFSET(CalculationsAndCharts!$AA$33,N45,0,'Transaction Summary'!$C$2-N45,1),0)+N45) ->  | O46: =OFFSET(CalculationsAndCharts!$B$32,'Transaction Summary'!N46,0,1,1) ->  | P46: =OFFSET(CalculationsAndCharts!$AC$32,'Transaction Summary'!N46,0,1,1) -> 
B47: =MATCH(TRUE,OFFSET(CalculationsAndCharts!$P$33,B46,0,'Transaction Summary'!$C$2-B46,1),0)+B46 -> 806 | C47: =OFFSET(CalculationsAndCharts!$B$32,'Transaction Summary'!B47,0,1,1) -> 2009-12-03 | D47: =OFFSET(CalculationsAndCharts!$T$32,'Transaction Summary'!B47,0,1,1) -> 4.208 | E47: =MATCH(TRUE,OFFSET(CalculationsAndCharts!$S$33,E46,0,'Transaction Summary'!$C$2-E46,1),0)+E46 -> 804 | F47: =OFFSET(CalculationsAndCharts!$B$32,'Transaction Summary'!E47,0,1,1) -> 2009-12-07 | G47: =OFFSET(CalculationsAndCharts!$U$32,'Transaction Summary'!E47,0,1,1) -> 4.042 | H47: -0.166 | I47: -0.298 | K47: =MATCH(TRUE,OFFSET(CalculationsAndCharts!$Y$33,K46,0,'Transaction Summary'!$C$2-K46,1),0)+K46 ->  | L47: =OFFSET(CalculationsAndCharts!$B$32,'Transaction Summary'!K47,0,1,1) ->  | M47: =OFFSET(CalculationsAndCharts!$AB$32,'Transaction Summary'!K47,0,1,1) ->  | N47: =IF($N$12>$K$15,$N$12,MATCH(TRUE,OFFSET(CalculationsAndCharts!$AA$33,N46,0,'Transaction Summary'!$C$2-N46,1),0)+N46) ->  | O47: =OFFSET(CalculationsAndCharts!$B$32,'Transaction Summary'!N47,0,1,1) ->  | P47: =OFFSET(CalculationsAndCharts!$AC$32,'Transaction Summary'!N47,0,1,1) -> 
B48: =MATCH(TRUE,OFFSET(CalculationsAndCharts!$P$33,B47,0,'Transaction Summary'!$C$2-B47,1),0)+B47 -> 816 | C48: =OFFSET(CalculationsAndCharts!$B$32,'Transaction Summary'!B48,0,1,1) -> 2009-11-18 | D48: =OFFSET(CalculationsAndCharts!$T$32,'Transaction Summary'!B48,0,1,1) -> 4.268 | E48: =MATCH(TRUE,OFFSET(CalculationsAndCharts!$S$33,E47,0,'Transaction Summary'!$C$2-E47,1),0)+E47 -> 811 | F48: =OFFSET(CalculationsAndCharts!$B$32,'Transaction Summary'!E48,0,1,1) -> 2009-11-25 | G48: =OFFSET(CalculationsAndCharts!$U$32,'Transaction Summary'!E48,0,1,1) -> 4.212 | H48: -0.056 | I48: -0.132 | K48: =MATCH(TRUE,OFFSET(CalculationsAndCharts!$Y$33,K47,0,'Transaction Summary'!$C$2-K47,1),0)+K47 ->  | L48: =OFFSET(CalculationsAndCharts!$B$32,'Transaction Summary'!K48,0,1,1) ->  | M48: =OFFSET(CalculationsAndCharts!$AB$32,'Transaction Summary'!K48,0,1,1) ->  | N48: =IF($N$12>$K$15,$N$12,MATCH(TRUE,OFFSET(CalculationsAndCharts!$AA$33,N47,0,'Transaction Summary'!$C$2-N47,1),0)+N47) ->  | O48: =OFFSET(CalculationsAndCharts!$B$32,'Transaction Summary'!N48,0,1,1) ->  | P48: =OFFSET(CalculationsAndCharts!$AC$32,'Transaction Summary'!N48,0,1,1) -> 
B49: =MATCH(TRUE,OFFSET(CalculationsAndCharts!$P$33,B48,0,'Transaction Summary'!$C$2-B48,1),0)+B48 -> 823 | C49: =OFFSET(CalculationsAndCharts!$B$32,'Transaction Summary'!B49,0,1,1) -> 2009-11-09 | D49: =OFFSET(CalculationsAndCharts!$T$32,'Transaction Summary'!B49,0,1,1) -> 4.144 | E49: =MATCH(TRUE,OFFSET(CalculationsAndCharts!$S$33,E48,0,'Transaction Summary'!$C$2-E48,1),0)+E48 -> 820 | F49: =OFFSET(CalculationsAndCharts!$B$32,'Transaction Summary'!E49,0,1,1) -> 2009-11-12 | G49: =OFFSET(CalculationsAndCharts!$U$32,'Transaction Summary'!E49,0,1,1) -> 4.068 | H49: -0.076 | I49: -0.076 | K49: =MATCH(TRUE,OFFSET(CalculationsAndCharts!$Y$33,K48,0,'Transaction Summary'!$C$2-K48,1),0)+K48 ->  | L49: =OFFSET(CalculationsAndCharts!$B$32,'Transaction Summary'!K49,0,1,1) ->  | M49: =OFFSET(CalculationsAndCharts!$AB$32,'Transaction Summary'!K49,0,1,1) ->  | N49: =IF($N$12>$K$15,$N$12,MATCH(TRUE,OFFSET(CalculationsAndCharts!$AA$33,N48,0,'Transaction Summary'!$C$2-N48,1),0)+N48) ->  | O49: =OFFSET(CalculationsAndCharts!$B$32,'Transaction Summary'!N49,0,1,1) ->  | P49: =OFFSET(CalculationsAndCharts!$AC$32,'Transaction Summary'!N49,0,1,1) -> 
B50: =MATCH(TRUE,OFFSET(CalculationsAndCharts!$P$33,B49,0,'Transaction Summary'!$C$2-B49,1),0)+B49 ->  | C50: =OFFSET(CalculationsAndCharts!$B$32,'Transaction Summary'!B50,0,1,1) ->  | D50: =OFFSET(CalculationsAndCharts!$T$32,'Transaction Summary'!B50,0,1,1) ->  | E50: =MATCH(TRUE,OFFSET(CalculationsAndCharts!$S$33,E49,0,'Transaction Summary'!$C$2-E49,1),0)+E49 ->  | F50: =OFFSET(CalculationsAndCharts!$B$32,'Transaction Summary'!E50,0,1,1) ->  | G50: =OFFSET(CalculationsAndCharts!$U$32,'Transaction Summary'!E50,0,1,1) ->  | K50: =MATCH(TRUE,OFFSET(CalculationsAndCharts!$Y$33,K49,0,'Transaction Summary'!$C$2-K49,1),0)+K49 ->  | L50: =OFFSET(CalculationsAndCharts!$B$32,'Transaction Summary'!K50,0,1,1) ->  | M50: =OFFSET(CalculationsAndCharts!$AB$32,'Transaction Summary'!K50,0,1,1) ->  | N50: =IF($N$12>$K$15,$N$12,MATCH(TRUE,OFFSET(CalculationsAndCharts!$AA$33,N49,0,'Transaction Summary'!$C$2-N49,1),0)+N49) ->  | O50: =OFFSET(CalculationsAndCharts!$B$32,'Transaction Summary'!N50,0,1,1) ->  | P50: =OFFSET(CalculationsAndCharts!$AC$32,'Transaction Summary'!N50,0,1,1) -> 
B51: =MATCH(TRUE,OFFSET(CalculationsAndCharts!$P$33,B50,0,'Transaction Summary'!$C$2-B50,1),0)+B50 ->  | C51: =OFFSET(CalculationsAndCharts!$B$32,'Transaction Summary'!B51,0,1,1) ->  | D51: =OFFSET(CalculationsAndCharts!$T$32,'Transaction Summary'!B51,0,1,1) ->  | E51: =MATCH(TRUE,OFFSET(CalculationsAndCharts!$S$33,E50,0,'Transaction Summary'!$C$2-E50,1),0)+E50 ->  | F51: =OFFSET(CalculationsAndCharts!$B$32,'Transaction Summary'!E51,0,1,1) ->  | G51: =OFFSET(CalculationsAndCharts!$U$32,'Transaction Summary'!E51,0,1,1) ->  | I51: =H51+IF(ISNA(I52),0,I52) ->  | K51: =MATCH(TRUE,OFFSET(CalculationsAndCharts!$Y$33,K50,0,'Transaction Summary'!$C$2-K50,1),0)+K50 ->  | L51: =OFFSET(CalculationsAndCharts!$B$32,'Transaction Summary'!K51,0,1,1) ->  | M51: =OFFSET(CalculationsAndCharts!$AB$32,'Transaction Summary'!K51,0,1,1) ->  | N51: =IF($N$12>$K$15,$N$12,MATCH(TRUE,OFFSET(CalculationsAndCharts!$AA$33,N50,0,'Transaction Summary'!$C$2-N50,1),0)+N50) ->  | O51: =OFFSET(CalculationsAndCharts!$B$32,'Transaction Summary'!N51,0,1,1) ->  | P51: =OFFSET(CalculationsAndCharts!$AC$32,'Transaction Summary'!N51,0,1,1) -> 
B52: =MATCH(TRUE,OFFSET(CalculationsAndCharts!$P$33,B51,0,'Transaction Summary'!$C$2-B51,1),0)+B51 ->  | C52: =OFFSET(CalculationsAndCharts!$B$32,'Transaction Summary'!B52,0,1,1) ->  | D52: =OFFSET(CalculationsAndCharts!$T$32,'Transaction Summary'!B52,0,1,1) ->  | E52: =MATCH(TRUE,OFFSET(CalculationsAndCharts!$S$33,E51,0,'Transaction Summary'!$C$2-E51,1),0)+E51 ->  | F52: =OFFSET(CalculationsAndCharts!$B$32,'Transaction Summary'!E52,0,1,1) ->  | G52: =OFFSET(CalculationsAndCharts!$U$32,'Transaction Summary'!E52,0,1,1) ->  | I52: =H52+IF(ISNA(I53),0,I53) ->  | K52: =MATCH(TRUE,OFFSET(CalculationsAndCharts!$Y$33,K51,0,'Transaction Summary'!$C$2-K51,1),0)+K51 ->  | L52: =OFFSET(CalculationsAndCharts!$B$32,'Transaction Summary'!K52,0,1,1) ->  | M52: =OFFSET(CalculationsAndCharts!$AB$32,'Transaction Summary'!K52,0,1,1) ->  | N52: =IF($N$12>$K$15,$N$12,MATCH(TRUE,OFFSET(CalculationsAndCharts!$AA$33,N51,0,'Transaction Summary'!$C$2-N51,1),0)+N51) ->  | O52: =OFFSET(CalculationsAndCharts!$B$32,'Transaction Summary'!N52,0,1,1) ->  | P52: =OFFSET(CalculationsAndCharts!$AC$32,'Transaction Summary'!N52,0,1,1) -> 
B53: =MATCH(TRUE,OFFSET(CalculationsAndCharts!$P$33,B52,0,'Transaction Summary'!$C$2-B52,1),0)+B52 ->  | C53: =OFFSET(CalculationsAndCharts!$B$32,'Transaction Summary'!B53,0,1,1) ->  | D53: =OFFSET(CalculationsAndCharts!$T$32,'Transaction Summary'!B53,0,1,1) ->  | E53: =MATCH(TRUE,OFFSET(CalculationsAndCharts!$S$33,E52,0,'Transaction Summary'!$C$2-E52,1),0)+E52 ->  | F53: =OFFSET(CalculationsAndCharts!$B$32,'Transaction Summary'!E53,0,1,1) ->  | G53: =OFFSET(CalculationsAndCharts!$U$32,'Transaction Summary'!E53,0,1,1) ->  | K53: =MATCH(TRUE,OFFSET(CalculationsAndCharts!$Y$33,K52,0,'Transaction Summary'!$C$2-K52,1),0)+K52 ->  | L53: =OFFSET(CalculationsAndCharts!$B$32,'Transaction Summary'!K53,0,1,1) ->  | M53: =OFFSET(CalculationsAndCharts!$AB$32,'Transaction Summary'!K53,0,1,1) ->  | N53: =IF($N$12>$K$15,$N$12,MATCH(TRUE,OFFSET(CalculationsAndCharts!$AA$33,N52,0,'Transaction Summary'!$C$2-N52,1),0)+N52) ->  | O53: =OFFSET(CalculationsAndCharts!$B$32,'Transaction Summary'!N53,0,1,1) ->  | P53: =OFFSET(CalculationsAndCharts!$AC$32,'Transaction Summary'!N53,0,1,1) -> 
B54: =MATCH(TRUE,OFFSET(CalculationsAndCharts!$P$33,B53,0,'Transaction Summary'!$C$2-B53,1),0)+B53 ->  | C54: =OFFSET(CalculationsAndCharts!$B$32,'Transaction Summary'!B54,0,1,1) ->  | D54: =OFFSET(CalculationsAndCharts!$T$32,'Transaction Summary'!B54,0,1,1) ->  | E54: =MATCH(TRUE,OFFSET(CalculationsAndCharts!$S$33,E53,0,'Transaction Summary'!$C$2-E53,1),0)+E53 ->  | F54: =OFFSET(CalculationsAndCharts!$B$32,'Transaction Summary'!E54,0,1,1) ->  | G54: =OFFSET(CalculationsAndCharts!$U$32,'Transaction Summary'!E54,0,1,1) ->  | K54: =MATCH(TRUE,OFFSET(CalculationsAndCharts!$Y$33,K53,0,'Transaction Summary'!$C$2-K53,1),0)+K53 ->  | L54: =OFFSET(CalculationsAndCharts!$B$32,'Transaction Summary'!K54,0,1,1) ->  | M54: =OFFSET(CalculationsAndCharts!$AB$32,'Transaction Summary'!K54,0,1,1) ->  | N54: =IF($N$12>$K$15,$N$12,MATCH(TRUE,OFFSET(CalculationsAndCharts!$AA$33,N53,0,'Transaction Summary'!$C$2-N53,1),0)+N53) ->  | O54: =OFFSET(CalculationsAndCharts!$B$32,'Transaction Summary'!N54,0,1,1) ->  | P54: =OFFSET(CalculationsAndCharts!$AC$32,'Transaction Summary'!N54,0,1,1) -> 
B55: =MATCH(TRUE,OFFSET(CalculationsAndCharts!$P$33,B54,0,'Transaction Summary'!$C$2-B54,1),0)+B54 ->  | C55: =OFFSET(CalculationsAndCharts!$B$32,'Transaction Summary'!B55,0,1,1) ->  | D55: =OFFSET(CalculationsAndCharts!$T$32,'Transaction Summary'!B55,0,1,1) ->  | E55: =MATCH(TRUE,OFFSET(CalculationsAndCharts!$S$33,E54,0,'Transaction Summary'!$C$2-E54,1),0)+E54 ->  | F55: =OFFSET(CalculationsAndCharts!$B$32,'Transaction Summary'!E55,0,1,1) ->  | G55: =OFFSET(CalculationsAndCharts!$U$32,'Transaction Summary'!E55,0,1,1) ->  | K55: =MATCH(TRUE,OFFSET(CalculationsAndCharts!$Y$33,K54,0,'Transaction Summary'!$C$2-K54,1),0)+K54 ->  | L55: =OFFSET(CalculationsAndCharts!$B$32,'Transaction Summary'!K55,0,1,1) ->  | M55: =OFFSET(CalculationsAndCharts!$AB$32,'Transaction Summary'!K55,0,1,1) ->  | N55: =IF($N$12>$K$15,$N$12,MATCH(TRUE,OFFSET(CalculationsAndCharts!$AA$33,N54,0,'Transaction Summary'!$C$2-N54,1),0)+N54) ->  | O55: =OFFSET(CalculationsAndCharts!$B$32,'Transaction Summary'!N55,0,1,1) ->  | P55: =OFFSET(CalculationsAndCharts!$AC$32,'Transaction Summary'!N55,0,1,1) -> 
B56: =MATCH(TRUE,OFFSET(CalculationsAndCharts!$P$33,B55,0,'Transaction Summary'!$C$2-B55,1),0)+B55 ->  | C56: =OFFSET(CalculationsAndCharts!$B$32,'Transaction Summary'!B56,0,1,1) ->  | D56: =OFFSET(CalculationsAndCharts!$T$32,'Transaction Summary'!B56,0,1,1) ->  | E56: =MATCH(TRUE,OFFSET(CalculationsAndCharts!$S$33,E55,0,'Transaction Summary'!$C$2-E55,1),0)+E55 ->  | F56: =OFFSET(CalculationsAndCharts!$B$32,'Transaction Summary'!E56,0,1,1) ->  | G56: =OFFSET(CalculationsAndCharts!$U$32,'Transaction Summary'!E56,0,1,1) ->  | K56: =MATCH(TRUE,OFFSET(CalculationsAndCharts!$Y$33,K55,0,'Transaction Summary'!$C$2-K55,1),0)+K55 ->  | L56: =OFFSET(CalculationsAndCharts!$B$32,'Transaction Summary'!K56,0,1,1) ->  | M56: =OFFSET(CalculationsAndCharts!$AB$32,'Transaction Summary'!K56,0,1,1) ->  | N56: =IF($N$12>$K$15,$N$12,MATCH(TRUE,OFFSET(CalculationsAndCharts!$AA$33,N55,0,'Transaction Summary'!$C$2-N55,1),0)+N55) ->  | O56: =OFFSET(CalculationsAndCharts!$B$32,'Transaction Summary'!N56,0,1,1) ->  | P56: =OFFSET(CalculationsAndCharts!$AC$32,'Transaction Summary'!N56,0,1,1) -> 
B57: =MATCH(TRUE,OFFSET(CalculationsAndCharts!$P$33,B56,0,'Transaction Summary'!$C$2-B56,1),0)+B56 ->  | C57: =OFFSET(CalculationsAndCharts!$B$32,'Transaction Summary'!B57,0,1,1) ->  | D57: =OFFSET(CalculationsAndCharts!$T$32,'Transaction Summary'!B57,0,1,1) ->  | E57: =MATCH(TRUE,OFFSET(CalculationsAndCharts!$S$33,E56,0,'Transaction Summary'!$C$2-E56,1),0)+E56 ->  | F57: =OFFSET(CalculationsAndCharts!$B$32,'Transaction Summary'!E57,0,1,1) ->  | G57: =OFFSET(CalculationsAndCharts!$U$32,'Transaction Summary'!E57,0,1,1) ->  | K57: =MATCH(TRUE,OFFSET(CalculationsAndCharts!$Y$33,K56,0,'Transaction Summary'!$C$2-K56,1),0)+K56 ->  | L57: =OFFSET(CalculationsAndCharts!$B$32,'Transaction Summary'!K57,0,1,1) ->  | M57: =OFFSET(CalculationsAndCharts!$AB$32,'Transaction Summary'!K57,0,1,1) ->  | N57: =IF($N$12>$K$15,$N$12,MATCH(TRUE,OFFSET(CalculationsAndCharts!$AA$33,N56,0,'Transaction Summary'!$C$2-N56,1),0)+N56) ->  | O57: =OFFSET(CalculationsAndCharts!$B$32,'Transaction Summary'!N57,0,1,1) ->  | P57: =OFFSET(CalculationsAndCharts!$AC$32,'Transaction Summary'!N57,0,1,1) -> 
B58: =MATCH(TRUE,OFFSET(CalculationsAndCharts!$P$33,B57,0,'Transaction Summary'!$C$2-B57,1),0)+B57 ->  | C58: =OFFSET(CalculationsAndCharts!$B$32,'Transaction Summary'!B58,0,1,1) ->  | D58: =OFFSET(CalculationsAndCharts!$T$32,'Transaction Summary'!B58,0,1,1) ->  | E58: =MATCH(TRUE,OFFSET(CalculationsAndCharts!$S$33,E57,0,'Transaction Summary'!$C$2-E57,1),0)+E57 ->  | F58: =OFFSET(CalculationsAndCharts!$B$32,'Transaction Summary'!E58,0,1,1) ->  | G58: =OFFSET(CalculationsAndCharts!$U$32,'Transaction Summary'!E58,0,1,1) ->  | K58: =MATCH(TRUE,OFFSET(CalculationsAndCharts!$Y$33,K57,0,'Transaction Summary'!$C$2-K57,1),0)+K57 ->  | L58: =OFFSET(CalculationsAndCharts!$B$32,'Transaction Summary'!K58,0,1,1) ->  | M58: =OFFSET(CalculationsAndCharts!$AB$32,'Transaction Summary'!K58,0,1,1) ->  | N58: =IF($N$12>$K$15,$N$12,MATCH(TRUE,OFFSET(CalculationsAndCharts!$AA$33,N57,0,'Transaction Summary'!$C$2-N57,1),0)+N57) ->  | O58: =OFFSET(CalculationsAndCharts!$B$32,'Transaction Summary'!N58,0,1,1) ->  | P58: =OFFSET(CalculationsAndCharts!$AC$32,'Transaction Summary'!N58,0,1,1) -> 
B59: =MATCH(TRUE,OFFSET(CalculationsAndCharts!$P$33,B58,0,'Transaction Summary'!$C$2-B58,1),0)+B58 ->  | C59: =OFFSET(CalculationsAndCharts!$B$32,'Transaction Summary'!B59,0,1,1) ->  | D59: =OFFSET(CalculationsAndCharts!$T$32,'Transaction Summary'!B59,0,1,1) ->  | E59: =MATCH(TRUE,OFFSET(CalculationsAndCharts!$S$33,E58,0,'Transaction Summary'!$C$2-E58,1),0)+E58 ->  | F59: =OFFSET(CalculationsAndCharts!$B$32,'Transaction Summary'!E59,0,1,1) ->  | G59: =OFFSET(CalculationsAndCharts!$U$32,'Transaction Summary'!E59,0,1,1) ->  | K59: =MATCH(TRUE,OFFSET(CalculationsAndCharts!$Y$33,K58,0,'Transaction Summary'!$C$2-K58,1),0)+K58 ->  | L59: =OFFSET(CalculationsAndCharts!$B$32,'Transaction Summary'!K59,0,1,1) ->  | M59: =OFFSET(CalculationsAndCharts!$AB$32,'Transaction Summary'!K59,0,1,1) ->  | N59: =IF($N$12>$K$15,$N$12,MATCH(TRUE,OFFSET(CalculationsAndCharts!$AA$33,N58,0,'Transaction Summary'!$C$2-N58,1),0)+N58) ->  | O59: =OFFSET(CalculationsAndCharts!$B$32,'Transaction Summary'!N59,0,1,1) ->  | P59: =OFFSET(CalculationsAndCharts!$AC$32,'Transaction Summary'!N59,0,1,1) -> 
B60: =MATCH(TRUE,OFFSET(CalculationsAndCharts!$P$33,B59,0,'Transaction Summary'!$C$2-B59,1),0)+B59 ->  | C60: =OFFSET(CalculationsAndCharts!$B$32,'Transaction Summary'!B60,0,1,1) ->  | D60: =OFFSET(CalculationsAndCharts!$T$32,'Transaction Summary'!B60,0,1,1) ->  | E60: =MATCH(TRUE,OFFSET(CalculationsAndCharts!$S$33,E59,0,'Transaction Summary'!$C$2-E59,1),0)+E59 ->  | F60: =OFFSET(CalculationsAndCharts!$B$32,'Transaction Summary'!E60,0,1,1) ->  | G60: =OFFSET(CalculationsAndCharts!$U$32,'Transaction Summary'!E60,0,1,1) ->  | K60: =MATCH(TRUE,OFFSET(CalculationsAndCharts!$Y$33,K59,0,'Transaction Summary'!$C$2-K59,1),0)+K59 ->  | L60: =OFFSET(CalculationsAndCharts!$B$32,'Transaction Summary'!K60,0,1,1) ->  | M60: =OFFSET(CalculationsAndCharts!$AB$32,'Transaction Summary'!K60,0,1,1) ->  | N60: =IF($N$12>$K$15,$N$12,MATCH(TRUE,OFFSET(CalculationsAndCharts!$AA$33,N59,0,'Transaction Summary'!$C$2-N59,1),0)+N59) ->  | O60: =OFFSET(CalculationsAndCharts!$B$32,'Transaction Summary'!N60,0,1,1) ->  | P60: =OFFSET(CalculationsAndCharts!$AC$32,'Transaction Summary'!N60,0,1,1) -> 
B61: =MATCH(TRUE,OFFSET(CalculationsAndCharts!$P$33,B60,0,'Transaction Summary'!$C$2-B60,1),0)+B60 ->  | C61: =OFFSET(CalculationsAndCharts!$B$32,'Transaction Summary'!B61,0,1,1) ->  | D61: =OFFSET(CalculationsAndCharts!$T$32,'Transaction Summary'!B61,0,1,1) ->  | E61: =MATCH(TRUE,OFFSET(CalculationsAndCharts!$S$33,E60,0,'Transaction Summary'!$C$2-E60,1),0)+E60 ->  | F61: =OFFSET(CalculationsAndCharts!$B$32,'Transaction Summary'!E61,0,1,1) ->  | G61: =OFFSET(CalculationsAndCharts!$U$32,'Transaction Summary'!E61,0,1,1) ->  | K61: =MATCH(TRUE,OFFSET(CalculationsAndCharts!$Y$33,K60,0,'Transaction Summary'!$C$2-K60,1),0)+K60 ->  | L61: =OFFSET(CalculationsAndCharts!$B$32,'Transaction Summary'!K61,0,1,1) ->  | M61: =OFFSET(CalculationsAndCharts!$AB$32,'Transaction Summary'!K61,0,1,1) ->  | N61: =IF($N$12>$K$15,$N$12,MATCH(TRUE,OFFSET(CalculationsAndCharts!$AA$33,N60,0,'Transaction Summary'!$C$2-N60,1),0)+N60) ->  | O61: =OFFSET(CalculationsAndCharts!$B$32,'Transaction Summary'!N61,0,1,1) ->  | P61: =OFFSET(CalculationsAndCharts!$AC$32,'Transaction Summary'!N61,0,1,1) -> 
B62: =MATCH(TRUE,OFFSET(CalculationsAndCharts!$P$33,B61,0,'Transaction Summary'!$C$2-B61,1),0)+B61 ->  | C62: =OFFSET(CalculationsAndCharts!$B$32,'Transaction Summary'!B62,0,1,1) ->  | D62: =OFFSET(CalculationsAndCharts!$T$32,'Transaction Summary'!B62,0,1,1) ->  | E62: =MATCH(TRUE,OFFSET(CalculationsAndCharts!$S$33,E61,0,'Transaction Summary'!$C$2-E61,1),0)+E61 ->  | F62: =OFFSET(CalculationsAndCharts!$B$32,'Transaction Summary'!E62,0,1,1) ->  | G62: =OFFSET(CalculationsAndCharts!$U$32,'Transaction Summary'!E62,0,1,1) ->  | K62: =MATCH(TRUE,OFFSET(CalculationsAndCharts!$Y$33,K61,0,'Transaction Summary'!$C$2-K61,1),0)+K61 ->  | L62: =OFFSET(CalculationsAndCharts!$B$32,'Transaction Summary'!K62,0,1,1) ->  | M62: =OFFSET(CalculationsAndCharts!$AB$32,'Transaction Summary'!K62,0,1,1) ->  | N62: =IF($N$12>$K$15,$N$12,MATCH(TRUE,OFFSET(CalculationsAndCharts!$AA$33,N61,0,'Transaction Summary'!$C$2-N61,1),0)+N61) ->  | O62: =OFFSET(CalculationsAndCharts!$B$32,'Transaction Summary'!N62,0,1,1) ->  | P62: =OFFSET(CalculationsAndCharts!$AC$32,'Transaction Summary'!N62,0,1,1) -> 
B63: =MATCH(TRUE,OFFSET(CalculationsAndCharts!$P$33,B62,0,'Transaction Summary'!$C$2-B62,1),0)+B62 ->  | C63: =OFFSET(CalculationsAndCharts!$B$32,'Transaction Summary'!B63,0,1,1) ->  | D63: =OFFSET(CalculationsAndCharts!$T$32,'Transaction Summary'!B63,0,1,1) ->  | E63: =MATCH(TRUE,OFFSET(CalculationsAndCharts!$S$33,E62,0,'Transaction Summary'!$C$2-E62,1),0)+E62 ->  | F63: =OFFSET(CalculationsAndCharts!$B$32,'Transaction Summary'!E63,0,1,1) ->  | G63: =OFFSET(CalculationsAndCharts!$U$32,'Transaction Summary'!E63,0,1,1) ->  | K63: =MATCH(TRUE,OFFSET(CalculationsAndCharts!$Y$33,K62,0,'Transaction Summary'!$C$2-K62,1),0)+K62 ->  | L63: =OFFSET(CalculationsAndCharts!$B$32,'Transaction Summary'!K63,0,1,1) ->  | M63: =OFFSET(CalculationsAndCharts!$AB$32,'Transaction Summary'!K63,0,1,1) ->  | N63: =IF($N$12>$K$15,$N$12,MATCH(TRUE,OFFSET(CalculationsAndCharts!$AA$33,N62,0,'Transaction Summary'!$C$2-N62,1),0)+N62) ->  | O63: =OFFSET(CalculationsAndCharts!$B$32,'Transaction Summary'!N63,0,1,1) ->  | P63: =OFFSET(CalculationsAndCharts!$AC$32,'Transaction Summary'!N63,0,1,1) -> 
B64: =MATCH(TRUE,OFFSET(CalculationsAndCharts!$P$33,B63,0,'Transaction Summary'!$C$2-B63,1),0)+B63 ->  | C64: =OFFSET(CalculationsAndCharts!$B$32,'Transaction Summary'!B64,0,1,1) ->  | D64: =OFFSET(CalculationsAndCharts!$T$32,'Transaction Summary'!B64,0,1,1) ->  | E64: =MATCH(TRUE,OFFSET(CalculationsAndCharts!$S$33,E63,0,'Transaction Summary'!$C$2-E63,1),0)+E63 ->  | F64: =OFFSET(CalculationsAndCharts!$B$32,'Transaction Summary'!E64,0,1,1) ->  | G64: =OFFSET(CalculationsAndCharts!$U$32,'Transaction Summary'!E64,0,1,1) ->  | K64: =MATCH(TRUE,OFFSET(CalculationsAndCharts!$Y$33,K63,0,'Transaction Summary'!$C$2-K63,1),0)+K63 ->  | L64: =OFFSET(CalculationsAndCharts!$B$32,'Transaction Summary'!K64,0,1,1) ->  | M64: =OFFSET(CalculationsAndCharts!$AB$32,'Transaction Summary'!K64,0,1,1) ->  | N64: =IF($N$12>$K$15,$N$12,MATCH(TRUE,OFFSET(CalculationsAndCharts!$AA$33,N63,0,'Transaction Summary'!$C$2-N63,1),0)+N63) ->  | O64: =OFFSET(CalculationsAndCharts!$B$32,'Transaction Summary'!N64,0,1,1) ->  | P64: =OFFSET(CalculationsAndCharts!$AC$32,'Transaction Summary'!N64,0,1,1) -> 
B65: =MATCH(TRUE,OFFSET(CalculationsAndCharts!$P$33,B64,0,'Transaction Summary'!$C$2-B64,1),0)+B64 ->  | C65: =OFFSET(CalculationsAndCharts!$B$32,'Transaction Summary'!B65,0,1,1) ->  | D65: =OFFSET(CalculationsAndCharts!$T$32,'Transaction Summary'!B65,0,1,1) ->  | E65: =MATCH(TRUE,OFFSET(CalculationsAndCharts!$S$33,E64,0,'Transaction Summary'!$C$2-E64,1),0)+E64 ->  | F65: =OFFSET(CalculationsAndCharts!$B$32,'Transaction Summary'!E65,0,1,1) ->  | G65: =OFFSET(CalculationsAndCharts!$U$32,'Transaction Summary'!E65,0,1,1) ->  | K65: =MATCH(TRUE,OFFSET(CalculationsAndCharts!$Y$33,K64,0,'Transaction Summary'!$C$2-K64,1),0)+K64 ->  | L65: =OFFSET(CalculationsAndCharts!$B$32,'Transaction Summary'!K65,0,1,1) ->  | M65: =OFFSET(CalculationsAndCharts!$AB$32,'Transaction Summary'!K65,0,1,1) ->  | N65: =IF($N$12>$K$15,$N$12,MATCH(TRUE,OFFSET(CalculationsAndCharts!$AA$33,N64,0,'Transaction Summary'!$C$2-N64,1),0)+N64) ->  | O65: =OFFSET(CalculationsAndCharts!$B$32,'Transaction Summary'!N65,0,1,1) ->  | P65: =OFFSET(CalculationsAndCharts!$AC$32,'Transaction Summary'!N65,0,1,1) -> 
B66: =MATCH(TRUE,OFFSET(CalculationsAndCharts!$P$33,B65,0,'Transaction Summary'!$C$2-B65,1),0)+B65 ->  | C66: =OFFSET(CalculationsAndCharts!$B$32,'Transaction Summary'!B66,0,1,1) ->  | D66: =OFFSET(CalculationsAndCharts!$T$32,'Transaction Summary'!B66,0,1,1) ->  | E66: =MATCH(TRUE,OFFSET(CalculationsAndCharts!$S$33,E65,0,'Transaction Summary'!$C$2-E65,1),0)+E65 ->  | F66: =OFFSET(CalculationsAndCharts!$B$32,'Transaction Summary'!E66,0,1,1) ->  | G66: =OFFSET(CalculationsAndCharts!$U$32,'Transaction Summary'!E66,0,1,1) ->  | K66: =MATCH(TRUE,OFFSET(CalculationsAndCharts!$Y$33,K65,0,'Transaction Summary'!$C$2-K65,1),0)+K65 ->  | L66: =OFFSET(CalculationsAndCharts!$B$32,'Transaction Summary'!K66,0,1,1) ->  | M66: =OFFSET(CalculationsAndCharts!$AB$32,'Transaction Summary'!K66,0,1,1) ->  | N66: =IF($N$12>$K$15,$N$12,MATCH(TRUE,OFFSET(CalculationsAndCharts!$AA$33,N65,0,'Transaction Summary'!$C$2-N65,1),0)+N65) ->  | O66: =OFFSET(CalculationsAndCharts!$B$32,'Transaction Summary'!N66,0,1,1) ->  | P66: =OFFSET(CalculationsAndCharts!$AC$32,'Transaction Summary'!N66,0,1,1) -> 
B67: =MATCH(TRUE,OFFSET(CalculationsAndCharts!$P$33,B66,0,'Transaction Summary'!$C$2-B66,1),0)+B66 ->  | C67: =OFFSET(CalculationsAndCharts!$B$32,'Transaction Summary'!B67,0,1,1) ->  | D67: =OFFSET(CalculationsAndCharts!$T$32,'Transaction Summary'!B67,0,1,1) ->  | E67: =MATCH(TRUE,OFFSET(CalculationsAndCharts!$S$33,E66,0,'Transaction Summary'!$C$2-E66,1),0)+E66 ->  | F67: =OFFSET(CalculationsAndCharts!$B$32,'Transaction Summary'!E67,0,1,1) ->  | G67: =OFFSET(CalculationsAndCharts!$U$32,'Transaction Summary'!E67,0,1,1) ->  | K67: =MATCH(TRUE,OFFSET(CalculationsAndCharts!$Y$33,K66,0,'Transaction Summary'!$C$2-K66,1),0)+K66 ->  | L67: =OFFSET(CalculationsAndCharts!$B$32,'Transaction Summary'!K67,0,1,1) ->  | M67: =OFFSET(CalculationsAndCharts!$AB$32,'Transaction Summary'!K67,0,1,1) ->  | N67: =IF($N$12>$K$15,$N$12,MATCH(TRUE,OFFSET(CalculationsAndCharts!$AA$33,N66,0,'Transaction Summary'!$C$2-N66,1),0)+N66) ->  | O67: =OFFSET(CalculationsAndCharts!$B$32,'Transaction Summary'!N67,0,1,1) ->  | P67: =OFFSET(CalculationsAndCharts!$AC$32,'Transaction Summary'!N67,0,1,1) -> 
B68: =MATCH(TRUE,OFFSET(CalculationsAndCharts!$P$33,B67,0,'Transaction Summary'!$C$2-B67,1),0)+B67 ->  | C68: =OFFSET(CalculationsAndCharts!$B$32,'Transaction Summary'!B68,0,1,1) ->  | D68: =OFFSET(CalculationsAndCharts!$T$32,'Transaction Summary'!B68,0,1,1) ->  | E68: =MATCH(TRUE,OFFSET(CalculationsAndCharts!$S$33,E67,0,'Transaction Summary'!$C$2-E67,1),0)+E67 ->  | F68: =OFFSET(CalculationsAndCharts!$B$32,'Transaction Summary'!E68,0,1,1) ->  | G68: =OFFSET(CalculationsAndCharts!$U$32,'Transaction Summary'!E68,0,1,1) ->  | K68: =MATCH(TRUE,OFFSET(CalculationsAndCharts!$Y$33,K67,0,'Transaction Summary'!$C$2-K67,1),0)+K67 ->  | L68: =OFFSET(CalculationsAndCharts!$B$32,'Transaction Summary'!K68,0,1,1) ->  | M68: =OFFSET(CalculationsAndCharts!$AB$32,'Transaction Summary'!K68,0,1,1) ->  | N68: =IF($N$12>$K$15,$N$12,MATCH(TRUE,OFFSET(CalculationsAndCharts!$AA$33,N67,0,'Transaction Summary'!$C$2-N67,1),0)+N67) ->  | O68: =OFFSET(CalculationsAndCharts!$B$32,'Transaction Summary'!N68,0,1,1) ->  | P68: =OFFSET(CalculationsAndCharts!$AC$32,'Transaction Summary'!N68,0,1,1) -> 
B69: =MATCH(TRUE,OFFSET(CalculationsAndCharts!$P$33,B68,0,'Transaction Summary'!$C$2-B68,1),0)+B68 ->  | C69: =OFFSET(CalculationsAndCharts!$B$32,'Transaction Summary'!B69,0,1,1) ->  | D69: =OFFSET(CalculationsAndCharts!$T$32,'Transaction Summary'!B69,0,1,1) ->  | E69: =MATCH(TRUE,OFFSET(CalculationsAndCharts!$S$33,E68,0,'Transaction Summary'!$C$2-E68,1),0)+E68 ->  | F69: =OFFSET(CalculationsAndCharts!$B$32,'Transaction Summary'!E69,0,1,1) ->  | G69: =OFFSET(CalculationsAndCharts!$U$32,'Transaction Summary'!E69,0,1,1) ->  | K69: =MATCH(TRUE,OFFSET(CalculationsAndCharts!$Y$33,K68,0,'Transaction Summary'!$C$2-K68,1),0)+K68 ->  | L69: =OFFSET(CalculationsAndCharts!$B$32,'Transaction Summary'!K69,0,1,1) ->  | M69: =OFFSET(CalculationsAndCharts!$AB$32,'Transaction Summary'!K69,0,1,1) ->  | N69: =IF($N$12>$K$15,$N$12,MATCH(TRUE,OFFSET(CalculationsAndCharts!$AA$33,N68,0,'Transaction Summary'!$C$2-N68,1),0)+N68) ->  | O69: =OFFSET(CalculationsAndCharts!$B$32,'Transaction Summary'!N69,0,1,1) ->  | P69: =OFFSET(CalculationsAndCharts!$AC$32,'Transaction Summary'!N69,0,1,1) -> 
B70: =MATCH(TRUE,OFFSET(CalculationsAndCharts!$P$33,B69,0,'Transaction Summary'!$C$2-B69,1),0)+B69 ->  | C70: =OFFSET(CalculationsAndCharts!$B$32,'Transaction Summary'!B70,0,1,1) ->  | D70: =OFFSET(CalculationsAndCharts!$T$32,'Transaction Summary'!B70,0,1,1) ->  | E70: =MATCH(TRUE,OFFSET(CalculationsAndCharts!$S$33,E69,0,'Transaction Summary'!$C$2-E69,1),0)+E69 ->  | F70: =OFFSET(CalculationsAndCharts!$B$32,'Transaction Summary'!E70,0,1,1) ->  | G70: =OFFSET(CalculationsAndCharts!$U$32,'Transaction Summary'!E70,0,1,1) ->  | K70: =MATCH(TRUE,OFFSET(CalculationsAndCharts!$Y$33,K69,0,'Transaction Summary'!$C$2-K69,1),0)+K69 ->  | L70: =OFFSET(CalculationsAndCharts!$B$32,'Transaction Summary'!K70,0,1,1) ->  | M70: =OFFSET(CalculationsAndCharts!$AB$32,'Transaction Summary'!K70,0,1,1) ->  | N70: =IF($N$12>$K$15,$N$12,MATCH(TRUE,OFFSET(CalculationsAndCharts!$AA$33,N69,0,'Transaction Summary'!$C$2-N69,1),0)+N69) ->  | O70: =OFFSET(CalculationsAndCharts!$B$32,'Transaction Summary'!N70,0,1,1) ->  | P70: =OFFSET(CalculationsAndCharts!$AC$32,'Transaction Summary'!N70,0,1,1) -> 
B71: =MATCH(TRUE,OFFSET(CalculationsAndCharts!$P$33,B70,0,'Transaction Summary'!$C$2-B70,1),0)+B70 ->  | C71: =OFFSET(CalculationsAndCharts!$B$32,'Transaction Summary'!B71,0,1,1) ->  | D71: =OFFSET(CalculationsAndCharts!$T$32,'Transaction Summary'!B71,0,1,1) ->  | E71: =MATCH(TRUE,OFFSET(CalculationsAndCharts!$S$33,E70,0,'Transaction Summary'!$C$2-E70,1),0)+E70 ->  | F71: =OFFSET(CalculationsAndCharts!$B$32,'Transaction Summary'!E71,0,1,1) ->  | G71: =OFFSET(CalculationsAndCharts!$U$32,'Transaction Summary'!E71,0,1,1) ->  | K71: =MATCH(TRUE,OFFSET(CalculationsAndCharts!$Y$33,K70,0,'Transaction Summary'!$C$2-K70,1),0)+K70 ->  | L71: =OFFSET(CalculationsAndCharts!$B$32,'Transaction Summary'!K71,0,1,1) ->  | M71: =OFFSET(CalculationsAndCharts!$AB$32,'Transaction Summary'!K71,0,1,1) ->  | N71: =IF($N$12>$K$15,$N$12,MATCH(TRUE,OFFSET(CalculationsAndCharts!$AA$33,N70,0,'Transaction Summary'!$C$2-N70,1),0)+N70) ->  | O71: =OFFSET(CalculationsAndCharts!$B$32,'Transaction Summary'!N71,0,1,1) ->  | P71: =OFFSET(CalculationsAndCharts!$AC$32,'Transaction Summary'!N71,0,1,1) -> 
B72: =MATCH(TRUE,OFFSET(CalculationsAndCharts!$P$33,B71,0,'Transaction Summary'!$C$2-B71,1),0)+B71 ->  | C72: =OFFSET(CalculationsAndCharts!$B$32,'Transaction Summary'!B72,0,1,1) ->  | D72: =OFFSET(CalculationsAndCharts!$T$32,'Transaction Summary'!B72,0,1,1) ->  | E72: =MATCH(TRUE,OFFSET(CalculationsAndCharts!$S$33,E71,0,'Transaction Summary'!$C$2-E71,1),0)+E71 ->  | F72: =OFFSET(CalculationsAndCharts!$B$32,'Transaction Summary'!E72,0,1,1) ->  | G72: =OFFSET(CalculationsAndCharts!$U$32,'Transaction Summary'!E72,0,1,1) ->  | K72: =MATCH(TRUE,OFFSET(CalculationsAndCharts!$Y$33,K71,0,'Transaction Summary'!$C$2-K71,1),0)+K71 ->  | L72: =OFFSET(CalculationsAndCharts!$B$32,'Transaction Summary'!K72,0,1,1) ->  | M72: =OFFSET(CalculationsAndCharts!$AB$32,'Transaction Summary'!K72,0,1,1) ->  | N72: =IF($N$12>$K$15,$N$12,MATCH(TRUE,OFFSET(CalculationsAndCharts!$AA$33,N71,0,'Transaction Summary'!$C$2-N71,1),0)+N71) ->  | O72: =OFFSET(CalculationsAndCharts!$B$32,'Transaction Summary'!N72,0,1,1) ->  | P72: =OFFSET(CalculationsAndCharts!$AC$32,'Transaction Summary'!N72,0,1,1) -> 
B73: =MATCH(TRUE,OFFSET(CalculationsAndCharts!$P$33,B72,0,'Transaction Summary'!$C$2-B72,1),0)+B72 ->  | C73: =OFFSET(CalculationsAndCharts!$B$32,'Transaction Summary'!B73,0,1,1) ->  | D73: =OFFSET(CalculationsAndCharts!$T$32,'Transaction Summary'!B73,0,1,1) ->  | E73: =MATCH(TRUE,OFFSET(CalculationsAndCharts!$S$33,E72,0,'Transaction Summary'!$C$2-E72,1),0)+E72 ->  | F73: =OFFSET(CalculationsAndCharts!$B$32,'Transaction Summary'!E73,0,1,1) ->  | G73: =OFFSET(CalculationsAndCharts!$U$32,'Transaction Summary'!E73,0,1,1) ->  | K73: =MATCH(TRUE,OFFSET(CalculationsAndCharts!$Y$33,K72,0,'Transaction Summary'!$C$2-K72,1),0)+K72 ->  | L73: =OFFSET(CalculationsAndCharts!$B$32,'Transaction Summary'!K73,0,1,1) ->  | M73: =OFFSET(CalculationsAndCharts!$AB$32,'Transaction Summary'!K73,0,1,1) ->  | N73: =IF($N$12>$K$15,$N$12,MATCH(TRUE,OFFSET(CalculationsAndCharts!$AA$33,N72,0,'Transaction Summary'!$C$2-N72,1),0)+N72) ->  | O73: =OFFSET(CalculationsAndCharts!$B$32,'Transaction Summary'!N73,0,1,1) ->  | P73: =OFFSET(CalculationsAndCharts!$AC$32,'Transaction Summary'!N73,0,1,1) -> 
B74: =MATCH(TRUE,OFFSET(CalculationsAndCharts!$P$33,B73,0,'Transaction Summary'!$C$2-B73,1),0)+B73 ->  | C74: =OFFSET(CalculationsAndCharts!$B$32,'Transaction Summary'!B74,0,1,1) ->  | D74: =OFFSET(CalculationsAndCharts!$T$32,'Transaction Summary'!B74,0,1,1) ->  | E74: =MATCH(TRUE,OFFSET(CalculationsAndCharts!$S$33,E73,0,'Transaction Summary'!$C$2-E73,1),0)+E73 ->  | F74: =OFFSET(CalculationsAndCharts!$B$32,'Transaction Summary'!E74,0,1,1) ->  | G74: =OFFSET(CalculationsAndCharts!$U$32,'Transaction Summary'!E74,0,1,1) ->  | K74: =MATCH(TRUE,OFFSET(CalculationsAndCharts!$Y$33,K73,0,'Transaction Summary'!$C$2-K73,1),0)+K73 ->  | L74: =OFFSET(CalculationsAndCharts!$B$32,'Transaction Summary'!K74,0,1,1) ->  | M74: =OFFSET(CalculationsAndCharts!$AB$32,'Transaction Summary'!K74,0,1,1) ->  | N74: =IF($N$12>$K$15,$N$12,MATCH(TRUE,OFFSET(CalculationsAndCharts!$AA$33,N73,0,'Transaction Summary'!$C$2-N73,1),0)+N73) ->  | O74: =OFFSET(CalculationsAndCharts!$B$32,'Transaction Summary'!N74,0,1,1) ->  | P74: =OFFSET(CalculationsAndCharts!$AC$32,'Transaction Summary'!N74,0,1,1) -> 
B75: =MATCH(TRUE,OFFSET(CalculationsAndCharts!$P$33,B74,0,'Transaction Summary'!$C$2-B74,1),0)+B74 ->  | C75: =OFFSET(CalculationsAndCharts!$B$32,'Transaction Summary'!B75,0,1,1) ->  | D75: =OFFSET(CalculationsAndCharts!$T$32,'Transaction Summary'!B75,0,1,1) ->  | E75: =MATCH(TRUE,OFFSET(CalculationsAndCharts!$S$33,E74,0,'Transaction Summary'!$C$2-E74,1),0)+E74 ->  | F75: =OFFSET(CalculationsAndCharts!$B$32,'Transaction Summary'!E75,0,1,1) ->  | G75: =OFFSET(CalculationsAndCharts!$U$32,'Transaction Summary'!E75,0,1,1) ->  | K75: =MATCH(TRUE,OFFSET(CalculationsAndCharts!$Y$33,K74,0,'Transaction Summary'!$C$2-K74,1),0)+K74 ->  | L75: =OFFSET(CalculationsAndCharts!$B$32,'Transaction Summary'!K75,0,1,1) ->  | M75: =OFFSET(CalculationsAndCharts!$AB$32,'Transaction Summary'!K75,0,1,1) ->  | N75: =IF($N$12>$K$15,$N$12,MATCH(TRUE,OFFSET(CalculationsAndCharts!$AA$33,N74,0,'Transaction Summary'!$C$2-N74,1),0)+N74) ->  | O75: =OFFSET(CalculationsAndCharts!$B$32,'Transaction Summary'!N75,0,1,1) ->  | P75: =OFFSET(CalculationsAndCharts!$AC$32,'Transaction Summary'!N75,0,1,1) -> 
B76: =MATCH(TRUE,OFFSET(CalculationsAndCharts!$P$33,B75,0,'Transaction Summary'!$C$2-B75,1),0)+B75 ->  | C76: =OFFSET(CalculationsAndCharts!$B$32,'Transaction Summary'!B76,0,1,1) ->  | D76: =OFFSET(CalculationsAndCharts!$T$32,'Transaction Summary'!B76,0,1,1) ->  | E76: =MATCH(TRUE,OFFSET(CalculationsAndCharts!$S$33,E75,0,'Transaction Summary'!$C$2-E75,1),0)+E75 ->  | F76: =OFFSET(CalculationsAndCharts!$B$32,'Transaction Summary'!E76,0,1,1) ->  | G76: =OFFSET(CalculationsAndCharts!$U$32,'Transaction Summary'!E76,0,1,1) ->  | K76: =MATCH(TRUE,OFFSET(CalculationsAndCharts!$Y$33,K75,0,'Transaction Summary'!$C$2-K75,1),0)+K75 ->  | L76: =OFFSET(CalculationsAndCharts!$B$32,'Transaction Summary'!K76,0,1,1) ->  | M76: =OFFSET(CalculationsAndCharts!$AB$32,'Transaction Summary'!K76,0,1,1) ->  | N76: =IF($N$12>$K$15,$N$12,MATCH(TRUE,OFFSET(CalculationsAndCharts!$AA$33,N75,0,'Transaction Summary'!$C$2-N75,1),0)+N75) ->  | O76: =OFFSET(CalculationsAndCharts!$B$32,'Transaction Summary'!N76,0,1,1) ->  | P76: =OFFSET(CalculationsAndCharts!$AC$32,'Transaction Summary'!N76,0,1,1) -> 
B77: =MATCH(TRUE,OFFSET(CalculationsAndCharts!$P$33,B76,0,'Transaction Summary'!$C$2-B76,1),0)+B76 ->  | C77: =OFFSET(CalculationsAndCharts!$B$32,'Transaction Summary'!B77,0,1,1) ->  | D77: =OFFSET(CalculationsAndCharts!$T$32,'Transaction Summary'!B77,0,1,1) ->  | E77: =MATCH(TRUE,OFFSET(CalculationsAndCharts!$S$33,E76,0,'Transaction Summary'!$C$2-E76,1),0)+E76 ->  | F77: =OFFSET(CalculationsAndCharts!$B$32,'Transaction Summary'!E77,0,1,1) ->  | G77: =OFFSET(CalculationsAndCharts!$U$32,'Transaction Summary'!E77,0,1,1) ->  | K77: =MATCH(TRUE,OFFSET(CalculationsAndCharts!$Y$33,K76,0,'Transaction Summary'!$C$2-K76,1),0)+K76 ->  | L77: =OFFSET(CalculationsAndCharts!$B$32,'Transaction Summary'!K77,0,1,1) ->  | M77: =OFFSET(CalculationsAndCharts!$AB$32,'Transaction Summary'!K77,0,1,1) ->  | N77: =IF($N$12>$K$15,$N$12,MATCH(TRUE,OFFSET(CalculationsAndCharts!$AA$33,N76,0,'Transaction Summary'!$C$2-N76,1),0)+N76) ->  | O77: =OFFSET(CalculationsAndCharts!$B$32,'Transaction Summary'!N77,0,1,1) ->  | P77: =OFFSET(CalculationsAndCharts!$AC$32,'Transaction Summary'!N77,0,1,1) -> 
B78: =MATCH(TRUE,OFFSET(CalculationsAndCharts!$P$33,B77,0,'Transaction Summary'!$C$2-B77,1),0)+B77 ->  | C78: =OFFSET(CalculationsAndCharts!$B$32,'Transaction Summary'!B78,0,1,1) ->  | D78: =OFFSET(CalculationsAndCharts!$T$32,'Transaction Summary'!B78,0,1,1) ->  | E78: =MATCH(TRUE,OFFSET(CalculationsAndCharts!$S$33,E77,0,'Transaction Summary'!$C$2-E77,1),0)+E77 ->  | F78: =OFFSET(CalculationsAndCharts!$B$32,'Transaction Summary'!E78,0,1,1) ->  | G78: =OFFSET(CalculationsAndCharts!$U$32,'Transaction Summary'!E78,0,1,1) ->  | K78: =MATCH(TRUE,OFFSET(CalculationsAndCharts!$Y$33,K77,0,'Transaction Summary'!$C$2-K77,1),0)+K77 ->  | L78: =OFFSET(CalculationsAndCharts!$B$32,'Transaction Summary'!K78,0,1,1) ->  | M78: =OFFSET(CalculationsAndCharts!$AB$32,'Transaction Summary'!K78,0,1,1) ->  | N78: =IF($N$12>$K$15,$N$12,MATCH(TRUE,OFFSET(CalculationsAndCharts!$AA$33,N77,0,'Transaction Summary'!$C$2-N77,1),0)+N77) ->  | O78: =OFFSET(CalculationsAndCharts!$B$32,'Transaction Summary'!N78,0,1,1) ->  | P78: =OFFSET(CalculationsAndCharts!$AC$32,'Transaction Summary'!N78,0,1,1) -> 
B79: =MATCH(TRUE,OFFSET(CalculationsAndCharts!$P$33,B78,0,'Transaction Summary'!$C$2-B78,1),0)+B78 ->  | C79: =OFFSET(CalculationsAndCharts!$B$32,'Transaction Summary'!B79,0,1,1) ->  | D79: =OFFSET(CalculationsAndCharts!$T$32,'Transaction Summary'!B79,0,1,1) ->  | E79: =MATCH(TRUE,OFFSET(CalculationsAndCharts!$S$33,E78,0,'Transaction Summary'!$C$2-E78,1),0)+E78 ->  | F79: =OFFSET(CalculationsAndCharts!$B$32,'Transaction Summary'!E79,0,1,1) ->  | G79: =OFFSET(CalculationsAndCharts!$U$32,'Transaction Summary'!E79,0,1,1) ->  | K79: =MATCH(TRUE,OFFSET(CalculationsAndCharts!$Y$33,K78,0,'Transaction Summary'!$C$2-K78,1),0)+K78 ->  | L79: =OFFSET(CalculationsAndCharts!$B$32,'Transaction Summary'!K79,0,1,1) ->  | M79: =OFFSET(CalculationsAndCharts!$AB$32,'Transaction Summary'!K79,0,1,1) ->  | N79: =IF($N$12>$K$15,$N$12,MATCH(TRUE,OFFSET(CalculationsAndCharts!$AA$33,N78,0,'Transaction Summary'!$C$2-N78,1),0)+N78) ->  | O79: =OFFSET(CalculationsAndCharts!$B$32,'Transaction Summary'!N79,0,1,1) ->  | P79: =OFFSET(CalculationsAndCharts!$AC$32,'Transaction Summary'!N79,0,1,1) -> 
B80: =MATCH(TRUE,OFFSET(CalculationsAndCharts!$P$33,B79,0,'Transaction Summary'!$C$2-B79,1),0)+B79 ->  | C80: =OFFSET(CalculationsAndCharts!$B$32,'Transaction Summary'!B80,0,1,1) ->  | D80: =OFFSET(CalculationsAndCharts!$T$32,'Transaction Summary'!B80,0,1,1) ->  | E80: =MATCH(TRUE,OFFSET(CalculationsAndCharts!$S$33,E79,0,'Transaction Summary'!$C$2-E79,1),0)+E79 ->  | F80: =OFFSET(CalculationsAndCharts!$B$32,'Transaction Summary'!E80,0,1,1) ->  | G80: =OFFSET(CalculationsAndCharts!$U$32,'Transaction Summary'!E80,0,1,1) ->  | K80: =MATCH(TRUE,OFFSET(CalculationsAndCharts!$Y$33,K79,0,'Transaction Summary'!$C$2-K79,1),0)+K79 ->  | L80: =OFFSET(CalculationsAndCharts!$B$32,'Transaction Summary'!K80,0,1,1) ->  | M80: =OFFSET(CalculationsAndCharts!$AB$32,'Transaction Summary'!K80,0,1,1) ->  | N80: =IF($N$12>$K$15,$N$12,MATCH(TRUE,OFFSET(CalculationsAndCharts!$AA$33,N79,0,'Transaction Summary'!$C$2-N79,1),0)+N79) ->  | O80: =OFFSET(CalculationsAndCharts!$B$32,'Transaction Summary'!N80,0,1,1) ->  | P80: =OFFSET(CalculationsAndCharts!$AC$32,'Transaction Summary'!N80,0,1,1) -> 
B81: =MATCH(TRUE,OFFSET(CalculationsAndCharts!$P$33,B80,0,'Transaction Summary'!$C$2-B80,1),0)+B80 ->  | C81: =OFFSET(CalculationsAndCharts!$B$32,'Transaction Summary'!B81,0,1,1) ->  | D81: =OFFSET(CalculationsAndCharts!$T$32,'Transaction Summary'!B81,0,1,1) ->  | E81: =MATCH(TRUE,OFFSET(CalculationsAndCharts!$S$33,E80,0,'Transaction Summary'!$C$2-E80,1),0)+E80 ->  | F81: =OFFSET(CalculationsAndCharts!$B$32,'Transaction Summary'!E81,0,1,1) ->  | G81: =OFFSET(CalculationsAndCharts!$U$32,'Transaction Summary'!E81,0,1,1) ->  | K81: =MATCH(TRUE,OFFSET(CalculationsAndCharts!$Y$33,K80,0,'Transaction Summary'!$C$2-K80,1),0)+K80 ->  | L81: =OFFSET(CalculationsAndCharts!$B$32,'Transaction Summary'!K81,0,1,1) ->  | M81: =OFFSET(CalculationsAndCharts!$AB$32,'Transaction Summary'!K81,0,1,1) ->  | N81: =IF($N$12>$K$15,$N$12,MATCH(TRUE,OFFSET(CalculationsAndCharts!$AA$33,N80,0,'Transaction Summary'!$C$2-N80,1),0)+N80) ->  | O81: =OFFSET(CalculationsAndCharts!$B$32,'Transaction Summary'!N81,0,1,1) ->  | P81: =OFFSET(CalculationsAndCharts!$AC$32,'Transaction Summary'!N81,0,1,1) ->  | Q81: =M81-P81 ->  | R81: =Q81+IF(ISNA(R82),0,R82) -> 
B82: =MATCH(TRUE,OFFSET(CalculationsAndCharts!$P$33,B81,0,'Transaction Summary'!$C$2-B81,1),0)+B81 ->  | C82: =OFFSET(CalculationsAndCharts!$B$32,'Transaction Summary'!B82,0,1,1) ->  | D82: =OFFSET(CalculationsAndCharts!$T$32,'Transaction Summary'!B82,0,1,1) ->  | E82: =MATCH(TRUE,OFFSET(CalculationsAndCharts!$S$33,E81,0,'Transaction Summary'!$C$2-E81,1),0)+E81 ->  | F82: =OFFSET(CalculationsAndCharts!$B$32,'Transaction Summary'!E82,0,1,1) ->  | G82: =OFFSET(CalculationsAndCharts!$U$32,'Transaction Summary'!E82,0,1,1) ->  | H82: =G82-D82 ->  | K82: =MATCH(TRUE,OFFSET(CalculationsAndCharts!$Y$33,K81,0,'Transaction Summary'!$C$2-K81,1),0)+K81 ->  | L82: =OFFSET(CalculationsAndCharts!$B$32,'Transaction Summary'!K82,0,1,1) ->  | M82: =OFFSET(CalculationsAndCharts!$AB$32,'Transaction Summary'!K82,0,1,1) ->  | N82: =IF($N$12>$K$15,$N$12,MATCH(TRUE,OFFSET(CalculationsAndCharts!$AA$33,N81,0,'Transaction Summary'!$C$2-N81,1),0)+N81) ->  | O82: =OFFSET(CalculationsAndCharts!$B$32,'Transaction Summary'!N82,0,1,1) ->  | P82: =OFFSET(CalculationsAndCharts!$AC$32,'Transaction Summary'!N82,0,1,1) -> 
B83: =MATCH(TRUE,OFFSET(CalculationsAndCharts!$P$33,B82,0,'Transaction Summary'!$C$2-B82,1),0)+B82 ->  | C83: =OFFSET(CalculationsAndCharts!$B$32,'Transaction Summary'!B83,0,1,1) ->  | D83: =OFFSET(CalculationsAndCharts!$T$32,'Transaction Summary'!B83,0,1,1) ->  | E83: =MATCH(TRUE,OFFSET(CalculationsAndCharts!$S$33,E82,0,'Transaction Summary'!$C$2-E82,1),0)+E82 ->  | F83: =OFFSET(CalculationsAndCharts!$B$32,'Transaction Summary'!E83,0,1,1) ->  | G83: =OFFSET(CalculationsAndCharts!$U$32,'Transaction Summary'!E83,0,1,1) ->  | K83: =MATCH(TRUE,OFFSET(CalculationsAndCharts!$Y$33,K82,0,'Transaction Summary'!$C$2-K82,1),0)+K82 ->  | L83: =OFFSET(CalculationsAndCharts!$B$32,'Transaction Summary'!K83,0,1,1) ->  | M83: =OFFSET(CalculationsAndCharts!$AB$32,'Transaction Summary'!K83,0,1,1) ->  | N83: =IF($N$12>$K$15,$N$12,MATCH(TRUE,OFFSET(CalculationsAndCharts!$AA$33,N82,0,'Transaction Summary'!$C$2-N82,1),0)+N82) ->  | O83: =OFFSET(CalculationsAndCharts!$B$32,'Transaction Summary'!N83,0,1,1) ->  | P83: =OFFSET(CalculationsAndCharts!$AC$32,'Transaction Summary'!N83,0,1,1) -> 
B84: =MATCH(TRUE,OFFSET(CalculationsAndCharts!$P$33,B83,0,'Transaction Summary'!$C$2-B83,1),0)+B83 ->  | C84: =OFFSET(CalculationsAndCharts!$B$32,'Transaction Summary'!B84,0,1,1) ->  | D84: =OFFSET(CalculationsAndCharts!$T$32,'Transaction Summary'!B84,0,1,1) ->  | E84: =MATCH(TRUE,OFFSET(CalculationsAndCharts!$S$33,E83,0,'Transaction Summary'!$C$2-E83,1),0)+E83 ->  | F84: =OFFSET(CalculationsAndCharts!$B$32,'Transaction Summary'!E84,0,1,1) ->  | G84: =OFFSET(CalculationsAndCharts!$U$32,'Transaction Summary'!E84,0,1,1) ->  | K84: =MATCH(TRUE,OFFSET(CalculationsAndCharts!$Y$33,K83,0,'Transaction Summary'!$C$2-K83,1),0)+K83 ->  | L84: =OFFSET(CalculationsAndCharts!$B$32,'Transaction Summary'!K84,0,1,1) ->  | M84: =OFFSET(CalculationsAndCharts!$AB$32,'Transaction Summary'!K84,0,1,1) ->  | N84: =IF($N$12>$K$15,$N$12,MATCH(TRUE,OFFSET(CalculationsAndCharts!$AA$33,N83,0,'Transaction Summary'!$C$2-N83,1),0)+N83) ->  | O84: =OFFSET(CalculationsAndCharts!$B$32,'Transaction Summary'!N84,0,1,1) ->  | P84: =OFFSET(CalculationsAndCharts!$AC$32,'Transaction Summary'!N84,0,1,1) -> 
B85: =MATCH(TRUE,OFFSET(CalculationsAndCharts!$P$33,B84,0,'Transaction Summary'!$C$2-B84,1),0)+B84 ->  | C85: =OFFSET(CalculationsAndCharts!$B$32,'Transaction Summary'!B85,0,1,1) ->  | D85: =OFFSET(CalculationsAndCharts!$T$32,'Transaction Summary'!B85,0,1,1) ->  | E85: =MATCH(TRUE,OFFSET(CalculationsAndCharts!$S$33,E84,0,'Transaction Summary'!$C$2-E84,1),0)+E84 ->  | F85: =OFFSET(CalculationsAndCharts!$B$32,'Transaction Summary'!E85,0,1,1) ->  | G85: =OFFSET(CalculationsAndCharts!$U$32,'Transaction Summary'!E85,0,1,1) ->  | K85: =MATCH(TRUE,OFFSET(CalculationsAndCharts!$Y$33,K84,0,'Transaction Summary'!$C$2-K84,1),0)+K84 ->  | L85: =OFFSET(CalculationsAndCharts!$B$32,'Transaction Summary'!K85,0,1,1) ->  | M85: =OFFSET(CalculationsAndCharts!$AB$32,'Transaction Summary'!K85,0,1,1) ->  | N85: =IF($N$12>$K$15,$N$12,MATCH(TRUE,OFFSET(CalculationsAndCharts!$AA$33,N84,0,'Transaction Summary'!$C$2-N84,1),0)+N84) ->  | O85: =OFFSET(CalculationsAndCharts!$B$32,'Transaction Summary'!N85,0,1,1) ->  | P85: =OFFSET(CalculationsAndCharts!$AC$32,'Transaction Summary'!N85,0,1,1) -> 
B86: =MATCH(TRUE,OFFSET(CalculationsAndCharts!$P$33,B85,0,'Transaction Summary'!$C$2-B85,1),0)+B85 ->  | C86: =OFFSET(CalculationsAndCharts!$B$32,'Transaction Summary'!B86,0,1,1) ->  | D86: =OFFSET(CalculationsAndCharts!$T$32,'Transaction Summary'!B86,0,1,1) ->  | E86: =MATCH(TRUE,OFFSET(CalculationsAndCharts!$S$33,E85,0,'Transaction Summary'!$C$2-E85,1),0)+E85 ->  | F86: =OFFSET(CalculationsAndCharts!$B$32,'Transaction Summary'!E86,0,1,1) ->  | G86: =OFFSET(CalculationsAndCharts!$U$32,'Transaction Summary'!E86,0,1,1) ->  | K86: =MATCH(TRUE,OFFSET(CalculationsAndCharts!$Y$33,K85,0,'Transaction Summary'!$C$2-K85,1),0)+K85 ->  | L86: =OFFSET(CalculationsAndCharts!$B$32,'Transaction Summary'!K86,0,1,1) ->  | M86: =OFFSET(CalculationsAndCharts!$AB$32,'Transaction Summary'!K86,0,1,1) ->  | N86: =IF($N$12>$K$15,$N$12,MATCH(TRUE,OFFSET(CalculationsAndCharts!$AA$33,N85,0,'Transaction Summary'!$C$2-N85,1),0)+N85) ->  | O86: =OFFSET(CalculationsAndCharts!$B$32,'Transaction Summary'!N86,0,1,1) ->  | P86: =OFFSET(CalculationsAndCharts!$AC$32,'Transaction Summary'!N86,0,1,1) -> 
B87: =MATCH(TRUE,OFFSET(CalculationsAndCharts!$P$33,B86,0,'Transaction Summary'!$C$2-B86,1),0)+B86 ->  | C87: =OFFSET(CalculationsAndCharts!$B$32,'Transaction Summary'!B87,0,1,1) ->  | D87: =OFFSET(CalculationsAndCharts!$T$32,'Transaction Summary'!B87,0,1,1) ->  | E87: =MATCH(TRUE,OFFSET(CalculationsAndCharts!$S$33,E86,0,'Transaction Summary'!$C$2-E86,1),0)+E86 ->  | F87: =OFFSET(CalculationsAndCharts!$B$32,'Transaction Summary'!E87,0,1,1) ->  | G87: =OFFSET(CalculationsAndCharts!$U$32,'Transaction Summary'!E87,0,1,1) ->  | K87: =MATCH(TRUE,OFFSET(CalculationsAndCharts!$Y$33,K86,0,'Transaction Summary'!$C$2-K86,1),0)+K86 ->  | L87: =OFFSET(CalculationsAndCharts!$B$32,'Transaction Summary'!K87,0,1,1) ->  | M87: =OFFSET(CalculationsAndCharts!$AB$32,'Transaction Summary'!K87,0,1,1) ->  | N87: =IF($N$12>$K$15,$N$12,MATCH(TRUE,OFFSET(CalculationsAndCharts!$AA$33,N86,0,'Transaction Summary'!$C$2-N86,1),0)+N86) ->  | O87: =OFFSET(CalculationsAndCharts!$B$32,'Transaction Summary'!N87,0,1,1) ->  | P87: =OFFSET(CalculationsAndCharts!$AC$32,'Transaction Summary'!N87,0,1,1) -> 
B88: =MATCH(TRUE,OFFSET(CalculationsAndCharts!$P$33,B87,0,'Transaction Summary'!$C$2-B87,1),0)+B87 ->  | C88: =OFFSET(CalculationsAndCharts!$B$32,'Transaction Summary'!B88,0,1,1) ->  | D88: =OFFSET(CalculationsAndCharts!$T$32,'Transaction Summary'!B88,0,1,1) ->  | E88: =MATCH(TRUE,OFFSET(CalculationsAndCharts!$S$33,E87,0,'Transaction Summary'!$C$2-E87,1),0)+E87 ->  | F88: =OFFSET(CalculationsAndCharts!$B$32,'Transaction Summary'!E88,0,1,1) ->  | G88: =OFFSET(CalculationsAndCharts!$U$32,'Transaction Summary'!E88,0,1,1) ->  | K88: =MATCH(TRUE,OFFSET(CalculationsAndCharts!$Y$33,K87,0,'Transaction Summary'!$C$2-K87,1),0)+K87 ->  | L88: =OFFSET(CalculationsAndCharts!$B$32,'Transaction Summary'!K88,0,1,1) ->  | M88: =OFFSET(CalculationsAndCharts!$AB$32,'Transaction Summary'!K88,0,1,1) ->  | N88: =IF($N$12>$K$15,$N$12,MATCH(TRUE,OFFSET(CalculationsAndCharts!$AA$33,N87,0,'Transaction Summary'!$C$2-N87,1),0)+N87) ->  | O88: =OFFSET(CalculationsAndCharts!$B$32,'Transaction Summary'!N88,0,1,1) ->  | P88: =OFFSET(CalculationsAndCharts!$AC$32,'Transaction Summary'!N88,0,1,1) -> 
B89: =MATCH(TRUE,OFFSET(CalculationsAndCharts!$P$33,B88,0,'Transaction Summary'!$C$2-B88,1),0)+B88 ->  | C89: =OFFSET(CalculationsAndCharts!$B$32,'Transaction Summary'!B89,0,1,1) ->  | D89: =OFFSET(CalculationsAndCharts!$T$32,'Transaction Summary'!B89,0,1,1) ->  | E89: =MATCH(TRUE,OFFSET(CalculationsAndCharts!$S$33,E88,0,'Transaction Summary'!$C$2-E88,1),0)+E88 ->  | F89: =OFFSET(CalculationsAndCharts!$B$32,'Transaction Summary'!E89,0,1,1) ->  | G89: =OFFSET(CalculationsAndCharts!$U$32,'Transaction Summary'!E89,0,1,1) ->  | K89: =MATCH(TRUE,OFFSET(CalculationsAndCharts!$Y$33,K88,0,'Transaction Summary'!$C$2-K88,1),0)+K88 ->  | L89: =OFFSET(CalculationsAndCharts!$B$32,'Transaction Summary'!K89,0,1,1) ->  | M89: =OFFSET(CalculationsAndCharts!$AB$32,'Transaction Summary'!K89,0,1,1) ->  | N89: =IF($N$12>$K$15,$N$12,MATCH(TRUE,OFFSET(CalculationsAndCharts!$AA$33,N88,0,'Transaction Summary'!$C$2-N88,1),0)+N88) ->  | O89: =OFFSET(CalculationsAndCharts!$B$32,'Transaction Summary'!N89,0,1,1) ->  | P89: =OFFSET(CalculationsAndCharts!$AC$32,'Transaction Summary'!N89,0,1,1) -> 
B90: =MATCH(TRUE,OFFSET(CalculationsAndCharts!$P$33,B89,0,'Transaction Summary'!$C$2-B89,1),0)+B89 ->  | C90: =OFFSET(CalculationsAndCharts!$B$32,'Transaction Summary'!B90,0,1,1) ->  | D90: =OFFSET(CalculationsAndCharts!$T$32,'Transaction Summary'!B90,0,1,1) ->  | E90: =MATCH(TRUE,OFFSET(CalculationsAndCharts!$S$33,E89,0,'Transaction Summary'!$C$2-E89,1),0)+E89 ->  | F90: =OFFSET(CalculationsAndCharts!$B$32,'Transaction Summary'!E90,0,1,1) ->  | G90: =OFFSET(CalculationsAndCharts!$U$32,'Transaction Summary'!E90,0,1,1) ->  | K90: =MATCH(TRUE,OFFSET(CalculationsAndCharts!$Y$33,K89,0,'Transaction Summary'!$C$2-K89,1),0)+K89 ->  | L90: =OFFSET(CalculationsAndCharts!$B$32,'Transaction Summary'!K90,0,1,1) ->  | M90: =OFFSET(CalculationsAndCharts!$AB$32,'Transaction Summary'!K90,0,1,1) ->  | N90: =IF($N$12>$K$15,$N$12,MATCH(TRUE,OFFSET(CalculationsAndCharts!$AA$33,N89,0,'Transaction Summary'!$C$2-N89,1),0)+N89) ->  | O90: =OFFSET(CalculationsAndCharts!$B$32,'Transaction Summary'!N90,0,1,1) ->  | P90: =OFFSET(CalculationsAndCharts!$AC$32,'Transaction Summary'!N90,0,1,1) -> 
B91: =MATCH(TRUE,OFFSET(CalculationsAndCharts!$P$33,B90,0,'Transaction Summary'!$C$2-B90,1),0)+B90 ->  | C91: =OFFSET(CalculationsAndCharts!$B$32,'Transaction Summary'!B91,0,1,1) ->  | D91: =OFFSET(CalculationsAndCharts!$T$32,'Transaction Summary'!B91,0,1,1) ->  | E91: =MATCH(TRUE,OFFSET(CalculationsAndCharts!$S$33,E90,0,'Transaction Summary'!$C$2-E90,1),0)+E90 ->  | F91: =OFFSET(CalculationsAndCharts!$B$32,'Transaction Summary'!E91,0,1,1) ->  | G91: =OFFSET(CalculationsAndCharts!$U$32,'Transaction Summary'!E91,0,1,1) ->  | K91: =MATCH(TRUE,OFFSET(CalculationsAndCharts!$Y$33,K90,0,'Transaction Summary'!$C$2-K90,1),0)+K90 ->  | L91: =OFFSET(CalculationsAndCharts!$B$32,'Transaction Summary'!K91,0,1,1) ->  | M91: =OFFSET(CalculationsAndCharts!$AB$32,'Transaction Summary'!K91,0,1,1) ->  | N91: =IF($N$12>$K$15,$N$12,MATCH(TRUE,OFFSET(CalculationsAndCharts!$AA$33,N90,0,'Transaction Summary'!$C$2-N90,1),0)+N90) ->  | O91: =OFFSET(CalculationsAndCharts!$B$32,'Transaction Summary'!N91,0,1,1) ->  | P91: =OFFSET(CalculationsAndCharts!$AC$32,'Transaction Summary'!N91,0,1,1) -> 
B92: =MATCH(TRUE,OFFSET(CalculationsAndCharts!$P$33,B91,0,'Transaction Summary'!$C$2-B91,1),0)+B91 ->  | C92: =OFFSET(CalculationsAndCharts!$B$32,'Transaction Summary'!B92,0,1,1) ->  | D92: =OFFSET(CalculationsAndCharts!$T$32,'Transaction Summary'!B92,0,1,1) ->  | E92: =MATCH(TRUE,OFFSET(CalculationsAndCharts!$S$33,E91,0,'Transaction Summary'!$C$2-E91,1),0)+E91 ->  | F92: =OFFSET(CalculationsAndCharts!$B$32,'Transaction Summary'!E92,0,1,1) ->  | G92: =OFFSET(CalculationsAndCharts!$U$32,'Transaction Summary'!E92,0,1,1) ->  | K92: =MATCH(TRUE,OFFSET(CalculationsAndCharts!$Y$33,K91,0,'Transaction Summary'!$C$2-K91,1),0)+K91 ->  | L92: =OFFSET(CalculationsAndCharts!$B$32,'Transaction Summary'!K92,0,1,1) ->  | M92: =OFFSET(CalculationsAndCharts!$AB$32,'Transaction Summary'!K92,0,1,1) ->  | N92: =IF($N$12>$K$15,$N$12,MATCH(TRUE,OFFSET(CalculationsAndCharts!$AA$33,N91,0,'Transaction Summary'!$C$2-N91,1),0)+N91) ->  | O92: =OFFSET(CalculationsAndCharts!$B$32,'Transaction Summary'!N92,0,1,1) ->  | P92: =OFFSET(CalculationsAndCharts!$AC$32,'Transaction Summary'!N92,0,1,1) -> 
B93: =MATCH(TRUE,OFFSET(CalculationsAndCharts!$P$33,B92,0,'Transaction Summary'!$C$2-B92,1),0)+B92 ->  | C93: =OFFSET(CalculationsAndCharts!$B$32,'Transaction Summary'!B93,0,1,1) ->  | D93: =OFFSET(CalculationsAndCharts!$T$32,'Transaction Summary'!B93,0,1,1) ->  | E93: =MATCH(TRUE,OFFSET(CalculationsAndCharts!$S$33,E92,0,'Transaction Summary'!$C$2-E92,1),0)+E92 ->  | F93: =OFFSET(CalculationsAndCharts!$B$32,'Transaction Summary'!E93,0,1,1) ->  | G93: =OFFSET(CalculationsAndCharts!$U$32,'Transaction Summary'!E93,0,1,1) ->  | K93: =MATCH(TRUE,OFFSET(CalculationsAndCharts!$Y$33,K92,0,'Transaction Summary'!$C$2-K92,1),0)+K92 ->  | L93: =OFFSET(CalculationsAndCharts!$B$32,'Transaction Summary'!K93,0,1,1) ->  | M93: =OFFSET(CalculationsAndCharts!$AB$32,'Transaction Summary'!K93,0,1,1) ->  | N93: =IF($N$12>$K$15,$N$12,MATCH(TRUE,OFFSET(CalculationsAndCharts!$AA$33,N92,0,'Transaction Summary'!$C$2-N92,1),0)+N92) ->  | O93: =OFFSET(CalculationsAndCharts!$B$32,'Transaction Summary'!N93,0,1,1) ->  | P93: =OFFSET(CalculationsAndCharts!$AC$32,'Transaction Summary'!N93,0,1,1) -> 
B94: =MATCH(TRUE,OFFSET(CalculationsAndCharts!$P$33,B93,0,'Transaction Summary'!$C$2-B93,1),0)+B93 ->  | C94: =OFFSET(CalculationsAndCharts!$B$32,'Transaction Summary'!B94,0,1,1) ->  | D94: =OFFSET(CalculationsAndCharts!$T$32,'Transaction Summary'!B94,0,1,1) ->  | E94: =MATCH(TRUE,OFFSET(CalculationsAndCharts!$S$33,E93,0,'Transaction Summary'!$C$2-E93,1),0)+E93 ->  | F94: =OFFSET(CalculationsAndCharts!$B$32,'Transaction Summary'!E94,0,1,1) ->  | G94: =OFFSET(CalculationsAndCharts!$U$32,'Transaction Summary'!E94,0,1,1) ->  | K94: =MATCH(TRUE,OFFSET(CalculationsAndCharts!$Y$33,K93,0,'Transaction Summary'!$C$2-K93,1),0)+K93 ->  | L94: =OFFSET(CalculationsAndCharts!$B$32,'Transaction Summary'!K94,0,1,1) ->  | M94: =OFFSET(CalculationsAndCharts!$AB$32,'Transaction Summary'!K94,0,1,1) ->  | N94: =IF($N$12>$K$15,$N$12,MATCH(TRUE,OFFSET(CalculationsAndCharts!$AA$33,N93,0,'Transaction Summary'!$C$2-N93,1),0)+N93) ->  | O94: =OFFSET(CalculationsAndCharts!$B$32,'Transaction Summary'!N94,0,1,1) ->  | P94: =OFFSET(CalculationsAndCharts!$AC$32,'Transaction Summary'!N94,0,1,1) -> 
B95: =MATCH(TRUE,OFFSET(CalculationsAndCharts!$P$33,B94,0,'Transaction Summary'!$C$2-B94,1),0)+B94 ->  | C95: =OFFSET(CalculationsAndCharts!$B$32,'Transaction Summary'!B95,0,1,1) ->  | D95: =OFFSET(CalculationsAndCharts!$T$32,'Transaction Summary'!B95,0,1,1) ->  | E95: =MATCH(TRUE,OFFSET(CalculationsAndCharts!$S$33,E94,0,'Transaction Summary'!$C$2-E94,1),0)+E94 ->  | F95: =OFFSET(CalculationsAndCharts!$B$32,'Transaction Summary'!E95,0,1,1) ->  | G95: =OFFSET(CalculationsAndCharts!$U$32,'Transaction Summary'!E95,0,1,1) ->  | K95: =MATCH(TRUE,OFFSET(CalculationsAndCharts!$Y$33,K94,0,'Transaction Summary'!$C$2-K94,1),0)+K94 ->  | L95: =OFFSET(CalculationsAndCharts!$B$32,'Transaction Summary'!K95,0,1,1) ->  | M95: =OFFSET(CalculationsAndCharts!$AB$32,'Transaction Summary'!K95,0,1,1) ->  | N95: =IF($N$12>$K$15,$N$12,MATCH(TRUE,OFFSET(CalculationsAndCharts!$AA$33,N94,0,'Transaction Summary'!$C$2-N94,1),0)+N94) ->  | O95: =OFFSET(CalculationsAndCharts!$B$32,'Transaction Summary'!N95,0,1,1) ->  | P95: =OFFSET(CalculationsAndCharts!$AC$32,'Transaction Summary'!N95,0,1,1) -> 
B96: =MATCH(TRUE,OFFSET(CalculationsAndCharts!$P$33,B95,0,'Transaction Summary'!$C$2-B95,1),0)+B95 ->  | C96: =OFFSET(CalculationsAndCharts!$B$32,'Transaction Summary'!B96,0,1,1) ->  | D96: =OFFSET(CalculationsAndCharts!$T$32,'Transaction Summary'!B96,0,1,1) ->  | E96: =MATCH(TRUE,OFFSET(CalculationsAndCharts!$S$33,E95,0,'Transaction Summary'!$C$2-E95,1),0)+E95 ->  | F96: =OFFSET(CalculationsAndCharts!$B$32,'Transaction Summary'!E96,0,1,1) ->  | G96: =OFFSET(CalculationsAndCharts!$U$32,'Transaction Summary'!E96,0,1,1) ->  | K96: =MATCH(TRUE,OFFSET(CalculationsAndCharts!$Y$33,K95,0,'Transaction Summary'!$C$2-K95,1),0)+K95 ->  | L96: =OFFSET(CalculationsAndCharts!$B$32,'Transaction Summary'!K96,0,1,1) ->  | M96: =OFFSET(CalculationsAndCharts!$AB$32,'Transaction Summary'!K96,0,1,1) ->  | N96: =IF($N$12>$K$15,$N$12,MATCH(TRUE,OFFSET(CalculationsAndCharts!$AA$33,N95,0,'Transaction Summary'!$C$2-N95,1),0)+N95) ->  | O96: =OFFSET(CalculationsAndCharts!$B$32,'Transaction Summary'!N96,0,1,1) ->  | P96: =OFFSET(CalculationsAndCharts!$AC$32,'Transaction Summary'!N96,0,1,1) -> 
B97: =MATCH(TRUE,OFFSET(CalculationsAndCharts!$P$33,B96,0,'Transaction Summary'!$C$2-B96,1),0)+B96 ->  | C97: =OFFSET(CalculationsAndCharts!$B$32,'Transaction Summary'!B97,0,1,1) ->  | D97: =OFFSET(CalculationsAndCharts!$T$32,'Transaction Summary'!B97,0,1,1) ->  | E97: =MATCH(TRUE,OFFSET(CalculationsAndCharts!$S$33,E96,0,'Transaction Summary'!$C$2-E96,1),0)+E96 ->  | F97: =OFFSET(CalculationsAndCharts!$B$32,'Transaction Summary'!E97,0,1,1) ->  | G97: =OFFSET(CalculationsAndCharts!$U$32,'Transaction Summary'!E97,0,1,1) ->  | K97: =MATCH(TRUE,OFFSET(CalculationsAndCharts!$Y$33,K96,0,'Transaction Summary'!$C$2-K96,1),0)+K96 ->  | L97: =OFFSET(CalculationsAndCharts!$B$32,'Transaction Summary'!K97,0,1,1) ->  | M97: =OFFSET(CalculationsAndCharts!$AB$32,'Transaction Summary'!K97,0,1,1) ->  | N97: =IF($N$12>$K$15,$N$12,MATCH(TRUE,OFFSET(CalculationsAndCharts!$AA$33,N96,0,'Transaction Summary'!$C$2-N96,1),0)+N96) ->  | O97: =OFFSET(CalculationsAndCharts!$B$32,'Transaction Summary'!N97,0,1,1) ->  | P97: =OFFSET(CalculationsAndCharts!$AC$32,'Transaction Summary'!N97,0,1,1) -> 
B98: =MATCH(TRUE,OFFSET(CalculationsAndCharts!$P$33,B97,0,'Transaction Summary'!$C$2-B97,1),0)+B97 ->  | C98: =OFFSET(CalculationsAndCharts!$B$32,'Transaction Summary'!B98,0,1,1) ->  | D98: =OFFSET(CalculationsAndCharts!$T$32,'Transaction Summary'!B98,0,1,1) ->  | E98: =MATCH(TRUE,OFFSET(CalculationsAndCharts!$S$33,E97,0,'Transaction Summary'!$C$2-E97,1),0)+E97 ->  | F98: =OFFSET(CalculationsAndCharts!$B$32,'Transaction Summary'!E98,0,1,1) ->  | G98: =OFFSET(CalculationsAndCharts!$U$32,'Transaction Summary'!E98,0,1,1) ->  | K98: =MATCH(TRUE,OFFSET(CalculationsAndCharts!$Y$33,K97,0,'Transaction Summary'!$C$2-K97,1),0)+K97 ->  | L98: =OFFSET(CalculationsAndCharts!$B$32,'Transaction Summary'!K98,0,1,1) ->  | M98: =OFFSET(CalculationsAndCharts!$AB$32,'Transaction Summary'!K98,0,1,1) ->  | N98: =IF($N$12>$K$15,$N$12,MATCH(TRUE,OFFSET(CalculationsAndCharts!$AA$33,N97,0,'Transaction Summary'!$C$2-N97,1),0)+N97) ->  | O98: =OFFSET(CalculationsAndCharts!$B$32,'Transaction Summary'!N98,0,1,1) ->  | P98: =OFFSET(CalculationsAndCharts!$AC$32,'Transaction Summary'!N98,0,1,1) -> 
B99: =MATCH(TRUE,OFFSET(CalculationsAndCharts!$P$33,B98,0,'Transaction Summary'!$C$2-B98,1),0)+B98 ->  | C99: =OFFSET(CalculationsAndCharts!$B$32,'Transaction Summary'!B99,0,1,1) ->  | D99: =OFFSET(CalculationsAndCharts!$T$32,'Transaction Summary'!B99,0,1,1) ->  | E99: =MATCH(TRUE,OFFSET(CalculationsAndCharts!$S$33,E98,0,'Transaction Summary'!$C$2-E98,1),0)+E98 ->  | F99: =OFFSET(CalculationsAndCharts!$B$32,'Transaction Summary'!E99,0,1,1) ->  | G99: =OFFSET(CalculationsAndCharts!$U$32,'Transaction Summary'!E99,0,1,1) ->  | K99: =MATCH(TRUE,OFFSET(CalculationsAndCharts!$Y$33,K98,0,'Transaction Summary'!$C$2-K98,1),0)+K98 ->  | L99: =OFFSET(CalculationsAndCharts!$B$32,'Transaction Summary'!K99,0,1,1) ->  | M99: =OFFSET(CalculationsAndCharts!$AB$32,'Transaction Summary'!K99,0,1,1) ->  | N99: =IF($N$12>$K$15,$N$12,MATCH(TRUE,OFFSET(CalculationsAndCharts!$AA$33,N98,0,'Transaction Summary'!$C$2-N98,1),0)+N98) ->  | O99: =OFFSET(CalculationsAndCharts!$B$32,'Transaction Summary'!N99,0,1,1) ->  | P99: =OFFSET(CalculationsAndCharts!$AC$32,'Transaction Summary'!N99,0,1,1) -> 
B100: =MATCH(TRUE,OFFSET(CalculationsAndCharts!$P$33,B99,0,'Transaction Summary'!$C$2-B99,1),0)+B99 ->  | C100: =OFFSET(CalculationsAndCharts!$B$32,'Transaction Summary'!B100,0,1,1) ->  | D100: =OFFSET(CalculationsAndCharts!$T$32,'Transaction Summary'!B100,0,1,1) ->  | E100: =MATCH(TRUE,OFFSET(CalculationsAndCharts!$S$33,E99,0,'Transaction Summary'!$C$2-E99,1),0)+E99 ->  | F100: =OFFSET(CalculationsAndCharts!$B$32,'Transaction Summary'!E100,0,1,1) ->  | G100: =OFFSET(CalculationsAndCharts!$U$32,'Transaction Summary'!E100,0,1,1) ->  | K100: =MATCH(TRUE,OFFSET(CalculationsAndCharts!$Y$33,K99,0,'Transaction Summary'!$C$2-K99,1),0)+K99 ->  | L100: =OFFSET(CalculationsAndCharts!$B$32,'Transaction Summary'!K100,0,1,1) ->  | M100: =OFFSET(CalculationsAndCharts!$AB$32,'Transaction Summary'!K100,0,1,1) ->  | N100: =IF($N$12>$K$15,$N$12,MATCH(TRUE,OFFSET(CalculationsAndCharts!$AA$33,N99,0,'Transaction Summary'!$C$2-N99,1),0)+N99) ->  | O100: =OFFSET(CalculationsAndCharts!$B$32,'Transaction Summary'!N100,0,1,1) ->  | P100: =OFFSET(CalculationsAndCharts!$AC$32,'Transaction Summary'!N100,0,1,1) -> 
B101: =MATCH(TRUE,OFFSET(CalculationsAndCharts!$P$33,B100,0,'Transaction Summary'!$C$2-B100,1),0)+B100 ->  | C101: =OFFSET(CalculationsAndCharts!$B$32,'Transaction Summary'!B101,0,1,1) ->  | D101: =OFFSET(CalculationsAndCharts!$T$32,'Transaction Summary'!B101,0,1,1) ->  | E101: =MATCH(TRUE,OFFSET(CalculationsAndCharts!$S$33,E100,0,'Transaction Summary'!$C$2-E100,1),0)+E100 ->  | F101: =OFFSET(CalculationsAndCharts!$B$32,'Transaction Summary'!E101,0,1,1) ->  | G101: =OFFSET(CalculationsAndCharts!$U$32,'Transaction Summary'!E101,0,1,1) ->  | K101: =MATCH(TRUE,OFFSET(CalculationsAndCharts!$Y$33,K100,0,'Transaction Summary'!$C$2-K100,1),0)+K100 ->  | L101: =OFFSET(CalculationsAndCharts!$B$32,'Transaction Summary'!K101,0,1,1) ->  | M101: =OFFSET(CalculationsAndCharts!$AB$32,'Transaction Summary'!K101,0,1,1) ->  | N101: =IF($N$12>$K$15,$N$12,MATCH(TRUE,OFFSET(CalculationsAndCharts!$AA$33,N100,0,'Transaction Summary'!$C$2-N100,1),0)+N100) ->  | O101: =OFFSET(CalculationsAndCharts!$B$32,'Transaction Summary'!N101,0,1,1) ->  | P101: =OFFSET(CalculationsAndCharts!$AC$32,'Transaction Summary'!N101,0,1,1) -> 
B102: =MATCH(TRUE,OFFSET(CalculationsAndCharts!$P$33,B101,0,'Transaction Summary'!$C$2-B101,1),0)+B101 ->  | C102: =OFFSET(CalculationsAndCharts!$B$32,'Transaction Summary'!B102,0,1,1) ->  | D102: =OFFSET(CalculationsAndCharts!$T$32,'Transaction Summary'!B102,0,1,1) ->  | E102: =MATCH(TRUE,OFFSET(CalculationsAndCharts!$S$33,E101,0,'Transaction Summary'!$C$2-E101,1),0)+E101 ->  | F102: =OFFSET(CalculationsAndCharts!$B$32,'Transaction Summary'!E102,0,1,1) ->  | G102: =OFFSET(CalculationsAndCharts!$U$32,'Transaction Summary'!E102,0,1,1) ->  | K102: =MATCH(TRUE,OFFSET(CalculationsAndCharts!$Y$33,K101,0,'Transaction Summary'!$C$2-K101,1),0)+K101 ->  | L102: =OFFSET(CalculationsAndCharts!$B$32,'Transaction Summary'!K102,0,1,1) ->  | M102: =OFFSET(CalculationsAndCharts!$AB$32,'Transaction Summary'!K102,0,1,1) ->  | N102: =IF($N$12>$K$15,$N$12,MATCH(TRUE,OFFSET(CalculationsAndCharts!$AA$33,N101,0,'Transaction Summary'!$C$2-N101,1),0)+N101) ->  | O102: =OFFSET(CalculationsAndCharts!$B$32,'Transaction Summary'!N102,0,1,1) ->  | P102: =OFFSET(CalculationsAndCharts!$AC$32,'Transaction Summary'!N102,0,1,1) -> 
B103: =MATCH(TRUE,OFFSET(CalculationsAndCharts!$P$33,B102,0,'Transaction Summary'!$C$2-B102,1),0)+B102 ->  | C103: =OFFSET(CalculationsAndCharts!$B$32,'Transaction Summary'!B103,0,1,1) ->  | D103: =OFFSET(CalculationsAndCharts!$T$32,'Transaction Summary'!B103,0,1,1) ->  | E103: =MATCH(TRUE,OFFSET(CalculationsAndCharts!$S$33,E102,0,'Transaction Summary'!$C$2-E102,1),0)+E102 ->  | F103: =OFFSET(CalculationsAndCharts!$B$32,'Transaction Summary'!E103,0,1,1) ->  | G103: =OFFSET(CalculationsAndCharts!$U$32,'Transaction Summary'!E103,0,1,1) ->  | K103: =MATCH(TRUE,OFFSET(CalculationsAndCharts!$Y$33,K102,0,'Transaction Summary'!$C$2-K102,1),0)+K102 ->  | L103: =OFFSET(CalculationsAndCharts!$B$32,'Transaction Summary'!K103,0,1,1) ->  | M103: =OFFSET(CalculationsAndCharts!$AB$32,'Transaction Summary'!K103,0,1,1) ->  | N103: =IF($N$12>$K$15,$N$12,MATCH(TRUE,OFFSET(CalculationsAndCharts!$AA$33,N102,0,'Transaction Summary'!$C$2-N102,1),0)+N102) ->  | O103: =OFFSET(CalculationsAndCharts!$B$32,'Transaction Summary'!N103,0,1,1) ->  | P103: =OFFSET(CalculationsAndCharts!$AC$32,'Transaction Summary'!N103,0,1,1) -> 
B104: =MATCH(TRUE,OFFSET(CalculationsAndCharts!$P$33,B103,0,'Transaction Summary'!$C$2-B103,1),0)+B103 ->  | C104: =OFFSET(CalculationsAndCharts!$B$32,'Transaction Summary'!B104,0,1,1) ->  | D104: =OFFSET(CalculationsAndCharts!$T$32,'Transaction Summary'!B104,0,1,1) ->  | E104: =MATCH(TRUE,OFFSET(CalculationsAndCharts!$S$33,E103,0,'Transaction Summary'!$C$2-E103,1),0)+E103 ->  | F104: =OFFSET(CalculationsAndCharts!$B$32,'Transaction Summary'!E104,0,1,1) ->  | G104: =OFFSET(CalculationsAndCharts!$U$32,'Transaction Summary'!E104,0,1,1) ->  | K104: =MATCH(TRUE,OFFSET(CalculationsAndCharts!$Y$33,K103,0,'Transaction Summary'!$C$2-K103,1),0)+K103 ->  | L104: =OFFSET(CalculationsAndCharts!$B$32,'Transaction Summary'!K104,0,1,1) ->  | M104: =OFFSET(CalculationsAndCharts!$AB$32,'Transaction Summary'!K104,0,1,1) ->  | N104: =IF($N$12>$K$15,$N$12,MATCH(TRUE,OFFSET(CalculationsAndCharts!$AA$33,N103,0,'Transaction Summary'!$C$2-N103,1),0)+N103) ->  | O104: =OFFSET(CalculationsAndCharts!$B$32,'Transaction Summary'!N104,0,1,1) ->  | P104: =OFFSET(CalculationsAndCharts!$AC$32,'Transaction Summary'!N104,0,1,1) -> 
B105: =MATCH(TRUE,OFFSET(CalculationsAndCharts!$P$33,B104,0,'Transaction Summary'!$C$2-B104,1),0)+B104 ->  | C105: =OFFSET(CalculationsAndCharts!$B$32,'Transaction Summary'!B105,0,1,1) ->  | D105: =OFFSET(CalculationsAndCharts!$T$32,'Transaction Summary'!B105,0,1,1) ->  | E105: =MATCH(TRUE,OFFSET(CalculationsAndCharts!$S$33,E104,0,'Transaction Summary'!$C$2-E104,1),0)+E104 ->  | F105: =OFFSET(CalculationsAndCharts!$B$32,'Transaction Summary'!E105,0,1,1) ->  | G105: =OFFSET(CalculationsAndCharts!$U$32,'Transaction Summary'!E105,0,1,1) ->  | K105: =MATCH(TRUE,OFFSET(CalculationsAndCharts!$Y$33,K104,0,'Transaction Summary'!$C$2-K104,1),0)+K104 ->  | L105: =OFFSET(CalculationsAndCharts!$B$32,'Transaction Summary'!K105,0,1,1) ->  | M105: =OFFSET(CalculationsAndCharts!$AB$32,'Transaction Summary'!K105,0,1,1) ->  | N105: =IF($N$12>$K$15,$N$12,MATCH(TRUE,OFFSET(CalculationsAndCharts!$AA$33,N104,0,'Transaction Summary'!$C$2-N104,1),0)+N104) ->  | O105: =OFFSET(CalculationsAndCharts!$B$32,'Transaction Summary'!N105,0,1,1) ->  | P105: =OFFSET(CalculationsAndCharts!$AC$32,'Transaction Summary'!N105,0,1,1) -> 
B106: =MATCH(TRUE,OFFSET(CalculationsAndCharts!$P$33,B105,0,'Transaction Summary'!$C$2-B105,1),0)+B105 ->  | C106: =OFFSET(CalculationsAndCharts!$B$32,'Transaction Summary'!B106,0,1,1) ->  | D106: =OFFSET(CalculationsAndCharts!$T$32,'Transaction Summary'!B106,0,1,1) ->  | E106: =MATCH(TRUE,OFFSET(CalculationsAndCharts!$S$33,E105,0,'Transaction Summary'!$C$2-E105,1),0)+E105 ->  | F106: =OFFSET(CalculationsAndCharts!$B$32,'Transaction Summary'!E106,0,1,1) ->  | G106: =OFFSET(CalculationsAndCharts!$U$32,'Transaction Summary'!E106,0,1,1) ->  | K106: =MATCH(TRUE,OFFSET(CalculationsAndCharts!$Y$33,K105,0,'Transaction Summary'!$C$2-K105,1),0)+K105 ->  | L106: =OFFSET(CalculationsAndCharts!$B$32,'Transaction Summary'!K106,0,1,1) ->  | M106: =OFFSET(CalculationsAndCharts!$AB$32,'Transaction Summary'!K106,0,1,1) ->  | N106: =IF($N$12>$K$15,$N$12,MATCH(TRUE,OFFSET(CalculationsAndCharts!$AA$33,N105,0,'Transaction Summary'!$C$2-N105,1),0)+N105) ->  | O106: =OFFSET(CalculationsAndCharts!$B$32,'Transaction Summary'!N106,0,1,1) ->  | P106: =OFFSET(CalculationsAndCharts!$AC$32,'Transaction Summary'!N106,0,1,1) -> 
B107: =MATCH(TRUE,OFFSET(CalculationsAndCharts!$P$33,B106,0,'Transaction Summary'!$C$2-B106,1),0)+B106 ->  | C107: =OFFSET(CalculationsAndCharts!$B$32,'Transaction Summary'!B107,0,1,1) ->  | D107: =OFFSET(CalculationsAndCharts!$T$32,'Transaction Summary'!B107,0,1,1) ->  | E107: =MATCH(TRUE,OFFSET(CalculationsAndCharts!$S$33,E106,0,'Transaction Summary'!$C$2-E106,1),0)+E106 ->  | F107: =OFFSET(CalculationsAndCharts!$B$32,'Transaction Summary'!E107,0,1,1) ->  | G107: =OFFSET(CalculationsAndCharts!$U$32,'Transaction Summary'!E107,0,1,1) ->  | K107: =MATCH(TRUE,OFFSET(CalculationsAndCharts!$Y$33,K106,0,'Transaction Summary'!$C$2-K106,1),0)+K106 ->  | L107: =OFFSET(CalculationsAndCharts!$B$32,'Transaction Summary'!K107,0,1,1) ->  | M107: =OFFSET(CalculationsAndCharts!$AB$32,'Transaction Summary'!K107,0,1,1) ->  | N107: =IF($N$12>$K$15,$N$12,MATCH(TRUE,OFFSET(CalculationsAndCharts!$AA$33,N106,0,'Transaction Summary'!$C$2-N106,1),0)+N106) ->  | O107: =OFFSET(CalculationsAndCharts!$B$32,'Transaction Summary'!N107,0,1,1) ->  | P107: =OFFSET(CalculationsAndCharts!$AC$32,'Transaction Summary'!N107,0,1,1) -> 
B108: =MATCH(TRUE,OFFSET(CalculationsAndCharts!$P$33,B107,0,'Transaction Summary'!$C$2-B107,1),0)+B107 ->  | C108: =OFFSET(CalculationsAndCharts!$B$32,'Transaction Summary'!B108,0,1,1) ->  | D108: =OFFSET(CalculationsAndCharts!$T$32,'Transaction Summary'!B108,0,1,1) ->  | E108: =MATCH(TRUE,OFFSET(CalculationsAndCharts!$S$33,E107,0,'Transaction Summary'!$C$2-E107,1),0)+E107 ->  | F108: =OFFSET(CalculationsAndCharts!$B$32,'Transaction Summary'!E108,0,1,1) ->  | G108: =OFFSET(CalculationsAndCharts!$U$32,'Transaction Summary'!E108,0,1,1) ->  | K108: =MATCH(TRUE,OFFSET(CalculationsAndCharts!$Y$33,K107,0,'Transaction Summary'!$C$2-K107,1),0)+K107 ->  | L108: =OFFSET(CalculationsAndCharts!$B$32,'Transaction Summary'!K108,0,1,1) ->  | M108: =OFFSET(CalculationsAndCharts!$AB$32,'Transaction Summary'!K108,0,1,1) ->  | N108: =IF($N$12>$K$15,$N$12,MATCH(TRUE,OFFSET(CalculationsAndCharts!$AA$33,N107,0,'Transaction Summary'!$C$2-N107,1),0)+N107) ->  | O108: =OFFSET(CalculationsAndCharts!$B$32,'Transaction Summary'!N108,0,1,1) ->  | P108: =OFFSET(CalculationsAndCharts!$AC$32,'Transaction Summary'!N108,0,1,1) -> 
B109: =MATCH(TRUE,OFFSET(CalculationsAndCharts!$P$33,B108,0,'Transaction Summary'!$C$2-B108,1),0)+B108 ->  | C109: =OFFSET(CalculationsAndCharts!$B$32,'Transaction Summary'!B109,0,1,1) ->  | D109: =OFFSET(CalculationsAndCharts!$T$32,'Transaction Summary'!B109,0,1,1) ->  | E109: =MATCH(TRUE,OFFSET(CalculationsAndCharts!$S$33,E108,0,'Transaction Summary'!$C$2-E108,1),0)+E108 ->  | F109: =OFFSET(CalculationsAndCharts!$B$32,'Transaction Summary'!E109,0,1,1) ->  | G109: =OFFSET(CalculationsAndCharts!$U$32,'Transaction Summary'!E109,0,1,1) ->  | K109: =MATCH(TRUE,OFFSET(CalculationsAndCharts!$Y$33,K108,0,'Transaction Summary'!$C$2-K108,1),0)+K108 ->  | L109: =OFFSET(CalculationsAndCharts!$B$32,'Transaction Summary'!K109,0,1,1) ->  | M109: =OFFSET(CalculationsAndCharts!$AB$32,'Transaction Summary'!K109,0,1,1) ->  | N109: =IF($N$12>$K$15,$N$12,MATCH(TRUE,OFFSET(CalculationsAndCharts!$AA$33,N108,0,'Transaction Summary'!$C$2-N108,1),0)+N108) ->  | O109: =OFFSET(CalculationsAndCharts!$B$32,'Transaction Summary'!N109,0,1,1) ->  | P109: =OFFSET(CalculationsAndCharts!$AC$32,'Transaction Summary'!N109,0,1,1) -> 
B110: =MATCH(TRUE,OFFSET(CalculationsAndCharts!$P$33,B109,0,'Transaction Summary'!$C$2-B109,1),0)+B109 ->  | C110: =OFFSET(CalculationsAndCharts!$B$32,'Transaction Summary'!B110,0,1,1) ->  | D110: =OFFSET(CalculationsAndCharts!$T$32,'Transaction Summary'!B110,0,1,1) ->  | E110: =MATCH(TRUE,OFFSET(CalculationsAndCharts!$S$33,E109,0,'Transaction Summary'!$C$2-E109,1),0)+E109 ->  | F110: =OFFSET(CalculationsAndCharts!$B$32,'Transaction Summary'!E110,0,1,1) ->  | G110: =OFFSET(CalculationsAndCharts!$U$32,'Transaction Summary'!E110,0,1,1) ->  | K110: =MATCH(TRUE,OFFSET(CalculationsAndCharts!$Y$33,K109,0,'Transaction Summary'!$C$2-K109,1),0)+K109 ->  | L110: =OFFSET(CalculationsAndCharts!$B$32,'Transaction Summary'!K110,0,1,1) ->  | M110: =OFFSET(CalculationsAndCharts!$AB$32,'Transaction Summary'!K110,0,1,1) ->  | N110: =IF($N$12>$K$15,$N$12,MATCH(TRUE,OFFSET(CalculationsAndCharts!$AA$33,N109,0,'Transaction Summary'!$C$2-N109,1),0)+N109) ->  | O110: =OFFSET(CalculationsAndCharts!$B$32,'Transaction Summary'!N110,0,1,1) ->  | P110: =OFFSET(CalculationsAndCharts!$AC$32,'Transaction Summary'!N110,0,1,1) -> 
B111: =MATCH(TRUE,OFFSET(CalculationsAndCharts!$P$33,B110,0,'Transaction Summary'!$C$2-B110,1),0)+B110 ->  | C111: =OFFSET(CalculationsAndCharts!$B$32,'Transaction Summary'!B111,0,1,1) ->  | D111: =OFFSET(CalculationsAndCharts!$T$32,'Transaction Summary'!B111,0,1,1) ->  | E111: =MATCH(TRUE,OFFSET(CalculationsAndCharts!$S$33,E110,0,'Transaction Summary'!$C$2-E110,1),0)+E110 ->  | F111: =OFFSET(CalculationsAndCharts!$B$32,'Transaction Summary'!E111,0,1,1) ->  | G111: =OFFSET(CalculationsAndCharts!$U$32,'Transaction Summary'!E111,0,1,1) ->  | K111: =MATCH(TRUE,OFFSET(CalculationsAndCharts!$Y$33,K110,0,'Transaction Summary'!$C$2-K110,1),0)+K110 ->  | L111: =OFFSET(CalculationsAndCharts!$B$32,'Transaction Summary'!K111,0,1,1) ->  | M111: =OFFSET(CalculationsAndCharts!$AB$32,'Transaction Summary'!K111,0,1,1) ->  | N111: =IF($N$12>$K$15,$N$12,MATCH(TRUE,OFFSET(CalculationsAndCharts!$AA$33,N110,0,'Transaction Summary'!$C$2-N110,1),0)+N110) ->  | O111: =OFFSET(CalculationsAndCharts!$B$32,'Transaction Summary'!N111,0,1,1) ->  | P111: =OFFSET(CalculationsAndCharts!$AC$32,'Transaction Summary'!N111,0,1,1) -> 
B112: =MATCH(TRUE,OFFSET(CalculationsAndCharts!$P$33,B111,0,'Transaction Summary'!$C$2-B111,1),0)+B111 ->  | C112: =OFFSET(CalculationsAndCharts!$B$32,'Transaction Summary'!B112,0,1,1) ->  | D112: =OFFSET(CalculationsAndCharts!$T$32,'Transaction Summary'!B112,0,1,1) ->  | E112: =MATCH(TRUE,OFFSET(CalculationsAndCharts!$S$33,E111,0,'Transaction Summary'!$C$2-E111,1),0)+E111 ->  | F112: =OFFSET(CalculationsAndCharts!$B$32,'Transaction Summary'!E112,0,1,1) ->  | G112: =OFFSET(CalculationsAndCharts!$U$32,'Transaction Summary'!E112,0,1,1) ->  | K112: =MATCH(TRUE,OFFSET(CalculationsAndCharts!$Y$33,K111,0,'Transaction Summary'!$C$2-K111,1),0)+K111 ->  | L112: =OFFSET(CalculationsAndCharts!$B$32,'Transaction Summary'!K112,0,1,1) ->  | M112: =OFFSET(CalculationsAndCharts!$AB$32,'Transaction Summary'!K112,0,1,1) ->  | N112: =IF($N$12>$K$15,$N$12,MATCH(TRUE,OFFSET(CalculationsAndCharts!$AA$33,N111,0,'Transaction Summary'!$C$2-N111,1),0)+N111) ->  | O112: =OFFSET(CalculationsAndCharts!$B$32,'Transaction Summary'!N112,0,1,1) ->  | P112: =OFFSET(CalculationsAndCharts!$AC$32,'Transaction Summary'!N112,0,1,1) -> 
B113: =MATCH(TRUE,OFFSET(CalculationsAndCharts!$P$33,B112,0,'Transaction Summary'!$C$2-B112,1),0)+B112 ->  | C113: =OFFSET(CalculationsAndCharts!$B$32,'Transaction Summary'!B113,0,1,1) ->  | D113: =OFFSET(CalculationsAndCharts!$T$32,'Transaction Summary'!B113,0,1,1) ->  | E113: =MATCH(TRUE,OFFSET(CalculationsAndCharts!$S$33,E112,0,'Transaction Summary'!$C$2-E112,1),0)+E112 ->  | F113: =OFFSET(CalculationsAndCharts!$B$32,'Transaction Summary'!E113,0,1,1) ->  | G113: =OFFSET(CalculationsAndCharts!$U$32,'Transaction Summary'!E113,0,1,1) ->  | K113: =MATCH(TRUE,OFFSET(CalculationsAndCharts!$Y$33,K112,0,'Transaction Summary'!$C$2-K112,1),0)+K112 ->  | L113: =OFFSET(CalculationsAndCharts!$B$32,'Transaction Summary'!K113,0,1,1) ->  | M113: =OFFSET(CalculationsAndCharts!$AB$32,'Transaction Summary'!K113,0,1,1) ->  | N113: =IF($N$12>$K$15,$N$12,MATCH(TRUE,OFFSET(CalculationsAndCharts!$AA$33,N112,0,'Transaction Summary'!$C$2-N112,1),0)+N112) ->  | O113: =OFFSET(CalculationsAndCharts!$B$32,'Transaction Summary'!N113,0,1,1) ->  | P113: =OFFSET(CalculationsAndCharts!$AC$32,'Transaction Summary'!N113,0,1,1) -> 
B114: =MATCH(TRUE,OFFSET(CalculationsAndCharts!$P$33,B113,0,'Transaction Summary'!$C$2-B113,1),0)+B113 ->  | C114: =OFFSET(CalculationsAndCharts!$B$32,'Transaction Summary'!B114,0,1,1) ->  | D114: =OFFSET(CalculationsAndCharts!$T$32,'Transaction Summary'!B114,0,1,1) ->  | E114: =MATCH(TRUE,OFFSET(CalculationsAndCharts!$S$33,E113,0,'Transaction Summary'!$C$2-E113,1),0)+E113 ->  | F114: =OFFSET(CalculationsAndCharts!$B$32,'Transaction Summary'!E114,0,1,1) ->  | G114: =OFFSET(CalculationsAndCharts!$U$32,'Transaction Summary'!E114,0,1,1) ->  | K114: =MATCH(TRUE,OFFSET(CalculationsAndCharts!$Y$33,K113,0,'Transaction Summary'!$C$2-K113,1),0)+K113 ->  | L114: =OFFSET(CalculationsAndCharts!$B$32,'Transaction Summary'!K114,0,1,1) ->  | M114: =OFFSET(CalculationsAndCharts!$AB$32,'Transaction Summary'!K114,0,1,1) ->  | N114: =IF($N$12>$K$15,$N$12,MATCH(TRUE,OFFSET(CalculationsAndCharts!$AA$33,N113,0,'Transaction Summary'!$C$2-N113,1),0)+N113) ->  | O114: =OFFSET(CalculationsAndCharts!$B$32,'Transaction Summary'!N114,0,1,1) ->  | P114: =OFFSET(CalculationsAndCharts!$AC$32,'Transaction Summary'!N114,0,1,1) -> 
B115: =MATCH(TRUE,OFFSET(CalculationsAndCharts!$P$33,B114,0,'Transaction Summary'!$C$2-B114,1),0)+B114 ->  | C115: =OFFSET(CalculationsAndCharts!$B$32,'Transaction Summary'!B115,0,1,1) ->  | D115: =OFFSET(CalculationsAndCharts!$T$32,'Transaction Summary'!B115,0,1,1) ->  | E115: =MATCH(TRUE,OFFSET(CalculationsAndCharts!$S$33,E114,0,'Transaction Summary'!$C$2-E114,1),0)+E114 ->  | F115: =OFFSET(CalculationsAndCharts!$B$32,'Transaction Summary'!E115,0,1,1) ->  | G115: =OFFSET(CalculationsAndCharts!$U$32,'Transaction Summary'!E115,0,1,1) ->  | K115: =MATCH(TRUE,OFFSET(CalculationsAndCharts!$Y$33,K114,0,'Transaction Summary'!$C$2-K114,1),0)+K114 ->  | L115: =OFFSET(CalculationsAndCharts!$B$32,'Transaction Summary'!K115,0,1,1) ->  | M115: =OFFSET(CalculationsAndCharts!$AB$32,'Transaction Summary'!K115,0,1,1) ->  | N115: =IF($N$12>$K$15,$N$12,MATCH(TRUE,OFFSET(CalculationsAndCharts!$AA$33,N114,0,'Transaction Summary'!$C$2-N114,1),0)+N114) ->  | O115: =OFFSET(CalculationsAndCharts!$B$32,'Transaction Summary'!N115,0,1,1) ->  | P115: =OFFSET(CalculationsAndCharts!$AC$32,'Transaction Summary'!N115,0,1,1) -> 
B116: =MATCH(TRUE,OFFSET(CalculationsAndCharts!$P$33,B115,0,'Transaction Summary'!$C$2-B115,1),0)+B115 ->  | C116: =OFFSET(CalculationsAndCharts!$B$32,'Transaction Summary'!B116,0,1,1) ->  | D116: =OFFSET(CalculationsAndCharts!$T$32,'Transaction Summary'!B116,0,1,1) ->  | E116: =MATCH(TRUE,OFFSET(CalculationsAndCharts!$S$33,E115,0,'Transaction Summary'!$C$2-E115,1),0)+E115 ->  | F116: =OFFSET(CalculationsAndCharts!$B$32,'Transaction Summary'!E116,0,1,1) ->  | G116: =OFFSET(CalculationsAndCharts!$U$32,'Transaction Summary'!E116,0,1,1) ->  | I116: =H116+IF(ISNA(I117),0,I117) ->  | K116: =MATCH(TRUE,OFFSET(CalculationsAndCharts!$Y$33,K115,0,'Transaction Summary'!$C$2-K115,1),0)+K115 ->  | L116: =OFFSET(CalculationsAndCharts!$B$32,'Transaction Summary'!K116,0,1,1) ->  | M116: =OFFSET(CalculationsAndCharts!$AB$32,'Transaction Summary'!K116,0,1,1) ->  | N116: =IF($N$12>$K$15,$N$12,MATCH(TRUE,OFFSET(CalculationsAndCharts!$AA$33,N115,0,'Transaction Summary'!$C$2-N115,1),0)+N115) ->  | O116: =OFFSET(CalculationsAndCharts!$B$32,'Transaction Summary'!N116,0,1,1) ->  | P116: =OFFSET(CalculationsAndCharts!$AC$32,'Transaction Summary'!N116,0,1,1) -> 
